Workbook

Sheet Definitions
C1: http://baseballguru.com
C3: PITCHING
C4: throws | D4: Pitching Arm
C5: teamid | D5: Team
C6: LG | D6: League
C7: yearp | D7: Year of prediction
C8: age | D8: Age at year of prediction
C9: POS | D9: SP=Starters / LP=Long Relief, Swing / JP=Junk Starters / EP=Elite Relief Pitchers / DP=Decent RP / BP=Bad RP/ AP=Avoid RP
C10: reliability | D10: Percent of forecast based on players own stats
C11: play | D11: Played last year (I.e. 2020 forecast, played in 2019)
C12: mIP | D12: Forecasted innings pitched
C13: mW | D13: Forecasted wins
C14: mGP | D14: Forecasted games pitched
C15: mGS | D15: Forecasted games started
C16: mCG | D16: Forecasted complete games
C17: mSHO | D17: Forecasted shut outs
C18: mSV | D18: Forecasted saves
C19: mGF | D19: Forecasted games finished
C20: mBFP | D20: Forecasted batters faced
C21: mHRA | D21: Forecasted home runs allowed
C22: mBBA | D22: Forecasted walks allowed
C23: mIBBA | D23: Forecasted intentional walks
C24: mSOA | D24: Forecasted strike outs allowed
C25: mIPouts | D25: Forecasted IP outs
C26: mHA | D26: Forecasted hits allowed
C27: mER | D27: Forecasted earned runs allowed
C28: mWP | D28: Forecasted wild pitches
C29: mHPBA | D29: Forecasted hit batters
C30: mBK | D30: Forecasted balks
C31: mRA | D31: Forecasted runs allowed
C32: mDERA | D32: Forecasted Earned Run Average.
C33: mLOB | D33: Forecasted left on base, mha+mbba-mer
C34: mloba | D34: Forecasted LOB per IP
C35: mCMD | D35: Forecasted Command: Strike out to walk ratio
C36: mDOM | D36: Forecasted Dominance: Strike outs per 9 IP
C37: mCTL | D37: Forecasted Control: Walks per 9 IP
C38: mHR9 | D38: Forecasted home runs allowed per 9 IP
C39: mBABIP | D39: Forecasted bases allowed per 9 IP, (mha-mhra)/(mip*3-msoa-mhra)
C40: mWHIP | D40: Forecasted walks+hits per IP, (mbba+mha)/mip
C41: mWRIP | D41: Forecasted walks+hrs*10 per IP, (mbba+10*mhra)/mip
C42: mHRBIB | D42: Forecasted home runs allowed per bases allowed, mhra/(mip*3-mhra-msoa)
C43: mSTUFF | D43: Forecasted STUFF. This is NOT the same definition as PECOTA's. The formula is: mDOM*6- 1.333*(mDERA+ mDERA)- 3*mCTL -5*mHR9; if mSTUFF<1 then mSTUFF=1;mSTUFF=mSTUFF*mSTUFF/10;
C44: ERAi | D44: Forecasted Indexed ERA, where 100 is average and 80 is 20% lower than average
C45: mGURU | D45: Forecasted Pitching Value (note the formula changed beginning with the 2013 forecasts to be more in line with batters)
C46: mVORP | D46: Value (runs allowed) Over Replacement Player at same position. It is (mDERA-xDERA)*mIP. xDERA ranges from 6 for someone who only starts to 5 for somone never starts.
C47: mROTO | D47: Dollar value, based on 5x5 Rotisserie: ERA, Wins, SV, WHIP, Strike outs
C48: POS2 | D48: 2 year projection
C49: mIP2 | D49: 2 year projected Innings pitched
C50: mDERA2 | D50: 2 year projected ERA
C51: ERAi2 | D51: 2 year projected Indexed ERA
C52: mGURU2 | D52: 2 year projected mGURU
C53: POS3 | D53: 3 year projected
C54: mIP3 | D54: 3 year projected Innings pitched
C55: mDERA3 | D55: 3 year projected ERA
C56: ERAi3 | D56: 3 year projected Indexed ERA
C57: mGURU3 | D57: 3 year projected mGURU
C58: Year | D58: Last Year
C59: IP | D59: 2020 IP for 60 games, PROJECTED for the last 102 games
C60: ERA | D60: 2020 ERA for 60 games, PROJECTED for the last 102 games
C61: DERA | D61: 2020 "Dips" ERA for 60 games, PROJECTED for the last 102 games
C62: GURU | D62: 2020 GURU player value for 60 games, PROJECTED for the last 102 games
C63: DIF | D63: mDERA-ERA (forecasted era minus era from year before)
C64: gurud | D64: Difference between forecasted value and last years value. The higher the number the bigger value, the lower the number the more overpriced, mguru-guru
C65: Value | D65: S=Sleeper, R=Regular, O=Overpriced
C66: DIF_IP3 | D66: mIP3-ip
C67: traj | D67: mDERA3-ERA-dif
C68: lrank | D68: League Rank (I.e. among AL or NL)
C69: prank | D69: Position League Rank (I.e. mSN mLN mJN mEN mDN mBN mAN mSA mLA mJA mEA mDA mBA mAA)
C70: playerID | D70: Sean Lahman's playerid from baseball1.com and baseball-databank.org - most match baseball-reference.com bbrefid
C71: MLBAN_ID | D71: MLB ID
C72: Match1 | D72: Most Similar Player
C73: Match2 | D73: Second Most Similar Player
C74: Match3 | D74: Third Most Similar Player
C76: BATTING
C77: yearp | D77: Year of prediction
C78: age | D78: Age at year of prediction
C79: teamID | D79: Team
C80: lg | D80: League
C81: pos | D81: Primary position
C82: pos2 | D82: Second position with at least 20 games played last year
C83: pos3 | D83: Third position with at least 20 games played last year
C84: reliability | D84: Percent of forecast based on players own stats
C85: xwOBA | D85: eXpected mwOBA for someone at his position and playing time
C86: xGURU | D86: eXpected mGURU for someone at his position and playing time
C87: play | D87: Played last year
C88: mG | D88: Predicted games
C89: mTAP | D89: Predicted Times at Plate
C90: mAB | D90: Predicted at bats
C91: mR | D91: Predicted runs
C92: mH | D92: Predicted hits
C93: mDB | D93: Predicted doubles
C94: mTR | D94: Predicted triples
C95: mHR | D95: Predicted home runs
C96: mRBI | D96: Predicted runs batted in
C97: mSB | D97: Predicted stolen bases
C98: mCS | D98: Predicted times caught stealing
C99: mBB | D99: Predicted walks
C100: mSO | D100: Predicted strike outs
C101: mIBB | D101: Predicted intentional walks
C102: mHPB | D102: Predicted hit by pitch
C103: mSH | D103: Predicted sacrifice hits
C104: mSF | D104: Predicted sacrifice flies
C105: mGIDP | D105: Predicted ground into double play
C106: mAVG | D106: Predicted batting average
C107: mOBP | D107: Predicted on base percentage
C108: mSLG | D108: Predicted slugging percentage
C109: mwOBA | D109: Predicted rate of performace, like OPS but more accurate. Based on Tom Tango's "The Book"
C110: mPRO | D110: Predicted production, like linear weights. It is wOBA * mTAP
C111: mGURU | D111: Forecasted batting value, based on weighting between m WOBA and mPRO
C112: mGURUwt | D112: Forecasted batting value, where mGURU is weighted by positional scarcity
C113: mROTO | D113: Dollar value, based on 5x5 Rotisserie: Avg, HR, SB, RBI, R
C114: mROTOwt | D114: Dollar value, based on 5x5: Avg, HR, SB, RBI, R. Weighted by positional scarcity
C115: mVORP | D115: Value (runs contributed) Over Replacement Player at same position. It is (mwOBA-xwOBA)*mTAP. Uses xwOBA of non-starters.
C116: prank | D116: Forecasted position rank
C117: rank | D117: Forecasted rank overall among batters
C118: plrank | D118: Forecasted position league rank
C119: mstarter | D119: Predicted playing time, Y=Starter, N=Not Full time Starter or Inj risk or Performance Risk, B=Bench
C120: wOBAd | D120: Difference between forecasted performace rate and last years. Positive numbers are sleepers, mwOBA-wOBA
C121: gurud | D121: Difference between forecasted value and last years value. The higher the number the bigger value, the lower the number the more overpriced, mguru-guru
C122: Value | D122: S=Sleeper, R=Regular, O=Overpriced
C123: year | D123: Last year
C124: tap | D124: 2020 times at plate for 60 games, PROJECTED for the last 102 games
C125: avg | D125: 2020 batting average for 60 games, PROJECTED for the last 102 games
C126: obp | D126: 2020 on base percent for 60 games, PROJECTED for the last 102 games
C127: slg | D127: 2020 slugging avg for 60 games, PROJECTED for the last 102 games
C128: wOBA | D128: 2020 rate of production for 60 games, PROJECTED for the last 102 games
C129: PRO | D129: 2020 production for 60 games, PROJECTED for the last 102 games
C130: GURU | D130: 2020 GURU player value for 60 games, PROJECTED for the last 102 games
C131: playerID | D131: Sean Lahman's playerid from baseball1.com and baseball-databank.org - most match baseball-reference.com bbrefid
C132: MLBAN_ID | D132: MLB ID
C133: Description | D133: Description of Player for predicted season
C134: Match1 | D134: Most Similar Player
C135: Match2 | D135: Second Most Similar Player
C136: Match3 | D136: Third Most Similar Player
C137: Advice | D137: Words to the wise

Sheet DEMO
B1: ="http://www.baseball-reference.com/players/"&LEFT(VLOOKUP(choice,stats!$A$2:$DV$726,126),1)&"/"&VLOOKUP(choice,stats!$A$2:$DV$726,126)&".shtml" -> http://www.baseball-reference.com/players/a/abreujo02.shtml | C1: http://www.baseball-reference.com/players/a/abreujo02.shtml | D1: ="http://mlb.mlb.com/team/player.jsp?player_id="&VLOOKUP(choice,stats!$A$2:$DV$726,5) -> http://mlb.mlb.com/team/player.jsp?player_id=547989 | E1: http://mlb.mlb.com/team/player.jsp?player_id=542583 | O1: FALSE | P1: =IF(allow_news_feed=TRUE,"http://mlb.mlb.com/images/players/mugshot/ph_"&VLOOKUP(choice,stats!$A$2:$DV$726,5)&".jpg","http://baseballguru.com/bbguru.jpg") -> http://baseballguru.com/bbguru.jpg | Q1: http://mlb.mlb.com/images/players/mugshot/ph_542583.jpg
C2: 1 | F2: ="FANTASY ADVICE: "&VLOOKUP(VLOOKUP((choice-1)*5+$A7,stacked_bats!$A$2:$H$3627,8),stats!$A$1:$BV$726,11)&". "&VLOOKUP(VLOOKUP((choice-1)*5+$A7,stacked_bats!$A$2:$H$3627,8),stats!$A$1:$BW$726,75)&" " -> FANTASY ADVICE: Aging Dominant Hitter. His best days are past him, but he should perform near projected levels. Overpriced in most drafts, be realistic. Talented, but not a likey all-star this year.
I3: =IF(AND($D$8="DNP",$H$7>37),"Given that he didn't play last year and based on his age, he might be retired. ",IF($D$8="DNP",batter&" didn't play last year, so take forecasts with a grain of salt.",IF(AND(D9="DNP",I8<131),batter&" doesn't have enough MLB experience to produce reliable forecasts.",""))&IF($H$8<23,batter&" might have decent upside, given age of MLB debut. ","")) -> 
A5: 5 | B5: =VLOOKUP(VLOOKUP((choice-1)*5+$A7,stacked_bats!$A$2:$H$3627,8),stats!$A$1:$BV$726,4)&" "&VLOOKUP(VLOOKUP((choice-1)*5+$A7,stacked_bats!$A$2:$H$3627,8),stats!$A$1:$BV$726,3) -> Jose Abreu | I5: Times at Plate | J5: Home runs | K5: Stolen bases | L5: Walk Rate | M5: Strike Out Rate | N5: Batting avg | O5: On base pct | P5: Slugging pct | Q5: Rate of production | R5: Production | S5: Batting value | T5: Positional Scarcity | U5: 5x5 Rotisserie | W5: Value Over Replacement Player
B6: League | C6: Year | D6: Team | E6: Pos | F6: Bats | G6: CORR | H6: Age | I6: TAP | J6: HR | K6: SB | L6: mBB% | M6: mSO% | N6: AVG | O6: OBP | P6: SLG | Q6: WOBA | R6: PRO | S6: GURU | T6: GURUwt | U6: ROTO | V6: Cluster | W6: VORP | X6: Description
A7: 1 | B7: =VLOOKUP(VLOOKUP((choice-1)*5+$A$7,stacked_bats!$A$2:$H$3627,8),stats!$A$1:$DU$726,77) -> AL | C7: =BAT2021forecast!$D$3&"p" -> 2021p | D7: =IF(VLOOKUP(VLOOKUP((choice-1)*5+$A$7,stacked_bats!$A$2:$H$3627,8),stats!$A$1:$DU$726,76)=0,"",VLOOKUP(VLOOKUP((choice-1)*5+$A$7,stacked_bats!$A$2:$H$3627,8),stats!$A$1:$DU$726,76)) -> CHA | E7: =VLOOKUP(VLOOKUP((choice-1)*5+$A$7,stacked_bats!$A$2:$H$3627,8),stats!$A$1:$BV$726,6)&IF(VLOOKUP(VLOOKUP((choice-1)*5+$A$7,stacked_bats!$A$2:$H$3627,8),stats!$A$1:$BV$726,7)=0,"","-"&VLOOKUP(VLOOKUP((choice-1)*5+$A$7,stacked_bats!$A$2:$H$3627,8),stats!$A$1:$BV$726,7))&IF(VLOOKUP(VLOOKUP((choice-1)*5+$A$7,stacked_bats!$A$2:$H$3627,8),stats!$A$1:$BV$726,8)=0,"","-"&VLOOKUP(VLOOKUP((choice-1)*5+$A$7,stacked_bats!$A$2:$H$3627,8),stats!$A$1:$BV$726,8)) -> 1B | F7: =VLOOKUP(VLOOKUP((choice-1)*5+$A$7,stacked_bats!$A$2:$H$3627,8),stats!$A$1:$BV$726,9) -> R | G7: =ROUND(VLOOKUP((choice-1)*5+$A$7,stacked_bats!$A$2:$G$3627,3),3) -> 1 | H7: =VLOOKUP(VLOOKUP((choice-1)*5+$A$7,stacked_bats!$A$2:$H$3627,8),stats!$A$1:$BV$726,24) -> 34 | I7: =VLOOKUP(VLOOKUP((choice-1)*5+$A$7,stacked_bats!$A$2:$H$3627,8),stats!$A$1:$BV$726,25) -> 482 | J7: =VLOOKUP(VLOOKUP((choice-1)*5+$A$7,stacked_bats!$A$2:$H$3627,8),stats!$A$1:$BV$726,26) -> 26 | K7: =VLOOKUP(VLOOKUP((choice-1)*5+$A$7,stacked_bats!$A$2:$H$3627,8),stats!$A$1:$BV$726,27) -> 2 | L7: =VLOOKUP(VLOOKUP((choice-1)*5+$A$7,stacked_bats!$A$2:$H$3627,8),stats!$A$1:$BV$726,42) -> 0.0733070234 | M7: =VLOOKUP(VLOOKUP((choice-1)*5+$A$7,stacked_bats!$A$2:$H$3627,8),stats!$A$1:$BV$726,43) -> 0.2044810356 | N7: =VLOOKUP(VLOOKUP((choice-1)*5+$A$7,stacked_bats!$A$2:$H$3627,8),stats!$A$1:$BV$726,28) -> 0.255 | O7: =VLOOKUP(VLOOKUP((choice-1)*5+$A$7,stacked_bats!$A$2:$H$3627,8),stats!$A$1:$BV$726,29) -> 0.317 | P7: =VLOOKUP(VLOOKUP((choice-1)*5+$A$7,stacked_bats!$A$2:$H$3627,8),stats!$A$1:$BV$726,30) -> 0.483 | Q7: =VLOOKUP(VLOOKUP((choice-1)*5+$A$7,stacked_bats!$A$2:$H$3627,8),stats!$A$1:$BV$726,31) -> 0.342 | R7: =Q7*I7 -> 164.844 | S7: =VLOOKUP(VLOOKUP((choice-1)*5+$A$7,stacked_bats!$A$2:$H$3627,8),stats!$A$1:$BV$726,32) -> 55 | T7: =VLOOKUP(VLOOKUP((choice-1)*5+$A$7,stacked_bats!$A$2:$H$3627,8),stats!$A$1:$BV$726,33) -> 50 | U7: =VLOOKUP(VLOOKUP((choice-1)*5+$A$7,stacked_bats!$A$2:$H$3627,8),stats!$A$1:$BV$726,34) -> 21 | V7: =VLOOKUP(VLOOKUP((choice-1)*5+$A$7,stacked_bats!$A$2:$H$3627,8),stats!$A$1:$BV$726,10)&" " -> 2 | W7: =VLOOKUP(VLOOKUP((choice-1)*5+$A$7,stacked_bats!$A$2:$H$3627,8),stats!$A$1:$BV$726,35) -> 16 | X7: =" "&VLOOKUP(VLOOKUP((choice-1)*5+$A$7,stacked_bats!$A$2:$H$3627,8),stats!$A$1:$BV$726,11)&" " -> Aging Dominant Hitter
A8: =IF(VLOOKUP(VLOOKUP((choice-1)*5+$A$7,stacked_bats!$A$2:$H$3627,8),stats!$A$1:$DU$726,84)=0,"",1) -> 1 | B8: =VLOOKUP(D8,clusters!$A$89:$B$119,2) -> AL | C8: =BAT2021forecast!$D$3-1 -> 2020 | D8: =IF($A8="","DNP",VLOOKUP(VLOOKUP((choice-1)*5+$A$7,stacked_bats!$A$2:$H$3627,8),stats!$A$1:$DU$726,78)) -> CHA | E8: =IF($A8="","",VLOOKUP(VLOOKUP((choice-1)*5+$A$7,stacked_bats!$A$2:$H$3627,8),stats!$A$1:$DU$726,92)) -> 1B | F8: =IF($A8="","",F$7) -> R | G8: =ROUND(VLOOKUP((choice-1)*5+$A$7,stacked_bats!$A$2:$G$3627,3),3) -> 1 | H8: =IF($A8="","",H$7-1) -> 33 | I8: =IF($A8="","",VLOOKUP(VLOOKUP((choice-1)*5+$A$7,stacked_bats!$A$2:$H$3627,8),stats!$A$1:$DU$726,84)) -> 603.8888888 | J8: =IF($A8="","",VLOOKUP(VLOOKUP((choice-1)*5+$A$7,stacked_bats!$A$2:$H$3627,8),stats!$A$1:$DU$726,81)) -> 38.51851852 | K8: =IF($A8="","",VLOOKUP(VLOOKUP((choice-1)*5+$A$7,stacked_bats!$A$2:$H$3627,8),stats!$A$1:$DU$726,82)) -> 1.259259259 | N8: =IF($A8="","",VLOOKUP(VLOOKUP((choice-1)*5+$A$7,stacked_bats!$A$2:$H$3627,8),stats!$A$1:$DU$726,85)) -> 0.286 | O8: =IF($A8="","",VLOOKUP(VLOOKUP((choice-1)*5+$A$7,stacked_bats!$A$2:$H$3627,8),stats!$A$1:$DU$726,89)) -> 0.379 | P8: =IF($A8="","",VLOOKUP(VLOOKUP((choice-1)*5+$A$7,stacked_bats!$A$2:$H$3627,8),stats!$A$1:$DU$726,87)) -> 0.553 | Q8: =IF($A8="","",VLOOKUP(VLOOKUP((choice-1)*5+$A$7,stacked_bats!$A$2:$H$3627,8),stats!$A$1:$DU$726,89)) -> 0.379 | R8: =IF($A8="","",Q8*I8) -> 228.8738889 | S8: =IF($A8="","",VLOOKUP(VLOOKUP((choice-1)*5+$A$7,stacked_bats!$A$2:$H$3627,8),stats!$A$1:$DU$726,90)) -> 93 | U8: =IF($A8="","",VLOOKUP(VLOOKUP((choice-1)*5+$A$7,stacked_bats!$A$2:$H$3627,8),stats!$A$1:$DU$726,91)) -> 36
A9: =IF(VLOOKUP(VLOOKUP((choice-1)*5+$A$7,stacked_bats!$A$2:$H$3627,8),stats!$A$1:$DU$726,100)=0,"",1) -> 1 | B9: =VLOOKUP(D9,clusters!$A$89:$B$119,2) -> AL | C9: =BAT2021forecast!$D$3-2 -> 2019 | D9: =IF($A$9="","DNP",VLOOKUP(VLOOKUP((choice-1)*5+$A$7,stacked_bats!$A$2:$H$3627,8),stats!$A$1:$DU$726,94)) -> CHA | E9: =IF($A9="","",VLOOKUP(VLOOKUP((choice-1)*5+$A$7,stacked_bats!$A$2:$H$3627,8),stats!$A$1:$DU$726,108)) -> 1B | F9: =IF($A9="","",F$7) -> R | G9: =ROUND(VLOOKUP((choice-1)*5+$A$7,stacked_bats!$A$2:$G$3627,3),3) -> 1 | H9: =IF($A9="","",H$7-2) -> 32 | I9: =IF($A9="","",VLOOKUP(VLOOKUP((choice-1)*5+$A$7,stacked_bats!$A$2:$H$3627,8),stats!$A$1:$DU$726,100)) -> 693 | J9: =IF($A9="","",VLOOKUP(VLOOKUP((choice-1)*5+$A$7,stacked_bats!$A$2:$H$3627,8),stats!$A$1:$DU$726,97)) -> 33 | K9: =IF($A9="","",VLOOKUP(VLOOKUP((choice-1)*5+$A$7,stacked_bats!$A$2:$H$3627,8),stats!$A$1:$DU$726,98)) -> 2 | N9: =IF($A9="","",VLOOKUP(VLOOKUP((choice-1)*5+$A$7,stacked_bats!$A$2:$H$3627,8),stats!$A$1:$DU$726,101)) -> 0.284 | O9: =IF($A9="","",VLOOKUP(VLOOKUP((choice-1)*5+$A$7,stacked_bats!$A$2:$H$3627,8),stats!$A$1:$DU$726,105)) -> 0.355 | P9: =IF($A9="","",VLOOKUP(VLOOKUP((choice-1)*5+$A$7,stacked_bats!$A$2:$H$3627,8),stats!$A$1:$DU$726,103)) -> 0.503 | Q9: =IF($A9="","",VLOOKUP(VLOOKUP((choice-1)*5+$A$7,stacked_bats!$A$2:$H$3627,8),stats!$A$1:$DU$726,105)) -> 0.355 | R9: =IF($A9="","",Q9*I9) -> 246.015 | S9: =IF($A9="","",VLOOKUP(VLOOKUP((choice-1)*5+$A$7,stacked_bats!$A$2:$H$3627,8),stats!$A$1:$DU$726,106)) -> 80 | U9: =IF($A9="","",VLOOKUP(VLOOKUP((choice-1)*5+$A$7,stacked_bats!$A$2:$H$3627,8),stats!$A$1:$DU$726,107)) -> 35
A10: =IF(VLOOKUP(VLOOKUP((choice-1)*5+$A$7,stacked_bats!$A$2:$H$3627,8),stats!$A$1:$DU$726,116)=0,"",1) -> 1 | B10: =VLOOKUP(D10,clusters!$A$89:$B$119,2) -> AL | C10: =BAT2021forecast!$D$3-3 -> 2018 | D10: =IF($A$10="","DNP",VLOOKUP(VLOOKUP((choice-1)*5+$A$7,stacked_bats!$A$2:$H$3627,8),stats!$A$1:$DU$726,110)) -> CHA | E10: =IF($A10="","",VLOOKUP(VLOOKUP((choice-1)*5+$A$7,stacked_bats!$A$2:$H$3627,8),stats!$A$1:$DU$726,124)) -> 1B | F10: =IF($A10="","",F$7) -> R | G10: =ROUND(VLOOKUP((choice-1)*5+$A$7,stacked_bats!$A$2:$G$3627,3),3) -> 1 | H10: =IF($A10="","",H$7-3) -> 31 | I10: =IF($A10="","",VLOOKUP(VLOOKUP((choice-1)*5+$A$7,stacked_bats!$A$2:$H$3627,8),stats!$A$1:$DU$726,116)) -> 553 | J10: =IF($A10="","",VLOOKUP(VLOOKUP((choice-1)*5+$A$7,stacked_bats!$A$2:$H$3627,8),stats!$A$1:$DU$726,113)) -> 22 | K10: =IF($A10="","",VLOOKUP(VLOOKUP((choice-1)*5+$A$7,stacked_bats!$A$2:$H$3627,8),stats!$A$1:$DU$726,114)) -> 2 | N10: =IF($A10="","",VLOOKUP(VLOOKUP((choice-1)*5+$A$7,stacked_bats!$A$2:$H$3627,8),stats!$A$1:$DU$726,117)) -> 0.265 | O10: =IF($A10="","",VLOOKUP(VLOOKUP((choice-1)*5+$A$7,stacked_bats!$A$2:$H$3627,8),stats!$A$1:$DU$726,121)) -> 0.343 | P10: =IF($A10="","",VLOOKUP(VLOOKUP((choice-1)*5+$A$7,stacked_bats!$A$2:$H$3627,8),stats!$A$1:$DU$726,119)) -> 0.473 | Q10: =IF($A10="","",VLOOKUP(VLOOKUP((choice-1)*5+$A$7,stacked_bats!$A$2:$H$3627,8),stats!$A$1:$DU$726,121)) -> 0.343 | R10: =IF($A10="","",Q10*I10) -> 189.679 | S10: =IF($A10="","",VLOOKUP(VLOOKUP((choice-1)*5+$A$7,stacked_bats!$A$2:$H$3627,8),stats!$A$1:$DU$726,122)) -> 61 | U10: =IF($A10="","",VLOOKUP(VLOOKUP((choice-1)*5+$A$7,stacked_bats!$A$2:$H$3627,8),stats!$A$1:$DU$726,123)) -> 22
B11: Comparables | D11: ="(based on "&BAT2021forecast!D3&" projections below)" -> (based on 2021 projections below)
A12: 2 | B12: =" "&VLOOKUP((choice-1)*5+$A12,stacked_bats!$A$2:$G$3627,6)&", "&VLOOKUP((choice-1)*5+$A12,stacked_bats!$A$2:$G$3627,7) -> Martinez, J.D. | D12: =VLOOKUP(VLOOKUP((choice-1)*5+$A12,stacked_bats!$A$2:$H$3627,8),stats!$A$1:$DU$726,76) -> BOS | E12: =VLOOKUP(VLOOKUP((choice-1)*5+$A12,stacked_bats!$A$2:$H$3627,8),stats!$A$1:$BV$726,6)&IF(VLOOKUP(VLOOKUP((choice-1)*5+$A12,stacked_bats!$A$2:$H$3627,8),stats!$A$1:$BV$726,7)=0,"","-"&VLOOKUP(VLOOKUP((choice-1)*5+$A12,stacked_bats!$A$2:$H$3627,8),stats!$A$1:$BV$726,7))&IF(VLOOKUP(VLOOKUP((choice-1)*5+$A12,stacked_bats!$A$2:$H$3627,8),stats!$A$1:$BV$726,8)=0,"","-"&VLOOKUP(VLOOKUP((choice-1)*5+$A12,stacked_bats!$A$2:$H$3627,8),stats!$A$1:$BV$726,8)) -> OF | F12: =VLOOKUP(VLOOKUP((choice-1)*5+$A12,stacked_bats!$A$2:$H$3627,8),stats!$A$1:$BV$726,9) -> R | G12: =ROUND(VLOOKUP((choice-1)*5+$A12,stacked_bats!$A$2:$G$3627,3),3) -> 0.943 | H12: =VLOOKUP(VLOOKUP((choice-1)*5+$A12,stacked_bats!$A$2:$H$3627,8),stats!$A$1:$BV$726,24) -> 33 | I12: =VLOOKUP(VLOOKUP((choice-1)*5+$A12,stacked_bats!$A$2:$H$3627,8),stats!$A$1:$BV$726,25) -> 482 | J12: =VLOOKUP(VLOOKUP((choice-1)*5+$A12,stacked_bats!$A$2:$H$3627,8),stats!$A$1:$BV$726,26) -> 25 | K12: =VLOOKUP(VLOOKUP((choice-1)*5+$A12,stacked_bats!$A$2:$H$3627,8),stats!$A$1:$BV$726,27) -> 3 | L12: =VLOOKUP(VLOOKUP((choice-1)*5+$A12,stacked_bats!$A$2:$H$3627,8),stats!$A$1:$BV$726,42) -> 0.1034337675 | M12: =VLOOKUP(VLOOKUP((choice-1)*5+$A12,stacked_bats!$A$2:$H$3627,8),stats!$A$1:$BV$726,43) -> 0.2123470468 | N12: =VLOOKUP(VLOOKUP((choice-1)*5+$A12,stacked_bats!$A$2:$H$3627,8),stats!$A$1:$BV$726,28) -> 0.257 | O12: =VLOOKUP(VLOOKUP((choice-1)*5+$A12,stacked_bats!$A$2:$H$3627,8),stats!$A$1:$BV$726,29) -> 0.337 | P12: =VLOOKUP(VLOOKUP((choice-1)*5+$A12,stacked_bats!$A$2:$H$3627,8),stats!$A$1:$BV$726,30) -> 0.493 | Q12: =VLOOKUP(VLOOKUP((choice-1)*5+$A12,stacked_bats!$A$2:$H$3627,8),stats!$A$1:$BV$726,31) -> 0.356 | R12: =Q12*I12 -> 171.592 | S12: =VLOOKUP(VLOOKUP((choice-1)*5+$A12,stacked_bats!$A$2:$H$3627,8),stats!$A$1:$BV$726,32) -> 64 | T12: =VLOOKUP(VLOOKUP((choice-1)*5+$A12,stacked_bats!$A$2:$H$3627,8),stats!$A$1:$BV$726,33) -> 59 | U12: =VLOOKUP(VLOOKUP((choice-1)*5+$A12,stacked_bats!$A$2:$H$3627,8),stats!$A$1:$BV$726,34) -> 21 | V12: =VLOOKUP(VLOOKUP((choice-1)*5+$A12,stacked_bats!$A$2:$H$3627,8),stats!$A$1:$BV$726,10)&" " -> 2 | W12: =VLOOKUP(VLOOKUP((choice-1)*5+$A12,stacked_bats!$A$2:$H$3627,8),stats!$A$1:$BV$726,35) -> 23 | X12: =" "&VLOOKUP(VLOOKUP((choice-1)*5+$A12,stacked_bats!$A$2:$H$3627,8),stats!$A$1:$BV$726,11)&" " -> Dominant Hitter
A13: 3 | B13: =" "&VLOOKUP((choice-1)*5+$A13,stacked_bats!$A$2:$G$3627,6)&", "&VLOOKUP((choice-1)*5+$A13,stacked_bats!$A$2:$G$3627,7) -> Cron, C.J. | D13: =VLOOKUP(VLOOKUP((choice-1)*5+$A13,stacked_bats!$A$2:$H$3627,8),stats!$A$1:$DU$726,76) -> DET | E13: =VLOOKUP(VLOOKUP((choice-1)*5+$A13,stacked_bats!$A$2:$H$3627,8),stats!$A$1:$BV$726,6)&IF(VLOOKUP(VLOOKUP((choice-1)*5+$A13,stacked_bats!$A$2:$H$3627,8),stats!$A$1:$BV$726,7)=0,"","-"&VLOOKUP(VLOOKUP((choice-1)*5+$A13,stacked_bats!$A$2:$H$3627,8),stats!$A$1:$BV$726,7))&IF(VLOOKUP(VLOOKUP((choice-1)*5+$A13,stacked_bats!$A$2:$H$3627,8),stats!$A$1:$BV$726,8)=0,"","-"&VLOOKUP(VLOOKUP((choice-1)*5+$A13,stacked_bats!$A$2:$H$3627,8),stats!$A$1:$BV$726,8)) -> 1B | F13: =VLOOKUP(VLOOKUP((choice-1)*5+$A13,stacked_bats!$A$2:$H$3627,8),stats!$A$1:$BV$726,9) -> R | G13: =ROUND(VLOOKUP((choice-1)*5+$A13,stacked_bats!$A$2:$G$3627,3),3) -> 0.928 | H13: =VLOOKUP(VLOOKUP((choice-1)*5+$A13,stacked_bats!$A$2:$H$3627,8),stats!$A$1:$BV$726,24) -> 31 | I13: =VLOOKUP(VLOOKUP((choice-1)*5+$A13,stacked_bats!$A$2:$H$3627,8),stats!$A$1:$BV$726,25) -> 325 | J13: =VLOOKUP(VLOOKUP((choice-1)*5+$A13,stacked_bats!$A$2:$H$3627,8),stats!$A$1:$BV$726,26) -> 16 | K13: =VLOOKUP(VLOOKUP((choice-1)*5+$A13,stacked_bats!$A$2:$H$3627,8),stats!$A$1:$BV$726,27) -> 1 | L13: =VLOOKUP(VLOOKUP((choice-1)*5+$A13,stacked_bats!$A$2:$H$3627,8),stats!$A$1:$BV$726,42) -> 0.0649310056 | M13: =VLOOKUP(VLOOKUP((choice-1)*5+$A13,stacked_bats!$A$2:$H$3627,8),stats!$A$1:$BV$726,43) -> 0.2304238722 | N13: =VLOOKUP(VLOOKUP((choice-1)*5+$A13,stacked_bats!$A$2:$H$3627,8),stats!$A$1:$BV$726,28) -> 0.232 | O13: =VLOOKUP(VLOOKUP((choice-1)*5+$A13,stacked_bats!$A$2:$H$3627,8),stats!$A$1:$BV$726,29) -> 0.299 | P13: =VLOOKUP(VLOOKUP((choice-1)*5+$A13,stacked_bats!$A$2:$H$3627,8),stats!$A$1:$BV$726,30) -> 0.449 | Q13: =VLOOKUP(VLOOKUP((choice-1)*5+$A13,stacked_bats!$A$2:$H$3627,8),stats!$A$1:$BV$726,31) -> 0.322 | R13: =Q13*I13 -> 104.65 | S13: =VLOOKUP(VLOOKUP((choice-1)*5+$A13,stacked_bats!$A$2:$H$3627,8),stats!$A$1:$BV$726,32) -> 34 | T13: =VLOOKUP(VLOOKUP((choice-1)*5+$A13,stacked_bats!$A$2:$H$3627,8),stats!$A$1:$BV$726,33) -> 31 | U13: =VLOOKUP(VLOOKUP((choice-1)*5+$A13,stacked_bats!$A$2:$H$3627,8),stats!$A$1:$BV$726,34) -> 11 | V13: =VLOOKUP(VLOOKUP((choice-1)*5+$A13,stacked_bats!$A$2:$H$3627,8),stats!$A$1:$BV$726,10)&" " -> 2 | W13: =VLOOKUP(VLOOKUP((choice-1)*5+$A13,stacked_bats!$A$2:$H$3627,8),stats!$A$1:$BV$726,35) -> 4 | X13: =" "&VLOOKUP(VLOOKUP((choice-1)*5+$A13,stacked_bats!$A$2:$H$3627,8),stats!$A$1:$BV$726,11)&" " -> Lead Footed Slugger
A14: 4 | B14: =" "&VLOOKUP((choice-1)*5+$A14,stacked_bats!$A$2:$G$3627,6)&", "&VLOOKUP((choice-1)*5+$A14,stacked_bats!$A$2:$G$3627,7) -> Ozuna, Marcell | D14: =VLOOKUP(VLOOKUP((choice-1)*5+$A14,stacked_bats!$A$2:$H$3627,8),stats!$A$1:$DU$726,76) -> ATL | E14: =VLOOKUP(VLOOKUP((choice-1)*5+$A14,stacked_bats!$A$2:$H$3627,8),stats!$A$1:$BV$726,6)&IF(VLOOKUP(VLOOKUP((choice-1)*5+$A14,stacked_bats!$A$2:$H$3627,8),stats!$A$1:$BV$726,7)=0,"","-"&VLOOKUP(VLOOKUP((choice-1)*5+$A14,stacked_bats!$A$2:$H$3627,8),stats!$A$1:$BV$726,7))&IF(VLOOKUP(VLOOKUP((choice-1)*5+$A14,stacked_bats!$A$2:$H$3627,8),stats!$A$1:$BV$726,8)=0,"","-"&VLOOKUP(VLOOKUP((choice-1)*5+$A14,stacked_bats!$A$2:$H$3627,8),stats!$A$1:$BV$726,8)) -> OF | F14: =VLOOKUP(VLOOKUP((choice-1)*5+$A14,stacked_bats!$A$2:$H$3627,8),stats!$A$1:$BV$726,9) -> R | G14: =ROUND(VLOOKUP((choice-1)*5+$A14,stacked_bats!$A$2:$G$3627,3),3) -> 0.915 | H14: =VLOOKUP(VLOOKUP((choice-1)*5+$A14,stacked_bats!$A$2:$H$3627,8),stats!$A$1:$BV$726,24) -> 30 | I14: =VLOOKUP(VLOOKUP((choice-1)*5+$A14,stacked_bats!$A$2:$H$3627,8),stats!$A$1:$BV$726,25) -> 539 | J14: =VLOOKUP(VLOOKUP((choice-1)*5+$A14,stacked_bats!$A$2:$H$3627,8),stats!$A$1:$BV$726,26) -> 29 | K14: =VLOOKUP(VLOOKUP((choice-1)*5+$A14,stacked_bats!$A$2:$H$3627,8),stats!$A$1:$BV$726,27) -> 6 | L14: =VLOOKUP(VLOOKUP((choice-1)*5+$A14,stacked_bats!$A$2:$H$3627,8),stats!$A$1:$BV$726,42) -> 0.0854760134 | M14: =VLOOKUP(VLOOKUP((choice-1)*5+$A14,stacked_bats!$A$2:$H$3627,8),stats!$A$1:$BV$726,43) -> 0.1991594507 | N14: =VLOOKUP(VLOOKUP((choice-1)*5+$A14,stacked_bats!$A$2:$H$3627,8),stats!$A$1:$BV$726,28) -> 0.261 | O14: =VLOOKUP(VLOOKUP((choice-1)*5+$A14,stacked_bats!$A$2:$H$3627,8),stats!$A$1:$BV$726,29) -> 0.325 | P14: =VLOOKUP(VLOOKUP((choice-1)*5+$A14,stacked_bats!$A$2:$H$3627,8),stats!$A$1:$BV$726,30) -> 0.487 | Q14: =VLOOKUP(VLOOKUP((choice-1)*5+$A14,stacked_bats!$A$2:$H$3627,8),stats!$A$1:$BV$726,31) -> 0.348 | R14: =Q14*I14 -> 187.572 | S14: =VLOOKUP(VLOOKUP((choice-1)*5+$A14,stacked_bats!$A$2:$H$3627,8),stats!$A$1:$BV$726,32) -> 63 | T14: =VLOOKUP(VLOOKUP((choice-1)*5+$A14,stacked_bats!$A$2:$H$3627,8),stats!$A$1:$BV$726,33) -> 58 | U14: =VLOOKUP(VLOOKUP((choice-1)*5+$A14,stacked_bats!$A$2:$H$3627,8),stats!$A$1:$BV$726,34) -> 25 | V14: =VLOOKUP(VLOOKUP((choice-1)*5+$A14,stacked_bats!$A$2:$H$3627,8),stats!$A$1:$BV$726,10)&" " -> 2 | W14: =VLOOKUP(VLOOKUP((choice-1)*5+$A14,stacked_bats!$A$2:$H$3627,8),stats!$A$1:$BV$726,35) -> 21 | X14: =" "&VLOOKUP(VLOOKUP((choice-1)*5+$A14,stacked_bats!$A$2:$H$3627,8),stats!$A$1:$BV$726,11)&" " -> Dominant Hitter
A15: 5 | B15: =" "&VLOOKUP((choice-1)*5+$A15,stacked_bats!$A$2:$G$3627,6)&", "&VLOOKUP((choice-1)*5+$A15,stacked_bats!$A$2:$G$3627,7) -> Hosmer, Eric | D15: =VLOOKUP(VLOOKUP((choice-1)*5+$A15,stacked_bats!$A$2:$H$3627,8),stats!$A$1:$DU$726,76) -> SDN | E15: =VLOOKUP(VLOOKUP((choice-1)*5+$A15,stacked_bats!$A$2:$H$3627,8),stats!$A$1:$BV$726,6)&IF(VLOOKUP(VLOOKUP((choice-1)*5+$A15,stacked_bats!$A$2:$H$3627,8),stats!$A$1:$BV$726,7)=0,"","-"&VLOOKUP(VLOOKUP((choice-1)*5+$A15,stacked_bats!$A$2:$H$3627,8),stats!$A$1:$BV$726,7))&IF(VLOOKUP(VLOOKUP((choice-1)*5+$A15,stacked_bats!$A$2:$H$3627,8),stats!$A$1:$BV$726,8)=0,"","-"&VLOOKUP(VLOOKUP((choice-1)*5+$A15,stacked_bats!$A$2:$H$3627,8),stats!$A$1:$BV$726,8)) -> 1B | F15: =VLOOKUP(VLOOKUP((choice-1)*5+$A15,stacked_bats!$A$2:$H$3627,8),stats!$A$1:$BV$726,9) -> L | G15: =ROUND(VLOOKUP((choice-1)*5+$A15,stacked_bats!$A$2:$G$3627,3),3) -> 0.896 | H15: =VLOOKUP(VLOOKUP((choice-1)*5+$A15,stacked_bats!$A$2:$H$3627,8),stats!$A$1:$BV$726,24) -> 31 | I15: =VLOOKUP(VLOOKUP((choice-1)*5+$A15,stacked_bats!$A$2:$H$3627,8),stats!$A$1:$BV$726,25) -> 431 | J15: =VLOOKUP(VLOOKUP((choice-1)*5+$A15,stacked_bats!$A$2:$H$3627,8),stats!$A$1:$BV$726,26) -> 17 | K15: =VLOOKUP(VLOOKUP((choice-1)*5+$A15,stacked_bats!$A$2:$H$3627,8),stats!$A$1:$BV$726,27) -> 4 | L15: =VLOOKUP(VLOOKUP((choice-1)*5+$A15,stacked_bats!$A$2:$H$3627,8),stats!$A$1:$BV$726,42) -> 0.0684432851 | M15: =VLOOKUP(VLOOKUP((choice-1)*5+$A15,stacked_bats!$A$2:$H$3627,8),stats!$A$1:$BV$726,43) -> 0.214477482 | N15: =VLOOKUP(VLOOKUP((choice-1)*5+$A15,stacked_bats!$A$2:$H$3627,8),stats!$A$1:$BV$726,28) -> 0.245 | O15: =VLOOKUP(VLOOKUP((choice-1)*5+$A15,stacked_bats!$A$2:$H$3627,8),stats!$A$1:$BV$726,29) -> 0.299 | P15: =VLOOKUP(VLOOKUP((choice-1)*5+$A15,stacked_bats!$A$2:$H$3627,8),stats!$A$1:$BV$726,30) -> 0.424 | Q15: =VLOOKUP(VLOOKUP((choice-1)*5+$A15,stacked_bats!$A$2:$H$3627,8),stats!$A$1:$BV$726,31) -> 0.313 | R15: =Q15*I15 -> 134.903 | S15: =VLOOKUP(VLOOKUP((choice-1)*5+$A15,stacked_bats!$A$2:$H$3627,8),stats!$A$1:$BV$726,32) -> 37 | T15: =VLOOKUP(VLOOKUP((choice-1)*5+$A15,stacked_bats!$A$2:$H$3627,8),stats!$A$1:$BV$726,33) -> 34 | U15: =VLOOKUP(VLOOKUP((choice-1)*5+$A15,stacked_bats!$A$2:$H$3627,8),stats!$A$1:$BV$726,34) -> 14 | V15: =VLOOKUP(VLOOKUP((choice-1)*5+$A15,stacked_bats!$A$2:$H$3627,8),stats!$A$1:$BV$726,10)&" " -> 19 | W15: =VLOOKUP(VLOOKUP((choice-1)*5+$A15,stacked_bats!$A$2:$H$3627,8),stats!$A$1:$BV$726,35) -> 2 | X15: =" "&VLOOKUP(VLOOKUP((choice-1)*5+$A15,stacked_bats!$A$2:$H$3627,8),stats!$A$1:$BV$726,11)&" " -> Slugger
B31: =" "&VLOOKUP((choice-1)*5+$A7,stacked_bats!$A$2:$F$3627,6)&" also leans towards "&VLOOKUP(VALUE(V7),clusters!$A$2:$B$71,2)&" ("&ROUND(100*VLOOKUP(VALUE(V7),clusters!$A$2:$C$71,3)/clusters!C$2,1)&"% of players)" -> Abreu also leans towards Dominant Hitter (3.4% of players)
B32: http://baseballguru.com/bbinside4.html

Sheet PITCH2021forecast
A1: http://baseballguru.com | C1: FORECAST AS OF 1/29/2021 | H1: SP=Starters / LP=Long Relief, Swing / JP=Junk Starters / EP=Elite RP / DP=Decent RP / BP=Bad RP/ AP=Avoid RP | I1: Percent of forecast based on players own stats | J1: Played last year | K1: Innings pitched | L1: Wins | M1: Games pitched | N1: Games started | O1: Complete games | P1: Shut outs | Q1: Saves | R1: Games finished | S1: Batters faced | T1: Home runs allowed | U1: Walks allowed | V1: Intentional walks | W1: Strike outs allowed | X1: IP outs | Y1: Hits allowed | Z1: Earned runs allowed | AA1: Wild pitches | AB1: Hit batters | AC1: Balks | AD1: Runs allowed | AE1: Earned Run Average | AF1: Left on base | AG1: LOB per IP | AH1: Command: Strike out to walk ratio | AI1: Dominance: Strike outs per 9 IP | AJ1: Control: Walks per 9 IP | AK1: Home runs allowed per 9 IP | AL1: Bases allowed per 9 IP | AM1: walks+hits per IP | AN1: walks+hrs*10 per IP | AO1: Home runs allowed per bases allowed | AP1: STUFF: Upside based on power and control | AQ1: Indexed ERA, (100 is average. 80 is 20% lower than average) | AR1: Pitching Value | AS1: Value (runs allowed) Over Replacement Player at same position | AT1: Dollar value, based on 5x5 Rotisserie: ERA, Wins, SV, WHIP, Strike outs | AU1: League Rank | AV1: Position League Rank | AW1: mDERA3-ERA-dif | AX1: 2 year projection | AY1: 2 year projected Innings pitched | AZ1: 2 year projected ERA | BA1: 2 year projected Indexed ERA | BB1: 2 year projected mGURU | BC1: 3 year projected | BD1: 3 year projected Innings pitched | BE1: 3 year projected ERA | BF1: 3 year projected Indexed ERA | BG1: 3 year projected mGURU | BH1: Last Years IP -- PROJECTED | BI1: Last Years ERA -- PROJECTED | BJ1: Last Years "Dips" ERA -- PROJECTED | BK1: Last Years GURU player value -- PROJECTED | BL1: mDERA-ERA (forecasted era minus era from year before) | BM1: Difference between forecast and last years value. Sleepers have high values. | BN1: Draft Value: S=Sleeper, R=Regular, O=Overpriced | BO1: mIP3-ip | BP1: Lahman PlayerID | BQ1: MLB ID | BR1: Description of player for predicted season | BS1: Most Similar Player | BT1: Second Most Similar Player | BU1: Third Most Similar Player | BV1: Words to the wise
A2: nameLast | B2: nameFirst | C2: throws | D2: yearp | E2: age | F2: teamID | G2: LG | H2: POS | I2: reliability | J2: play | K2: mIP | L2: mW | M2: mGP | N2: mGS | O2: mCG | P2: mSHO | Q2: mSV | R2: mGF | S2: mBFP | T2: mHRA | U2: mBBA | V2: mIBBA | W2: mSOA | X2: mIPouts | Y2: mHA | Z2: mER | AA2: mWP | AB2: mHPBA | AC2: mBK | AD2: mRA | AE2: mDERA | AF2: mLOB | AG2: mloba | AH2: mCMD | AI2: mDOM | AJ2: mCTL | AK2: mHR9 | AL2: mBABIP | AM2: mWHIP | AN2: mWRIP | AO2: mHRBIB | AP2: mSTUFF | AQ2: ERAi | AR2: mGURU | AS2: mVORP | AT2: mROTO | AU2: lrank | AV2: prank | AW2: traj | AX2: POS2 | AY2: mIP2 | AZ2: mDERA2 | BA2: ERAi2 | BB2: mGURU2 | BC2: POS3 | BD2: mIP3 | BE2: mDERA3 | BF2: ERAi3 | BG2: mGURU3 | BH2: IP_2020 | BI2: ERA_2020 | BJ2: DERA_2020 | BK2: GURU_2020 | BL2: DIF | BM2: gurud | BN2: value | BO2: DIF_IP3 | BP2: playerID | BQ2: MLBAM_ID | BR2: Description | BS2: match1 | BT2: match2 | BU2: match3 | BV2: advice
A3: deGrom | B3: Jacob | C3: R | D3: 2021 | E3: 33 | F3: NYN | G3: NL | H3: SP | I3: 0.79 | J3: Y | K3: 163.5 | L3: 11 | M3: 24 | N3: 24 | O3: 0 | P3: 0 | Q3: 0 | R3: 0 | S3: 559 | T3: 14 | U3: 36 | V3: 1 | W3: 168 | X3: 421 | Y3: 114 | Z3: 26 | AA3: 4 | AB3: 4 | AC3: 0 | AD3: 48 | AE3: 2.9 | AF3: 114 | AG3: 7.3 | AH3: 4.7 | AI3: 10.7 | AJ3: 2.3 | AK3: 0.86 | AL3: 0.266 | AM3: 1.02 | AN3: 1.22 | AO3: 0.06 | AP3: 206 | AQ3: 59 | AR3: 138 | AS3: 51 | AT3: 38.74 | AU3: 2 | AV3: 2 | AW3: 0.14 | AX3: SP | AY3: 133.1 | AZ3: 2.94 | BA3: 48 | BB3: 125 | BC3: SP | BD3: 109.6 | BE3: 3.04 | BF3: 55 | BG3: 102 | BH3: 165.8 | BI3: 1.87 | BJ3: 2.52 | BK3: 223 | BL3: 1.03 | BM3: -86 | BN3: R | BO3: -56 | BP3: degroja01 | BQ3: 594798 | BR3: Righty Commanding Top Starter | BS3: Yu Darvish | BT3: Kenta Maeda | BU3: Max Scherzer | BV3: Should perform close to forecast. Expected to play regularly. CY Young candidate.
A4: Lamet | B4: Dinelson | C4: R | D4: 2021 | E4: 28 | F4: SDN | G4: NL | H4: SP | I4: 0.72 | J4: Y | K4: 158.3 | L4: 11 | M4: 25 | N4: 25 | O4: 0 | P4: 0 | Q4: 0 | R4: 0 | S4: 600 | T4: 17 | U4: 48 | V4: 0 | W4: 184 | X4: 442 | Y4: 109 | Z4: 28 | AA4: 5 | AB4: 8 | AC4: 0 | AD4: 57 | AE4: 3.07 | AF4: 116 | AG4: 7.1 | AH4: 3.8 | AI4: 11.3 | AJ4: 3 | AK4: 1.06 | AL4: 0.267 | AM4: 1.08 | AN4: 1.5 | AO4: 0.07 | AP4: 208 | AQ4: 62 | AR4: 114 | AS4: 47 | AT4: 36.96 | AU4: 3 | AV4: 3 | AW4: 0.24 | AX4: SP | AY4: 133.2 | AZ4: 3.3 | BA4: 54 | BB4: 88 | BC4: SP | BD4: 113.2 | BE4: 3.31 | BF4: 60 | BG4: 79 | BH4: 170.4 | BI4: 1.78 | BJ4: 2.82 | BK4: 161 | BL4: 1.3 | BM4: -47 | BN4: R | BO4: -57 | BP4: lametdi01 | BQ4: 659275 | BR4: Righty Commanding Swing Starter | BS4: Tyler Glasnow | BT4: Zac Gallen | BU4: Lance McCullers | BV4: Should perform close to forecast. Expected to play regularly. CY Young candidate.
A5: Nola | B5: Aaron | C5: R | D5: 2021 | E5: 28 | F5: PHI | G5: NL | H5: SP | I5: 0.79 | J5: Y | K5: 164.1 | L5: 11 | M5: 27 | N5: 26 | O5: 1 | P5: 1 | Q5: 0 | R5: 0 | S5: 655 | T5: 20 | U5: 54 | V5: 3 | W5: 182 | X5: 478 | Y5: 134 | Z5: 28 | AA5: 3 | AB5: 6 | AC5: 0 | AD5: 68 | AE5: 3.15 | AF5: 136 | AG5: 7.7 | AH5: 3.4 | AI5: 10.3 | AJ5: 3 | AK5: 1.11 | AL5: 0.274 | AM5: 1.17 | AN5: 1.57 | AO5: 0.07 | AP5: 152 | AQ5: 64 | AR5: 112 | AS5: 51 | AT5: 37.73 | AU5: 4 | AV5: 4 | AW5: 0.37 | AX5: SP | AY5: 141.3 | AZ5: 3.55 | BA5: 58 | BB5: 73 | BC5: SP | BD5: 121.9 | BE5: 3.52 | BF5: 64 | BG5: 69 | BH5: 179.2 | BI5: 2.19 | BJ5: 3.24 | BK5: 109 | BL5: 0.96 | BM5: 3 | BN5: R | BO5: -57 | BP5: nolaaa01 | BQ5: 605400 | BR5: Righty Commanding Top Starter | BS5: Brandon Woodruff | BT5: Trevor Bauer | BU5: Lucas Giolito | BV5: Should perform close to forecast. Expected to play regularly. CY Young candidate.
A6: Darvish | B6: Yu | C6: R | D6: 2021 | E6: 34 | F6: SDN | G6: NL | H6: SP | I6: 0.76 | J6: Y | K6: 155.1 | L6: 11 | M6: 28 | N6: 27 | O6: 0 | P6: 0 | Q6: 0 | R6: 0 | S6: 632 | T6: 21 | U6: 45 | V6: 2 | W6: 173 | X6: 465 | Y6: 127 | Z6: 28 | AA6: 7 | AB6: 7 | AC6: 0 | AD6: 61 | AE6: 3.15 | AF6: 123 | AG6: 7.1 | AH6: 3.8 | AI6: 10 | AJ6: 2.6 | AK6: 1.19 | AL6: 0.266 | AM6: 1.11 | AN6: 1.62 | AO6: 0.08 | AP6: 143 | AQ6: 64 | AR6: 109 | AS6: 49 | AT6: 37.38 | AU6: 5 | AV6: 5 | AW6: 0.29 | AX6: SP | AY6: 132 | AZ6: 3.46 | BA6: 56 | BB6: 76 | BC6: SP | BD6: 112.4 | BE6: 3.44 | BF6: 62 | BG6: 70 | BH6: 184.5 | BI6: 1.69 | BJ6: 2.82 | BK6: 167 | BL6: 1.46 | BM6: -57 | BN6: R | BO6: -72 | BP6: darviyu01 | BQ6: 506433 | BR6: Aging Commanding Starter | BS6: Carlos Carrasco | BT6: Kenta Maeda | BU6: Jacob deGrom | BV6: Should perform close to forecast. Expected to play regularly. CY Young candidate.
A7: Woodruff | B7: Brandon | C7: R | D7: 2021 | E7: 28 | F7: MIL | G7: NL | H7: SP | I7: 0.73 | J7: Y | K7: 166.3 | L7: 11 | M7: 27 | N7: 27 | O7: 3 | P7: 0 | Q7: 0 | R7: 0 | S7: 642 | T7: 19 | U7: 44 | V7: 0 | W7: 179 | X7: 472 | Y7: 133 | Z7: 29 | AA7: 3 | AB7: 7 | AC7: 0 | AD7: 65 | AE7: 3.27 | AF7: 126 | AG7: 7.3 | AH7: 4.1 | AI7: 10.3 | AJ7: 2.5 | AK7: 1.1 | AL7: 0.282 | AM7: 1.13 | AN7: 1.5 | AO7: 0.07 | AP7: 161 | AQ7: 67 | AR7: 98 | AS7: 47 | AT7: 37.07 | AU7: 6 | AV7: 6 | AW7: 0.16 | AX7: SP | AY7: 141.5 | AZ7: 3.4 | BA7: 55 | BB7: 83 | BC7: SP | BD7: 121 | BE7: 3.43 | BF7: 62 | BG7: 74 | BH7: 182 | BI7: 2.2 | BJ7: 3.24 | BK7: 110 | BL7: 1.07 | BM7: -13 | BN7: R | BO7: -61 | BP7: woodrbr01 | BQ7: 605540 | BR7: Righty Commanding Top Starter | BS7: Trevor Bauer | BT7: Lucas Giolito | BU7: Aaron Civale | BV7: Should perform close to forecast. Expected to play regularly. CY Young candidate.
A8: Scherzer | B8: Max | C8: R | D8: 2021 | E8: 36 | F8: WAS | G8: NL | H8: SP | I8: 0.78 | J8: Y | K8: 151.6 | L8: 10 | M8: 23 | N8: 23 | O8: 1 | P8: 0 | Q8: 0 | R8: 0 | S8: 551 | T8: 16 | U8: 37 | V8: 2 | W8: 159 | X8: 400 | Y8: 122 | Z8: 29 | AA8: 5 | AB8: 5 | AC8: 0 | AD8: 54 | AE8: 3.24 | AF8: 116 | AG8: 7.7 | AH8: 4.3 | AI8: 10.5 | AJ8: 2.4 | AK8: 1.08 | AL8: 0.282 | AM8: 1.13 | AN8: 1.47 | AO8: 0.07 | AP8: 173 | AQ8: 66 | AR8: 96 | AS8: 44 | AT8: 33.56 | AU8: 7 | AV8: 7 | AW8: 0.25 | AX8: SP | AY8: 126.4 | AZ8: 3.25 | BA8: 53 | BB8: 89 | BC8: SP | BD8: 105.1 | BE8: 3.49 | BF8: 63 | BG8: 65 | BH8: 161.8 | BI8: 2.64 | BJ8: 3.27 | BK8: 100 | BL8: 0.6 | BM8: -4 | BN8: R | BO8: -57 | BP8: scherma01 | BQ8: 453286 | BR8: Aging Commanding Top Starter | BS8: Jacob deGrom | BT8: Yu Darvish | BU8: Gerrit Cole | BV8: Should perform close to forecast. Expected to play regularly. CY Young candidate.
A9: Castillo | B9: Luis | C9: R | D9: 2021 | E9: 28 | F9: CIN | G9: NL | H9: SP | I9: 0.78 | J9: Y | K9: 162.4 | L9: 11 | M9: 27 | N9: 27 | O9: 1 | P9: 0 | Q9: 0 | R9: 0 | S9: 648 | T9: 18 | U9: 55 | V9: 0 | W9: 178 | X9: 469 | Y9: 135 | Z9: 30 | AA9: 4 | AB9: 5 | AC9: 1 | AD9: 71 | AE9: 3.39 | AF9: 137 | AG9: 7.9 | AH9: 3.2 | AI9: 10.2 | AJ9: 3.2 | AK9: 1.06 | AL9: 0.28 | AM9: 1.2 | AN9: 1.53 | AO9: 0.07 | AP9: 142 | AQ9: 69 | AR9: 89 | AS9: 46 | AT9: 35.42 | AU9: 8 | AV9: 8 | AW9: 0.09 | AX9: SP | AY9: 139.7 | AZ9: 3.47 | BA9: 57 | BB9: 77 | BC9: SP | BD9: 120.6 | BE9: 3.47 | BF9: 63 | BG9: 71 | BH9: 175.8 | BI9: 2.28 | BJ9: 3.08 | BK9: 125 | BL9: 1.11 | BM9: -36 | BN9: R | BO9: -55 | BP9: castilu02 | BQ9: 622491 | BR9: Righty Commanding Top Starter | BS9: Lance McCullers | BT9: Dylan Bundy | BU9: Jose Berrios | BV9: Should perform close to forecast. Expected to play regularly. Star player, must have.
A10: Hendricks | B10: Kyle | C10: R | D10: 2021 | E10: 31 | F10: CHN | G10: NL | H10: SP | I10: 0.79 | J10: Y | K10: 166.6 | L10: 12 | M10: 29 | N10: 29 | O10: 1 | P10: 1 | Q10: 0 | R10: 0 | S10: 700 | T10: 21 | U10: 34 | V10: 2 | W10: 146 | X10: 517 | Y10: 152 | Z10: 31 | AA10: 2 | AB10: 6 | AC10: 0 | AD10: 67 | AE10: 3.49 | AF10: 131 | AG10: 6.9 | AH10: 4.2 | AI10: 7.6 | AJ10: 1.8 | AK10: 1.08 | AL10: 0.27 | AM10: 1.11 | AN10: 1.39 | AO10: 0.06 | AP10: 66 | AQ10: 71 | AR10: 84 | AS10: 46 | AT10: 36.94 | AU10: 9 | AV10: 9 | AW10: 0.15 | AX10: SP | AY10: 144.2 | AZ10: 3.64 | BA10: 59 | BB10: 68 | BC10: SP | BD10: 124.6 | BE10: 3.64 | BF10: 66 | BG10: 63 | BH10: 200.3 | BI10: 2.07 | BJ10: 3.56 | BK10: 90 | BL10: 1.41 | BM10: -5 | BN10: R | BO10: -76 | BP10: hendrky01 | BQ10: 543294 | BR10: Righty Commanding Top Starter | BS10: Masahiro Tanaka | BT10: Aaron Civale | BU10: Jose Berrios | BV10: In prime. Expected to play regularly. Star player, must have.
A11: Kershaw | B11: Clayton | C11: L | D11: 2021 | E11: 33 | F11: LAN | G11: NL | H11: SP | I11: 0.76 | J11: Y | K11: 131.7 | L11: 9 | M11: 21 | N11: 21 | O11: 0 | P11: 0 | Q11: 0 | R11: 0 | S11: 481 | T11: 17 | U11: 28 | V11: 0 | W11: 119 | X11: 361 | Y11: 111 | Z11: 30 | AA11: 4 | AB11: 3 | AC11: 0 | AD11: 50 | AE11: 3.39 | AF11: 102 | AG11: 7.7 | AH11: 4.3 | AI11: 8.9 | AJ11: 2.1 | AK11: 1.25 | AL11: 0.254 | AM11: 1.07 | AN11: 1.61 | AO11: 0.07 | AP11: 103 | AQ11: 69 | AR11: 81 | AS11: 38 | AT11: 29.87 | AU11: 10 | AV11: 10 | AW11: 0.43 | AX11: SP | AY11: 107.1 | AZ11: 3.68 | BA11: 60 | BB11: 55 | BC11: SP | BD11: 88.6 | BE11: 3.81 | BF11: 69 | BG11: 45 | BH11: 142.3 | BI11: 2.12 | BJ11: 3.46 | BK11: 79 | BL11: 1.27 | BM11: 2 | BN11: R | BO11: -54 | BP11: kershcl01 | BQ11: 477132 | BR11: Lefty Commanding Starter | BS11: Hyun-jin Ryu | BT11: Sean Manaea | BU11: Andrew Heaney | BV11: Should perform close to forecast. Expected to play regularly. Has all-star level talent.
A12: Eflin | B12: Zach | C12: R | D12: 2021 | E12: 27 | F12: PHI | G12: NL | H12: SP | I12: 0.75 | J12: Y | K12: 141.2 | L12: 9 | M12: 23 | N12: 23 | O12: 3 | P12: 3 | Q12: 0 | R12: 0 | S12: 549 | T12: 19 | U12: 39 | V12: 2 | W12: 127 | X12: 388 | Y12: 146 | Z12: 31 | AA12: 3 | AB12: 5 | AC12: 0 | AD12: 74 | AE12: 3.47 | AF12: 134 | AG12: 9.3 | AH12: 3.3 | AI12: 8.8 | AJ12: 2.7 | AK12: 1.35 | AL12: 0.294 | AM12: 1.32 | AN12: 1.8 | AO12: 0.08 | AP12: 82 | AQ12: 71 | AR12: 78 | AS12: 40 | AT12: 26.47 | AU12: 11 | AV12: 11 | AW12: 0.52 | AX12: SP | AY12: 121.7 | AZ12: 3.96 | BA12: 65 | BB12: 48 | BC12: SP | BD12: 104.6 | BE12: 3.99 | BF12: 72 | BG12: 43 | BH12: 147.1 | BI12: 2.78 | BJ12: 3.65 | BK12: 69 | BL12: 0.69 | BM12: 10 | BN12: R | BO12: -43 | BP12: eflinza01 | BQ12: 621107 | BR12: Righty Commanding Top Starter | BS12: Alec Mills | BT12: Kyle Gibson | BU12: Antonio Senzatela | BV12: Should perform close to forecast. Expected to play regularly. All-star hopeful.
A13: Marquez | B13: German | C13: R | D13: 2021 | E13: 26 | F13: COL | G13: NL | H13: SP | I13: 0.8 | J13: Y | K13: 184.3 | L13: 12 | M13: 31 | N13: 31 | O13: 0 | P13: 0 | Q13: 0 | R13: 0 | S13: 802 | T13: 24 | U13: 53 | V13: 1 | W13: 198 | X13: 577 | Y13: 171 | Z13: 34 | AA13: 9 | AB13: 5 | AC13: 0 | AD13: 90 | AE13: 3.74 | AF13: 153 | AG13: 7.2 | AH13: 3.7 | AI13: 9.3 | AJ13: 2.5 | AK13: 1.14 | AL13: 0.295 | AM13: 1.21 | AN13: 1.54 | AO13: 0.07 | AP13: 105 | AQ13: 76 | AR13: 73 | AS13: 46 | AT13: 39.16 | AU13: 12 | AV13: 12 | AW13: -0.16 | AX13: SP | AY13: 167.2 | AZ13: 3.61 | BA13: 59 | BB13: 77 | BC13: SP | BD13: 149.5 | BE13: 3.58 | BF13: 65 | BG13: 73 | BH13: 209.3 | BI13: 2.46 | BJ13: 3.43 | BK13: 102 | BL13: 1.28 | BM13: -29 | BN13: R | BO13: -60 | BP13: marquge01 | BQ13: 608566 | BR13: Righty Commanding Top Starter | BS13: Jose Berrios | BT13: Dylan Bundy | BU13: Lance McCullers | BV13: Should perform close to forecast. Expect to see at top of Rotation all season. All-star quality arm with very bright future.
A14: Carrasco | B14: Carlos | C14: R | D14: 2021 | E14: 34 | F14: NYN | G14: NL | H14: SP | I14: 0.74 | J14: Y | K14: 143.5 | L14: 10 | M14: 27 | N14: 27 | O14: 0 | P14: 0 | Q14: 0 | R14: 0 | S14: 591 | T14: 20 | U14: 44 | V14: 1 | W14: 153 | X14: 427 | Y14: 125 | Z14: 32 | AA14: 7 | AB14: 4 | AC14: 0 | AD14: 59 | AE14: 3.58 | AF14: 119 | AG14: 7.4 | AH14: 3.5 | AI14: 9.6 | AJ14: 2.8 | AK14: 1.25 | AL14: 0.285 | AM14: 1.21 | AN14: 1.7 | AO14: 0.08 | AP14: 112 | AQ14: 73 | AR14: 70 | AS14: 37 | AT14: 29.61 | AU14: 12 | AV14: 11 | AW14: 0.26 | AX14: SP | AY14: 124.8 | AZ14: 3.75 | BA14: 61 | BB14: 57 | BC14: SP | BD14: 108.2 | BE14: 3.84 | BF14: 70 | BG14: 49 | BH14: 166.6 | BI14: 2.34 | BJ14: 3.63 | BK14: 75 | BL14: 1.24 | BM14: -5 | BN14: R | BO14: -58 | BP14: carraca01 | BQ14: 471911 | BR14: Aging Commanding Swing Starter | BS14: Kenta Maeda | BT14: Yu Darvish | BU14: Chris Bassitt | BV14: Should perform close to forecast. Expected to play regularly. All-star candidate.
A15: Paddack | B15: Chris | C15: R | D15: 2021 | E15: 25 | F15: SDN | G15: NL | H15: SP | I15: 0.75 | J15: Y | K15: 137.6 | L15: 10 | M15: 25 | N15: 25 | O15: 0 | P15: 0 | Q15: 0 | R15: 0 | S15: 586 | T15: 26 | U15: 35 | V15: 1 | W15: 152 | X15: 427 | Y15: 134 | Z15: 33 | AA15: 2 | AB15: 6 | AC15: 0 | AD15: 72 | AE15: 3.64 | AF15: 118 | AG15: 7.6 | AH15: 4.3 | AI15: 9.7 | AJ15: 2.3 | AK15: 1.66 | AL15: 0.272 | AM15: 1.16 | AN15: 2.09 | AO15: 0.11 | AP15: 113 | AQ15: 74 | AR15: 69 | AS15: 39 | AT15: 31.97 | AU15: 13 | AV15: 13 | AW15: 0.51 | AX15: SP | AY15: 123 | AZ15: 4.06 | BA15: 66 | BB15: 45 | BC15: SP | BD15: 109.4 | BE15: 4.15 | BF15: 75 | BG15: 39 | BH15: 152.6 | BI15: 3.17 | BJ15: 4.43 | BK15: 40 | BL15: 0.47 | BM15: 29 | BN15: R | BO15: -43 | BP15: paddach01 | BQ15: 663978 | BR15: Young Commanding Starter | BS15: Zach Plesac | BT15: Walker Buehler | BU15: Joseph Musgrove | BV15: Should perform close to forecast. Expected to play regularly. All-star quality arm with very bright future.
A16: Wheeler | B16: Zack | C16: R | D16: 2021 | E16: 31 | F16: PHI | G16: NL | H16: SP | I16: 0.79 | J16: Y | K16: 158.2 | L16: 10 | M16: 25 | N16: 25 | O16: 0 | P16: 0 | Q16: 0 | R16: 0 | S16: 625 | T16: 14 | U16: 41 | V16: 2 | W16: 138 | X16: 452 | Y16: 145 | Z16: 34 | AA16: 3 | AB16: 7 | AC16: 0 | AD16: 66 | AE16: 3.73 | AF16: 133 | AG16: 7.9 | AH16: 3.4 | AI16: 8.2 | AJ16: 2.4 | AK16: 0.85 | AL16: 0.284 | AM16: 1.2 | AN16: 1.22 | AO16: 0.05 | AP16: 76 | AQ16: 76 | AR16: 67 | AS16: 39 | AT16: 31.42 | AU16: 14 | AV16: 14 | AW16: -0.22 | AX16: SP | AY16: 134.9 | AZ16: 3.49 | BA16: 57 | BB16: 74 | BC16: SP | BD16: 114.7 | BE16: 3.51 | BF16: 64 | BG16: 67 | BH16: 174.9 | BI16: 2.35 | BJ16: 3.33 | BK16: 99 | BL16: 1.38 | BM16: -32 | BN16: R | BO16: -60 | BP16: wheelza01 | BQ16: 554430 | BR16: Righty Commanding Starter | BS16: Rick Porcello | BT16: Chris Bassitt | BU16: Zach Davies | BV16: In prime. Expected to play regularly. All-star hopeful.
A17: Fried | B17: Max | C17: L | D17: 2021 | E17: 27 | F17: ATL | G17: NL | H17: SP | I17: 0.72 | J17: Y | K17: 143.5 | L17: 9 | M17: 25 | N17: 23 | O17: 0 | P17: 0 | Q17: 0 | R17: 1 | S17: 534 | T17: 14 | U17: 41 | V17: 1 | W17: 131 | X17: 385 | Y17: 132 | Z17: 33 | AA17: 6 | AB17: 6 | AC17: 1 | AD17: 60 | AE17: 3.67 | AF17: 128 | AG17: 9.1 | AH17: 3.2 | AI17: 9.2 | AJ17: 2.9 | AK17: 0.98 | AL17: 0.29 | AM17: 1.27 | AN17: 1.41 | AO17: 0.06 | AP17: 102 | AQ17: 75 | AR17: 65 | AS17: 35 | AT17: 27.23 | AU17: 15 | AV17: 15 | AW17: 0.22 | AX17: LP | AY17: 105.6 | AZ17: 3.73 | BA17: 61 | BB17: 53 | BC17: SP | BD17: 89.2 | BE17: 3.89 | BF17: 71 | BG17: 42 | BH17: 142 | BI17: 2.28 | BJ17: 3.43 | BK17: 81 | BL17: 1.39 | BM17: -15 | BN17: R | BO17: -53 | BP17: friedma01 | BQ17: 608331 | BR17: Lefty Commanding Top Starter | BS17: Julio Urias | BT17: Patrick Corbin | BU17: Framber Valdez | BV17: Should perform close to forecast. Expected to play regularly.
A18: Gray | B18: Sonny | C18: R | D18: 2021 | E18: 31 | F18: CIN | G18: NL | H18: SP | I18: 0.75 | J18: Y | K18: 136 | L18: 9 | M18: 25 | N18: 21 | O18: 0 | P18: 0 | Q18: 0 | R18: 1 | S18: 495 | T18: 12 | U18: 47 | V18: 1 | W18: 129 | X18: 356 | Y18: 111 | Z18: 33 | AA18: 8 | AB18: 6 | AC18: 1 | AD18: 58 | AE18: 3.64 | AF18: 115 | AG18: 8.7 | AH18: 2.8 | AI18: 9.8 | AJ18: 3.5 | AK18: 0.94 | AL18: 0.269 | AM18: 1.23 | AN18: 1.44 | AO18: 0.06 | AP18: 115 | AQ18: 74 | AR18: 65 | AS18: 33 | AT18: 26.98 | AU18: 16 | AV18: 16 | AW18: 0.21 | AX18: LP | AY18: 99.2 | AZ18: 3.66 | BA18: 60 | BB18: 54 | BC18: SP | BD18: 82.5 | BE18: 3.85 | BF18: 70 | BG18: 42 | BH18: 137.9 | BI18: 2.9 | BJ18: 3.34 | BK18: 86 | BL18: 0.74 | BM18: -21 | BN18: R | BO18: -55 | BP18: grayso01 | BQ18: 543243 | BR18: Righty Power Starter | BS18: Lance McCullers | BT18: Yu Darvish | BU18: Carlos Carrasco | BV18: In prime. Expected to play regularly.
A19: Corbin | B19: Patrick | C19: L | D19: 2021 | E19: 31 | F19: WAS | G19: NL | H19: SP | I19: 0.78 | J19: Y | K19: 151.3 | L19: 10 | M19: 24 | N19: 24 | O19: 0 | P19: 0 | Q19: 0 | R19: 0 | S19: 584 | T19: 17 | U19: 43 | V19: 2 | W19: 148 | X19: 418 | Y19: 141 | Z19: 34 | AA19: 4 | AB19: 3 | AC19: 1 | AD19: 65 | AE19: 3.78 | AF19: 134 | AG19: 8.6 | AH19: 3.5 | AI19: 9.4 | AJ19: 2.7 | AK19: 1.09 | AL19: 0.292 | AM19: 1.25 | AN19: 1.52 | AO19: 0.07 | AP19: 108 | AQ19: 77 | AR19: 62 | AS19: 37 | AT19: 30.14 | AU19: 17 | AV19: 17 | AW19: 0.03 | AX19: SP | AY19: 129.4 | AZ19: 3.67 | BA19: 60 | BB19: 63 | BC19: SP | BD19: 110.4 | BE19: 3.81 | BF19: 69 | BG19: 51 | BH19: 161.8 | BI19: 3.19 | BJ19: 3.81 | BK19: 64 | BL19: 0.59 | BM19: -2 | BN19: R | BO19: -51 | BP19: corbipa01 | BQ19: 571578 | BR19: Lefty Commanding Top Starter | BS19: Marco Gonzales | BT19: Max Fried | BU19: Hyun-jin Ryu | BV19: In prime. Expected to play regularly.
A20: Davies | B20: Zach | C20: R | D20: 2021 | E20: 28 | F20: CHN | G20: NL | H20: SP | I20: 0.75 | J20: Y | K20: 146.7 | L20: 10 | M20: 29 | N20: 28 | O20: 0 | P20: 0 | Q20: 0 | R20: 0 | S20: 641 | T20: 20 | U20: 47 | V20: 1 | W20: 131 | X20: 465 | Y20: 141 | Z20: 35 | AA20: 4 | AB20: 3 | AC20: 0 | AD20: 69 | AE20: 3.85 | AF20: 137 | AG20: 8.1 | AH20: 2.8 | AI20: 7.7 | AJ20: 2.8 | AK20: 1.19 | AL20: 0.266 | AM20: 1.22 | AN20: 1.63 | AO20: 0.07 | AP20: 46 | AQ20: 78 | AR20: 60 | AS20: 36 | AT20: 29.99 | AU20: 19 | AV20: 18 | AW20: 0.22 | AX20: SP | AY20: 127.9 | AZ20: 4.03 | BA20: 66 | BB20: 47 | BC20: SP | BD20: 111.7 | BE20: 4.08 | BF20: 74 | BG20: 42 | BH20: 174.3 | BI20: 2.26 | BJ20: 3.97 | BK20: 60 | BL20: 1.6 | BM20: 0 | BN20: R | BO20: -63 | BP20: davieza01 | BQ20: 605200 | BR20: Righty Super Control Starter | BS20: Zack Wheeler | BT20: Adrian Houser | BU20: Rick Porcello | BV20: Should perform close to forecast. Expected to play regularly.
A21: Gallen | B21: Zac | C21: R | D21: 2021 | E21: 26 | F21: ARI | G21: NL | H21: SP | I21: 0.74 | J21: Y | K21: 159.1 | L21: 11 | M21: 25 | N21: 25 | O21: 0 | P21: 0 | Q21: 0 | R21: 0 | S21: 667 | T21: 20 | U21: 59 | V21: 1 | W21: 184 | X21: 486 | Y21: 127 | Z21: 35 | AA21: 7 | AB21: 6 | AC21: 0 | AD21: 59 | AE21: 3.88 | AF21: 141 | AG21: 8 | AH21: 3.1 | AI21: 10.4 | AJ21: 3.4 | AK21: 1.16 | AL21: 0.274 | AM21: 1.19 | AN21: 1.66 | AO21: 0.07 | AP21: 131 | AQ21: 79 | AR21: 60 | AS21: 37 | AT21: 34.62 | AU21: 20 | AV21: 19 | AW21: -0.21 | AX21: SP | AY21: 139.5 | AZ21: 3.68 | BA21: 60 | BB21: 65 | BC21: SP | BD21: 122.2 | BE21: 3.66 | BF21: 66 | BG21: 61 | BH21: 181.3 | BI21: 2.19 | BJ21: 3.63 | BK21: 80 | BL21: 1.69 | BM21: -20 | BN21: R | BO21: -59 | BP21: galleza01 | BQ21: 668678 | BR21: Righty Commanding Swing Starter | BS21: Lance McCullers | BT21: Brady Singer | BU21: Griffin Canning | BV21: Should perform close to forecast. Expected to play regularly.
A22: Urias | B22: Julio | C22: L | D22: 2021 | E22: 24 | F22: LAN | G22: NL | H22: SP | I22: 0.66 | J22: Y | K22: 140.4 | L22: 9 | M22: 23 | N22: 23 | O22: 0 | P22: 0 | Q22: 0 | R22: 0 | S22: 537 | T22: 15 | U22: 44 | V22: 1 | W22: 131 | X22: 390 | Y22: 118 | Z22: 34 | AA22: 5 | AB22: 4 | AC22: 0 | AD22: 58 | AE22: 3.8 | AF22: 121 | AG22: 8.5 | AH22: 3 | AI22: 9.2 | AJ22: 3.1 | AK22: 1.05 | AL22: 0.272 | AM22: 1.22 | AN22: 1.51 | AO22: 0.06 | AP22: 94 | AQ22: 77 | AR22: 58 | AS22: 33 | AT22: 27.34 | AU22: 21 | AV22: 20 | AW22: 0.08 | AX22: SP | AY22: 119.9 | AZ22: 3.75 | BA22: 61 | BB22: 56 | BC22: SP | BD22: 103.7 | BE22: 3.88 | BF22: 70 | BG22: 46 | BH22: 141.3 | BI22: 2.76 | BJ22: 3.76 | BK22: 61 | BL22: 1.04 | BM22: -3 | BN22: R | BO22: -38 | BP22: uriasju01 | BQ22: 628711 | BR22: Young Lefty Super Control Swing Starter | BS22: Justus Sheffield | BT22: Framber Valdez | BU22: Max Fried | BV22: Expected to play regularly.
A23: Lopez | B23: Pablo | C23: R | D23: 2021 | E23: 25 | F23: MIA | G23: NL | H23: SP | I23: 0.71 | J23: Y | K23: 142.2 | L23: 9 | M23: 23 | N23: 23 | O23: 0 | P23: 0 | Q23: 0 | R23: 0 | S23: 556 | T23: 16 | U23: 40 | V23: 3 | W23: 130 | X23: 396 | Y23: 134 | Z23: 37 | AA23: 4 | AB23: 8 | AC23: 1 | AD23: 73 | AE23: 4.09 | AF23: 122 | AG23: 8.4 | AH23: 3.2 | AI23: 8.9 | AJ23: 2.8 | AK23: 1.09 | AL23: 0.288 | AM23: 1.26 | AN23: 1.52 | AO23: 0.06 | AP23: 84 | AQ23: 83 | AR23: 48 | AS23: 30 | AT23: 26.12 | AU23: 26 | AV23: 23 | AW23: -0.29 | AX23: SP | AY23: 123.5 | AZ23: 3.7 | BA23: 60 | BB23: 59 | BC23: SP | BD23: 107.5 | BE23: 3.8 | BF23: 69 | BG23: 50 | BH23: 145.7 | BI23: 2.86 | BJ23: 3.36 | BK23: 87 | BL23: 1.23 | BM23: -39 | BN23: R | BO23: -38 | BP23: lopezpa01 | BQ23: 641154 | BR23: Young Commanding Swing Starter | BS23: Frankie Montas | BT23: Griffin Canning | BU23: Brady Singer | BV23: Should perform close to forecast. Expected to play regularly.
A24: Senzatela | B24: Antonio | C24: R | D24: 2021 | E24: 26 | F24: COL | G24: NL | H24: SP | I24: 0.75 | J24: Y | K24: 149.4 | L24: 9 | M24: 25 | N24: 25 | O24: 3 | P24: 0 | Q24: 0 | R24: 0 | S24: 711 | T24: 23 | U24: 56 | V24: 3 | W24: 123 | X24: 494 | Y24: 170 | Z24: 38 | AA24: 2 | AB24: 7 | AC24: 1 | AD24: 88 | AE24: 4.26 | AF24: 157 | AG24: 8.7 | AH24: 2.2 | AI24: 6.8 | AJ24: 3.1 | AK24: 1.25 | AL24: 0.289 | AM24: 1.39 | AN24: 1.73 | AO24: 0.07 | AP24: 19 | AQ24: 87 | AR24: 47 | AS24: 31 | AT24: 24.51 | AU24: 27 | AV24: 24 | AW24: 0.01 | AX24: SP | AY24: 136.5 | AZ24: 4.42 | BA24: 72 | BB24: 37 | BC24: SP | BD24: 122.6 | BE24: 4.27 | BF24: 78 | BG24: 38 | BH24: 184.6 | BI24: 2.59 | BJ24: 4.55 | BK24: 44 | BL24: 1.67 | BM24: 3 | BN24: R | BO24: -62 | BP24: senzaan01 | BQ24: 622608 | BR24: Righty Super Control Top Starter | BS24: Aaron Civale | BT24: Kyle Gibson | BU24: Zach Eflin | BV24: Should perform close to forecast. Expected to play regularly.
A25: Mills | B25: Alec | C25: R | D25: 2021 | E25: 29 | F25: CHN | G25: NL | H25: SP | I25: 0.65 | J25: Y | K25: 124.2 | L25: 9 | M25: 23 | N25: 23 | O25: 3 | P25: 3 | Q25: 0 | R25: 0 | S25: 536 | T25: 21 | U25: 42 | V25: 0 | W25: 119 | X25: 389 | Y25: 114 | Z25: 37 | AA25: 2 | AB25: 7 | AC25: 1 | AD25: 61 | AE25: 4.06 | AF25: 109 | AG25: 7.7 | AH25: 2.9 | AI25: 8.4 | AJ25: 2.9 | AK25: 1.5 | AL25: 0.259 | AM25: 1.21 | AN25: 1.99 | AO25: 0.09 | AP25: 55 | AQ25: 82 | AR25: 46 | AS25: 28 | AT25: 24.85 | AU25: 29 | AV25: 25 | AW25: 0.49 | AX25: LP | AY25: 99.5 | AZ25: 4.53 | BA25: 74 | BB25: 28 | BC25: SP | BD25: 85.9 | BE25: 4.55 | BF25: 83 | BG25: 25 | BH25: 152.4 | BI25: 3.28 | BJ25: 4.96 | BK25: 30 | BL25: 0.78 | BM25: 16 | BN25: R | BO25: -66 | BP25: millsal02 | BQ25: 621219 | BR25: Righty Super Control Top Starter | BS25: Zach Eflin | BT25: Kyle Gibson | BU25: Antonio Senzatela | BV25: Approaching his prime years. Expected to play regularly.
A26: Freeland | B26: Kyle | C26: L | D26: 2021 | E26: 28 | F26: COL | G26: NL | H26: SP | I26: 0.76 | J26: Y | K26: 138.9 | L26: 9 | M26: 27 | N26: 27 | O26: 0 | P26: 0 | Q26: 0 | R26: 0 | S26: 647 | T26: 22 | U26: 51 | V26: 2 | W26: 125 | X26: 452 | Y26: 154 | Z26: 40 | AA26: 3 | AB26: 5 | AC26: 0 | AD26: 78 | AE26: 4.39 | AF26: 142 | AG26: 8.5 | AH26: 2.4 | AI26: 7.5 | AJ26: 3.1 | AK26: 1.31 | AL26: 0.287 | AM26: 1.36 | AN26: 1.8 | AO26: 0.07 | AP26: 30 | AQ26: 89 | AR26: 41 | AS26: 27 | AT26: 24.05 | AU26: 31 | AV26: 26 | AW26: 0.01 | AX26: SP | AY26: 124.7 | AZ26: 4.44 | BA26: 72 | BB26: 35 | BC26: SP | BD26: 110.6 | BE26: 4.4 | BF26: 80 | BG26: 33 | BH26: 174.6 | BI26: 3.12 | BJ26: 4.55 | BK26: 42 | BL26: 1.28 | BM26: -1 | BN26: R | BO26: -64 | BP26: freelky01 | BQ26: 607536 | BR26: Lefty Super Control Swing Starter | BS26: Martin Perez | BT26: Danny Duffy | BU26: Dallas Keuchel | BV26: Should perform close to forecast. Expected to play regularly.
A27: Cueto | B27: Johnny | C27: R | D27: 2021 | E27: 35 | F27: SFN | G27: NL | H27: SP | I27: 0.64 | J27: Y | K27: 114.3 | L27: 8 | M27: 25 | N27: 25 | O27: 0 | P27: 0 | Q27: 0 | R27: 0 | S27: 517 | T27: 17 | U27: 46 | V27: 0 | W27: 105 | X27: 365 | Y27: 110 | Z27: 39 | AA27: 3 | AB27: 5 | AC27: 2 | AD27: 64 | AE27: 4.28 | AF27: 108 | AG27: 8 | AH27: 2.3 | AI27: 7.7 | AJ27: 3.4 | AK27: 1.28 | AL27: 0.263 | AM27: 1.28 | AN27: 1.8 | AO27: 0.07 | AP27: 34 | AQ27: 87 | AR27: 38 | AS27: 23 | AT27: 20.38 | AU27: 34 | AV27: 28 | AW27: 0.18 | AX27: LP | AY27: 95.2 | AZ27: 4.43 | BA27: 72 | BB27: 29 | BC27: SP | BD27: 82 | BE27: 4.46 | BF27: 81 | BG27: 26 | BH27: 150.4 | BI27: 3.82 | BJ27: 4.53 | BK27: 38 | BL27: 0.47 | BM27: 0 | BN27: R | BO27: -68 | BP27: cuetojo01 | BQ27: 456501 | BR27: Aging Control Swing Starter | BS27: Chris Bassitt | BT27: Merrill Kelly | BU27: Anibal Sanchez | BV27: Expected to play regularly.
A28: Houser | B28: Adrian | C28: R | D28: 2021 | E28: 28 | F28: MIL | G28: NL | H28: SP | I28: 0.68 | J28: Y | K28: 125.4 | L28: 8 | M28: 25 | N28: 25 | O28: 0 | P28: 0 | Q28: 0 | R28: 0 | S28: 508 | T28: 16 | U28: 42 | V28: 1 | W28: 113 | X28: 358 | Y28: 131 | Z28: 39 | AA28: 3 | AB28: 7 | AC28: 0 | AD28: 73 | AE28: 4.37 | AF28: 123 | AG28: 9.3 | AH28: 2.7 | AI28: 8.6 | AJ28: 3.2 | AK28: 1.23 | AL28: 0.291 | AM28: 1.35 | AN28: 1.71 | AO28: 0.07 | AP28: 59 | AQ28: 89 | AR28: 38 | AS28: 24 | AT28: 21.24 | AU28: 35 | AV28: 29 | AW28: -0.07 | AX28: LP | AY28: 98.6 | AZ28: 4.21 | BA28: 69 | BB28: 35 | BC28: SP | BD28: 84.9 | BE28: 4.3 | BF28: 78 | BG28: 30 | BH28: 138.3 | BI28: 3.91 | BJ28: 4.45 | BK28: 37 | BL28: 0.46 | BM28: 0 | BN28: R | BO28: -53 | BP28: housead01 | BQ28: 605288 | BR28: Righty Super Control Swing Starter | BS28: Taijuan Walker | BT28: Frankie Montas | BU28: Pablo Lopez | BV28: Expected to play regularly.
A29: Williams | B29: Devin | C29: R | D29: 2021 | E29: 26 | F29: MIL | G29: NL | H29: LP | I29: 0.48 | J29: Y | K29: 61.6 | L29: 3 | M29: 43 | N29: 3 | O29: 0 | P29: 0 | Q29: 2 | R29: 7 | S29: 263 | T29: 7 | U29: 25 | V29: 1 | W29: 82 | X29: 188 | Y29: 45 | Z29: 31 | AA29: 4 | AB29: 3 | AC29: 0 | AD29: 25 | AE29: 3.49 | AF29: 43 | AG29: 6.2 | AH29: 3.3 | AI29: 11.9 | AJ29: 3.6 | AK29: 1.08 | AL29: 0.299 | AM29: 1.19 | AN29: 1.6 | AO29: 0.08 | AP29: 211 | AQ29: 71 | AR29: 48 | AS29: 10 | AT29: 10.34 | AU29: 24 | AV29: 1 | AW29: 0.32 | AX29: LP | AY29: 63.1 | AZ29: 3.6 | BA29: 59 | BB29: 45 | BC29: LP | BD29: 62.4 | BE29: 3.81 | BF29: 69 | BG29: 37 | BH29: 68.6 | BI29: 2.03 | BJ29: 1.86 | BK29: 476 | BL29: 1.46 | BM29: -428 | BN29: R | BO29: -6 | BP29: willide03 | BQ29: 642207 | BR29: Righty Commanding Long Relief | BS29: James Karinchak | BT29: J. B. Wendelken | BU29: Lucas Sims | BV29: Priced in-line with expectations.
A30: Gausman | B30: Kevin | C30: R | D30: 2021 | E30: 30 | F30: SFN | G30: NL | H30: LP | I30: 0.72 | J30: Y | K30: 120.5 | L30: 7 | M30: 30 | N30: 15 | O30: 0 | P30: 0 | Q30: 0 | R30: 4 | S30: 422 | T30: 14 | U30: 31 | V30: 1 | W30: 104 | X30: 297 | Y30: 123 | Z30: 40 | AA30: 5 | AB30: 4 | AC30: 1 | AD30: 67 | AE30: 4.4 | AF30: 108 | AG30: 9.7 | AH30: 3.3 | AI30: 9.3 | AJ30: 2.8 | AK30: 1.28 | AL30: 0.291 | AM30: 1.31 | AN30: 1.73 | AO30: 0.08 | AP30: 87 | AQ30: 89 | AR30: 35 | AS30: 15 | AT30: 20.23 | AU30: 39 | AV30: 2 | AW30: -0.35 | AX30: LP | AY30: 92.5 | AZ30: 3.91 | BA30: 64 | BB30: 42 | BC30: LP | BD30: 78.5 | BE30: 4.05 | BF30: 73 | BG30: 34 | BH30: 131.4 | BI30: 3.11 | BJ30: 3.38 | BK30: 81 | BL30: 1.29 | BM30: -45 | BN30: R | BO30: -53 | BP30: gausmke01 | BQ30: 592332 | BR30: Righty Commanding Swing Starter | BS30: Joseph Musgrove | BT30: Tony Gonsolin | BU30: Jacob deGrom | BV30: In prime. Priced in-line with expectations.
A31: Buehler | B31: Walker | C31: R | D31: 2021 | E31: 26 | F31: LAN | G31: NL | H31: LP | I31: 0.73 | J31: Y | K31: 125.6 | L31: 7 | M31: 20 | N31: 16 | O31: 0 | P31: 0 | Q31: 0 | R31: 1 | S31: 390 | T31: 12 | U31: 26 | V31: 0 | W31: 108 | X31: 286 | Y31: 102 | Z31: 39 | AA31: 5 | AB31: 5 | AC31: 0 | AD31: 55 | AE31: 4.36 | AF31: 91 | AG31: 8.7 | AH31: 4.1 | AI31: 10.3 | AJ31: 2.5 | AK31: 1.19 | AL31: 0.267 | AM31: 1.14 | AN31: 1.6 | AO31: 0.08 | AP31: 133 | AQ31: 89 | AR31: 35 | AS31: 18 | AT31: 23.35 | AU31: 42 | AV31: 3 | AW31: -0.37 | AX31: LP | AY31: 88.9 | AZ31: 3.72 | BA31: 61 | BB31: 48 | BC31: LP | BD31: 75.8 | BE31: 3.99 | BF31: 72 | BG31: 35 | BH31: 97.3 | BI31: 3.45 | BJ31: 3.81 | BK31: 47 | BL31: 0.91 | BM31: -12 | BN31: R | BO31: -22 | BP31: buehlwa01 | BQ31: 621111 | BR31: Righty Commanding Top Starter | BS31: Joseph Musgrove | BT31: Jack Flaherty | BU31: Chris Paddack | BV31: Should perform close to forecast. Priced in-line with expectations.
A32: Flaherty | B32: Jack | C32: R | D32: 2021 | E32: 25 | F32: SLN | G32: NL | H32: LP | I32: 0.74 | J32: Y | K32: 124.9 | L32: 8 | M32: 22 | N32: 17 | O32: 0 | P32: 0 | Q32: 0 | R32: 1 | S32: 422 | T32: 14 | U32: 35 | V32: 1 | W32: 120 | X32: 310 | Y32: 105 | Z32: 40 | AA32: 4 | AB32: 7 | AC32: 0 | AD32: 56 | AE32: 4.44 | AF32: 99 | AG32: 8.8 | AH32: 3.5 | AI32: 10.7 | AJ32: 3.1 | AK32: 1.29 | AL32: 0.262 | AM32: 1.18 | AN32: 1.78 | AO32: 0.09 | AP32: 135 | AQ32: 90 | AR32: 35 | AS32: 19 | AT32: 24.98 | AU32: 43 | AV32: 4 | AW32: -0.36 | AX32: LP | AY32: 91.4 | AZ32: 3.87 | BA32: 63 | BB32: 43 | BC32: LP | BD32: 78.8 | BE32: 4.08 | BF32: 74 | BG32: 33 | BH32: 106.2 | BI32: 3.89 | BJ32: 3.86 | BK32: 48 | BL32: 0.55 | BM32: -13 | BN32: R | BO32: -27 | BP32: flaheja01 | BQ32: 656427 | BR32: Young Commanding Swing Starter | BS32: Tyler Mahle | BT32: Zac Gallen | BU32: Tyler Glasnow | BV32: Should perform close to forecast. Priced in-line with expectations.
A33: Burnes | B33: Corbin | C33: R | D33: 2021 | E33: 26 | F33: MIL | G33: NL | H33: LP | I33: 0.64 | J33: Y | K33: 105.9 | L33: 6 | M33: 44 | N33: 11 | O33: 0 | P33: 0 | Q33: 1 | R33: 8 | S33: 425 | T33: 14 | U33: 40 | V33: 1 | W33: 124 | X33: 299 | Y33: 98 | Z33: 38 | AA33: 6 | AB33: 5 | AC33: 0 | AD33: 55 | AE33: 4.27 | AF33: 92 | AG33: 8.3 | AH33: 3.1 | AI33: 11.3 | AJ33: 3.6 | AK33: 1.27 | AL33: 0.311 | AM33: 1.35 | AN33: 1.81 | AO33: 0.09 | AP33: 152 | AQ33: 87 | AR33: 34 | AS33: 11 | AT33: 17.65 | AU33: 44 | AV33: 5 | AW33: -0.38 | AX33: LP | AY33: 90.7 | AZ33: 3.8 | BA33: 62 | BB33: 46 | BC33: LP | BD33: 79.7 | BE33: 3.89 | BF33: 71 | BG33: 39 | BH33: 132.1 | BI33: 2.41 | BJ33: 2.78 | BK33: 148 | BL33: 1.86 | BM33: -114 | BN33: R | BO33: -52 | BP33: burneco01 | BQ33: 669203 | BR33: Righty Commanding Swing Starter | BS33: Freddy Peralta | BT33: Tejay Antone | BU33: Matt Wisler | BV33: Priced in-line with expectations.
A34: Gonsolin | B34: Tony | C34: R | D34: 2021 | E34: 27 | F34: LAN | G34: NL | H34: LP | I34: 0.61 | J34: Y | K34: 108.4 | L34: 6 | M34: 29 | N34: 12 | O34: 0 | P34: 0 | Q34: 0 | R34: 4 | S34: 343 | T34: 9 | U34: 26 | V34: 0 | W34: 82 | X34: 251 | Y34: 95 | Z34: 39 | AA34: 6 | AB34: 4 | AC34: 0 | AD34: 51 | AE34: 4.31 | AF34: 86 | AG34: 9.4 | AH34: 3.1 | AI34: 9.1 | AJ34: 2.9 | AK34: 1.03 | AL34: 0.268 | AM34: 1.22 | AN34: 1.46 | AO34: 0.06 | AP34: 85 | AQ34: 88 | AR34: 34 | AS34: 13 | AT34: 18.2 | AU34: 45 | AV34: 6 | AW34: -0.34 | AX34: LP | AY34: 80.3 | AZ34: 3.83 | BA34: 62 | BB34: 42 | BC34: LP | BD34: 70.1 | BE34: 3.97 | BF34: 72 | BG34: 35 | BH34: 105.9 | BI34: 2.84 | BJ34: 2.91 | BK34: 117 | BL34: 1.47 | BM34: -83 | BN34: R | BO34: -36 | BP34: gonsoto01 | BQ34: 664062 | BR34: Righty Commanding Swing Starter | BS34: Kevin Gausman | BT34: Joseph Musgrove | BU34: Cal Quantrill | BV34: Priced in-line with expectations.
A35: Snell | B35: Blake | C35: L | D35: 2021 | E35: 28 | F35: SDN | G35: NL | H35: LP | I35: 0.72 | J35: Y | K35: 124.9 | L35: 8 | M35: 27 | N35: 19 | O35: 0 | P35: 0 | Q35: 0 | R35: 2 | S35: 418 | T35: 15 | U35: 37 | V35: 1 | W35: 122 | X35: 305 | Y35: 106 | Z35: 40 | AA35: 10 | AB35: 2 | AC35: 0 | AD35: 54 | AE35: 4.47 | AF35: 104 | AG35: 9.3 | AH35: 3.3 | AI35: 10.9 | AJ35: 3.3 | AK35: 1.32 | AL35: 0.272 | AM35: 1.24 | AN35: 1.84 | AO35: 0.09 | AP35: 135 | AQ35: 91 | AR35: 34 | AS35: 16 | AT35: 23.6 | AU35: 44 | AV35: 3 | AW35: -0.33 | AX35: LP | AY35: 93.5 | AZ35: 3.98 | BA35: 65 | BB35: 40 | BC35: LP | BD35: 80.4 | BE35: 4.14 | BF35: 75 | BG35: 32 | BH35: 126.8 | BI35: 2.8 | BJ35: 3.94 | BK35: 50 | BL35: 1.67 | BM35: -16 | BN35: R | BO35: -46 | BP35: snellbl01 | BQ35: 605483 | BR35: Lefty Commanding Swing Starter | BS35: Julio Urias | BT35: Andrew Heaney | BU35: Framber Valdez | BV35: Should perform close to forecast. Priced in-line with expectations.
A36: Matzek | B36: Tyler | C36: L | D36: 2021 | E36: 30 | F36: ATL | G36: NL | H36: LP | I36: 0.58 | J36: Y | K36: 51.9 | L36: 3 | M36: 39 | N36: 3 | O36: 0 | P36: 0 | Q36: 2 | R36: 8 | S36: 246 | T36: 6 | U36: 22 | V36: 1 | W36: 70 | X36: 174 | Y36: 44 | Z36: 35 | AA36: 2 | AB36: 3 | AC36: 0 | AD36: 22 | AE36: 3.85 | AF36: 39 | AG36: 6 | AH36: 3.2 | AI36: 10.8 | AJ36: 3.4 | AK36: 0.85 | AL36: 0.306 | AM36: 1.21 | AN36: 1.32 | AO36: 0.06 | AP36: 163 | AQ36: 78 | AR36: 33 | AS36: 7 | AT36: 8.23 | AU36: 46 | AV36: 7 | AW36: 0.03 | AX36: LP | AY36: 59.3 | AZ36: 3.61 | BA36: 59 | BB36: 44 | BC36: LP | BD36: 59.8 | BE36: 3.88 | BF36: 70 | BG36: 34 | BH36: 69.1 | BI36: 3.39 | BJ36: 2.41 | BK36: 190 | BL36: 0.46 | BM36: -157 | BN36: R | BO36: -9 | BP36: matzety01 | BQ36: 554431 | BR36: Lefty Commanding RP | BS36: Anthony Misiewicz | BT36: Amir Garrett | BU36: Victor Gonzalez | BV36: In prime. Priced in-line with expectations.
A37: Kelly | B37: Merrill | C37: R | D37: 2021 | E37: 33 | F37: ARI | G37: NL | H37: LP | I37: 0.71 | J37: Y | K37: 93 | L37: 6 | M37: 18 | N37: 14 | O37: 0 | P37: 0 | Q37: 0 | R37: 1 | S37: 340 | T37: 13 | U37: 25 | V37: 2 | W37: 71 | X37: 243 | Y37: 103 | Z37: 39 | AA37: 2 | AB37: 3 | AC37: 0 | AD37: 51 | AE37: 4.35 | AF37: 91 | AG37: 10.1 | AH37: 2.9 | AI37: 7.9 | AJ37: 2.7 | AK37: 1.39 | AL37: 0.276 | AM37: 1.3 | AN37: 1.85 | AO37: 0.08 | AP37: 43 | AQ37: 88 | AR37: 32 | AS37: 16 | AT37: 15.38 | AU37: 47 | AV37: 8 | AW37: 0.03 | AX37: LP | AY37: 74.4 | AZ37: 4.26 | BA37: 69 | BB37: 28 | BC37: LP | BD37: 66.9 | BE37: 4.37 | BF37: 79 | BG37: 24 | BH37: 83 | BI37: 3.37 | BJ37: 4.05 | BK37: 35 | BL37: 0.98 | BM37: -3 | BN37: R | BO37: -16 | BP37: kellyme01 | BQ37: 518876 | BR37: Righty Super Control Starter | BS37: Rick Porcello | BT37: Zack Greinke | BU37: Michael Pineda | BV37: Should perform close to forecast. Priced in-line with expectations.
A38: Musgrove | B38: Joseph | C38: R | D38: 2021 | E38: 28 | F38: SDN | G38: NL | H38: LP | I38: 0.72 | J38: Y | K38: 118.3 | L38: 7 | M38: 23 | N38: 16 | O38: 0 | P38: 0 | Q38: 0 | R38: 1 | S38: 391 | T38: 12 | U38: 27 | V38: 1 | W38: 94 | X38: 278 | Y38: 114 | Z38: 41 | AA38: 3 | AB38: 6 | AC38: 0 | AD38: 63 | AE38: 4.53 | AF38: 99 | AG38: 9.6 | AH38: 3.4 | AI38: 9.1 | AJ38: 2.7 | AK38: 1.15 | AL38: 0.288 | AM38: 1.28 | AN38: 1.58 | AO38: 0.07 | AP38: 84 | AQ38: 92 | AR38: 31 | AS38: 15 | AT38: 18.93 | AU38: 48 | AV38: 9 | AW38: -0.46 | AX38: LP | AY38: 86.9 | AZ38: 3.9 | BA38: 63 | BB38: 41 | BC38: LP | BD38: 74.8 | BE38: 4.07 | BF38: 74 | BG38: 33 | BH38: 100.1 | BI38: 3.57 | BJ38: 3.52 | BK38: 61 | BL38: 0.97 | BM38: -30 | BN38: R | BO38: -25 | BP38: musgrjo01 | BQ38: 605397 | BR38: Righty Commanding Swing Starter | BS38: Kevin Gausman | BT38: Tony Gonsolin | BU38: Zach Plesac | BV38: Should perform close to forecast. Priced in-line with expectations.
A39: McGee | B39: Jake | C39: L | D39: 2021 | E39: 34 | F39: LAN | G39: NL | H39: LP | I39: 0.5 | J39: Y | K39: 44.3 | L39: 3 | M39: 43 | N39: 4 | O39: 0 | P39: 0 | Q39: 0 | R39: 7 | S39: 226 | T39: 9 | U39: 18 | V39: 1 | W39: 52 | X39: 159 | Y39: 46 | Z39: 35 | AA39: 2 | AB39: 2 | AC39: 0 | AD39: 26 | AE39: 3.89 | AF39: 36 | AG39: 6.1 | AH39: 3 | AI39: 8.9 | AJ39: 3 | AK39: 1.49 | AL39: 0.288 | AM39: 1.28 | AN39: 1.98 | AO39: 0.09 | AP39: 70 | AQ39: 79 | AR39: 31 | AS39: 6 | AT39: 5.02 | AU39: 50 | AV39: 10 | AW39: 0.47 | AX39: LP | AY39: 53.1 | AZ39: 4.28 | BA39: 70 | BB39: 23 | BC39: LP | BD39: 55.5 | BE39: 4.35 | BF39: 79 | BG39: 22 | BH39: 53.9 | BI39: 3.52 | BJ39: 3.03 | BK39: 78 | BL39: 0.36 | BM39: -47 | BN39: R | BO39: 2 | BP39: mcgeeja01 | BQ39: 459429 | BR39: Aging Lefty Super Control RP | BS39: Aaron Loup | BT39: Grant Dayton | BU39: Brooks Raley | BV39: Priced in-line with expectations.
A40: Gonzalez | B40: Victor | C40: L | D40: 2021 | E40: 25 | F40: LAN | G40: NL | H40: LP | I40: 0.52 | J40: Y | K40: 56.7 | L40: 3 | M40: 31 | N40: 5 | O40: 0 | P40: 0 | Q40: 0 | R40: 4 | S40: 229 | T40: 6 | U40: 16 | V40: 0 | W40: 59 | X40: 165 | Y40: 42 | Z40: 35 | AA40: 3 | AB40: 4 | AC40: 0 | AD40: 21 | AE40: 3.94 | AF40: 33 | AG40: 5.4 | AH40: 3.7 | AI40: 9.8 | AJ40: 2.7 | AK40: 0.92 | AL40: 0.285 | AM40: 1.14 | AN40: 1.32 | AO40: 0.06 | AP40: 129 | AQ40: 80 | AR40: 30 | AS40: 7 | AT40: 7.3 | AU40: 52 | AV40: 11 | AW40: 0.07 | AX40: LP | AY40: 58.3 | AZ40: 3.78 | BA40: 62 | BB40: 37 | BC40: LP | BD40: 59.2 | BE40: 4.02 | BF40: 73 | BG40: 30 | BH40: 55 | BI40: 3.38 | BJ40: 2.55 | BK40: 144 | BL40: 0.57 | BM40: -114 | BN40: R | BO40: 4 | BP40: gonzavi02 | BQ40: 624647 | BR40: Young Lefty Commanding Long Relief | BS40: Anthony Misiewicz | BT40: Tyler Matzek | BU40: Matt Strahm | BV40: Priced in-line with expectations.
A41: Peralta | B41: Freddy | C41: R | D41: 2021 | E41: 25 | F41: MIL | G41: NL | H41: LP | I41: 0.62 | J41: Y | K41: 82.4 | L41: 4 | M41: 34 | N41: 8 | O41: 0 | P41: 0 | Q41: 0 | R41: 5 | S41: 330 | T41: 11 | U41: 32 | V41: 1 | W41: 95 | X41: 229 | Y41: 70 | Z41: 38 | AA41: 4 | AB41: 4 | AC41: 1 | AD41: 44 | AE41: 4.23 | AF41: 63 | AG41: 7.5 | AH41: 2.9 | AI41: 11.2 | AJ41: 3.8 | AK41: 1.28 | AL41: 0.302 | AM41: 1.33 | AN41: 1.85 | AO41: 0.09 | AP41: 146 | AQ41: 86 | AR41: 30 | AS41: 9 | AT41: 11.58 | AU41: 53 | AV41: 12 | AW41: -0.14 | AX41: LP | AY41: 74.3 | AZ41: 3.95 | BA41: 64 | BB41: 36 | BC41: LP | BD41: 69.7 | BE41: 4.09 | BF41: 74 | BG41: 31 | BH41: 77.8 | BI41: 3.83 | BJ41: 3.15 | BK41: 78 | BL41: 0.4 | BM41: -49 | BN41: R | BO41: -8 | BP41: peralfr01 | BQ41: 642547 | BR41: Young Serious Heat Swing Starter | BS41: Tejay Antone | BT41: Lucas Sims | BU41: Corbin Burnes | BV41: Priced in-line with expectations.
A42: Hudson | B42: Dakota | C42: R | D42: 2021 | E42: 26 | F42: SLN | G42: NL | H42: LP | I42: 0.69 | J42: Y | K42: 104 | L42: 7 | M42: 26 | N42: 16 | O42: 0 | P42: 0 | Q42: 0 | R42: 2 | S42: 408 | T42: 13 | U42: 42 | V42: 3 | W42: 85 | X42: 290 | Y42: 109 | Z42: 42 | AA42: 4 | AB42: 6 | AC42: 0 | AD42: 57 | AE42: 4.64 | AF42: 112 | AG42: 10.6 | AH42: 2 | AI42: 8.1 | AJ42: 4 | AK42: 1.22 | AL42: 0.265 | AM42: 1.37 | AN42: 1.8 | AO42: 0.07 | AP42: 32 | AQ42: 94 | AR42: 29 | AS42: 13 | AT42: 17.43 | AU42: 54 | AV42: 13 | AW42: -0.11 | AX42: LP | AY42: 82.8 | AZ42: 4.49 | BA42: 73 | BB42: 26 | BC42: LP | BD42: 73.8 | BE42: 4.52 | BF42: 82 | BG42: 23 | BH42: 101.1 | BI42: 3.31 | BJ42: 4.47 | BK42: 29 | BL42: 1.33 | BM42: 0 | BN42: R | BO42: -27 | BP42: hudsoda02 | BQ42: 641712 | BR42: Righty Swing Starter | BS42: Spencer Turnbull | BT42: Dylan Cease | BU42: Adrian Houser | BV42: Priced in-line with expectations.
A43: Clevinger | B43: Mike | C43: R | D43: 2021 | E43: 30 | F43: SDN | G43: NL | H43: LP | I43: 0.71 | J43: Y | K43: 114.9 | L43: 7 | M43: 22 | N43: 14 | O43: 1 | P43: 0 | Q43: 0 | R43: 2 | S43: 349 | T43: 10 | U43: 29 | V43: 0 | W43: 92 | X43: 257 | Y43: 96 | Z43: 41 | AA43: 3 | AB43: 3 | AC43: 0 | AD43: 45 | AE43: 4.55 | AF43: 91 | AG43: 9.6 | AH43: 3.2 | AI43: 9.8 | AJ43: 3.1 | AK43: 1.08 | AL43: 0.271 | AM43: 1.23 | AN43: 1.54 | AO43: 0.07 | AP43: 102 | AQ43: 92 | AR43: 29 | AS43: 13 | AT43: 19 | AU43: 55 | AV43: 14 | AW43: -0.49 | AX43: LP | AY43: 81.2 | AZ43: 3.8 | BA43: 62 | BB43: 43 | BC43: LP | BD43: 69.6 | BE43: 4.06 | BF43: 74 | BG43: 32 | BH43: 99.6 | BI43: 3.43 | BJ43: 3.83 | BK43: 47 | BL43: 1.12 | BM43: -18 | BN43: R | BO43: -30 | BP43: clevimi01 | BQ43: 605182 | BR43: Righty Commanding Top Starter | BS43: Brandon Woodruff | BT43: Aaron Nola | BU43: Gerrit Cole | BV43: In prime. Priced in-line with expectations.
A44: May | B44: Dustin | C44: R | D44: 2021 | E44: 23 | F44: LAN | G44: NL | H44: LP | I44: 0.64 | J44: Y | K44: 112 | L44: 7 | M44: 35 | N44: 13 | O44: 0 | P44: 0 | Q44: 0 | R44: 4 | S44: 419 | T44: 16 | U44: 34 | V44: 1 | W44: 94 | X44: 301 | Y44: 121 | Z44: 43 | AA44: 5 | AB44: 6 | AC44: 0 | AD44: 61 | AE44: 4.73 | AF44: 112 | AG44: 10.4 | AH44: 2.8 | AI44: 8.7 | AJ44: 3.1 | AK44: 1.44 | AL44: 0.281 | AM44: 1.34 | AN44: 1.94 | AO44: 0.09 | AP44: 55 | AQ44: 96 | AR44: 28 | AS44: 9 | AT44: 18.59 | AU44: 56 | AV44: 15 | AW44: -0.26 | AX44: LP | AY44: 89.9 | AZ44: 4.4 | BA44: 72 | BB44: 29 | BC44: LP | BD44: 79 | BE44: 4.47 | BF44: 81 | BG44: 25 | BH44: 127.6 | BI44: 2.91 | BJ44: 4.47 | BK44: 34 | BL44: 1.83 | BM44: -6 | BN44: R | BO44: -49 | BP44: maydu01 | BQ44: 669160 | BR44: Young Super Control Swing Starter | BS44: Jose Urquidy | BT44: Jaime Barria | BU44: Cal Quantrill | BV44: Priced in-line with expectations.
A45: Mahle | B45: Tyler | C45: R | D45: 2021 | E45: 26 | F45: CIN | G45: NL | H45: LP | I45: 0.7 | J45: Y | K45: 111.1 | L45: 7 | M45: 30 | N45: 16 | O45: 0 | P45: 0 | Q45: 0 | R45: 3 | S45: 427 | T45: 17 | U45: 37 | V45: 1 | W45: 106 | X45: 297 | Y45: 123 | Z45: 43 | AA45: 4 | AB45: 7 | AC45: 1 | AD45: 72 | AE45: 4.75 | AF45: 111 | AG45: 10.2 | AH45: 2.8 | AI45: 9.7 | AJ45: 3.4 | AK45: 1.52 | AL45: 0.289 | AM45: 1.38 | AN45: 2.07 | AO45: 0.1 | AP45: 76 | AQ45: 97 | AR45: 28 | AS45: 11 | AT45: 18.44 | AU45: 58 | AV45: 16 | AW45: -0.36 | AX45: LP | AY45: 89.2 | AZ45: 4.34 | BA45: 71 | BB45: 30 | BC45: LP | BD45: 78.2 | BE45: 4.39 | BF45: 80 | BG45: 26 | BH45: 114.6 | BI45: 3.37 | BJ45: 4.06 | BK45: 43 | BL45: 1.38 | BM45: -15 | BN45: R | BO45: -36 | BP45: mahlety01 | BQ45: 641816 | BR45: Righty Power Swing Starter | BS45: Jack Flaherty | BT45: Luke Weaver | BU45: Zac Gallen | BV45: Should perform close to forecast. Priced in-line with expectations.
A46: Soroka | B46: Mike | C46: R | D46: 2021 | E46: 23 | F46: ATL | G46: NL | H46: LP | I46: 0.66 | J46: Y | K46: 105.1 | L46: 6 | M46: 18 | N46: 13 | O46: 0 | P46: 0 | Q46: 0 | R46: 1 | S46: 347 | T46: 9 | U46: 26 | V46: 1 | W46: 76 | X46: 251 | Y46: 101 | Z46: 41 | AA46: 3 | AB46: 5 | AC46: 0 | AD46: 47 | AE46: 4.61 | AF46: 93 | AG46: 10.2 | AH46: 2.9 | AI46: 8.4 | AJ46: 2.9 | AK46: 0.97 | AL46: 0.277 | AM46: 1.28 | AN46: 1.4 | AO46: 0.06 | AP46: 61 | AQ46: 94 | AR46: 28 | AS46: 13 | AT46: 16.48 | AU46: 59 | AV46: 17 | AW46: -0.46 | AX46: LP | AY46: 78.8 | AZ46: 3.92 | BA46: 64 | BB46: 38 | BC46: LP | BD46: 71.3 | BE46: 4.15 | BF46: 75 | BG46: 30 | BH46: 69.1 | BI46: 4.47 | BJ46: 3.86 | BK46: 38 | BL46: 0.13 | BM46: -10 | BN46: R | BO46: 2 | BP46: sorokmi01 | BQ46: 647336 | BR46: Young Super Control Starter | BS46: Pablo Lopez | BT46: Brady Singer | BU46: Jose Urquidy | BV46: Priced in-line with expectations.
A47: Anderson | B47: Ian | C47: R | D47: 2021 | E47: 23 | F47: ATL | G47: NL | H47: LP | I47: 0.61 | J47: Y | K47: 97.7 | L47: 5 | M47: 23 | N47: 10 | O47: 0 | P47: 0 | Q47: 0 | R47: 3 | S47: 301 | T47: 7 | U47: 30 | V47: 0 | W47: 83 | X47: 210 | Y47: 86 | Z47: 41 | AA47: 9 | AB47: 6 | AC47: 0 | AD47: 48 | AE47: 4.52 | AF47: 85 | AG47: 11.1 | AH47: 2.8 | AI47: 10.8 | AJ47: 3.9 | AK47: 0.91 | AL47: 0.285 | AM47: 1.35 | AN47: 1.45 | AO47: 0.06 | AP47: 135 | AQ47: 92 | AR47: 27 | AS47: 9 | AT47: 14.22 | AU47: 60 | AV47: 18 | AW47: -0.51 | AX47: LP | AY47: 74 | AZ47: 3.81 | BA47: 62 | BB47: 41 | BC47: LP | BD47: 67.7 | BE47: 4 | BF47: 73 | BG47: 33 | BH47: 79.3 | BI47: 3.29 | BJ47: 3.04 | BK47: 90 | BL47: 1.22 | BM47: -62 | BN47: R | BO47: -12 | BP47: anderia01 | BQ47: 666120 | BR47: Young Serious Heat Swing Starter | BS47: Tanner Houck | BT47: Jonathan Loaisiga | BU47: Corbin Burnes | BV47: Priced in-line with expectations.
A48: Morton | B48: Charlie | C48: R | D48: 2021 | E48: 37 | F48: ATL | G48: NL | H48: LP | I48: 0.74 | J48: Y | K48: 110.5 | L48: 7 | M48: 20 | N48: 16 | O48: 0 | P48: 0 | Q48: 0 | R48: 1 | S48: 364 | T48: 9 | U48: 29 | V48: 0 | W48: 91 | X48: 261 | Y48: 97 | Z48: 42 | AA48: 3 | AB48: 8 | AC48: 0 | AD48: 48 | AE48: 4.66 | AF48: 91 | AG48: 9.3 | AH48: 3.2 | AI48: 9.3 | AJ48: 3 | AK48: 0.95 | AL48: 0.275 | AM48: 1.23 | AN48: 1.39 | AO48: 0.06 | AP48: 90 | AQ48: 95 | AR48: 27 | AS48: 14 | AT48: 18.63 | AU48: 58 | AV48: 11 | AW48: -0.66 | AX48: LP | AY48: 82.6 | AZ48: 3.68 | BA48: 60 | BB48: 48 | BC48: LP | BD48: 72 | BE48: 3.99 | BF48: 72 | BG48: 34 | BH48: 94.9 | BI48: 4.17 | BJ48: 3.55 | BK48: 58 | BL48: 0.49 | BM48: -31 | BN48: R | BO48: -23 | BP48: mortoch02 | BQ48: 450203 | BR48: Aging Commanding Starter | BS48: Josh Lindblom | BT48: Stephen Strasburg | BU48: Michael Pineda | BV48: Should perform close to forecast. Role player, not a keeper.
A49: Alcantara | B49: Sandy | C49: R | D49: 2021 | E49: 25 | F49: MIA | G49: NL | H49: LP | I49: 0.72 | J49: Y | K49: 117.4 | L49: 7 | M49: 22 | N49: 16 | O49: 0 | P49: 0 | Q49: 0 | R49: 1 | S49: 444 | T49: 13 | U49: 42 | V49: 2 | W49: 95 | X49: 315 | Y49: 122 | Z49: 44 | AA49: 3 | AB49: 5 | AC49: 1 | AD49: 67 | AE49: 4.87 | AF49: 119 | AG49: 10.4 | AH49: 2.3 | AI49: 8.3 | AJ49: 3.7 | AK49: 1.16 | AL49: 0.276 | AM49: 1.37 | AN49: 1.69 | AO49: 0.07 | AP49: 40 | AQ49: 99 | AR49: 27 | AS49: 12 | AT49: 18.66 | AU49: 61 | AV49: 19 | AW49: -0.52 | AX49: LP | AY49: 90.5 | AZ49: 4.27 | BA49: 70 | BB49: 32 | BC49: LP | BD49: 79.1 | BE49: 4.34 | BF49: 79 | BG49: 28 | BH49: 109.4 | BI49: 3.28 | BJ49: 4 | BK49: 43 | BL49: 1.59 | BM49: -16 | BN49: R | BO49: -30 | BP49: alcansa01 | BQ49: 645261 | BR49: Young Control Top Starter | BS49: Brad Keller | BT49: Aaron Civale | BU49: Antonio Senzatela | BV49: Should perform close to forecast. Priced in-line with expectations.
A50: Smyly | B50: Drew | C50: L | D50: 2021 | E50: 32 | F50: ATL | G50: NL | H50: LP | I50: 0.64 | J50: Y | K50: 70.1 | L50: 5 | M50: 25 | N50: 11 | O50: 0 | P50: 0 | Q50: 0 | R50: 3 | S50: 300 | T50: 13 | U50: 29 | V50: 0 | W50: 74 | X50: 206 | Y50: 95 | Z50: 41 | AA50: 5 | AB50: 3 | AC50: 0 | AD50: 58 | AE50: 4.52 | AF50: 86 | AG50: 11.1 | AH50: 2.5 | AI50: 9.6 | AJ50: 3.8 | AK50: 1.72 | AL50: 0.289 | AM50: 1.46 | AN50: 2.33 | AO50: 0.11 | AP50: 67 | AQ50: 92 | AR50: 27 | AS50: 9 | AT50: 11.2 | AU50: 62 | AV50: 20 | AW50: 0 | AX50: LP | AY50: 65.6 | AZ50: 4.58 | BA50: 75 | BB50: 21 | BC50: LP | BD50: 62.9 | BE50: 4.52 | BF50: 82 | BG50: 21 | BH50: 70 | BI50: 3.8 | BJ50: 3.45 | BK50: 55 | BL50: 0.72 | BM50: -28 | BN50: R | BO50: -7 | BP50: smylydr01 | BQ50: 592767 | BR50: Lefty Power Swing Starter | BS50: Tyler Skaggs | BT50: Caleb Smith | BU50: Chasen Shreve | BV50: Role player, not a keeper.
A51: Ferguson | B51: Caleb | C51: L | D51: 2021 | E51: 24 | F51: LAN | G51: NL | H51: LP | I51: 0.5 | J51: Y | K51: 64.2 | L51: 3 | M51: 40 | N51: 5 | O51: 0 | P51: 0 | Q51: 0 | R51: 5 | S51: 262 | T51: 10 | U51: 24 | V51: 1 | W51: 70 | X51: 183 | Y51: 52 | Z51: 37 | AA51: 2 | AB51: 3 | AC51: 0 | AD51: 29 | AE51: 4.16 | AF51: 45 | AG51: 6.7 | AH51: 2.9 | AI51: 10.4 | AJ51: 3.5 | AK51: 1.53 | AL51: 0.299 | AM51: 1.32 | AN51: 2.09 | AO51: 0.1 | AP51: 111 | AQ51: 84 | AR51: 26 | AS51: 6 | AT51: 6.67 | AU51: 66 | AV51: 21 | AW51: 0.26 | AX51: LP | AY51: 62.6 | AZ51: 4.34 | BA51: 71 | BB51: 24 | BC51: LP | BD51: 62.3 | BE51: 4.41 | BF51: 80 | BG51: 23 | BH51: 55.4 | BI51: 4.04 | BJ51: 3.85 | BK51: 34 | BL51: 0.11 | BM51: -8 | BN51: R | BO51: 7 | BP51: ferguca01 | BQ51: 657571 | BR51: Young Lefty Serious Heat Long Relief | BS51: Anthony Misiewicz | BT51: Adrian Morejon | BU51: Keegan Akin | BV51: Priced in-line with expectations.
A52: Martin | B52: Chris | C52: R | D52: 2021 | E52: 35 | F52: ATL | G52: NL | H52: LP | I52: 0.5 | J52: Y | K52: 42.7 | L52: 3 | M52: 41 | N52: 4 | O52: 0 | P52: 0 | Q52: 2 | R52: 9 | S52: 215 | T52: 7 | U52: 15 | V52: 1 | W52: 50 | X52: 156 | Y52: 42 | Z52: 37 | AA52: 1 | AB52: 2 | AC52: 0 | AD52: 22 | AE52: 4.06 | AF52: 32 | AG52: 5.5 | AH52: 3.4 | AI52: 8.7 | AJ52: 2.5 | AK52: 1.27 | AL52: 0.276 | AM52: 1.18 | AN52: 1.7 | AO52: 0.07 | AP52: 73 | AQ52: 83 | AR52: 26 | AS52: 5 | AT52: 5.87 | AU52: 67 | AV52: 22 | AW52: 0.16 | AX52: LP | AY52: 51.3 | AZ52: 4.01 | BA52: 65 | BB52: 28 | BC52: LP | BD52: 54.1 | BE52: 4.23 | BF52: 77 | BG52: 24 | BH52: 50.3 | BI52: 3.62 | BJ52: 3.23 | BK52: 61 | BL52: 0.44 | BM52: -35 | BN52: R | BO52: 4 | BP52: martich02 | BQ52: 455119 | BR52: Aging Commanding RP | BS52: Tyler Clippard | BT52: Sam Dyson | BU52: Yusmeiro Petit | BV52: Role player, not a keeper.
A53: Suero | B53: Wander | C53: R | D53: 2021 | E53: 29 | F53: WAS | G53: NL | H53: LP | I53: 0.56 | J53: Y | K53: 57.2 | L53: 3 | M53: 52 | N53: 2 | O53: 0 | P53: 0 | Q53: 3 | R53: 12 | S53: 266 | T53: 7 | U53: 24 | V53: 2 | W53: 68 | X53: 188 | Y53: 50 | Z53: 38 | AA53: 3 | AB53: 3 | AC53: 0 | AD53: 27 | AE53: 4.18 | AF53: 43 | AG53: 6.2 | AH53: 2.9 | AI53: 9.6 | AJ53: 3.4 | AK53: 0.94 | AL53: 0.298 | AM53: 1.26 | AN53: 1.42 | AO53: 0.06 | AP53: 99 | AQ53: 85 | AR53: 26 | AS53: 6 | AT53: 8.24 | AU53: 68 | AV53: 23 | AW53: -0.15 | AX53: LP | AY53: 60.8 | AZ53: 3.74 | BA53: 61 | BB53: 39 | BC53: LP | BD53: 61.1 | BE53: 4.03 | BF53: 73 | BG53: 31 | BH53: 63.3 | BI53: 4.46 | BJ53: 3.18 | BK53: 70 | BL53: -0.28 | BM53: -44 | BN53: R | BO53: -2 | BP53: suerowa01 | BQ53: 593833 | BR53: Righty Power Long Relief | BS53: Phil Maton | BT53: J. B. Wendelken | BU53: Scott Barlow | BV53: Approaching his prime years. Priced in-line with expectations.
A54: Suter | B54: Brent | C54: L | D54: 2021 | E54: 31 | F54: MIL | G54: NL | H54: LP | I54: 0.55 | J54: Y | K54: 63.6 | L54: 4 | M54: 30 | N54: 7 | O54: 0 | P54: 0 | Q54: 0 | R54: 4 | S54: 260 | T54: 9 | U54: 18 | V54: 1 | W54: 59 | X54: 185 | Y54: 63 | Z54: 39 | AA54: 2 | AB54: 3 | AC54: 0 | AD54: 33 | AE54: 4.28 | AF54: 52 | AG54: 7.5 | AH54: 3.3 | AI54: 8.7 | AJ54: 2.6 | AK54: 1.31 | AL54: 0.282 | AM54: 1.25 | AN54: 1.75 | AO54: 0.08 | AP54: 68 | AQ54: 87 | AR54: 26 | AS54: 7 | AT54: 8.52 | AU54: 70 | AV54: 24 | AW54: -0.01 | AX54: LP | AY54: 62.1 | AZ54: 4.13 | BA54: 67 | BB54: 28 | BC54: LP | BD54: 60.4 | BE54: 4.27 | BF54: 78 | BG54: 25 | BH54: 74.1 | BI54: 3.86 | BJ54: 3.5 | BK54: 54 | BL54: 0.42 | BM54: -28 | BN54: R | BO54: -14 | BP54: suterbr01 | BQ54: 608718 | BR54: Lefty Commanding Swing Starter | BS54: Matt Strahm | BT54: Jake McGee | BU54: Caleb Baragar | BV54: In prime. Role player, not a keeper.
A55: Hernandez | B55: Elieser | C55: R | D55: 2021 | E55: 26 | F55: MIA | G55: NL | H55: LP | I55: 0.59 | J55: Y | K55: 77.4 | L55: 5 | M55: 28 | N55: 10 | O55: 0 | P55: 0 | Q55: 0 | R55: 4 | S55: 302 | T55: 13 | U55: 24 | V55: 1 | W55: 73 | X55: 212 | Y55: 94 | Z55: 41 | AA55: 3 | AB55: 7 | AC55: 1 | AD55: 54 | AE55: 4.59 | AF55: 82 | AG55: 10.6 | AH55: 3 | AI55: 9.4 | AJ55: 3.1 | AK55: 1.71 | AL55: 0.281 | AM55: 1.36 | AN55: 2.25 | AO55: 0.11 | AP55: 70 | AQ55: 93 | AR55: 26 | AS55: 8 | AT55: 12.6 | AU55: 71 | AV55: 25 | AW55: -0.04 | AX55: LP | AY55: 68.5 | AZ55: 4.55 | BA55: 74 | BB55: 22 | BC55: LP | BD55: 65.1 | BE55: 4.55 | BF55: 82 | BG55: 21 | BH55: 70 | BI55: 3.99 | BJ55: 4.14 | BK55: 30 | BL55: 0.59 | BM55: -4 | BN55: R | BO55: -5 | BP55: hernael01 | BQ55: 622694 | BR55: Righty Super Control Swing Starter | BS55: Cristian Javier | BT55: Deivi Garcia | BU55: Triston McKenzie | BV55: Priced in-line with expectations.
A56: Lucchesi | B56: Joey | C56: L | D56: 2021 | E56: 28 | F56: NYN | G56: NL | H56: LP | I56: 0.67 | J56: Y | K56: 81.8 | L56: 5 | M56: 16 | N56: 12 | O56: 0 | P56: 0 | Q56: 0 | R56: 1 | S56: 281 | T56: 10 | U56: 23 | V56: 1 | W56: 66 | X56: 198 | Y56: 87 | Z56: 41 | AA56: 4 | AB56: 3 | AC56: 0 | AD56: 45 | AE56: 4.55 | AF56: 77 | AG56: 10.4 | AH56: 2.9 | AI56: 9 | AJ56: 3.1 | AK56: 1.3 | AL56: 0.278 | AM56: 1.32 | AN56: 1.79 | AO56: 0.08 | AP56: 68 | AQ56: 92 | AR56: 26 | AS56: 11 | AT56: 12.4 | AU56: 73 | AV56: 26 | AW56: -0.18 | AX56: LP | AY56: 66.1 | AZ56: 4.19 | BA56: 68 | BB56: 28 | BC56: LP | BD56: 62.3 | BE56: 4.36 | BF56: 79 | BG56: 24 | BH56: 49.1 | BI56: 5.76 | BJ56: 3.99 | BK56: 28 | BL56: -1.22 | BM56: -3 | BN56: R | BO56: 13 | BP56: lucchjo01 | BQ56: 664192 | BR56: Lefty Super Control Swing Starter | BS56: Daniel Norris | BT56: Tyler Skaggs | BU56: Caleb Smith | BV56: Priced in-line with expectations.
A57: Sanchez | B57: Sixto | C57: R | D57: 2021 | E57: 22 | F57: MIA | G57: NL | H57: LP | I57: 0.65 | J57: Y | K57: 91.5 | L57: 5 | M57: 25 | N57: 11 | O57: 1 | P57: 0 | Q57: 0 | R57: 3 | S57: 329 | T57: 9 | U57: 28 | V57: 2 | W57: 77 | X57: 236 | Y57: 109 | Z57: 42 | AA57: 4 | AB57: 6 | AC57: 0 | AD57: 54 | AE57: 4.71 | AF57: 100 | AG57: 11.7 | AH57: 2.8 | AI57: 9 | AJ57: 3.2 | AK57: 1.11 | AL57: 0.306 | AM57: 1.44 | AN57: 1.59 | AO57: 0.07 | AP57: 69 | AQ57: 96 | AR57: 25 | AS57: 8 | AT57: 12.64 | AU57: 74 | AV57: 27 | AW57: -0.52 | AX57: LP | AY57: 76.5 | AZ57: 4.07 | BA57: 66 | BB57: 33 | BC57: LP | BD57: 70.8 | BE57: 4.2 | BF57: 76 | BG57: 29 | BH57: 92.9 | BI57: 3.71 | BJ57: 3.63 | BK57: 54 | BL57: 1 | BM57: -29 | BN57: R | BO57: -22 | BP57: sanchsi01 | BQ57: 664350 | BR57: Young Super Control Top Starter | BS57: Sandy Alcantara | BT57: Aaron Civale | BU57: Lucas Giolito | BV57: Priced in-line with expectations.
A58: Weaver | B58: Luke | C58: R | D58: 2021 | E58: 27 | F58: ARI | G58: NL | H58: LP | I58: 0.69 | J58: Y | K58: 117.5 | L58: 7 | M58: 30 | N58: 17 | O58: 0 | P58: 0 | Q58: 0 | R58: 3 | S58: 428 | T58: 15 | U58: 34 | V58: 1 | W58: 100 | X58: 295 | Y58: 129 | Z58: 45 | AA58: 3 | AB58: 4 | AC58: 0 | AD58: 71 | AE58: 4.98 | AF58: 114 | AG58: 10.4 | AH58: 2.9 | AI58: 9.1 | AJ58: 3.1 | AK58: 1.35 | AL58: 0.297 | AM58: 1.39 | AN58: 1.84 | AO58: 0.08 | AP58: 63 | AQ58: 101 | AR58: 25 | AS58: 8 | AT58: 17.56 | AU58: 76 | AV58: 28 | AW58: -0.68 | AX58: LP | AY58: 92.8 | AZ58: 4.18 | BA58: 68 | BB58: 34 | BC58: LP | BD58: 79.9 | BE58: 4.3 | BF58: 78 | BG58: 29 | BH58: 129.7 | BI58: 4.39 | BJ58: 4.19 | BK58: 42 | BL58: 0.59 | BM58: -18 | BN58: R | BO58: -50 | BP58: weavelu01 | BQ58: 596133 | BR58: Righty Super Control Swing Starter | BS58: Trevor Richards | BT58: Joseph Musgrove | BU58: Tyler Mahle | BV58: Priced in-line with expectations.
A59: Garcia | B59: Yimi | C59: R | D59: 2021 | E59: 30 | F59: MIA | G59: NL | H59: LP | I59: 0.49 | J59: Y | K59: 46.8 | L59: 3 | M59: 40 | N59: 3 | O59: 0 | P59: 0 | Q59: 1 | R59: 10 | S59: 223 | T59: 9 | U59: 18 | V59: 1 | W59: 54 | X59: 159 | Y59: 41 | Z59: 37 | AA59: 1 | AB59: 3 | AC59: 1 | AD59: 23 | AE59: 4.13 | AF59: 33 | AG59: 5.6 | AH59: 3 | AI59: 9.1 | AJ59: 3 | AK59: 1.5 | AL59: 0.265 | AM59: 1.2 | AN59: 2.01 | AO59: 0.09 | AP59: 74 | AQ59: 84 | AR59: 25 | AS59: 5 | AT59: 5.5 | AU59: 77 | AV59: 29 | AW59: 0.23 | AX59: LP | AY59: 53 | AZ59: 4.28 | BA59: 70 | BB59: 23 | BC59: LP | BD59: 55.8 | BE59: 4.36 | BF59: 79 | BG59: 22 | BH59: 46.5 | BI59: 3.85 | BJ59: 3.23 | BK59: 59 | BL59: 0.28 | BM59: -34 | BN59: R | BO59: 9 | BP59: garciyi01 | BQ59: 554340 | BR59: Righty Super Control RP | BS59: Nick Wittgren | BT59: Chad Green | BU59: Tyler Duffey | BV59: In prime. Priced in-line with expectations.
A60: Wisler | B60: Matt | C60: R | D60: 2021 | E60: 28 | F60: SFN | G60: NL | H60: LP | I60: 0.53 | J60: Y | K60: 65.9 | L60: 4 | M60: 40 | N60: 9 | O60: 0 | P60: 0 | Q60: 1 | R60: 7 | S60: 284 | T60: 10 | U60: 26 | V60: 0 | W60: 72 | X60: 197 | Y60: 60 | Z60: 39 | AA60: 3 | AB60: 3 | AC60: 1 | AD60: 32 | AE60: 4.36 | AF60: 52 | AG60: 7.2 | AH60: 2.7 | AI60: 9.8 | AJ60: 3.6 | AK60: 1.39 | AL60: 0.292 | AM60: 1.33 | AN60: 1.93 | AO60: 0.09 | AP60: 88 | AQ60: 89 | AR60: 24 | AS60: 6 | AT60: 8.13 | AU60: 75 | AV60: 22 | AW60: -0.04 | AX60: LP | AY60: 66.2 | AZ60: 4.2 | BA60: 69 | BB60: 28 | BC60: LP | BD60: 65.6 | BE60: 4.32 | BF60: 78 | BG60: 25 | BH60: 67.1 | BI60: 3.36 | BJ60: 3.72 | BK60: 42 | BL60: 1 | BM60: -18 | BN60: R | BO60: -1 | BP60: wislema01 | BQ60: 605538 | BR60: Righty Power Swing Starter | BS60: Matt Foster | BT60: Corbin Burnes | BU60: Freddy Peralta | BV60: Priced in-line with expectations.
A61: Strasburg | B61: Stephen | C61: R | D61: 2021 | E61: 32 | F61: WAS | G61: NL | H61: LP | I61: 0.7 | J61: Y | K61: 90.2 | L61: 5 | M61: 15 | N61: 11 | O61: 0 | P61: 0 | Q61: 0 | R61: 1 | S61: 280 | T61: 9 | U61: 20 | V61: 1 | W61: 73 | X61: 203 | Y61: 79 | Z61: 42 | AA61: 3 | AB61: 4 | AC61: 0 | AD61: 41 | AE61: 4.66 | AF61: 68 | AG61: 9 | AH61: 3.6 | AI61: 9.6 | AJ61: 2.7 | AK61: 1.16 | AL61: 0.263 | AM61: 1.18 | AN61: 1.58 | AO61: 0.07 | AP61: 100 | AQ61: 95 | AR61: 24 | AS61: 11 | AT61: 14.96 | AU61: 80 | AV61: 30 | AW61: -0.55 | AX61: LP | AY61: 67.4 | AZ61: 3.77 | BA61: 61 | BB61: 40 | BC61: LP | BD61: 61.6 | BE61: 4.12 | BF61: 75 | BG61: 29 | BH61: 49.1 | BI61: 6.76 | BJ61: 3.82 | BK61: 33 | BL61: -2.1 | BM61: -9 | BN61: R | BO61: 13 | BP61: strasst01 | BQ61: 544931 | BR61: Righty Commanding Starter | BS61: Michael Pineda | BT61: Jake Odorizzi | BU61: Joseph Musgrove | BV61: Role player, not a keeper.
A62: Velasquez | B62: Vincent | C62: R | D62: 2021 | E62: 29 | F62: PHI | G62: NL | H62: LP | I62: 0.68 | J62: Y | K62: 82.7 | L62: 6 | M62: 26 | N62: 14 | O62: 0 | P62: 0 | Q62: 0 | R62: 2 | S62: 342 | T62: 13 | U62: 31 | V62: 1 | W62: 86 | X62: 235 | Y62: 105 | Z62: 44 | AA62: 4 | AB62: 7 | AC62: 0 | AD62: 60 | AE62: 4.85 | AF62: 94 | AG62: 10.7 | AH62: 2.8 | AI62: 9.8 | AJ62: 3.5 | AK62: 1.46 | AL62: 0.295 | AM62: 1.42 | AN62: 2.01 | AO62: 0.09 | AP62: 77 | AQ62: 99 | AR62: 23 | AS62: 8 | AT62: 13.49 | AU62: 82 | AV62: 31 | AW62: -0.41 | AX62: LP | AY62: 73.6 | AZ62: 4.42 | BA62: 72 | BB62: 25 | BC62: LP | BD62: 68.4 | BE62: 4.44 | BF62: 81 | BG62: 23 | BH62: 85.4 | BI62: 4.8 | BJ62: 4.12 | BK62: 34 | BL62: 0.05 | BM62: -11 | BN62: R | BO62: -17 | BP62: velasvi01 | BQ62: 592826 | BR62: Righty Power Swing Starter | BS62: Jack Flaherty | BT62: Tyler Mahle | BU62: Tyler Glasnow | BV62: Approaching his prime years. Priced in-line with expectations. Trade bait?
A63: Parker | B63: Blake | C63: R | D63: 2021 | E63: 36 | F63: PHI | G63: NL | H63: LP | I63: 0.52 | J63: Y | K63: 40.9 | L63: 3 | M63: 45 | N63: 2 | O63: 0 | P63: 0 | Q63: 7 | R63: 18 | S63: 212 | T63: 8 | U63: 20 | V63: 2 | W63: 53 | X63: 151 | Y63: 39 | Z63: 38 | AA63: 2 | AB63: 2 | AC63: 0 | AD63: 21 | AE63: 4.18 | AF63: 35 | AG63: 6.2 | AH63: 2.7 | AI63: 9.2 | AJ63: 3.5 | AK63: 1.39 | AL63: 0.272 | AM63: 1.25 | AN63: 1.94 | AO63: 0.09 | AP63: 71 | AQ63: 85 | AR63: 23 | AS63: 4 | AT63: 6.81 | AU63: 83 | AV63: 32 | AW63: -0.25 | AX63: EP | AY63: 52.2 | AZ63: 4.03 | BA63: 66 | BB63: 28 | BC63: LP | BD63: 55.1 | BE63: 3.94 | BF63: 71 | BG63: 31 | BH63: 46.6 | BI63: 4.97 | BJ63: 3.6 | BK63: 40 | BL63: -0.79 | BM63: -17 | BN63: R | BO63: 8 | BP63: parkebl01 | BQ63: 453284 | BR63: Aging Power RP | BS63: Sergio Romo | BT63: Daniel Hudson | BU63: Joakim Soria | BV63: Role player, not a keeper. Trade bait?
A64: Minter | B64: A.J. | C64: L | D64: 2021 | E64: 27 | F64: ATL | G64: NL | H64: LP | I64: 0.5 | J64: Y | K64: 55.3 | L64: 3 | M64: 49 | N64: 2 | O64: 0 | P64: 0 | Q64: 5 | R64: 15 | S64: 250 | T64: 7 | U64: 26 | V64: 3 | W64: 63 | X64: 174 | Y64: 48 | Z64: 38 | AA64: 3 | AB64: 2 | AC64: 0 | AD64: 24 | AE64: 4.27 | AF64: 45 | AG64: 7 | AH64: 2.4 | AI64: 9.7 | AJ64: 4.1 | AK64: 1.03 | AL64: 0.305 | AM64: 1.37 | AN64: 1.6 | AO64: 0.06 | AP64: 85 | AQ64: 87 | AR64: 23 | AS64: 4 | AT64: 6.41 | AU64: 84 | AV64: 33 | AW64: -0.05 | AX64: LP | AY64: 59.1 | AZ64: 4.08 | BA64: 67 | BB64: 29 | BC64: LP | BD64: 59.7 | BE64: 4.22 | BF64: 77 | BG64: 26 | BH64: 58.2 | BI64: 3.62 | BJ64: 3.28 | BK64: 61 | BL64: 0.65 | BM64: -38 | BN64: R | BO64: 1 | BP64: minteaj01 | BQ64: 621345 | BR64: Lefty Power Long Relief | BS64: Gregory Soto | BT64: Jose Alvarado | BU64: Tanner Scott | BV64: Priced in-line with expectations.
A65: Rainey | B65: Tanner | C65: R | D65: 2021 | E65: 28 | F65: WAS | G65: NL | H65: LP | I65: 0.48 | J65: Y | K65: 53.7 | L65: 3 | M65: 42 | N65: 4 | O65: 0 | P65: 0 | Q65: 0 | R65: 6 | S65: 248 | T65: 10 | U65: 28 | V65: 2 | W65: 69 | X65: 174 | Y65: 43 | Z65: 38 | AA65: 4 | AB65: 3 | AC65: 1 | AD65: 28 | AE65: 4.27 | AF65: 41 | AG65: 6.3 | AH65: 2.5 | AI65: 10.9 | AJ65: 4.4 | AK65: 1.51 | AL65: 0.279 | AM65: 1.32 | AN65: 2.17 | AO65: 0.1 | AP65: 109 | AQ65: 87 | AR65: 23 | AS65: 5 | AT65: 5.72 | AU65: 85 | AV65: 34 | AW65: 0.15 | AX65: LP | AY65: 57.1 | AZ65: 4.33 | BA65: 71 | BB65: 23 | BC65: LP | BD65: 58.2 | BE65: 4.43 | BF65: 80 | BG65: 22 | BH65: 56.4 | BI65: 4.07 | BJ65: 3.95 | BK65: 32 | BL65: 0.2 | BM65: -9 | BN65: R | BO65: 2 | BP65: raineta01 | BQ65: 663432 | BR65: Righty Serious Heat Long Relief | BS65: Peter Fairbanks | BT65: Trey Wingenter | BU65: Josh James | BV65: Priced in-line with expectations.
A66: Voth | B66: Austin | C66: R | D66: 2021 | E66: 29 | F66: WAS | G66: NL | H66: LP | I66: 0.61 | J66: Y | K66: 90.4 | L66: 6 | M66: 30 | N66: 16 | O66: 1 | P66: 0 | Q66: 0 | R66: 3 | S66: 386 | T66: 17 | U66: 33 | V66: 2 | W66: 85 | X66: 267 | Y66: 114 | Z66: 45 | AA66: 3 | AB66: 7 | AC66: 0 | AD66: 67 | AE66: 5.02 | AF66: 100 | AG66: 10.1 | AH66: 2.6 | AI66: 8.6 | AJ66: 3.3 | AK66: 1.74 | AL66: 0.278 | AM66: 1.38 | AN66: 2.3 | AO66: 0.1 | AP66: 38 | AQ66: 102 | AR66: 22 | AS66: 6 | AT66: 15.06 | AU66: 89 | AV66: 35 | AW66: -0.21 | AX66: LP | AY66: 80.8 | AZ66: 4.81 | BA66: 78 | BB66: 20 | BC66: LP | BD66: 72.9 | BE66: 4.82 | BF66: 87 | BG66: 19 | BH66: 121.4 | BI66: 4.55 | BJ66: 5.34 | BK66: 20 | BL66: 0.47 | BM66: 2 | BN66: R | BO66: -49 | BP66: vothau01 | BQ66: 608723 | BR66: Righty Super Control Top Starter | BS66: Aaron Civale | BT66: Antonio Senzatela | BU66: Sandy Alcantara | BV66: Approaching his prime years. Priced in-line with expectations. Trade bait?
A67: Castro | B67: Miguel | C67: R | D67: 2021 | E67: 26 | F67: NYN | G67: NL | H67: LP | I67: 0.59 | J67: Y | K67: 67.5 | L67: 3 | M67: 52 | N67: 3 | O67: 0 | P67: 0 | Q67: 3 | R67: 16 | S67: 297 | T67: 10 | U67: 33 | V67: 2 | W67: 73 | X67: 205 | Y67: 57 | Z67: 40 | AA67: 4 | AB67: 2 | AC67: 1 | AD67: 32 | AE67: 4.43 | AF67: 56 | AG67: 7.4 | AH67: 2.2 | AI67: 9.6 | AJ67: 4.3 | AK67: 1.28 | AL67: 0.296 | AM67: 1.4 | AN67: 1.9 | AO67: 0.08 | AP67: 69 | AQ67: 90 | AR67: 22 | AS67: 4 | AT67: 7.25 | AU67: 90 | AV67: 36 | AW67: -0.07 | AX67: LP | AY67: 66.3 | AZ67: 4.25 | BA67: 69 | BB67: 27 | BC67: LP | BD67: 64.9 | BE67: 4.36 | BF67: 79 | BG67: 24 | BH67: 67.5 | BI67: 4.41 | BJ67: 3.99 | BK67: 33 | BL67: 0.02 | BM67: -11 | BN67: R | BO67: -3 | BP67: castrmi01 | BQ67: 612434 | BR67: Righty Power Long Relief | BS67: Jonathan Hernandez | BT67: Alexander Reyes | BU67: Diego Castillo | BV67: Priced in-line with expectations.
A68: Garrett | B68: Amir | C68: L | D68: 2021 | E68: 29 | F68: CIN | G68: NL | H68: LP | I68: 0.53 | J68: Y | K68: 49.8 | L68: 3 | M68: 45 | N68: 4 | O68: 0 | P68: 0 | Q68: 1 | R68: 5 | S68: 237 | T68: 9 | U68: 24 | V68: 1 | W68: 63 | X68: 168 | Y68: 43 | Z68: 39 | AA68: 2 | AB68: 2 | AC68: 0 | AD68: 23 | AE68: 4.28 | AF68: 40 | AG68: 6.5 | AH68: 2.6 | AI68: 10.2 | AJ68: 3.9 | AK68: 1.39 | AL68: 0.285 | AM68: 1.3 | AN68: 1.98 | AO68: 0.09 | AP68: 97 | AQ68: 87 | AR68: 22 | AS68: 4 | AT68: 5.37 | AU68: 92 | AV68: 37 | AW68: 0.18 | AX68: LP | AY68: 55.1 | AZ68: 4.35 | BA68: 71 | BB68: 22 | BC68: LP | BD68: 56.9 | BE68: 4.46 | BF68: 81 | BG68: 21 | BH68: 52.5 | BI68: 4.42 | BJ68: 4.23 | BK68: 24 | BL68: -0.13 | BM68: -2 | BN68: R | BO68: 4 | BP68: garream01 | BQ68: 607237 | BR68: Lefty Power RP | BS68: Chasen Shreve | BT68: Anthony Misiewicz | BU68: Sam Howard | BV68: Approaching his prime years. Priced in-line with expectations. Trade bait?
A69: Antone | B69: Tejay | C69: R | D69: 2021 | E69: 27 | F69: CIN | G69: NL | H69: LP | I69: 0.62 | J69: Y | K69: 72.6 | L69: 4 | M69: 29 | N69: 8 | O69: 0 | P69: 0 | Q69: 0 | R69: 4 | S69: 279 | T69: 9 | U69: 29 | V69: 0 | W69: 77 | X69: 201 | Y69: 55 | Z69: 41 | AA69: 4 | AB69: 4 | AC69: 0 | AD69: 31 | AE69: 4.54 | AF69: 52 | AG69: 7.1 | AH69: 2.7 | AI69: 10.6 | AJ69: 3.9 | AK69: 1.28 | AL69: 0.262 | AM69: 1.24 | AN69: 1.86 | AO69: 0.08 | AP69: 110 | AQ69: 92 | AR69: 22 | AS69: 6 | AT69: 10.09 | AU69: 93 | AV69: 38 | AW69: -0.25 | AX69: LP | AY69: 65.6 | AZ69: 4.17 | BA69: 68 | BB69: 28 | BC69: LP | BD69: 62.4 | BE69: 4.28 | BF69: 78 | BG69: 25 | BH69: 81.9 | BI69: 3.7 | BJ69: 3.79 | BK69: 44 | BL69: 0.84 | BM69: -22 | BN69: R | BO69: -20 | BP69: antonte01 | BQ69: 622088 | BR69: Righty Serious Heat Swing Starter | BS69: Freddy Peralta | BT69: Lucas Sims | BU69: Corbin Burnes | BV69: Priced in-line with expectations.
A70: Sims | B70: Lucas | C70: R | D70: 2021 | E70: 27 | F70: CIN | G70: NL | H70: LP | I70: 0.5 | J70: Y | K70: 62.6 | L70: 3 | M70: 37 | N70: 5 | O70: 0 | P70: 0 | Q70: 0 | R70: 7 | S70: 270 | T70: 10 | U70: 27 | V70: 1 | W70: 72 | X70: 191 | Y70: 50 | Z70: 40 | AA70: 2 | AB70: 4 | AC70: 0 | AD70: 31 | AE70: 4.42 | AF70: 44 | AG70: 6.3 | AH70: 2.6 | AI70: 10.3 | AJ70: 3.9 | AK70: 1.45 | AL70: 0.273 | AM70: 1.28 | AN70: 2.04 | AO70: 0.09 | AP70: 96 | AQ70: 90 | AR70: 22 | AS70: 5 | AT70: 7.26 | AU70: 94 | AV70: 39 | AW70: -0.01 | AX70: LP | AY70: 61.8 | AZ70: 4.32 | BA70: 70 | BB70: 24 | BC70: LP | BD70: 61 | BE70: 4.41 | BF70: 80 | BG70: 22 | BH70: 66.6 | BI70: 3.92 | BJ70: 3.98 | BK70: 33 | BL70: 0.5 | BM70: -11 | BN70: R | BO70: -6 | BP70: simslu01 | BQ70: 608371 | BR70: Righty Power Long Relief | BS70: Freddy Peralta | BT70: Tejay Antone | BU70: Corbin Burnes | BV70: Priced in-line with expectations.
A71: Floro | B71: Dylan | C71: R | D71: 2021 | E71: 30 | F71: LAN | G71: NL | H71: LP | I71: 0.54 | J71: Y | K71: 53.6 | L71: 3 | M71: 44 | N71: 4 | O71: 0 | P71: 0 | Q71: 0 | R71: 8 | S71: 254 | T71: 7 | U71: 20 | V71: 3 | W71: 54 | X71: 179 | Y71: 51 | Z71: 39 | AA71: 2 | AB71: 2 | AC71: 0 | AD71: 25 | AE71: 4.37 | AF71: 43 | AG71: 6.4 | AH71: 2.7 | AI71: 8.1 | AJ71: 3 | AK71: 0.99 | AL71: 0.289 | AM71: 1.27 | AN71: 1.43 | AO71: 0.05 | AP71: 54 | AQ71: 89 | AR71: 22 | AS71: 4 | AT71: 5.58 | AU71: 95 | AV71: 40 | AW71: -0.24 | AX71: LP | AY71: 59 | AZ71: 3.94 | BA71: 64 | BB71: 32 | BC71: LP | BD71: 59.7 | BE71: 4.13 | BF71: 75 | BG71: 28 | BH71: 62.7 | BI71: 4.17 | BJ71: 3.2 | BK71: 68 | BL71: 0.21 | BM71: -46 | BN71: R | BO71: -3 | BP71: florody01 | BQ71: 571670 | BR71: Righty Super Control Long Relief | BS71: Buck Farmer | BT71: Felix Pena | BU71: Cam Bedrosian | BV71: In prime. Priced in-line with expectations. Trade bait?
A72: Brault | B72: Steven | C72: L | D72: 2021 | E72: 29 | F72: PIT | G72: NL | H72: LP | I72: 0.67 | J72: Y | K72: 91.9 | L72: 6 | M72: 32 | N72: 13 | O72: 0 | P72: 0 | Q72: 0 | R72: 4 | S72: 374 | T72: 10 | U72: 40 | V72: 1 | W72: 79 | X72: 258 | Y72: 105 | Z72: 45 | AA72: 7 | AB72: 8 | AC72: 0 | AD72: 61 | AE72: 5.03 | AF72: 101 | AG72: 10.7 | AH72: 2 | AI72: 8.3 | AJ72: 4.2 | AK72: 1.09 | AL72: 0.279 | AM72: 1.44 | AN72: 1.68 | AO72: 0.06 | AP72: 34 | AQ72: 102 | AR72: 22 | AS72: 4 | AT72: 13.44 | AU72: 96 | AV72: 41 | AW72: -0.51 | AX72: LP | AY72: 77.1 | AZ72: 4.49 | BA72: 73 | BB72: 24 | BC72: LP | BD72: 69.6 | BE72: 4.53 | BF72: 82 | BG72: 22 | BH72: 101.2 | BI72: 3.77 | BJ72: 4.28 | BK72: 34 | BL72: 1.26 | BM72: -12 | BN72: R | BO72: -32 | BP72: braulst01 | BQ72: 643230 | BR72: Lefty Top Starter | BS72: Carlos Rodon | BT72: David Peterson | BU72: Austin Gomber | BV72: Approaching his prime years. Priced in-line with expectations. Trade bait?
A73: Webb | B73: Logan | C73: R | D73: 2021 | E73: 24 | F73: SFN | G73: NL | H73: LP | I73: 0.64 | J73: Y | K73: 115 | L73: 6 | M73: 32 | N73: 15 | O73: 0 | P73: 0 | Q73: 0 | R73: 4 | S73: 431 | T73: 12 | U73: 41 | V73: 1 | W73: 93 | X73: 292 | Y73: 138 | Z73: 47 | AA73: 8 | AB73: 11 | AC73: 0 | AD73: 83 | AE73: 5.2 | AF73: 127 | AG73: 11.8 | AH73: 2.2 | AI73: 8.7 | AJ73: 3.9 | AK73: 1.13 | AL73: 0.318 | AM73: 1.57 | AN73: 1.69 | AO73: 0.07 | AP73: 45 | AQ73: 106 | AR73: 22 | AS73: 4 | AT73: 12.7 | AU73: 97 | AV73: 42 | AW73: -0.79 | AX73: LP | AY73: 91.8 | AZ73: 4.35 | BA73: 71 | BB73: 30 | BC73: LP | BD73: 80.2 | BE73: 4.41 | BF73: 80 | BG73: 26 | BH73: 123.6 | BI73: 4.42 | BJ73: 4.18 | BK73: 41 | BL73: 0.78 | BM73: -20 | BN73: R | BO73: -43 | BP73: webblo01 | BQ73: 657277 | BR73: Young Power Swing Starter | BS73: Randy Dobnak | BT73: JT Brubaker | BU73: Kyle Cody | BV73: Priced in-line with expectations.
A74: Dayton | B74: Grant | C74: L | D74: 2021 | E74: 33 | F74: ATL | G74: NL | H74: LP | I74: 0.47 | J74: Y | K74: 48.1 | L74: 3 | M74: 39 | N74: 3 | O74: 0 | P74: 0 | Q74: 2 | R74: 10 | S74: 242 | T74: 9 | U74: 23 | V74: 1 | W74: 57 | X74: 169 | Y74: 46 | Z74: 39 | AA74: 1 | AB74: 3 | AC74: 0 | AD74: 24 | AE74: 4.34 | AF74: 41 | AG74: 6.5 | AH74: 2.5 | AI74: 9.2 | AJ74: 3.7 | AK74: 1.43 | AL74: 0.279 | AM74: 1.31 | AN74: 2 | AO74: 0.09 | AP74: 63 | AQ74: 88 | AR74: 21 | AS74: 4 | AT74: 5.36 | AU74: 98 | AV74: 43 | AW74: 0.12 | AX74: LP | AY74: 56.1 | AZ74: 4.4 | BA74: 72 | BB74: 22 | BC74: LP | BD74: 57.3 | BE74: 4.46 | BF74: 81 | BG74: 21 | BH74: 65.7 | BI74: 3.89 | BJ74: 3.88 | BK74: 36 | BL74: 0.45 | BM74: -15 | BN74: R | BO74: -8 | BP74: daytogr01 | BQ74: 594795 | BR74: Lefty Power RP | BS74: Drew Pomeranz | BT74: Jake McGee | BU74: Brooks Raley | BV74: Role player, not a keeper. Trade bait?
A75: Morejon | B75: Adrian | C75: L | D75: 2021 | E75: 21 | F75: SDN | G75: NL | H75: LP | I75: 0.42 | J75: Y | K75: 79.6 | L75: 3 | M75: 27 | N75: 8 | O75: 0 | P75: 0 | Q75: 0 | R75: 4 | S75: 259 | T75: 13 | U75: 22 | V75: 1 | W75: 68 | X75: 179 | Y75: 70 | Z75: 41 | AA75: 2 | AB75: 3 | AC75: 0 | AD75: 41 | AE75: 4.5 | AF75: 57 | AG75: 8.7 | AH75: 3 | AI75: 10.4 | AJ75: 3.4 | AK75: 1.97 | AL75: 0.317 | AM75: 1.48 | AN75: 2.57 | AO75: 0.13 | AP75: 92 | AQ75: 91 | AR75: 21 | AS75: 6 | AT75: 5.72 | AU75: 99 | AV75: 44 | AW75: 0.21 | AX75: LP | AY75: 66 | AZ75: 4.7 | BA75: 77 | BB75: 19 | BC75: LP | BD75: 63.6 | BE75: 4.71 | BF75: 86 | BG75: 18 | BH75: 55.6 | BI75: 5.18 | BJ75: 5.11 | BK75: 13 | BL75: -0.68 | BM75: 9 | BN75: R | BO75: 8 | BP75: morejad01 | BQ75: 670970 | BR75: Young Lefty Serious Heat Swing Starter | BS75: Caleb Ferguson | BT75: Tarik Skubal | BU75: Patrick Sandoval | BV75: Priced in-line with expectations.
A76: Poncedeleon | B76: Daniel | C76: R | D76: 2021 | E76: 29 | F76: SLN | G76: NL | H76: LP | I76: 0.55 | J76: Y | K76: 77.9 | L76: 5 | M76: 28 | N76: 11 | O76: 0 | P76: 0 | Q76: 0 | R76: 4 | S76: 293 | T76: 11 | U76: 32 | V76: 1 | W76: 73 | X76: 205 | Y76: 83 | Z76: 44 | AA76: 3 | AB76: 5 | AC76: 0 | AD76: 51 | AE76: 4.84 | AF76: 80 | AG76: 10.6 | AH76: 2.3 | AI76: 9.8 | AJ76: 4.3 | AK76: 1.5 | AL76: 0.268 | AM76: 1.4 | AN76: 2.14 | AO76: 0.1 | AP76: 66 | AQ76: 98 | AR76: 21 | AS76: 5 | AT76: 11.78 | AU76: 101 | AV76: 46 | AW76: -0.19 | AX76: LP | AY76: 67 | AZ76: 4.62 | BA76: 75 | BB76: 20 | BC76: LP | BD76: 62.8 | BE76: 4.65 | BF76: 84 | BG76: 19 | BH76: 78.6 | BI76: 4.94 | BJ76: 4.99 | BK76: 18 | BL76: -0.1 | BM76: 4 | BN76: R | BO76: -16 | BP76: ponceda01 | BQ76: 594965 | BR76: Righty Power Swing Starter | BS76: Adbert Alzolay | BT76: Ryne Stanek | BU76: Tejay Antone | BV76: Approaching his prime years. Priced in-line with expectations. Trade bait?
A77: Stratton | B77: Chris | C77: R | D77: 2021 | E77: 30 | F77: PIT | G77: NL | H77: LP | I77: 0.64 | J77: Y | K77: 67.2 | L77: 4 | M77: 33 | N77: 7 | O77: 0 | P77: 0 | Q77: 0 | R77: 5 | S77: 299 | T77: 10 | U77: 27 | V77: 1 | W77: 66 | X77: 206 | Y77: 68 | Z77: 41 | AA77: 2 | AB77: 2 | AC77: 0 | AD77: 39 | AE77: 4.58 | AF77: 59 | AG77: 7.6 | AH77: 2.4 | AI77: 8.6 | AJ77: 3.5 | AK77: 1.26 | AL77: 0.297 | AM77: 1.39 | AN77: 1.79 | AO77: 0.07 | AP77: 50 | AQ77: 93 | AR77: 21 | AS77: 5 | AT77: 7.02 | AU77: 103 | AV77: 47 | AW77: -0.28 | AX77: LP | AY77: 66.4 | AZ77: 4.23 | BA77: 69 | BB77: 27 | BC77: LP | BD77: 64.1 | BE77: 4.3 | BF77: 78 | BG77: 25 | BH77: 75.5 | BI77: 4.17 | BJ77: 3.57 | BK77: 51 | BL77: 0.41 | BM77: -30 | BN77: R | BO77: -11 | BP77: stratch01 | BQ77: 608717 | BR77: Righty Control Starter | BS77: Mike Clevinger | BT77: Justin Verlander | BU77: Max Scherzer | BV77: In prime. Priced in-line with expectations. Trade bait?
A78: Brubaker | B78: JT | C78: R | D78: 2021 | E78: 27 | F78: PIT | G78: NL | H78: LP | I78: 0.68 | J78: Y | K78: 81.5 | L78: 5 | M78: 27 | N78: 12 | O78: 0 | P78: 0 | Q78: 0 | R78: 3 | S78: 341 | T78: 11 | U78: 30 | V78: 0 | W78: 81 | X78: 236 | Y78: 111 | Z78: 45 | AA78: 7 | AB78: 7 | AC78: 0 | AD78: 63 | AE78: 5.05 | AF78: 101 | AG78: 11.5 | AH78: 2.7 | AI78: 9.2 | AJ78: 3.4 | AK78: 1.26 | AL78: 0.308 | AM78: 1.48 | AN78: 1.78 | AO78: 0.08 | AP78: 64 | AQ78: 103 | AR78: 20 | AS78: 5 | AT78: 11.66 | AU78: 110 | AV78: 52 | AW78: -0.7 | AX78: LP | AY78: 75.2 | AZ78: 4.27 | BA78: 70 | BB78: 28 | BC78: LP | BD78: 69.5 | BE78: 4.35 | BF78: 79 | BG78: 25 | BH78: 104.4 | BI78: 4.41 | BJ78: 4.04 | BK78: 41 | BL78: 0.64 | BM78: -20 | BN78: R | BO78: -35 | BP78: brubajt01 | BQ78: 664141 | BR78: Righty Power Swing Starter | BS78: Dane Dunning | BT78: Vincent Velasquez | BU78: Logan Webb | BV78: Priced in-line with expectations.
A79: Tropeano | B79: Nick | C79: R | D79: 2021 | E79: 30 | F79: PIT | G79: NL | H79: LP | I79: 0.44 | J79: Y | K79: 49 | L79: 3 | M79: 21 | N79: 5 | O79: 0 | P79: 0 | Q79: 0 | R79: 4 | S79: 204 | T79: 8 | U79: 18 | V79: 1 | W79: 45 | X79: 142 | Y79: 49 | Z79: 39 | AA79: 2 | AB79: 3 | AC79: 0 | AD79: 27 | AE79: 4.38 | AF79: 41 | AG79: 7.8 | AH79: 2.4 | AI79: 8.6 | AJ79: 3.5 | AK79: 1.5 | AL79: 0.282 | AM79: 1.37 | AN79: 2.06 | AO79: 0.09 | AP79: 47 | AQ79: 89 | AR79: 20 | AS79: 5 | AT79: 3.6 | AU79: 111 | AV79: 53 | AW79: 0.13 | AX79: LP | AY79: 52.3 | AZ79: 4.52 | BA79: 74 | BB79: 19 | BC79: LP | BD79: 54.3 | BE79: 4.51 | BF79: 82 | BG79: 19 | BH79: 44.6 | BI79: 4.47 | BJ79: 3.7 | BK79: 36 | BL79: -0.08 | BM79: -15 | BN79: R | BO79: 10 | BP79: tropeni01 | BQ79: 607374 | BR79: Righty Control Swing Starter | BS79: Justin Verlander | BT79: Max Scherzer | BU79: Domingo German | BV79: In prime. Priced in-line with expectations. Trade bait?
A80: Lorenzen | B80: Michael | C80: R | D80: 2021 | E80: 29 | F80: CIN | G80: NL | H80: LP | I80: 0.62 | J80: Y | K80: 68.3 | L80: 4 | M80: 50 | N80: 4 | O80: 0 | P80: 0 | Q80: 4 | R80: 12 | S80: 312 | T80: 9 | U80: 29 | V80: 2 | W80: 73 | X80: 221 | Y80: 61 | Z80: 42 | AA80: 3 | AB80: 3 | AC80: 1 | AD80: 31 | AE80: 4.63 | AF80: 57 | AG80: 7 | AH80: 2.5 | AI80: 8.8 | AJ80: 3.6 | AK80: 1.05 | AL80: 0.283 | AM80: 1.29 | AN80: 1.57 | AO80: 0.06 | AP80: 61 | AQ80: 94 | AR80: 20 | AS80: 3 | AT80: 9.8 | AU80: 112 | AV80: 54 | AW80: -0.42 | AX80: LP | AY80: 67.7 | AZ80: 4.02 | BA80: 65 | BB80: 33 | BC80: LP | BD80: 65.3 | BE80: 4.21 | BF80: 76 | BG80: 27 | BH80: 82.6 | BI80: 4.49 | BJ80: 3.84 | BK80: 42 | BL80: 0.14 | BM80: -22 | BN80: R | BO80: -17 | BP80: lorenmi01 | BQ80: 547179 | BR80: Righty Power Long Relief | BS80: Yency Almonte | BT80: Luis Cessa | BU80: Lou Trivino | BV80: Approaching his prime years. Priced in-line with expectations. Trade bait?
A81: Young | B81: Alex | C81: L | D81: 2021 | E81: 28 | F81: ARI | G81: NL | H81: LP | I81: 0.66 | J81: Y | K81: 99.4 | L81: 5 | M81: 32 | N81: 12 | O81: 0 | P81: 0 | Q81: 0 | R81: 3 | S81: 376 | T81: 16 | U81: 30 | V81: 2 | W81: 79 | X81: 262 | Y81: 108 | Z81: 46 | AA81: 3 | AB81: 4 | AC81: 0 | AD81: 62 | AE81: 5.09 | AF81: 94 | AG81: 9.8 | AH81: 2.6 | AI81: 8.2 | AJ81: 3.1 | AK81: 1.68 | AL81: 0.283 | AM81: 1.39 | AN81: 2.22 | AO81: 0.1 | AP81: 32 | AQ81: 103 | AR81: 20 | AS81: 3 | AT81: 12.89 | AU81: 113 | AV81: 55 | AW81: -0.33 | AX81: LP | AY81: 80.9 | AZ81: 4.75 | BA81: 77 | BB81: 21 | BC81: LP | BD81: 72 | BE81: 4.76 | BF81: 86 | BG81: 19 | BH81: 107 | BI81: 4.63 | BJ81: 5.07 | BK81: 21 | BL81: 0.45 | BM81: -1 | BN81: R | BO81: -35 | BP81: youngal01 | BQ81: 622065 | BR81: Lefty Super Control Swing Starter | BS81: John Means | BT81: Josh Fleming | BU81: Daniel Norris | BV81: Priced in-line with expectations.
A82: Smith | B82: Caleb | C82: L | D82: 2021 | E82: 29 | F82: ARI | G82: NL | H82: LP | I82: 0.66 | J82: Y | K82: 82.2 | L82: 5 | M82: 18 | N82: 13 | O82: 0 | P82: 0 | Q82: 0 | R82: 1 | S82: 301 | T82: 13 | U82: 29 | V82: 1 | W82: 74 | X82: 213 | Y82: 81 | Z82: 45 | AA82: 3 | AB82: 4 | AC82: 0 | AD82: 48 | AE82: 4.95 | AF82: 75 | AG82: 9.6 | AH82: 2.5 | AI82: 9.5 | AJ82: 3.7 | AK82: 1.63 | AL82: 0.252 | AM82: 1.29 | AN82: 2.22 | AO82: 0.1 | AP82: 61 | AQ82: 101 | AR82: 20 | AS82: 8 | AT82: 13.63 | AU82: 114 | AV82: 56 | AW82: -0.25 | AX82: LP | AY82: 67.1 | AZ82: 4.68 | BA82: 76 | BB82: 19 | BC82: LP | BD82: 62.8 | BE82: 4.71 | BF82: 85 | BG82: 18 | BH82: 63.3 | BI82: 4.86 | BJ82: 5.25 | BK82: 13 | BL82: 0.09 | BM82: 7 | BN82: R | BO82: -1 | BP82: smithca03 | BQ82: 592761 | BR82: Lefty Power Swing Starter | BS82: Joey Lucchesi | BT82: Eric Lauer | BU82: James Paxton | BV82: Approaching his prime years. Priced in-line with expectations. Trade bait?
A83: Underwood Jr. | B83: Duane | C83: R | D83: 2021 | E83: 26 | F83: CHN | G83: NL | H83: LP | I83: 0.39 | J83: Y | K83: 55.8 | L83: 3 | M83: 35 | N83: 4 | O83: 0 | P83: 0 | Q83: 0 | R83: 6 | S83: 241 | T83: 10 | U83: 22 | V83: 1 | W83: 60 | X83: 167 | Y83: 52 | Z83: 40 | AA83: 3 | AB83: 3 | AC83: 0 | AD83: 30 | AE83: 4.42 | AF83: 41 | AG83: 6.6 | AH83: 2.8 | AI83: 9.8 | AJ83: 3.5 | AK83: 1.66 | AL83: 0.311 | AM83: 1.42 | AN83: 2.23 | AO83: 0.11 | AP83: 79 | AQ83: 90 | AR83: 20 | AS83: 4 | AT83: 3.94 | AU83: 115 | AV83: 57 | AW83: 0.11 | AX83: LP | AY83: 58.6 | AZ83: 4.48 | BA83: 73 | BB83: 21 | BC83: LP | BD83: 59.5 | BE83: 4.53 | BF83: 82 | BG83: 20 | BH83: 55.7 | BI83: 5.76 | BJ83: 4.42 | BK83: 21 | BL83: -1.34 | BM83: -1 | BN83: R | BO83: 4 | BP83: underdu01 | BQ83: 621249 | BR83: Righty Power Long Relief | BS83: John Schreiber | BT83: Triston McKenzie | BU83: Lucas Sims | BV83: Priced in-line with expectations.
A84: Tomlin | B84: Josh | C84: R | D84: 2021 | E84: 36 | F84: ATL | G84: NL | H84: LP | I84: 0.63 | J84: Y | K84: 61.3 | L84: 4 | M84: 40 | N84: 7 | O84: 0 | P84: 0 | Q84: 1 | R84: 11 | S84: 308 | T84: 13 | U84: 19 | V84: 2 | W84: 57 | X84: 218 | Y84: 73 | Z84: 42 | AA84: 3 | AB84: 2 | AC84: 0 | AD84: 39 | AE84: 4.7 | AF84: 55 | AG84: 6.7 | AH84: 3 | AI84: 7.1 | AJ84: 2.4 | AK84: 1.61 | AL84: 0.276 | AM84: 1.28 | AN84: 2.05 | AO84: 0.09 | AP84: 21 | AQ84: 96 | AR84: 20 | AS84: 4 | AT84: 8.15 | AU84: 116 | AV84: 58 | AW84: -0.2 | AX84: LP | AY84: 64.9 | AZ84: 4.43 | BA84: 72 | BB84: 23 | BC84: LP | BD84: 62.8 | BE84: 4.5 | BF84: 82 | BG84: 21 | BH84: 90.5 | BI84: 4.47 | BJ84: 4.15 | BK84: 34 | BL84: 0.23 | BM84: -14 | BN84: R | BO84: -28 | BP84: tomlijo01 | BQ84: 458708 | BR84: Aging Super Control Long Relief | BS84: Erasmo Ramirez | BT84: Jesse Chavez | BU84: Yusmeiro Petit | BV84: Role player, not a keeper. Trade bait?
A85: Strahm | B85: Matt | C85: L | D85: 2021 | E85: 29 | F85: SDN | G85: NL | H85: LP | I85: 0.61 | J85: Y | K85: 64.8 | L85: 4 | M85: 36 | N85: 7 | O85: 0 | P85: 0 | Q85: 0 | R85: 5 | S85: 278 | T85: 11 | U85: 19 | V85: 1 | W85: 64 | X85: 197 | Y85: 61 | Z85: 42 | AA85: 2 | AB85: 5 | AC85: 0 | AD85: 32 | AE85: 4.62 | AF85: 47 | AG85: 6.4 | AH85: 3.3 | AI85: 8.8 | AJ85: 2.6 | AK85: 1.46 | AL85: 0.278 | AM85: 1.23 | AN85: 1.91 | AO85: 0.09 | AP85: 64 | AQ85: 94 | AR85: 20 | AS85: 4 | AT85: 8.28 | AU85: 117 | AV85: 59 | AW85: -0.12 | AX85: LP | AY85: 62.3 | AZ85: 4.39 | BA85: 72 | BB85: 23 | BC85: LP | BD85: 61.1 | BE85: 4.49 | BF85: 82 | BG85: 21 | BH85: 60.5 | BI85: 4.64 | BJ85: 4.54 | BK85: 20 | BL85: -0.02 | BM85: 0 | BN85: R | BO85: 1 | BP85: strahma01 | BQ85: 621381 | BR85: Lefty Commanding Long Relief | BS85: Brent Suter | BT85: Caleb Baragar | BU85: Jordan Montgomery | BV85: Approaching his prime years. Priced in-line with expectations. Trade bait?
A86: Bumgarner | B86: Madison | C86: L | D86: 2021 | E86: 31 | F86: ARI | G86: NL | H86: LP | I86: 0.74 | J86: Y | K86: 103.4 | L86: 7 | M86: 22 | N86: 16 | O86: 0 | P86: 0 | Q86: 0 | R86: 1 | S86: 402 | T86: 16 | U86: 27 | V86: 2 | W86: 86 | X86: 286 | Y86: 117 | Z86: 48 | AA86: 2 | AB86: 7 | AC86: 0 | AD86: 63 | AE86: 5.3 | AF86: 99 | AG86: 9.3 | AH86: 3.2 | AI86: 8.1 | AJ86: 2.6 | AK86: 1.5 | AL86: 0.276 | AM86: 1.28 | AN86: 1.95 | AO86: 0.09 | AP86: 38 | AQ86: 108 | AR86: 20 | AS86: 5 | AT86: 17.34 | AU86: 118 | AV86: 60 | AW86: -0.62 | AX86: LP | AY86: 82.8 | AZ86: 4.52 | BA86: 74 | BB86: 25 | BC86: LP | BD86: 73.2 | BE86: 4.68 | BF86: 85 | BG86: 21 | BH86: 104.2 | BI86: 5.15 | BJ86: 5.57 | BK86: 16 | BL86: 0.16 | BM86: 4 | BN86: R | BO86: -31 | BP86: bumgama01 | BQ86: 518516 | BR86: Lefty Commanding Swing Starter | BS86: Jose Quintana | BT86: John Means | BU86: Daniel Norris | BV86: In prime. Role player, not a keeper. Trade bait?
A87: Smith | B87: Riley | C87: R | D87: 2021 | E87: 26 | F87: ARI | G87: NL | H87: LP | I87: 0.5 | J87: Y | K87: 52.5 | L87: 3 | M87: 22 | N87: 4 | O87: 0 | P87: 0 | Q87: 0 | R87: 7 | S87: 215 | T87: 6 | U87: 19 | V87: 0 | W87: 52 | X87: 155 | Y87: 44 | Z87: 40 | AA87: 1 | AB87: 2 | AC87: 0 | AD87: 21 | AE87: 4.4 | AF87: 35 | AG87: 6.2 | AH87: 2.8 | AI87: 9.3 | AJ87: 3.3 | AK87: 1.11 | AL87: 0.291 | AM87: 1.28 | AN87: 1.6 | AO87: 0.07 | AP87: 82 | AQ87: 90 | AR87: 20 | AS87: 4 | AT87: 4.43 | AU87: 119 | AV87: 61 | AW87: -0.19 | AX87: LP | AY87: 55 | AZ87: 4.04 | BA87: 66 | BB87: 29 | BC87: LP | BD87: 56.7 | BE87: 4.21 | BF87: 76 | BG87: 25 | BH87: 50.7 | BI87: 4.34 | BJ87: 3.22 | BK87: 61 | BL87: 0.07 | BM87: -42 | BN87: R | BO87: 6 | BP87: smithri01 | BQ87: 642092 | BR87: Righty Super Control RP | BS87: Matt Foster | BT87: Jorge Alcala | BU87: Codi Heuer | BV87: Priced in-line with expectations.
A88: Lindblom | B88: Josh | C88: R | D88: 2021 | E88: 34 | F88: MIL | G88: NL | H88: LP | I88: 0.66 | J88: Y | K88: 73.4 | L88: 5 | M88: 27 | N88: 13 | O88: 0 | P88: 0 | Q88: 0 | R88: 4 | S88: 296 | T88: 10 | U88: 27 | V88: 0 | W88: 70 | X88: 208 | Y88: 94 | Z88: 45 | AA88: 5 | AB88: 6 | AC88: 0 | AD88: 57 | AE88: 4.98 | AF88: 84 | AG88: 10.8 | AH88: 2.6 | AI88: 9.1 | AJ88: 3.5 | AK88: 1.27 | AL88: 0.293 | AM88: 1.42 | AN88: 1.8 | AO88: 0.08 | AP88: 61 | AQ88: 101 | AR88: 20 | AS88: 5 | AT88: 10.76 | AU88: 120 | AV88: 62 | AW88: -0.62 | AX88: LP | AY88: 67.5 | AZ88: 4.27 | BA88: 70 | BB88: 27 | BC88: LP | BD88: 62.8 | BE88: 4.36 | BF88: 79 | BG88: 24 | BH88: 96.8 | BI88: 4.7 | BJ88: 3.94 | BK88: 42 | BL88: 0.27 | BM88: -23 | BN88: R | BO88: -34 | BP88: lindbjo01 | BQ88: 458676 | BR88: Aging Power Swing Starter | BS88: Charlie Morton | BT88: Garrett Richards | BU88: Stephen Strasburg | BV88: Role player, not a keeper. Trade bait?
A89: Lauer | B89: Eric | C89: L | D89: 2021 | E89: 26 | F89: MIL | G89: NL | H89: LP | I89: 0.66 | J89: Y | K89: 75.7 | L89: 5 | M89: 19 | N89: 12 | O89: 0 | P89: 0 | Q89: 0 | R89: 1 | S89: 319 | T89: 10 | U89: 28 | V89: 1 | W89: 70 | X89: 217 | Y89: 105 | Z89: 45 | AA89: 3 | AB89: 5 | AC89: 1 | AD89: 59 | AE89: 5.05 | AF89: 94 | AG89: 11.6 | AH89: 2.5 | AI89: 8.7 | AJ89: 3.4 | AK89: 1.29 | AL89: 0.302 | AM89: 1.48 | AN89: 1.82 | AO89: 0.08 | AP89: 48 | AQ89: 103 | AR89: 20 | AS89: 7 | AT89: 10.33 | AU89: 121 | AV89: 63 | AW89: -0.53 | AX89: LP | AY89: 69.1 | AZ89: 4.36 | BA89: 71 | BB89: 25 | BC89: LP | BD89: 66.5 | BE89: 4.51 | BF89: 82 | BG89: 22 | BH89: 59.9 | BI89: 7.04 | BJ89: 4.78 | BK89: 17 | BL89: -1.99 | BM89: 3 | BN89: R | BO89: 7 | BP89: lauerer01 | BQ89: 641778 | BR89: Lefty Power Swing Starter | BS89: Joey Lucchesi | BT89: Nick Margevicius | BU89: Carlos Rodon | BV89: Priced in-line with expectations.
A90: Kim | B90: Kwang-Hyun | C90: L | D90: 2021 | E90: 32 | F90: SLN | G90: NL | H90: LP | I90: 0.63 | J90: Y | K90: 88.4 | L90: 5 | M90: 24 | N90: 10 | O90: 0 | P90: 0 | Q90: 1 | R90: 4 | S90: 270 | T90: 8 | U90: 24 | V90: 2 | W90: 50 | X90: 196 | Y90: 81 | Z90: 44 | AA90: 3 | AB90: 3 | AC90: 0 | AD90: 37 | AE90: 4.93 | AF90: 75 | AG90: 10.4 | AH90: 2.1 | AI90: 7 | AJ90: 3.3 | AK90: 1.07 | AL90: 0.26 | AM90: 1.3 | AN90: 1.55 | AO90: 0.06 | AP90: 19 | AQ90: 100 | AR90: 19 | AS90: 5 | AT90: 11.07 | AU90: 123 | AV90: 65 | AW90: -0.51 | AX90: LP | AY90: 66.2 | AZ90: 4.33 | BA90: 71 | BB90: 25 | BC90: LP | BD90: 60.1 | BE90: 4.42 | BF90: 80 | BG90: 22 | BH90: 86 | BI90: 3.43 | BJ90: 4.04 | BK90: 36 | BL90: 1.5 | BM90: -17 | BN90: R | BO90: -26 | BP90: kimkw01 | BQ90: 547942 | BR90: Lefty Control Swing Starter | BS90: Brett Anderson | BT90: Wade Miley | BU90: Mike Montgomery | BV90: Role player, not a keeper. Trade bait?
A91: Stammen | B91: Craig | C91: R | D91: 2021 | E91: 37 | F91: SDN | G91: NL | H91: LP | I91: 0.59 | J91: Y | K91: 47.8 | L91: 3 | M91: 54 | N91: 2 | O91: 0 | P91: 0 | Q91: 5 | R91: 14 | S91: 248 | T91: 7 | U91: 17 | V91: 1 | W91: 55 | X91: 177 | Y91: 49 | Z91: 41 | AA91: 1 | AB91: 2 | AC91: 0 | AD91: 25 | AE91: 4.51 | AF91: 39 | AG91: 5.8 | AH91: 3.2 | AI91: 8 | AJ91: 2.6 | AK91: 1.08 | AL91: 0.28 | AM91: 1.19 | AN91: 1.49 | AO91: 0.06 | AP91: 54 | AQ91: 92 | AR91: 19 | AS91: 3 | AT91: 7.61 | AU91: 124 | AV91: 66 | AW91: -0.33 | AX91: LP | AY91: 55.9 | AZ91: 3.96 | BA91: 65 | BB91: 31 | BC91: LP | BD91: 57.3 | BE91: 4.18 | BF91: 76 | BG91: 26 | BH91: 62 | BI91: 5.74 | BJ91: 3.57 | BK91: 47 | BL91: -1.23 | BM91: -27 | BN91: R | BO91: -5 | BP91: stammcr01 | BQ91: 489334 | BR91: Aging Commanding RP | BS91: Yusmeiro Petit | BT91: Nick Vincent | BU91: Tommy Hunter | BV91: Role player, not a keeper. Trade bait?
A92: Milone | B92: Tom | C92: L | D92: 2021 | E92: 34 | F92: ATL | G92: NL | H92: LP | I92: 0.64 | J92: Y | K92: 73.8 | L92: 5 | M92: 28 | N92: 10 | O92: 0 | P92: 0 | Q92: 0 | R92: 3 | S92: 336 | T92: 15 | U92: 22 | V92: 1 | W92: 69 | X92: 234 | Y92: 112 | Z92: 46 | AA92: 3 | AB92: 4 | AC92: 0 | AD92: 66 | AE92: 5.13 | AF92: 89 | AG92: 10.2 | AH92: 3.2 | AI92: 7.9 | AJ92: 2.5 | AK92: 1.74 | AL92: 0.293 | AM92: 1.38 | AN92: 2.21 | AO92: 0.1 | AP92: 32 | AQ92: 104 | AR92: 19 | AS92: 2 | AT92: 11.52 | AU92: 125 | AV92: 67 | AW92: -0.49 | AX92: LP | AY92: 70.8 | AZ92: 4.62 | BA92: 75 | BB92: 21 | BC92: LP | BD92: 66.7 | BE92: 4.64 | BF92: 84 | BG92: 20 | BH92: 92.1 | BI92: 5.48 | BJ92: 4.53 | BK92: 27 | BL92: -0.35 | BM92: -7 | BN92: R | BO92: -25 | BP92: milonto01 | BQ92: 543548 | BR92: Aging Lefty Commanding Swing Starter | BS92: Robbie Erlin | BT92: Alex Wood | BU92: Madison Bumgarner | BV92: Role player, not a keeper. Trade bait?
A93: O'Day | B93: Darren | C93: R | D93: 2021 | E93: 38 | F93: ATL | G93: NL | H93: LP | I93: 0.35 | J93: Y | K93: 33.9 | L93: 2 | M93: 33 | N93: 3 | O93: 0 | P93: 0 | Q93: 0 | R93: 6 | S93: 185 | T93: 6 | U93: 18 | V93: 1 | W93: 41 | X93: 129 | Y93: 34 | Z93: 39 | AA93: 1 | AB93: 3 | AC93: 0 | AD93: 19 | AE93: 4.31 | AF93: 28 | AG93: 5.9 | AH93: 2.3 | AI93: 8.6 | AJ93: 3.7 | AK93: 1.23 | AL93: 0.271 | AM93: 1.29 | AN93: 1.78 | AO93: 0.07 | AP93: 52 | AQ93: 88 | AR93: 19 | AS93: 3 | AT93: 2.4 | AU93: 126 | AV93: 68 | AW93: 0.19 | AX93: JP | AY93: 74.6 | AZ93: 4.44 | BA93: 72 | BB93: 25 | BC93: LP | BD93: 66.6 | BE93: 4.5 | BF93: 82 | BG93: 22 | BH93: 43.6 | BI93: 4.83 | BJ93: 3.52 | BK93: 42 | BL93: -0.52 | BM93: -23 | BN93: R | BO93: 23 | BP93: odayda01 | BQ93: 503285 | BR93: Aging RP | BS93: James Hoyt | BT93: David Hernandez | BU93: Tony Barnette | BV93: Role player, not a keeper. Trade bait?
A94: Peterson | B94: David | C94: L | D94: 2021 | E94: 25 | F94: NYN | G94: NL | H94: LP | I94: 0.69 | J94: Y | K94: 93.8 | L94: 6 | M94: 27 | N94: 12 | O94: 0 | P94: 0 | Q94: 0 | R94: 3 | S94: 356 | T94: 11 | U94: 39 | V94: 0 | W94: 78 | X94: 254 | Y94: 98 | Z94: 47 | AA94: 3 | AB94: 7 | AC94: 0 | AD94: 56 | AE94: 5.23 | AF94: 98 | AG94: 10.8 | AH94: 2 | AI94: 8.6 | AJ94: 4.3 | AK94: 1.17 | AL94: 0.27 | AM94: 1.41 | AN94: 1.77 | AO94: 0.07 | AP94: 36 | AQ94: 106 | AR94: 19 | AS94: 3 | AT94: 13.41 | AU94: 130 | AV94: 69 | AW94: -0.63 | AX94: LP | AY94: 77.3 | AZ94: 4.57 | BA94: 74 | BB94: 23 | BC94: LP | BD94: 69.8 | BE94: 4.6 | BF94: 83 | BG94: 21 | BH94: 110.7 | BI94: 3.74 | BJ94: 4.57 | BK94: 29 | BL94: 1.49 | BM94: -10 | BN94: R | BO94: -41 | BP94: peterda01 | BQ94: 656849 | BR94: Young Lefty Swing Starter | BS94: Kolby Allard | BT94: Carlos Rodon | BU94: Sean Newcomb | BV94: Priced in-line with expectations.
A95: Gant | B95: John | C95: R | D95: 2021 | E95: 28 | F95: SLN | G95: NL | H95: LP | I95: 0.56 | J95: Y | K95: 52.4 | L95: 3 | M95: 34 | N95: 5 | O95: 0 | P95: 0 | Q95: 1 | R95: 5 | S95: 234 | T95: 6 | U95: 24 | V95: 1 | W95: 52 | X95: 166 | Y95: 44 | Z95: 41 | AA95: 2 | AB95: 1 | AC95: 0 | AD95: 25 | AE95: 4.5 | AF95: 42 | AG95: 6.8 | AH95: 2.1 | AI95: 8.7 | AJ95: 4 | AK95: 0.95 | AL95: 0.276 | AM95: 1.31 | AN95: 1.5 | AO95: 0.05 | AP95: 54 | AQ95: 92 | AR95: 19 | AS95: 4 | AT95: 4.53 | AU95: 131 | AV95: 70 | AW95: -0.24 | AX95: LP | AY95: 55.1 | AZ95: 4.1 | BA95: 67 | BB95: 27 | BC95: LP | BD95: 56.9 | BE95: 4.27 | BF95: 77 | BG95: 24 | BH95: 47.5 | BI95: 4.93 | BJ95: 3.35 | BK95: 52 | BL95: -0.43 | BM95: -33 | BN95: R | BO95: 9 | BP95: gantjo01 | BQ95: 607231 | BR95: Righty Power RP | BS95: Julian Merryweather | BT95: Enoli Paredes | BU95: Michael Lorenzen | BV95: Priced in-line with expectations.
A96: Barnes | B96: Jacob | C96: R | D96: 2021 | E96: 31 | F96: NYN | G96: NL | H96: LP | I96: 0.47 | J96: Y | K96: 46.8 | L96: 3 | M96: 38 | N96: 4 | O96: 0 | P96: 0 | Q96: 0 | R96: 9 | S96: 240 | T96: 8 | U96: 23 | V96: 1 | W96: 54 | X96: 162 | Y96: 48 | Z96: 40 | AA96: 2 | AB96: 2 | AC96: 0 | AD96: 30 | AE96: 4.47 | AF96: 39 | AG96: 6.3 | AH96: 2.3 | AI96: 8.8 | AJ96: 3.8 | AK96: 1.28 | AL96: 0.305 | AM96: 1.42 | AN96: 1.85 | AO96: 0.08 | AP96: 54 | AQ96: 91 | AR96: 19 | AS96: 3 | AT96: 2.91 | AU96: 126 | AV96: 63 | AW96: -0.08 | AX96: LP | AY96: 57.4 | AZ96: 4.36 | BA96: 71 | BB96: 23 | BC96: LP | BD96: 60.6 | BE96: 4.39 | BF96: 80 | BG96: 23 | BH96: 51.2 | BI96: 5.7 | BJ96: 3.41 | BK96: 50 | BL96: -1.23 | BM96: -31 | BN96: R | BO96: 9 | BP96: barneja01 | BQ96: 606930 | BR96: Righty Power RP | BS96: Jose Cisnero | BT96: Ryan Brasier | BU96: Ryan Tepera | BV96: In prime. Role player, not a keeper. Trade bait?
A97: Rogers | B97: Trevor | C97: L | D97: 2021 | E97: 23 | F97: MIA | G97: NL | H97: LP | I97: 0.59 | J97: Y | K97: 59.4 | L97: 4 | M97: 24 | N97: 11 | O97: 0 | P97: 0 | Q97: 0 | R97: 3 | S97: 292 | T97: 11 | U97: 29 | V97: 0 | W97: 81 | X97: 196 | Y97: 107 | Z97: 45 | AA97: 3 | AB97: 6 | AC97: 2 | AD97: 65 | AE97: 5.04 | AF97: 97 | AG97: 13.3 | AH97: 2.8 | AI97: 11.1 | AJ97: 3.9 | AK97: 1.56 | AL97: 0.334 | AM97: 1.62 | AN97: 2.17 | AO97: 0.11 | AP97: 112 | AQ97: 102 | AR97: 19 | AS97: 4 | AT97: 8.07 | AU97: 132 | AV97: 71 | AW97: -0.55 | AX97: LP | AY97: 66.3 | AZ97: 4.41 | BA97: 72 | BB97: 24 | BC97: LP | BD97: 66.5 | BE97: 4.49 | BF97: 81 | BG97: 22 | BH97: 70.8 | BI97: 5.54 | BJ97: 4.23 | BK97: 28 | BL97: -0.49 | BM97: -9 | BN97: R | BO97: -4 | BP97: rogertr01 | BQ97: 669432 | BR97: Young Lefty Serious Heat Swing Starter | BS97: Keegan Akin | BT97: Tarik Skubal | BU97: Genesis Cabrera | BV97: Priced in-line with expectations.
A98: Johnson | B98: Pierce | C98: R | D98: 2021 | E98: 30 | F98: SDN | G98: NL | H98: LP | I98: 0.5 | J98: Y | K98: 43.4 | L98: 3 | M98: 36 | N98: 4 | O98: 0 | P98: 0 | Q98: 0 | R98: 8 | S98: 210 | T98: 7 | U98: 21 | V98: 1 | W98: 51 | X98: 149 | Y98: 39 | Z98: 40 | AA98: 2 | AB98: 1 | AC98: 1 | AD98: 22 | AE98: 4.42 | AF98: 33 | AG98: 6 | AH98: 2.4 | AI98: 9.4 | AJ98: 3.9 | AK98: 1.19 | AL98: 0.286 | AM98: 1.31 | AN98: 1.75 | AO98: 0.07 | AP98: 73 | AQ98: 90 | AR98: 19 | AS98: 3 | AT98: 3.23 | AU98: 133 | AV98: 72 | AW98: -0.1 | AX98: LP | AY98: 52.1 | AZ98: 4.17 | BA98: 68 | BB98: 25 | BC98: LP | BD98: 54.8 | BE98: 4.31 | BF98: 78 | BG98: 23 | BH98: 51.9 | BI98: 4.75 | BJ98: 3.51 | BK98: 46 | BL98: -0.34 | BM98: -27 | BN98: R | BO98: 3 | BP98: johnspi01 | BQ98: 572955 | BR98: Righty Power RP | BS98: Lou Trivino | BT98: Jacob Barnes | BU98: J. B. Wendelken | BV98: In prime. Priced in-line with expectations. Trade bait?
A99: Tepera | B99: Ryan | C99: R | D99: 2021 | E99: 33 | F99: CHN | G99: NL | H99: LP | I99: 0.47 | J99: Y | K99: 43.4 | L99: 3 | M99: 41 | N99: 3 | O99: 0 | P99: 0 | Q99: 3 | R99: 10 | S99: 219 | T99: 7 | U99: 22 | V99: 1 | W99: 52 | X99: 154 | Y99: 42 | Z99: 40 | AA99: 3 | AB99: 2 | AC99: 0 | AD99: 23 | AE99: 4.45 | AF99: 36 | AG99: 6.4 | AH99: 2.3 | AI99: 9.1 | AJ99: 3.9 | AK99: 1.31 | AL99: 0.283 | AM99: 1.33 | AN99: 1.89 | AO99: 0.08 | AP99: 60 | AQ99: 90 | AR99: 19 | AS99: 3 | AT99: 4.29 | AU99: 134 | AV99: 73 | AW99: -0.02 | AX99: LP | AY99: 52.3 | AZ99: 4.38 | BA99: 71 | BB99: 21 | BC99: LP | BD99: 54.8 | BE99: 4.42 | BF99: 80 | BG99: 21 | BH99: 53.6 | BI99: 5.32 | BJ99: 3.78 | BK99: 36 | BL99: -0.87 | BM99: -17 | BN99: R | BO99: 1 | BP99: teperry01 | BQ99: 572193 | BR99: Righty Power RP | BS99: Jacob Barnes | BT99: Adam Ottavino | BU99: Joakim Soria | BV99: Role player, not a keeper. Trade bait?
A100: Shreve | B100: Chasen | C100: L | D100: 2021 | E100: 30 | F100: NYN | G100: NL | H100: LP | I100: 0.44 | J100: Y | K100: 48.8 | L100: 3 | M100: 35 | N100: 4 | O100: 0 | P100: 0 | Q100: 0 | R100: 6 | S100: 233 | T100: 9 | U100: 23 | V100: 1 | W100: 58 | X100: 163 | Y100: 45 | Z100: 40 | AA100: 2 | AB100: 2 | AC100: 0 | AD100: 26 | AE100: 4.5 | AF100: 38 | AG100: 6.4 | AH100: 2.5 | AI100: 9.6 | AJ100: 3.9 | AK100: 1.43 | AL100: 0.285 | AM100: 1.34 | AN100: 2.02 | AO100: 0.09 | AP100: 73 | AQ100: 91 | AR100: 19 | AS100: 3 | AT100: 4.22 | AU100: 135 | AV100: 74 | AW100: -0.01 | AX100: LP | AY100: 55.5 | AZ100: 4.41 | BA100: 72 | BB100: 21 | BC100: LP | BD100: 56.9 | BE100: 4.49 | BF100: 81 | BG100: 20 | BH100: 61.1 | BI100: 5.05 | BJ100: 4.09 | BK100: 29 | BL100: -0.56 | BM100: -10 | BN100: R | BO100: -4 | BP100: shrevch01 | BQ100: 592741 | BR100: Lefty Power RP | BS100: Amir Garrett | BT100: Andrew Chafin | BU100: Jeffrey Springs | BV100: In prime. Priced in-line with expectations. Trade bait?
A101: Hunter | B101: Tommy | C101: R | D101: 2021 | E101: 34 | F101: PHI | G101: NL | H101: LP | I101: 0.46 | J101: Y | K101: 43.8 | L101: 3 | M101: 38 | N101: 4 | O101: 0 | P101: 0 | Q101: 1 | R101: 5 | S101: 222 | T101: 7 | U101: 18 | V101: 1 | W101: 47 | X101: 156 | Y101: 44 | Z101: 40 | AA101: 1 | AB101: 3 | AC101: 0 | AD101: 24 | AE101: 4.48 | AF101: 35 | AG101: 6 | AH101: 2.6 | AI101: 8.1 | AJ101: 3.1 | AK101: 1.15 | AL101: 0.283 | AM101: 1.28 | AN101: 1.62 | AO101: 0.06 | AP101: 47 | AQ101: 91 | AR101: 18 | AS101: 3 | AT101: 4.01 | AU101: 137 | AV101: 76 | AW101: -0.13 | AX101: LP | AY101: 53 | AZ101: 4.23 | BA101: 69 | BB101: 24 | BC101: LP | BD101: 55.2 | BE101: 4.35 | BF101: 79 | BG101: 22 | BH101: 59.5 | BI101: 5.09 | BJ101: 3.73 | BK101: 39 | BL101: -0.61 | BM101: -21 | BN101: R | BO101: -4 | BP101: hunteto02 | BQ101: 488984 | BR101: Aging Super Control RP | BS101: Will Harris | BT101: Tyler Clippard | BU101: Craig Stammen | BV101: Role player, not a keeper. Trade bait?
A102: Gray | B102: Jon | C102: R | D102: 2021 | E102: 29 | F102: COL | G102: NL | H102: LP | I102: 0.72 | J102: Y | K102: 90.6 | L102: 6 | M102: 20 | N102: 15 | O102: 0 | P102: 0 | Q102: 0 | R102: 1 | S102: 375 | T102: 12 | U102: 29 | V102: 1 | W102: 82 | X102: 262 | Y102: 115 | Z102: 48 | AA102: 5 | AB102: 4 | AC102: 1 | AD102: 64 | AE102: 5.35 | AF102: 100 | AG102: 10.2 | AH102: 2.8 | AI102: 8.4 | AJ102: 3 | AK102: 1.27 | AL102: 0.292 | AM102: 1.38 | AN102: 1.74 | AO102: 0.07 | AP102: 43 | AQ102: 109 | AR102: 18 | AS102: 5 | AT102: 14.19 | AU102: 138 | AV102: 77 | AW102: -0.96 | AX102: LP | AY102: 78.5 | AZ102: 4.26 | BA102: 69 | BB102: 29 | BC102: LP | BD102: 71.5 | BE102: 4.39 | BF102: 80 | BG102: 25 | BH102: 96.7 | BI102: 5.51 | BJ102: 4.53 | BK102: 27 | BL102: -0.16 | BM102: -9 | BN102: R | BO102: -25 | BP102: grayjo02 | BQ102: 592351 | BR102: Righty Super Control Starter | BS102: Anthony DeSclafani | BT102: Jakob Junis | BU102: Jake Odorizzi | BV102: Approaching his prime years. Priced in-line with expectations. Trade bait?
A103: Clarke | B103: Taylor | C103: R | D103: 2021 | E103: 28 | F103: ARI | G103: NL | H103: LP | I103: 0.65 | J103: Y | K103: 92.3 | L103: 5 | M103: 32 | N103: 11 | O103: 0 | P103: 0 | Q103: 0 | R103: 5 | S103: 364 | T103: 17 | U103: 35 | V103: 2 | W103: 78 | X103: 254 | Y103: 95 | Z103: 46 | AA103: 3 | AB103: 4 | AC103: 0 | AD103: 58 | AE103: 5.16 | AF103: 85 | AG103: 9.1 | AH103: 2.2 | AI103: 8.4 | AJ103: 3.7 | AK103: 1.82 | AL103: 0.27 | AM103: 1.4 | AN103: 2.43 | AO103: 0.11 | AP103: 27 | AQ103: 105 | AR103: 18 | AS103: 2 | AT103: 11.39 | AU103: 139 | AV103: 78 | AW103: -0.31 | AX103: LP | AY103: 77.1 | AZ103: 4.95 | BA103: 81 | BB103: 18 | BC103: LP | BD103: 69.7 | BE103: 4.85 | BF103: 88 | BG103: 18 | BH103: 101.5 | BI103: 4.26 | BJ103: 4.99 | BK103: 21 | BL103: 0.89 | BM103: -3 | BN103: R | BO103: -32 | BP103: clarkta01 | BQ103: 664199 | BR103: Righty Swing Starter | BS103: Corey Oswalt | BT103: Jordan Lyles | BU103: Michael Wacha | BV103: Priced in-line with expectations.
A104: Wilson | B104: Justin | C104: L | D104: 2021 | E104: 33 | F104: NYN | G104: NL | H104: LP | I104: 0.49 | J104: Y | K104: 44.5 | L104: 3 | M104: 47 | N104: 3 | O104: 0 | P104: 0 | Q104: 1 | R104: 8 | S104: 228 | T104: 7 | U104: 24 | V104: 2 | W104: 53 | X104: 158 | Y104: 43 | Z104: 41 | AA104: 3 | AB104: 2 | AC104: 0 | AD104: 23 | AE104: 4.5 | AF104: 41 | AG104: 6.9 | AH104: 2.2 | AI104: 9.1 | AJ104: 4.2 | AK104: 1.12 | AL104: 0.292 | AM104: 1.37 | AN104: 1.7 | AO104: 0.07 | AP104: 61 | AQ104: 91 | AR104: 18 | AS104: 3 | AT104: 3.61 | AU104: 140 | AV104: 79 | AW104: -0.13 | AX104: LP | AY104: 53.1 | AZ104: 4.24 | BA104: 69 | BB104: 24 | BC104: LP | BD104: 55.6 | BE104: 4.37 | BF104: 79 | BG104: 22 | BH104: 52.8 | BI104: 5.33 | BJ104: 3.57 | BK104: 43 | BL104: -0.83 | BM104: -25 | BN104: R | BO104: 3 | BP104: wilsoju10 | BQ104: 458677 | BR104: Lefty Power RP | BS104: Jake Diekman | BT104: Caleb Thielbar | BU104: Tyler Olson | BV104: Role player, not a keeper. Trade bait?
A105: Hill | B105: Tim | C105: L | D105: 2021 | E105: 31 | F105: SDN | G105: NL | H105: LP | I105: 0.48 | J105: Y | K105: 45.3 | L105: 3 | M105: 48 | N105: 3 | O105: 0 | P105: 0 | Q105: 1 | R105: 7 | S105: 225 | T105: 7 | U105: 20 | V105: 2 | W105: 51 | X105: 157 | Y105: 43 | Z105: 40 | AA105: 2 | AB105: 3 | AC105: 0 | AD105: 25 | AE105: 4.49 | AF105: 35 | AG105: 6 | AH105: 2.5 | AI105: 8.7 | AJ105: 3.5 | AK105: 1.26 | AL105: 0.286 | AM105: 1.31 | AN105: 1.79 | AO105: 0.07 | AP105: 56 | AQ105: 91 | AR105: 18 | AS105: 3 | AT105: 3.68 | AU105: 141 | AV105: 80 | AW105: -0.03 | AX105: LP | AY105: 53.2 | AZ105: 4.36 | BA105: 71 | BB105: 22 | BC105: LP | BD105: 55.8 | BE105: 4.47 | BF105: 81 | BG105: 20 | BH105: 50.3 | BI105: 5.78 | BJ105: 4.14 | BK105: 25 | BL105: -1.28 | BM105: -7 | BN105: R | BO105: 6 | BP105: hillti01 | BQ105: 657612 | BR105: Lefty Power RP | BS105: Aaron Loup | BT105: Tyler Webb | BU105: Andrew Chafin | BV105: In prime. Role player, not a keeper. Trade bait?
A106: Reyes | B106: Alexander | C106: R | D106: 2021 | E106: 26 | F106: SLN | G106: NL | H106: LP | I106: 0.36 | J106: Y | K106: 55.2 | L106: 3 | M106: 30 | N106: 5 | O106: 0 | P106: 0 | Q106: 1 | R106: 7 | S106: 233 | T106: 8 | U106: 27 | V106: 1 | W106: 57 | X106: 160 | Y106: 47 | Z106: 41 | AA106: 3 | AB106: 2 | AC106: 0 | AD106: 29 | AE106: 4.56 | AF106: 42 | AG106: 7.2 | AH106: 2.1 | AI106: 9.7 | AJ106: 4.6 | AK106: 1.29 | AL106: 0.292 | AM106: 1.43 | AN106: 1.95 | AO106: 0.08 | AP106: 68 | AQ106: 93 | AR106: 18 | AS106: 3 | AT106: 3.62 | AU106: 142 | AV106: 81 | AW106: -0.12 | AX106: LP | AY106: 57.1 | AZ106: 4.39 | BA106: 72 | BB106: 22 | BC106: LP | BD106: 58.2 | BE106: 4.44 | BF106: 81 | BG106: 21 | BH106: 53.2 | BI106: 5.23 | BJ106: 3.83 | BK106: 34 | BL106: -0.67 | BM106: -16 | BN106: R | BO106: 5 | BP106: reyesal02 | BQ106: 621052 | BR106: Righty Power Long Relief | BS106: Josh Staumont | BT106: Kevin Ginkel | BU106: Adbert Alzolay | BV106: Priced in-line with expectations.
A107: Finnegan | B107: Kyle | C107: R | D107: 2021 | E107: 29 | F107: WAS | G107: NL | H107: LP | I107: 0.55 | J107: Y | K107: 49.4 | L107: 3 | M107: 39 | N107: 4 | O107: 0 | P107: 0 | Q107: 0 | R107: 6 | S107: 235 | T107: 7 | U107: 25 | V107: 4 | W107: 56 | X107: 163 | Y107: 44 | Z107: 41 | AA107: 3 | AB107: 2 | AC107: 0 | AD107: 24 | AE107: 4.55 | AF107: 39 | AG107: 6.4 | AH107: 2.3 | AI107: 9.2 | AJ107: 4 | AK107: 1.1 | AL107: 0.286 | AM107: 1.33 | AN107: 1.67 | AO107: 0.07 | AP107: 65 | AQ107: 92 | AR107: 18 | AS107: 3 | AT107: 4 | AU107: 143 | AV107: 82 | AW107: -0.31 | AX107: LP | AY107: 56.9 | AZ107: 4.08 | BA107: 67 | BB107: 28 | BC107: LP | BD107: 58.3 | BE107: 4.24 | BF107: 77 | BG107: 25 | BH107: 60.8 | BI107: 4.54 | BJ107: 3.47 | BK107: 51 | BL107: 0.01 | BM107: -33 | BN107: R | BO107: -2 | BP107: finneky01 | BQ107: 640448 | BR107: Righty Power RP | BS107: Peter Fairbanks | BT107: Kyle Zimmer | BU107: Jose Cisnero | BV107: Approaching his prime years. Priced in-line with expectations. Trade bait?
A108: Phelps | B108: David | C108: R | D108: 2021 | E108: 34 | F108: PHI | G108: NL | H108: LP | I108: 0.48 | J108: Y | K108: 44 | L108: 3 | M108: 40 | N108: 5 | O108: 0 | P108: 0 | Q108: 0 | R108: 6 | S108: 226 | T108: 10 | U108: 22 | V108: 1 | W108: 54 | X108: 157 | Y108: 45 | Z108: 41 | AA108: 3 | AB108: 2 | AC108: 0 | AD108: 28 | AE108: 4.53 | AF108: 36 | AG108: 6.1 | AH108: 2.5 | AI108: 9.3 | AJ108: 3.7 | AK108: 1.78 | AL108: 0.282 | AM108: 1.36 | AN108: 2.39 | AO108: 0.11 | AP108: 56 | AQ108: 92 | AR108: 18 | AS108: 3 | AT108: 3.41 | AU108: 144 | AV108: 83 | AW108: 0.16 | AX108: LP | AY108: 52.6 | AZ108: 4.69 | BA108: 76 | BB108: 17 | BC108: LP | BD108: 55 | BE108: 4.69 | BF108: 85 | BG108: 17 | BH108: 54 | BI108: 6.17 | BJ108: 4.9 | BK108: 15 | BL108: -1.64 | BM108: 3 | BN108: R | BO108: 1 | BP108: phelpda01 | BQ108: 475479 | BR108: Aging Power RP | BS108: Heath Hembree | BT108: David Hernandez | BU108: James Hoyt | BV108: Role player, not a keeper. Trade bait?
A109: Fedde | B109: Erick | C109: R | D109: 2021 | E109: 28 | F109: WAS | G109: NL | H109: LP | I109: 0.65 | J109: Y | K109: 90.1 | L109: 6 | M109: 32 | N109: 13 | O109: 0 | P109: 0 | Q109: 0 | R109: 4 | S109: 392 | T109: 15 | U109: 38 | V109: 2 | W109: 68 | X109: 271 | Y109: 118 | Z109: 49 | AA109: 4 | AB109: 5 | AC109: 0 | AD109: 64 | AE109: 5.44 | AF109: 109 | AG109: 11 | AH109: 1.8 | AI109: 6.9 | AJ109: 3.8 | AK109: 1.52 | AL109: 0.277 | AM109: 1.47 | AN109: 2.11 | AO109: 0.08 | AP109: 7 | AQ109: 111 | AR109: 18 | AS109: 0 | AT109: 11.83 | AU109: 145 | AV109: 84 | AW109: -0.48 | AX109: LP | AY109: 79.1 | AZ109: 5.02 | BA109: 82 | BB109: 17 | BC109: LP | BD109: 71.8 | BE109: 4.95 | BF109: 90 | BG109: 17 | BH109: 114.1 | BI109: 4.23 | BJ109: 5.6 | BK109: 17 | BL109: 1.21 | BM109: 1 | BN109: R | BO109: -42 | BP109: feddeer01 | BQ109: 607200 | BR109: Righty Soft Tosser Swing Starter | BS109: Chi Chi Gonzalez | BT109: Dylan Covey | BU109: Jordan Lyles | BV109: Priced in-line with expectations.
A110: Kolarek | B110: Adam | C110: L | D110: 2021 | E110: 32 | F110: LAN | G110: NL | H110: LP | I110: 0.5 | J110: Y | K110: 46.6 | L110: 3 | M110: 48 | N110: 3 | O110: 0 | P110: 0 | Q110: 1 | R110: 9 | S110: 229 | T110: 7 | U110: 18 | V110: 2 | W110: 46 | X110: 164 | Y110: 44 | Z110: 41 | AA110: 2 | AB110: 2 | AC110: 0 | AD110: 22 | AE110: 4.55 | AF110: 35 | AG110: 5.8 | AH110: 2.5 | AI110: 7.7 | AJ110: 3 | AK110: 1.13 | AL110: 0.27 | AM110: 1.24 | AN110: 1.59 | AO110: 0.06 | AP110: 36 | AQ110: 93 | AR110: 18 | AS110: 3 | AT110: 4.47 | AU110: 147 | AV110: 85 | AW110: -0.17 | AX110: LP | AY110: 53.4 | AZ110: 4.26 | BA110: 69 | BB110: 24 | BC110: LP | BD110: 55.6 | BE110: 4.39 | BF110: 80 | BG110: 22 | BH110: 52.8 | BI110: 4.42 | BJ110: 3.75 | BK110: 36 | BL110: 0.13 | BM110: -19 | BN110: R | BO110: 3 | BP110: kolarad01 | BQ110: 592473 | BR110: Lefty Super Control RP | BS110: Richard Bleier | BT110: Aaron Loup | BU110: Alex Claudio | BV110: Role player, not a keeper. Trade bait?
A111: Matz | B111: Steven | C111: L | D111: 2021 | E111: 30 | F111: NYN | G111: NL | H111: LP | I111: 0.71 | J111: Y | K111: 79.7 | L111: 6 | M111: 19 | N111: 14 | O111: 0 | P111: 0 | Q111: 0 | R111: 1 | S111: 346 | T111: 16 | U111: 27 | V111: 2 | W111: 79 | X111: 240 | Y111: 108 | Z111: 48 | AA111: 3 | AB111: 5 | AC111: 0 | AD111: 62 | AE111: 5.32 | AF111: 92 | AG111: 10.3 | AH111: 2.9 | AI111: 8.8 | AJ111: 3 | AK111: 1.75 | AL111: 0.287 | AM111: 1.39 | AN111: 2.29 | AO111: 0.11 | AP111: 44 | AQ111: 108 | AR111: 18 | AS111: 5 | AT111: 12.78 | AU111: 148 | AV111: 86 | AW111: -0.52 | AX111: LP | AY111: 72.4 | AZ111: 4.72 | BA111: 77 | BB111: 20 | BC111: LP | BD111: 67.9 | BE111: 4.8 | BF111: 87 | BG111: 18 | BH111: 81.5 | BI111: 6.92 | BJ111: 5.77 | BK111: 11 | BL111: -1.59 | BM111: 6 | BN111: R | BO111: -14 | BP111: matzst01 | BQ111: 571927 | BR111: Lefty Super Control Starter | BS111: Madison Bumgarner | BT111: Yusei Kikuchi | BU111: Jose Quintana | BV111: In prime. Priced in-line with expectations. Trade bait?
A112: Webb | B112: Tyler | C112: L | D112: 2021 | E112: 30 | F112: SLN | G112: NL | H112: LP | I112: 0.5 | J112: Y | K112: 51.3 | L112: 3 | M112: 46 | N112: 4 | O112: 0 | P112: 0 | Q112: 1 | R112: 9 | S112: 246 | T112: 8 | U112: 23 | V112: 2 | W112: 53 | X112: 175 | Y112: 45 | Z112: 41 | AA112: 2 | AB112: 2 | AC112: 0 | AD112: 25 | AE112: 4.6 | AF112: 38 | AG112: 6 | AH112: 2.3 | AI112: 8.4 | AJ112: 3.6 | AK112: 1.29 | AL112: 0.264 | AM112: 1.26 | AN112: 1.83 | AO112: 0.07 | AP112: 43 | AQ112: 94 | AR112: 18 | AS112: 3 | AT112: 5.02 | AU112: 149 | AV112: 87 | AW112: -0.13 | AX112: LP | AY112: 56 | AZ112: 4.39 | BA112: 72 | BB112: 22 | BC112: LP | BD112: 57.4 | BE112: 4.48 | BF112: 81 | BG112: 21 | BH112: 58.4 | BI112: 4.46 | BJ112: 4.06 | BK112: 29 | BL112: 0.15 | BM112: -11 | BN112: R | BO112: -1 | BP112: webbty01 | BQ112: 643778 | BR112: Lefty Control RP | BS112: Jarlin Garcia | BT112: Wandy Peralta | BU112: Tim Hill | BV112: In prime. Priced in-line with expectations. Trade bait?
A113: Watson | B113: Tony | C113: L | D113: 2021 | E113: 36 | F113: SFN | G113: NL | H113: LP | I113: 0.52 | J113: Y | K113: 41.5 | L113: 3 | M113: 43 | N113: 3 | O113: 0 | P113: 0 | Q113: 1 | R113: 6 | S113: 218 | T113: 7 | U113: 16 | V113: 1 | W113: 45 | X113: 155 | Y113: 42 | Z113: 41 | AA113: 1 | AB113: 3 | AC113: 0 | AD113: 22 | AE113: 4.52 | AF113: 33 | AG113: 5.7 | AH113: 2.7 | AI113: 7.8 | AJ113: 2.8 | AK113: 1.29 | AL113: 0.27 | AM113: 1.23 | AN113: 1.75 | AO113: 0.07 | AP113: 39 | AQ113: 92 | AR113: 18 | AS113: 3 | AT113: 4.17 | AU113: 150 | AV113: 88 | AW113: -0.03 | AX113: LP | AY113: 50.8 | AZ113: 4.42 | BA113: 72 | BB113: 20 | BC113: LP | BD113: 53.7 | BE113: 4.49 | BF113: 82 | BG113: 20 | BH113: 50.5 | BI113: 4.93 | BJ113: 4.17 | BK113: 25 | BL113: -0.4 | BM113: -7 | BN113: R | BO113: 3 | BP113: watsoto01 | BQ113: 453265 | BR113: Aging Lefty Super Control RP | BS113: Aaron Loup | BT113: Wei-Yin Chen | BU113: Adam Kolarek | BV113: Role player, not a keeper. Trade bait?
A114: Estevez | B114: Carlos | C114: R | D114: 2021 | E114: 28 | F114: COL | G114: NL | H114: LP | I114: 0.57 | J114: Y | K114: 61 | L114: 3 | M114: 55 | N114: 2 | O114: 0 | P114: 0 | Q114: 4 | R114: 14 | S114: 282 | T114: 11 | U114: 24 | V114: 1 | W114: 71 | X114: 194 | Y114: 58 | Z114: 43 | AA114: 2 | AB114: 3 | AC114: 0 | AD114: 33 | AE114: 4.73 | AF114: 46 | AG114: 6.4 | AH114: 3 | AI114: 9.7 | AJ114: 3.2 | AK114: 1.53 | AL114: 0.307 | AM114: 1.35 | AN114: 2.07 | AO114: 0.1 | AP114: 79 | AQ114: 96 | AR114: 17 | AS114: 2 | AT114: 7.13 | AU114: 153 | AV114: 90 | AW114: -0.27 | AX114: LP | AY114: 63.5 | AZ114: 4.32 | BA114: 70 | BB114: 25 | BC114: LP | BD114: 63.1 | BE114: 4.46 | BF114: 81 | BG114: 22 | BH114: 64.7 | BI114: 6.55 | BJ114: 4.69 | BK114: 19 | BL114: -1.81 | BM114: -2 | BN114: R | BO114: -2 | BP114: estevca01 | BQ114: 608032 | BR114: Righty Super Control Long Relief | BS114: A.J. Cole | BT114: Joe Jimenez | BU114: Cy Sneed | BV114: Priced in-line with expectations.
A115: Cahill | B115: Trevor | C115: R | D115: 2021 | E115: 33 | F115: SFN | G115: NL | H115: LP | I115: 0.63 | J115: Y | K115: 67.6 | L115: 4 | M115: 28 | N115: 9 | O115: 0 | P115: 0 | Q115: 0 | R115: 5 | S115: 281 | T115: 11 | U115: 27 | V115: 0 | W115: 59 | X115: 196 | Y115: 75 | Z115: 45 | AA115: 6 | AB115: 4 | AC115: 0 | AD115: 45 | AE115: 4.99 | AF115: 66 | AG115: 9.1 | AH115: 2.2 | AI115: 8.2 | AJ115: 3.7 | AK115: 1.46 | AL115: 0.276 | AM115: 1.4 | AN115: 2.04 | AO115: 0.08 | AP115: 30 | AQ115: 102 | AR115: 17 | AS115: 3 | AT115: 7.48 | AU115: 154 | AV115: 91 | AW115: -0.33 | AX115: LP | AY115: 62.2 | AZ115: 4.75 | BA115: 77 | BB115: 18 | BC115: LP | BD115: 60 | BE115: 4.66 | BF115: 85 | BG115: 18 | BH115: 66.3 | BI115: 4.64 | BJ115: 4.47 | BK115: 23 | BL115: 0.36 | BM115: -5 | BN115: R | BO115: -6 | BP115: cahiltr01 | BQ115: 502239 | BR115: Righty Swing Starter | BS115: Garrett Richards | BT115: Chris Mazza | BU115: Jake Arrieta | BV115: Role player, not a keeper. Trade bait?
A116: DeSclafani | B116: Anthony | C116: R | D116: 2021 | E116: 31 | F116: SFN | G116: NL | H116: LP | I116: 0.7 | J116: Y | K116: 85.7 | L116: 6 | M116: 21 | N116: 15 | O116: 0 | P116: 0 | Q116: 0 | R116: 2 | S116: 355 | T116: 14 | U116: 28 | V116: 2 | W116: 77 | X116: 248 | Y116: 108 | Z116: 49 | AA116: 3 | AB116: 4 | AC116: 0 | AD116: 60 | AE116: 5.42 | AF116: 92 | AG116: 10 | AH116: 2.7 | AI116: 8.3 | AJ116: 3 | AK116: 1.55 | AL116: 0.281 | AM116: 1.36 | AN116: 2.06 | AO116: 0.09 | AP116: 35 | AQ116: 110 | AR116: 17 | AS116: 3 | AT116: 13.42 | AU116: 155 | AV116: 92 | AW116: -0.8 | AX116: LP | AY116: 74.3 | AZ116: 4.52 | BA116: 74 | BB116: 23 | BC116: LP | BD116: 68.5 | BE116: 4.62 | BF116: 84 | BG116: 21 | BH116: 87 | BI116: 5.99 | BJ116: 5.14 | BK116: 17 | BL116: -0.56 | BM116: 0 | BN116: R | BO116: -18 | BP116: desclan01 | BQ116: 543101 | BR116: Righty Super Control Swing Starter | BS116: Jon Gray | BT116: Michael Wacha | BU116: Robert Anderson | BV116: In prime. Role player, not a keeper. Trade bait?
A117: Gomber | B117: Austin | C117: L | D117: 2021 | E117: 27 | F117: SLN | G117: NL | H117: LP | I117: 0.59 | J117: Y | K117: 67.8 | L117: 4 | M117: 29 | N117: 8 | O117: 0 | P117: 0 | Q117: 0 | R117: 4 | S117: 261 | T117: 7 | U117: 27 | V117: 1 | W117: 58 | X117: 183 | Y117: 59 | Z117: 44 | AA117: 3 | AB117: 4 | AC117: 0 | AD117: 29 | AE117: 4.83 | AF117: 56 | AG117: 8.4 | AH117: 2.2 | AI117: 8.8 | AJ117: 4 | AK117: 0.97 | AL117: 0.283 | AM117: 1.37 | AN117: 1.53 | AO117: 0.06 | AP117: 52 | AQ117: 98 | AR117: 17 | AS117: 3 | AT117: 6.24 | AU117: 156 | AV117: 93 | AW117: -0.47 | AX117: LP | AY117: 62 | AZ117: 4.25 | BA117: 69 | BB117: 26 | BC117: LP | BD117: 60.1 | BE117: 4.36 | BF117: 79 | BG117: 23 | BH117: 70.1 | BI117: 4 | BJ117: 3.89 | BK117: 37 | BL117: 0.83 | BM117: -20 | BN117: R | BO117: -10 | BP117: gombeau01 | BQ117: 596295 | BR117: Lefty Power Swing Starter | BS117: Ryan Borucki | BT117: Carlos Rodon | BU117: Sean Newcomb | BV117: Priced in-line with expectations.
A118: Peralta | B118: Wandy | C118: L | D118: 2021 | E118: 29 | F118: SFN | G118: NL | H118: LP | I118: 0.52 | J118: Y | K118: 56.4 | L118: 3 | M118: 53 | N118: 3 | O118: 0 | P118: 0 | Q118: 1 | R118: 13 | S118: 272 | T118: 10 | U118: 27 | V118: 2 | W118: 58 | X118: 187 | Y118: 54 | Z118: 43 | AA118: 1 | AB118: 3 | AC118: 1 | AD118: 31 | AE118: 4.74 | AF118: 47 | AG118: 6.7 | AH118: 2.1 | AI118: 8.3 | AJ118: 3.9 | AK118: 1.38 | AL118: 0.283 | AM118: 1.39 | AN118: 1.97 | AO118: 0.08 | AP118: 35 | AQ118: 96 | AR118: 17 | AS118: 2 | AT118: 4.42 | AU118: 157 | AV118: 94 | AW118: -0.13 | AX118: LP | AY118: 60.1 | AZ118: 4.63 | BA118: 75 | BB118: 19 | BC118: LP | BD118: 60.2 | BE118: 4.6 | BF118: 84 | BG118: 19 | BH118: 68.9 | BI118: 4.43 | BJ118: 4.31 | BK118: 26 | BL118: 0.3 | BM118: -9 | BN118: R | BO118: -9 | BP118: peralwa01 | BQ118: 593974 | BR118: Lefty Long Relief | BS118: Tyler Webb | BT118: Jarlin Garcia | BU118: Kyle Ryan | BV118: Approaching his prime years. Priced in-line with expectations. Trade bait?
A119: Cabrera | B119: Genesis | C119: L | D119: 2021 | E119: 25 | F119: SLN | G119: NL | H119: LP | I119: 0.47 | J119: Y | K119: 61.6 | L119: 3 | M119: 34 | N119: 5 | O119: 0 | P119: 0 | Q119: 1 | R119: 5 | S119: 263 | T119: 9 | U119: 31 | V119: 0 | W119: 67 | X119: 180 | Y119: 48 | Z119: 43 | AA119: 4 | AB119: 5 | AC119: 0 | AD119: 31 | AE119: 4.73 | AF119: 46 | AG119: 7 | AH119: 2.2 | AI119: 10.2 | AJ119: 4.7 | AK119: 1.4 | AL119: 0.285 | AM119: 1.4 | AN119: 2.07 | AO119: 0.09 | AP119: 77 | AQ119: 96 | AR119: 17 | AS119: 3 | AT119: 4.84 | AU119: 158 | AV119: 95 | AW119: -0.1 | AX119: LP | AY119: 61.1 | AZ119: 4.6 | BA119: 75 | BB119: 19 | BC119: LP | BD119: 60.8 | BE119: 4.63 | BF119: 84 | BG119: 19 | BH119: 60.1 | BI119: 4.57 | BJ119: 4.67 | BK119: 18 | BL119: 0.15 | BM119: -2 | BN119: R | BO119: 1 | BP119: cabrege01 | BQ119: 650893 | BR119: Young Lefty Power Long Relief | BS119: Tanner Scott | BT119: Jace Fry | BU119: Darwinzon Hernandez | BV119: Priced in-line with expectations.
A120: Harper | B120: Ryne | C120: R | D120: 2021 | E120: 32 | F120: WAS | G120: NL | H120: LP | I120: 0.54 | J120: Y | K120: 51.5 | L120: 3 | M120: 46 | N120: 4 | O120: 0 | P120: 0 | Q120: 0 | R120: 11 | S120: 255 | T120: 9 | U120: 20 | V120: 2 | W120: 56 | X120: 176 | Y120: 54 | Z120: 42 | AA120: 3 | AB120: 2 | AC120: 0 | AD120: 31 | AE120: 4.72 | AF120: 39 | AG120: 6 | AH120: 2.7 | AI120: 8.4 | AJ120: 3.1 | AK120: 1.43 | AL120: 0.295 | AM120: 1.34 | AN120: 1.93 | AO120: 0.08 | AP120: 47 | AQ120: 96 | AR120: 17 | AS120: 2 | AT120: 4.34 | AU120: 159 | AV120: 96 | AW120: -0.26 | AX120: LP | AY120: 58.2 | AZ120: 4.34 | BA120: 71 | BB120: 23 | BC120: LP | BD120: 59.2 | BE120: 4.45 | BF120: 81 | BG120: 21 | BH120: 61.4 | BI120: 6.62 | BJ120: 4.38 | BK120: 23 | BL120: -1.9 | BM120: -7 | BN120: R | BO120: -2 | BP120: harpery01 | BQ120: 607560 | BR120: Righty Super Control RP | BS120: Chris Martin | BT120: Tyler Clippard | BU120: Craig Stammen | BV120: Role player, not a keeper. Trade bait?
A121: Miley | B121: Wade | C121: L | D121: 2021 | E121: 34 | F121: CIN | G121: NL | H121: LP | I121: 0.67 | J121: Y | K121: 83.4 | L121: 5 | M121: 19 | N121: 13 | O121: 0 | P121: 0 | Q121: 0 | R121: 2 | S121: 297 | T121: 9 | U121: 27 | V121: 0 | W121: 57 | X121: 207 | Y121: 89 | Z121: 47 | AA121: 2 | AB121: 4 | AC121: 1 | AD121: 46 | AE121: 5.26 | AF121: 82 | AG121: 10.7 | AH121: 2.1 | AI121: 7.4 | AJ121: 3.5 | AK121: 1.13 | AL121: 0.271 | AM121: 1.36 | AN121: 1.64 | AO121: 0.06 | AP121: 21 | AQ121: 107 | AR121: 17 | AS121: 5 | AT121: 10.55 | AU121: 160 | AV121: 97 | AW121: -0.71 | AX121: LP | AY121: 66.7 | AZ121: 4.45 | BA121: 73 | BB121: 23 | BC121: LP | BD121: 61.6 | BE121: 4.56 | BF121: 83 | BG121: 20 | BH121: 62.6 | BI121: 5.73 | BJ121: 4.65 | BK121: 19 | BL121: -0.47 | BM121: -3 | BN121: R | BO121: -1 | BP121: mileywa01 | BQ121: 489119 | BR121: Aging Lefty Control Swing Starter | BS121: Gio Gonzalez | BT121: Brett Anderson | BU121: Cole Hamels | BV121: Role player, not a keeper. Trade bait?
A122: Garcia | B122: Jarlin | C122: L | D122: 2021 | E122: 28 | F122: SFN | G122: NL | H122: LP | I122: 0.52 | J122: Y | K122: 52.2 | L122: 3 | M122: 38 | N122: 4 | O122: 0 | P122: 0 | Q122: 0 | R122: 7 | S122: 237 | T122: 7 | U122: 21 | V122: 2 | W122: 49 | X122: 169 | Y122: 45 | Z122: 42 | AA122: 2 | AB122: 3 | AC122: 1 | AD122: 25 | AE122: 4.67 | AF122: 38 | AG122: 6.2 | AH122: 2.3 | AI122: 7.9 | AJ122: 3.5 | AK122: 1.19 | AL122: 0.266 | AM122: 1.27 | AN122: 1.71 | AO122: 0.07 | AP122: 35 | AQ122: 95 | AR122: 17 | AS122: 2 | AT122: 4.14 | AU122: 161 | AV122: 98 | AW122: -0.25 | AX122: LP | AY122: 55.6 | AZ122: 4.29 | BA122: 70 | BB122: 23 | BC122: LP | BD122: 57.1 | BE122: 4.42 | BF122: 80 | BG122: 21 | BH122: 52.8 | BI122: 4.47 | BJ122: 3.79 | BK122: 35 | BL122: 0.2 | BM122: -19 | BN122: R | BO122: 4 | BP122: garcija04 | BQ122: 606424 | BR122: Lefty Control RP | BS122: Alex Claudio | BT122: Tyler Webb | BU122: Wandy Peralta | BV122: Priced in-line with expectations.
A123: Bleier | B123: Richard | C123: L | D123: 2021 | E123: 34 | F123: MIA | G123: NL | H123: LP | I123: 0.49 | J123: Y | K123: 43.1 | L123: 3 | M123: 41 | N123: 3 | O123: 0 | P123: 0 | Q123: 1 | R123: 7 | S123: 219 | T123: 6 | U123: 16 | V123: 2 | W123: 39 | X123: 154 | Y123: 46 | Z123: 42 | AA123: 2 | AB123: 2 | AC123: 0 | AD123: 24 | AE123: 4.61 | AF123: 34 | AG123: 5.9 | AH123: 2.5 | AI123: 6.9 | AJ123: 2.8 | AK123: 1.04 | AL123: 0.287 | AM123: 1.3 | AN123: 1.47 | AO123: 0.05 | AP123: 24 | AQ123: 94 | AR123: 16 | AS123: 2 | AT123: 2.98 | AU123: 162 | AV123: 99 | AW123: -0.24 | AX123: LP | AY123: 51.5 | AZ123: 4.23 | BA123: 69 | BB123: 24 | BC123: LP | BD123: 54.3 | BE123: 4.37 | BF123: 79 | BG123: 22 | BH123: 48.1 | BI123: 5.22 | BJ123: 3.52 | BK123: 44 | BL123: -0.61 | BM123: -27 | BN123: R | BO123: 6 | BP123: bleieri01 | BQ123: 542947 | BR123: Aging Lefty Super Control RP | BS123: Adam Kolarek | BT123: Tony Watson | BU123: T.J. McFarland | BV123: Role player, not a keeper. Trade bait?
A124: Graterol | B124: Brusdar | C124: R | D124: 2021 | E124: 22 | F124: LAN | G124: NL | H124: LP | I124: 0.45 | J124: Y | K124: 69.6 | L124: 3 | M124: 40 | N124: 6 | O124: 0 | P124: 0 | Q124: 0 | R124: 7 | S124: 265 | T124: 8 | U124: 22 | V124: 1 | W124: 58 | X124: 189 | Y124: 54 | Z124: 43 | AA124: 3 | AB124: 4 | AC124: 0 | AD124: 31 | AE124: 4.77 | AF124: 40 | AG124: 5.9 | AH124: 2.7 | AI124: 8.6 | AJ124: 3.2 | AK124: 1.23 | AL124: 0.288 | AM124: 1.3 | AN124: 1.72 | AO124: 0.07 | AP124: 53 | AQ124: 97 | AR124: 16 | AS124: 2 | AT124: 5.27 | AU124: 163 | AV124: 100 | AW124: -0.41 | AX124: LP | AY124: 64.3 | AZ124: 4.27 | BA124: 70 | BB124: 26 | BC124: LP | BD124: 63.2 | BE124: 4.36 | BF124: 79 | BG124: 24 | BH124: 63 | BI124: 4.92 | BJ124: 3.83 | BK124: 37 | BL124: -0.15 | BM124: -20 | BN124: R | BO124: 0 | BP124: gratebr01 | BQ124: 660813 | BR124: Young Super Control Long Relief | BS124: Deivi Garcia | BT124: Dustin May | BU124: Jose Urquidy | BV124: Priced in-line with expectations.
A125: Hoyt | B125: James | C125: R | D125: 2021 | E125: 34 | F125: MIA | G125: NL | H125: LP | I125: 0.32 | J125: Y | K125: 35.5 | L125: 2 | M125: 35 | N125: 3 | O125: 0 | P125: 0 | Q125: 0 | R125: 7 | S125: 188 | T125: 7 | U125: 20 | V125: 1 | W125: 42 | X125: 130 | Y125: 35 | Z125: 40 | AA125: 2 | AB125: 2 | AC125: 1 | AD125: 20 | AE125: 4.49 | AF125: 30 | AG125: 6.2 | AH125: 2.1 | AI125: 8.9 | AJ125: 4.2 | AK125: 1.38 | AL125: 0.281 | AM125: 1.38 | AN125: 1.99 | AO125: 0.08 | AP125: 48 | AQ125: 91 | AR125: 16 | AS125: 3 | AT125: 1.29 | AU125: 164 | AV125: 101 | AW125: 0.12 | AX125: JP | AY125: 75.9 | AZ125: 4.59 | BA125: 75 | BB125: 22 | BC125: LP | BD125: 68.2 | BE125: 4.6 | BF125: 84 | BG125: 21 | BH125: 40.5 | BI125: 5.48 | BJ125: 3.98 | BK125: 26 | BL125: -1 | BM125: -10 | BN125: R | BO125: 28 | BP125: hoytja01 | BQ125: 624586 | BR125: Aging Power RP | BS125: Darren O'Day | BT125: Chaz Roe | BU125: David Hernandez | BV125: Role player, not a keeper. Trade bait?
A126: Ramirez | B126: Noe | C126: R | D126: 2021 | E126: 31 | F126: CIN | G126: NL | H126: LP | I126: 0.57 | J126: Y | K126: 53.2 | L126: 3 | M126: 42 | N126: 5 | O126: 0 | P126: 0 | Q126: 0 | R126: 7 | S126: 259 | T126: 9 | U126: 23 | V126: 2 | W126: 60 | X126: 183 | Y126: 49 | Z126: 43 | AA126: 2 | AB126: 3 | AC126: 0 | AD126: 27 | AE126: 4.74 | AF126: 40 | AG126: 5.9 | AH126: 2.6 | AI126: 8.8 | AJ126: 3.4 | AK126: 1.3 | AL126: 0.278 | AM126: 1.27 | AN126: 1.81 | AO126: 0.08 | AP126: 56 | AQ126: 96 | AR126: 16 | AS126: 2 | AT126: 5.48 | AU126: 158 | AV126: 91 | AW126: -0.34 | AX126: LP | AY126: 59.6 | AZ126: 4.26 | BA126: 69 | BB126: 25 | BC126: LP | BD126: 61.6 | BE126: 4.4 | BF126: 80 | BG126: 23 | BH126: 58.8 | BI126: 5.12 | BJ126: 4.22 | BK126: 26 | BL126: -0.38 | BM126: -9 | BN126: R | BO126: 3 | BP126: ramirno01 | BQ126: 598287 | BR126: Righty Power Long Relief | BS126: Felix Pena | BT126: Shawn Armstrong | BU126: Buck Farmer | BV126: In prime. Role player, not a keeper. Trade bait?
A127: Harris | B127: Will | C127: R | D127: 2021 | E127: 36 | F127: WAS | G127: NL | H127: LP | I127: 0.52 | J127: Y | K127: 41.8 | L127: 3 | M127: 43 | N127: 3 | O127: 0 | P127: 0 | Q127: 1 | R127: 7 | S127: 219 | T127: 7 | U127: 19 | V127: 1 | W127: 49 | X127: 155 | Y127: 42 | Z127: 42 | AA127: 2 | AB127: 1 | AC127: 0 | AD127: 21 | AE127: 4.62 | AF127: 37 | AG127: 6.3 | AH127: 2.6 | AI127: 8.6 | AJ127: 3.3 | AK127: 1.19 | AL127: 0.281 | AM127: 1.27 | AN127: 1.69 | AO127: 0.07 | AP127: 54 | AQ127: 94 | AR127: 16 | AS127: 2 | AT127: 4.13 | AU127: 165 | AV127: 102 | AW127: -0.25 | AX127: LP | AY127: 51.3 | AZ127: 4.2 | BA127: 68 | BB127: 24 | BC127: LP | BD127: 54.3 | BE127: 4.37 | BF127: 79 | BG127: 22 | BH127: 49.6 | BI127: 5.66 | BJ127: 4.16 | BK127: 24 | BL127: -1.04 | BM127: -8 | BN127: R | BO127: 5 | BP127: harriwi02 | BQ127: 501789 | BR127: Aging Super Control RP | BS127: Tommy Hunter | BT127: Pedro Baez | BU127: Tyler Clippard | BV127: Role player, not a keeper. Trade bait?
A128: Wood | B128: Alex | C128: L | D128: 2021 | E128: 30 | F128: SFN | G128: NL | H128: LP | I128: 0.56 | J128: Y | K128: 67.2 | L128: 4 | M128: 22 | N128: 8 | O128: 0 | P128: 0 | Q128: 0 | R128: 3 | S128: 235 | T128: 9 | U128: 19 | V128: 1 | W128: 50 | X128: 161 | Y128: 69 | Z128: 45 | AA128: 2 | AB128: 4 | AC128: 0 | AD128: 39 | AE128: 4.96 | AF128: 59 | AG128: 9.7 | AH128: 2.6 | AI128: 8.3 | AJ128: 3.2 | AK128: 1.42 | AL128: 0.281 | AM128: 1.37 | AN128: 1.93 | AO128: 0.08 | AP128: 40 | AQ128: 101 | AR128: 16 | AS128: 3 | AT128: 6.27 | AU128: 166 | AV128: 103 | AW128: -0.32 | AX128: LP | AY128: 59.5 | AZ128: 4.68 | BA128: 76 | BB128: 18 | BC128: LP | BD128: 57.9 | BE128: 4.63 | BF128: 84 | BG128: 18 | BH128: 53 | BI128: 6.24 | BJ128: 4.62 | BK128: 18 | BL128: -1.28 | BM128: -1 | BN128: R | BO128: 5 | BP128: woodal02 | BQ128: 622072 | BR128: Lefty Super Control Swing Starter | BS128: Mike Montgomery | BT128: Robbie Erlin | BU128: Andrew Suarez | BV128: In prime. Priced in-line with expectations. Trade bait?
A129: Hale | B129: David | C129: R | D129: 2021 | E129: 33 | F129: PHI | G129: NL | H129: LP | I129: 0.44 | J129: Y | K129: 44.9 | L129: 3 | M129: 33 | N129: 3 | O129: 0 | P129: 0 | Q129: 1 | R129: 9 | S129: 218 | T129: 7 | U129: 19 | V129: 1 | W129: 43 | X129: 150 | Y129: 49 | Z129: 42 | AA129: 2 | AB129: 2 | AC129: 0 | AD129: 24 | AE129: 4.66 | AF129: 40 | AG129: 7.1 | AH129: 2.3 | AI129: 7.6 | AJ129: 3.3 | AK129: 1.25 | AL129: 0.295 | AM129: 1.4 | AN129: 1.75 | AO129: 0.07 | AP129: 29 | AQ129: 95 | AR129: 16 | AS129: 2 | AT129: 2.65 | AU129: 167 | AV129: 104 | AW129: -0.2 | AX129: LP | AY129: 52.4 | AZ129: 4.34 | BA129: 71 | BB129: 22 | BC129: LP | BD129: 54.9 | BE129: 4.46 | BF129: 81 | BG129: 20 | BH129: 47.9 | BI129: 5.82 | BJ129: 4.09 | BK129: 26 | BL129: -1.16 | BM129: -9 | BN129: R | BO129: 7 | BP129: haleda02 | BQ129: 571735 | BR129: Righty Control RP | BS129: Javy Guerra | BT129: Jesse Chavez | BU129: Brandon Kintzler | BV129: Role player, not a keeper. Trade bait?
A130: Adam | B130: Jason | C130: R | D130: 2021 | E130: 29 | F130: CHN | G130: NL | H130: LP | I130: 0.4 | J130: Y | K130: 41 | L130: 2 | M130: 38 | N130: 2 | O130: 0 | P130: 0 | Q130: 0 | R130: 9 | S130: 203 | T130: 7 | U130: 21 | V130: 1 | W130: 48 | X130: 139 | Y130: 38 | Z130: 41 | AA130: 2 | AB130: 3 | AC130: 1 | AD130: 23 | AE130: 4.55 | AF130: 31 | AG130: 6 | AH130: 2.3 | AI130: 9.4 | AJ130: 4.1 | AK130: 1.43 | AL130: 0.289 | AM130: 1.38 | AN130: 2.04 | AO130: 0.09 | AP130: 61 | AQ130: 93 | AR130: 16 | AS130: 2 | AT130: 1.77 | AU130: 168 | AV130: 105 | AW130: -0.02 | AX130: LP | AY130: 50 | AZ130: 4.48 | BA130: 73 | BB130: 19 | BC130: LP | BD130: 53.8 | BE130: 4.53 | BF130: 82 | BG130: 19 | BH130: 40.5 | BI130: 6.42 | BJ130: 4.27 | BK130: 20 | BL130: -1.87 | BM130: -4 | BN130: R | BO130: 13 | BP130: adamja01 | BQ130: 592094 | BR130: Righty Power RP | BS130: Matt Barnes | BT130: Trey Wingenter | BU130: Jordan Weems | BV130: Approaching his prime years. Priced in-line with expectations. Trade bait?
A131: Kuhl | B131: Chad | C131: R | D131: 2021 | E131: 28 | F131: PIT | G131: NL | H131: LP | I131: 0.66 | J131: Y | K131: 78.3 | L131: 5 | M131: 26 | N131: 12 | O131: 0 | P131: 0 | Q131: 0 | R131: 3 | S131: 328 | T131: 13 | U131: 36 | V131: 1 | W131: 74 | X131: 228 | Y131: 95 | Z131: 49 | AA131: 4 | AB131: 5 | AC131: 0 | AD131: 59 | AE131: 5.41 | AF131: 93 | AG131: 11.1 | AH131: 2 | AI131: 8.9 | AJ131: 4.4 | AK131: 1.5 | AL131: 0.275 | AM131: 1.46 | AN131: 2.15 | AO131: 0.09 | AP131: 33 | AQ131: 110 | AR131: 16 | AS131: 1 | AT131: 10.73 | AU131: 169 | AV131: 106 | AW131: -0.62 | AX131: LP | AY131: 70.7 | AZ131: 4.83 | BA131: 79 | BB131: 18 | BC131: LP | BD131: 65.8 | BE131: 4.8 | BF131: 87 | BG131: 18 | BH131: 101.7 | BI131: 4.45 | BJ131: 5.23 | BK131: 18 | BL131: 0.96 | BM131: -2 | BN131: R | BO131: -36 | BP131: kuhlch01 | BQ131: 641771 | BR131: Righty Power Swing Starter | BS131: Julio Teheran | BT131: Justin Dunn | BU131: Chi Chi Gonzalez | BV131: Priced in-line with expectations.
A132: Alzolay | B132: Adbert | C132: R | D132: 2021 | E132: 26 | F132: CHN | G132: NL | H132: LP | I132: 0.44 | J132: Y | K132: 68.4 | L132: 3 | M132: 24 | N132: 8 | O132: 0 | P132: 0 | Q132: 0 | R132: 4 | S132: 244 | T132: 8 | U132: 28 | V132: 0 | W132: 62 | X132: 169 | Y132: 62 | Z132: 44 | AA132: 3 | AB132: 4 | AC132: 0 | AD132: 38 | AE132: 4.9 | AF132: 57 | AG132: 9.1 | AH132: 2.3 | AI132: 10.1 | AJ132: 4.4 | AK132: 1.34 | AL132: 0.3 | AM132: 1.49 | AN132: 1.99 | AO132: 0.09 | AP132: 76 | AQ132: 100 | AR132: 16 | AS132: 3 | AT132: 4.97 | AU132: 170 | AV132: 107 | AW132: -0.46 | AX132: LP | AY132: 60.5 | AZ132: 4.41 | BA132: 72 | BB132: 22 | BC132: LP | BD132: 59 | BE132: 4.44 | BF132: 81 | BG132: 22 | BH132: 57 | BI132: 5.08 | BJ132: 3.75 | BK132: 38 | BL132: -0.18 | BM132: -22 | BN132: R | BO132: 2 | BP132: alzolad01 | BQ132: 640470 | BR132: Righty Power Swing Starter | BS132: Tanner Houck | BT132: Dean Kremer | BU132: Tejay Antone | BV132: Priced in-line with expectations.
A133: Wilson | B133: Bryse | C133: R | D133: 2021 | E133: 23 | F133: ATL | G133: NL | H133: LP | I133: 0.39 | J133: Y | K133: 69.3 | L133: 3 | M133: 24 | N133: 7 | O133: 0 | P133: 0 | Q133: 1 | R133: 5 | S133: 246 | T133: 9 | U133: 26 | V133: 1 | W133: 55 | X133: 166 | Y133: 64 | Z133: 44 | AA133: 2 | AB133: 3 | AC133: 0 | AD133: 37 | AE133: 4.84 | AF133: 55 | AG133: 9 | AH133: 2.1 | AI133: 9.1 | AJ133: 4.3 | AK133: 1.53 | AL133: 0.312 | AM133: 1.57 | AN133: 2.18 | AO133: 0.09 | AP133: 45 | AQ133: 98 | AR133: 16 | AS133: 3 | AT133: 3.02 | AU133: 171 | AV133: 108 | AW133: -0.19 | AX133: LP | AY133: 61.6 | AZ133: 4.66 | BA133: 76 | BB133: 19 | BC133: LP | BD133: 60.9 | BE133: 4.65 | BF133: 84 | BG133: 19 | BH133: 48.4 | BI133: 6.22 | BJ133: 4.65 | BK133: 16 | BL133: -1.38 | BM133: 0 | BN133: R | BO133: 12 | BP133: wilsobr02 | BQ133: 669060 | BR133: Young Power Swing Starter | BS133: Michel Baez | BT133: Luis Patino | BU133: Pedro Avila | BV133: Priced in-line with expectations.
A134: Baragar | B134: Caleb | C134: L | D134: 2021 | E134: 27 | F134: SFN | G134: NL | H134: LP | I134: 0.54 | J134: Y | K134: 51.7 | L134: 3 | M134: 39 | N134: 5 | O134: 0 | P134: 0 | Q134: 0 | R134: 5 | S134: 227 | T134: 8 | U134: 18 | V134: 0 | W134: 52 | X134: 164 | Y134: 43 | Z134: 42 | AA134: 2 | AB134: 2 | AC134: 0 | AD134: 25 | AE134: 4.69 | AF134: 29 | AG134: 5 | AH134: 2.8 | AI134: 8.7 | AJ134: 3.1 | AK134: 1.37 | AL134: 0.269 | AM134: 1.22 | AN134: 1.86 | AO134: 0.08 | AP134: 57 | AQ134: 95 | AR134: 16 | AS134: 2 | AT134: 4.42 | AU134: 172 | AV134: 109 | AW134: -0.23 | AX134: LP | AY134: 55.9 | AZ134: 4.37 | BA134: 71 | BB134: 22 | BC134: LP | BD134: 57.1 | BE134: 4.46 | BF134: 81 | BG134: 21 | BH134: 57.6 | BI134: 5.3 | BJ134: 4.11 | BK134: 28 | BL134: -0.61 | BM134: -12 | BN134: R | BO134: 0 | BP134: baragca01 | BQ134: 670056 | BR134: Lefty Super Control RP | BS134: Wes Benjamin | BT134: Devin Smeltzer | BU134: Matt Strahm | BV134: Priced in-line with expectations.
A135: Jones | B135: Nathan | C135: R | D135: 2021 | E135: 35 | F135: CIN | G135: NL | H135: LP | I135: 0.4 | J135: Y | K135: 39.1 | L135: 2 | M135: 38 | N135: 3 | O135: 0 | P135: 0 | Q135: 1 | R135: 11 | S135: 208 | T135: 8 | U135: 21 | V135: 2 | W135: 45 | X135: 141 | Y135: 44 | Z135: 41 | AA135: 3 | AB135: 3 | AC135: 0 | AD135: 24 | AE135: 4.6 | AF135: 35 | AG135: 6.7 | AH135: 2.2 | AI135: 8.5 | AJ135: 3.9 | AK135: 1.57 | AL135: 0.296 | AM135: 1.45 | AN135: 2.17 | AO135: 0.09 | AP135: 38 | AQ135: 93 | AR135: 16 | AS135: 2 | AT135: 1.64 | AU135: 173 | AV135: 110 | AW135: 0.14 | AX135: JP | AY135: 78.8 | AZ135: 4.77 | BA135: 78 | BB135: 20 | BC135: LP | BD135: 70.2 | BE135: 4.74 | BF135: 86 | BG135: 19 | BH135: 48.7 | BI135: 6.94 | BJ135: 4.77 | BK135: 15 | BL135: -2.35 | BM135: 1 | BN135: R | BO135: 22 | BP135: jonesna01 | BQ135: 518858 | BR135: Aging RP | BS135: Tony Barnette | BT135: Fernando Salas | BU135: Matt Albers | BV135: Role player, not a keeper. Trade bait?
A136: Holland | B136: Derek | C136: L | D136: 2021 | E136: 34 | F136: PIT | G136: NL | H136: LP | I136: 0.67 | J136: Y | K136: 72.9 | L136: 4 | M136: 34 | N136: 10 | O136: 0 | P136: 0 | Q136: 0 | R136: 8 | S136: 330 | T136: 14 | U136: 32 | V136: 2 | W136: 72 | X136: 228 | Y136: 81 | Z136: 47 | AA136: 3 | AB136: 4 | AC136: 1 | AD136: 51 | AE136: 5.22 | AF136: 71 | AG136: 8.4 | AH136: 2.2 | AI136: 8.5 | AJ136: 3.8 | AK136: 1.68 | AL136: 0.276 | AM136: 1.41 | AN136: 2.29 | AO136: 0.1 | AP136: 30 | AQ136: 106 | AR136: 16 | AS136: 1 | AT136: 8.5 | AU136: 178 | AV136: 115 | AW136: -0.32 | AX136: LP | AY136: 68.9 | AZ136: 4.99 | BA136: 81 | BB136: 16 | BC136: LP | BD136: 64.7 | BE136: 4.9 | BF136: 89 | BG136: 16 | BH136: 93.3 | BI136: 5.66 | BJ136: 5.39 | BK136: 16 | BL136: -0.44 | BM136: 0 | BN136: R | BO136: -29 | BP136: hollade01 | BQ136: 502706 | BR136: Aging Lefty Starter | BS136: Ross Detwiler | BT136: Mike Montgomery | BU136: Wade LeBlanc | BV136: Role player, not a keeper. Trade bait?
A137: Baez | B137: Michel | C137: R | D137: 2021 | E137: 24 | F137: SDN | G137: NL | H137: LP | I137: 0.42 | J137: Y | K137: 58.2 | L137: 3 | M137: 27 | N137: 6 | O137: 0 | P137: 0 | Q137: 0 | R137: 6 | S137: 231 | T137: 8 | U137: 24 | V137: 1 | W137: 53 | X137: 154 | Y137: 48 | Z137: 43 | AA137: 2 | AB137: 3 | AC137: 1 | AD137: 28 | AE137: 4.74 | AF137: 42 | AG137: 7.3 | AH137: 2.2 | AI137: 9.3 | AJ137: 4.1 | AK137: 1.43 | AL137: 0.289 | AM137: 1.42 | AN137: 2.05 | AO137: 0.09 | AP137: 56 | AQ137: 96 | AR137: 16 | AS137: 3 | AT137: 3.12 | AU137: 179 | AV137: 116 | AW137: -0.2 | AX137: LP | AY137: 57.8 | AZ137: 4.5 | BA137: 73 | BB137: 20 | BC137: LP | BD137: 59.2 | BE137: 4.54 | BF137: 82 | BG137: 20 | BH137: 41 | BI137: 6.27 | BJ137: 4.35 | BK137: 19 | BL137: -1.54 | BM137: -3 | BN137: R | BO137: 18 | BP137: baezmi01 | BQ137: 673258 | BR137: Young Power Swing Starter | BS137: Bryse Wilson | BT137: Luis Patino | BU137: Dennis Santana | BV137: Priced in-line with expectations.
A138: Howard | B138: Sam | C138: L | D138: 2021 | E138: 28 | F138: PIT | G138: NL | H138: LP | I138: 0.41 | J138: Y | K138: 51.1 | L138: 3 | M138: 40 | N138: 4 | O138: 0 | P138: 0 | Q138: 0 | R138: 8 | S138: 241 | T138: 10 | U138: 24 | V138: 1 | W138: 58 | X138: 164 | Y138: 48 | Z138: 43 | AA138: 2 | AB138: 4 | AC138: 0 | AD138: 29 | AE138: 4.73 | AF138: 39 | AG138: 6.3 | AH138: 2.4 | AI138: 9.6 | AJ138: 4 | AK138: 1.61 | AL138: 0.295 | AM138: 1.4 | AN138: 2.23 | AO138: 0.1 | AP138: 63 | AQ138: 96 | AR138: 16 | AS138: 2 | AT138: 3.22 | AU138: 180 | AV138: 117 | AW138: -0.05 | AX138: LP | AY138: 56.3 | AZ138: 4.69 | BA138: 76 | BB138: 17 | BC138: LP | BD138: 57.7 | BE138: 4.68 | BF138: 85 | BG138: 18 | BH138: 55.6 | BI138: 5.43 | BJ138: 4.67 | BK138: 17 | BL138: -0.7 | BM138: -2 | BN138: R | BO138: 2 | BP138: howarsa01 | BQ138: 607572 | BR138: Lefty Power RP | BS138: Josh Taylor | BT138: Jeffrey Springs | BU138: Paul Fry | BV138: Priced in-line with expectations.
A139: Osich | B139: Josh | C139: L | D139: 2021 | E139: 32 | F139: CHN | G139: NL | H139: LP | I139: 0.5 | J139: Y | K139: 48.7 | L139: 3 | M139: 39 | N139: 4 | O139: 0 | P139: 0 | Q139: 0 | R139: 8 | S139: 240 | T139: 11 | U139: 19 | V139: 1 | W139: 54 | X139: 167 | Y139: 50 | Z139: 43 | AA139: 2 | AB139: 2 | AC139: 0 | AD139: 31 | AE139: 4.75 | AF139: 36 | AG139: 5.8 | AH139: 2.8 | AI139: 8.7 | AJ139: 3.1 | AK139: 1.79 | AL139: 0.283 | AM139: 1.33 | AN139: 2.33 | AO139: 0.11 | AP139: 45 | AQ139: 97 | AR139: 16 | AS139: 2 | AT139: 3.75 | AU139: 181 | AV139: 118 | AW139: -0.03 | AX139: LP | AY139: 54.9 | AZ139: 4.71 | BA139: 77 | BB139: 17 | BC139: LP | BD139: 56.9 | BE139: 4.73 | BF139: 86 | BG139: 17 | BH139: 52.3 | BI139: 6.57 | BJ139: 5.07 | BK139: 13 | BL139: -1.82 | BM139: 3 | BN139: R | BO139: 5 | BP139: osichjo01 | BQ139: 592612 | BR139: Lefty Super Control RP | BS139: Jake McGee | BT139: Aaron Loup | BU139: Brent Suter | BV139: Role player, not a keeper. Trade bait?
A140: Familia | B140: Jeurys | C140: R | D140: 2021 | E140: 31 | F140: NYN | G140: NL | H140: LP | I140: 0.57 | J140: Y | K140: 55.6 | L140: 3 | M140: 53 | N140: 3 | O140: 0 | P140: 0 | Q140: 4 | R140: 14 | S140: 275 | T140: 7 | U140: 32 | V140: 2 | W140: 63 | X140: 189 | Y140: 51 | Z140: 44 | AA140: 2 | AB140: 3 | AC140: 0 | AD140: 29 | AE140: 4.85 | AF140: 50 | AG140: 7.1 | AH140: 1.9 | AI140: 8.9 | AJ140: 4.6 | AK140: 1.02 | AL140: 0.288 | AM140: 1.4 | AN140: 1.64 | AO140: 0.06 | AP140: 46 | AQ140: 99 | AR140: 16 | AS140: 1 | AT140: 5.6 | AU140: 182 | AV140: 119 | AW140: -0.42 | AX140: LP | AY140: 60.1 | AZ140: 4.38 | BA140: 71 | BB140: 23 | BC140: LP | BD140: 60.2 | BE140: 4.43 | BF140: 80 | BG140: 22 | BH140: 68.2 | BI140: 4.86 | BJ140: 4.3 | BK140: 26 | BL140: 0 | BM140: -10 | BN140: R | BO140: -8 | BP140: familje01 | BQ140: 544727 | BR140: Righty Power Long Relief | BS140: Phillips Valdez | BT140: Kyle Zimmer | BU140: Brad Brach | BV140: In prime. Role player, not a keeper. Trade bait?
A141: Ginkel | B141: Kevin | C141: R | D141: 2021 | E141: 26 | F141: ARI | G141: NL | H141: LP | I141: 0.43 | J141: Y | K141: 51.6 | L141: 2 | M141: 40 | N141: 3 | O141: 0 | P141: 0 | Q141: 2 | R141: 7 | S141: 232 | T141: 8 | U141: 26 | V141: 2 | W141: 56 | X141: 158 | Y141: 45 | Z141: 42 | AA141: 4 | AB141: 2 | AC141: 0 | AD141: 27 | AE141: 4.71 | AF141: 40 | AG141: 6.8 | AH141: 2.2 | AI141: 9.6 | AJ141: 4.4 | AK141: 1.41 | AL141: 0.302 | AM141: 1.45 | AN141: 2.06 | AO141: 0.09 | AP141: 60 | AQ141: 96 | AR141: 16 | AS141: 2 | AT141: 2.69 | AU141: 183 | AV141: 120 | AW141: -0.17 | AX141: LP | AY141: 56.3 | AZ141: 4.46 | BA141: 73 | BB141: 21 | BC141: LP | BD141: 58.3 | BE141: 4.54 | BF141: 82 | BG141: 20 | BH141: 47.7 | BI141: 7.25 | BJ141: 4.67 | BK141: 16 | BL141: -2.55 | BM141: 0 | BN141: R | BO141: 11 | BP141: ginkeke01 | BQ141: 656464 | BR141: Righty Power RP | BS141: Evan Phillips | BT141: Josh Staumont | BU141: Jake Newberry | BV141: Priced in-line with expectations.
A142: Keller | B142: Mitch | C142: R | D142: 2021 | E142: 25 | F142: PIT | G142: NL | H142: LP | I142: 0.53 | J142: Y | K142: 61.5 | L142: 4 | M142: 24 | N142: 10 | O142: 0 | P142: 0 | Q142: 0 | R142: 3 | S142: 274 | T142: 10 | U142: 30 | V142: 0 | W142: 66 | X142: 189 | Y142: 92 | Z142: 48 | AA142: 5 | AB142: 4 | AC142: 0 | AD142: 55 | AE142: 5.31 | AF142: 84 | AG142: 12.1 | AH142: 2.2 | AI142: 9.6 | AJ142: 4.3 | AK142: 1.46 | AL142: 0.301 | AM142: 1.55 | AN142: 2.1 | AO142: 0.09 | AP142: 54 | AQ142: 108 | AR142: 15 | AS142: 1 | AT142: 7.53 | AU142: 184 | AV142: 121 | AW142: -0.6 | AX142: LP | AY142: 61.8 | AZ142: 4.62 | BA142: 75 | BB142: 19 | BC142: LP | BD142: 61.4 | BE142: 4.7 | BF142: 85 | BG142: 18 | BH142: 60.7 | BI142: 5.43 | BJ142: 5.75 | BK142: 9 | BL142: -0.12 | BM142: 6 | BN142: R | BO142: 1 | BP142: kellemi03 | BQ142: 656605 | BR142: Young Power Swing Starter | BS142: Touki Toussaint | BT142: Clarke Schmidt | BU142: Huascar Ynoa | BV142: Priced in-line with expectations.
A143: Guerra | B143: Junior | C143: R | D143: 2021 | E143: 36 | F143: ARI | G143: NL | H143: LP | I143: 0.62 | J143: Y | K143: 50.2 | L143: 3 | M143: 42 | N143: 4 | O143: 0 | P143: 0 | Q143: 3 | R143: 9 | S143: 254 | T143: 7 | U143: 26 | V143: 2 | W143: 54 | X143: 179 | Y143: 48 | Z143: 44 | AA143: 3 | AB143: 3 | AC143: 0 | AD143: 26 | AE143: 4.85 | AF143: 46 | AG143: 6.9 | AH143: 2.1 | AI143: 8.1 | AJ143: 4 | AK143: 1.12 | AL143: 0.262 | AM143: 1.29 | AN143: 1.69 | AO143: 0.06 | AP143: 33 | AQ143: 99 | AR143: 15 | AS143: 2 | AT143: 5.79 | AU143: 185 | AV143: 122 | AW143: -0.43 | AX143: LP | AY143: 55.4 | AZ143: 4.27 | BA143: 70 | BB143: 24 | BC143: LP | BD143: 56.5 | BE143: 4.42 | BF143: 80 | BG143: 21 | BH143: 61.9 | BI143: 5.01 | BJ143: 4.15 | BK143: 28 | BL143: -0.16 | BM143: -12 | BN143: R | BO143: -5 | BP143: guerrju02 | BQ143: 448855 | BR143: Aging RP | BS143: Yoshihisa Hirano | BT143: Jared Hughes | BU143: Fernando Rodney | BV143: Role player, not a keeper. Trade bait?
A144: Anderson | B144: Shaun | C144: R | D144: 2021 | E144: 27 | F144: SFN | G144: NL | H144: LP | I144: 0.58 | J144: Y | K144: 66.3 | L144: 3 | M144: 31 | N144: 7 | O144: 0 | P144: 0 | Q144: 1 | R144: 5 | S144: 266 | T144: 10 | U144: 27 | V144: 1 | W144: 56 | X144: 183 | Y144: 63 | Z144: 45 | AA144: 4 | AB144: 2 | AC144: 0 | AD144: 36 | AE144: 4.95 | AF144: 54 | AG144: 8 | AH144: 2.1 | AI144: 8.3 | AJ144: 4 | AK144: 1.42 | AL144: 0.289 | AM144: 1.45 | AN144: 2.01 | AO144: 0.08 | AP144: 31 | AQ144: 101 | AR144: 15 | AS144: 2 | AT144: 4.63 | AU144: 186 | AV144: 123 | AW144: -0.32 | AX144: LP | AY144: 61.3 | AZ144: 4.61 | BA144: 75 | BB144: 19 | BC144: LP | BD144: 60.2 | BE144: 4.64 | BF144: 84 | BG144: 19 | BH144: 50.6 | BI144: 5.88 | BJ144: 5.01 | BK144: 13 | BL144: -0.93 | BM144: 2 | BN144: R | BO144: 10 | BP144: andersh01 | BQ144: 641312 | BR144: Righty Swing Starter | BS144: T.J. Zeuch | BT144: Trevor Richards | BU144: Jacob Waguespack | BV144: Priced in-line with expectations.
A145: Detwiler | B145: Ross | C145: L | D145: 2021 | E145: 35 | F145: MIA | G145: NL | H145: LP | I145: 0.51 | J145: Y | K145: 52.4 | L145: 3 | M145: 30 | N145: 7 | O145: 0 | P145: 0 | Q145: 0 | R145: 5 | S145: 251 | T145: 11 | U145: 22 | V145: 2 | W145: 46 | X145: 173 | Y145: 60 | Z145: 44 | AA145: 2 | AB145: 3 | AC145: 0 | AD145: 34 | AE145: 4.89 | AF145: 48 | AG145: 7.4 | AH145: 2.1 | AI145: 7.2 | AJ145: 3.4 | AK145: 1.68 | AL145: 0.28 | AM145: 1.43 | AN145: 2.24 | AO145: 0.09 | AP145: 13 | AQ145: 99 | AR145: 15 | AS145: 2 | AT145: 3.37 | AU145: 177 | AV145: 106 | AW145: -0.1 | AX145: LP | AY145: 57.6 | AZ145: 4.89 | BA145: 80 | BB145: 15 | BC145: LP | BD145: 59.3 | BE145: 4.79 | BF145: 87 | BG145: 17 | BH145: 55.3 | BI145: 5.13 | BJ145: 4.55 | BK145: 19 | BL145: -0.24 | BM145: -4 | BN145: R | BO145: 4 | BP145: detwiro01 | BQ145: 446321 | BR145: Aging Lefty Control Swing Starter | BS145: Blaine Hardy | BT145: Wade LeBlanc | BU145: Derek Holland | BV145: Role player, not a keeper. Trade bait?
A146: Ramirez | B146: Erasmo | C146: R | D146: 2021 | E146: 31 | F146: NYN | G146: NL | H146: LP | I146: 0.36 | J146: Y | K146: 41.5 | L146: 2 | M146: 23 | N146: 4 | O146: 0 | P146: 0 | Q146: 1 | R146: 5 | S146: 187 | T146: 7 | U146: 17 | V146: 1 | W146: 38 | X146: 131 | Y146: 41 | Z146: 42 | AA146: 2 | AB146: 2 | AC146: 0 | AD146: 23 | AE146: 4.66 | AF146: 31 | AG146: 6.5 | AH146: 2.3 | AI146: 7.9 | AJ146: 3.5 | AK146: 1.49 | AL146: 0.272 | AM146: 1.35 | AN146: 2.04 | AO146: 0.08 | AP146: 29 | AQ146: 95 | AR146: 15 | AS146: 3 | AT146: 1.89 | AU146: 189 | AV146: 125 | AW146: -0.05 | AX146: LP | AY146: 48.2 | AZ146: 4.6 | BA146: 75 | BB146: 17 | BC146: LP | BD146: 51.7 | BE146: 4.61 | BF146: 84 | BG146: 18 | BH146: 40.1 | BI146: 5.87 | BJ146: 4.38 | BK146: 18 | BL146: -1.21 | BM146: -3 | BN146: R | BO146: 12 | BP146: ramirer02 | BQ146: 541640 | BR146: Righty Control RP | BS146: Josh Tomlin | BT146: Jesse Chavez | BU146: Danny Otero | BV146: In prime. Role player, not a keeper. Trade bait?
A147: Boxberger | B147: Brad | C147: R | D147: 2021 | E147: 33 | F147: MIA | G147: NL | H147: LP | I147: 0.46 | J147: Y | K147: 41.8 | L147: 2 | M147: 45 | N147: 2 | O147: 0 | P147: 0 | Q147: 6 | R147: 13 | S147: 216 | T147: 7 | U147: 23 | V147: 1 | W147: 50 | X147: 149 | Y147: 40 | Z147: 42 | AA147: 2 | AB147: 2 | AC147: 0 | AD147: 23 | AE147: 4.7 | AF147: 36 | AG147: 6.5 | AH147: 2.1 | AI147: 9 | AJ147: 4.2 | AK147: 1.31 | AL147: 0.283 | AM147: 1.37 | AN147: 1.93 | AO147: 0.08 | AP147: 48 | AQ147: 96 | AR147: 15 | AS147: 2 | AT147: 4 | AU147: 190 | AV147: 126 | AW147: -0.59 | AX147: EP | AY147: 53.5 | AZ147: 4.27 | BA147: 70 | BB147: 23 | BC147: LP | BD147: 56 | BE147: 4.11 | BF147: 75 | BG147: 27 | BH147: 49.1 | BI147: 5.84 | BJ147: 4.47 | BK147: 19 | BL147: -1.14 | BM147: -4 | BN147: R | BO147: 7 | BP147: boxbebr01 | BQ147: 502202 | BR147: Righty Power RP | BS147: Burch Smith | BT147: Daniel Hudson | BU147: Pedro Strop | BV147: Role player, not a keeper. Trade bait?
A148: Kinley | B148: Tyler | C148: R | D148: 2021 | E148: 30 | F148: COL | G148: NL | H148: LP | I148: 0.5 | J148: Y | K148: 52.7 | L148: 3 | M148: 44 | N148: 4 | O148: 0 | P148: 0 | Q148: 0 | R148: 9 | S148: 257 | T148: 8 | U148: 29 | V148: 1 | W148: 58 | X148: 178 | Y148: 47 | Z148: 44 | AA148: 4 | AB148: 3 | AC148: 0 | AD148: 30 | AE148: 4.86 | AF148: 42 | AG148: 6.5 | AH148: 2 | AI148: 8.9 | AJ148: 4.5 | AK148: 1.23 | AL148: 0.277 | AM148: 1.38 | AN148: 1.86 | AO148: 0.07 | AP148: 45 | AQ148: 99 | AR148: 15 | AS148: 1 | AT148: 3.78 | AU148: 192 | AV148: 127 | AW148: -0.35 | AX148: LP | AY148: 57.1 | AZ148: 4.47 | BA148: 73 | BB148: 21 | BC148: LP | BD148: 58.1 | BE148: 4.52 | BF148: 82 | BG148: 20 | BH148: 61.7 | BI148: 5.81 | BJ148: 4.29 | BK148: 25 | BL148: -0.95 | BM148: -10 | BN148: R | BO148: -4 | BP148: kinlety01 | BQ148: 641755 | BR148: Righty Power Long Relief | BS148: Kyle Zimmer | BT148: Dellin Betances | BU148: Phillips Valdez | BV148: In prime. Priced in-line with expectations. Trade bait?
A149: Newcomb | B149: Sean | C149: L | D149: 2021 | E149: 28 | F149: ATL | G149: NL | H149: LP | I149: 0.61 | J149: Y | K149: 70.9 | L149: 4 | M149: 25 | N149: 9 | O149: 0 | P149: 0 | Q149: 0 | R149: 2 | S149: 264 | T149: 9 | U149: 26 | V149: 1 | W149: 58 | X149: 182 | Y149: 82 | Z149: 48 | AA149: 4 | AB149: 4 | AC149: 0 | AD149: 47 | AE149: 5.35 | AF149: 74 | AG149: 11 | AH149: 2.3 | AI149: 8.6 | AJ149: 3.8 | AK149: 1.33 | AL149: 0.274 | AM149: 1.4 | AN149: 1.89 | AO149: 0.08 | AP149: 38 | AQ149: 109 | AR149: 15 | AS149: 0 | AT149: 8.79 | AU149: 193 | AV149: 128 | AW149: -0.65 | AX149: LP | AY149: 62.6 | AZ149: 4.65 | BA149: 76 | BB149: 19 | BC149: LP | BD149: 60.4 | BE149: 4.7 | BF149: 85 | BG149: 18 | BH149: 58 | BI149: 7.82 | BJ149: 5.39 | BK149: 11 | BL149: -2.47 | BM149: 4 | BN149: R | BO149: 2 | BP149: newcose01 | BQ149: 656794 | BR149: Lefty Power Swing Starter | BS149: Carlos Rodon | BT149: Andrew Suarez | BU149: Austin Gomber | BV149: Priced in-line with expectations.
A150: Rasmussen | B150: Drew | C150: R | D150: 2021 | E150: 25 | F150: MIL | G150: NL | H150: LP | I150: 0.48 | J150: Y | K150: 50.9 | L150: 2 | M150: 28 | N150: 4 | O150: 0 | P150: 0 | Q150: 0 | R150: 6 | S150: 220 | T150: 8 | U150: 23 | V150: 0 | W150: 57 | X150: 149 | Y150: 44 | Z150: 43 | AA150: 1 | AB150: 2 | AC150: 0 | AD150: 26 | AE150: 4.74 | AF150: 34 | AG150: 6.2 | AH150: 2.5 | AI150: 10.3 | AJ150: 4.2 | AK150: 1.53 | AL150: 0.311 | AM150: 1.44 | AN150: 2.16 | AO150: 0.1 | AP150: 85 | AQ150: 96 | AR150: 15 | AS150: 2 | AT150: 2.2 | AU150: 196 | AV150: 130 | AW150: -0.24 | AX150: LP | AY150: 55.5 | AZ150: 4.44 | BA150: 72 | BB150: 21 | BC150: LP | BD150: 57.7 | BE150: 4.51 | BF150: 82 | BG150: 20 | BH150: 45.3 | BI150: 6.86 | BJ150: 4.36 | BK150: 20 | BL150: -2.11 | BM150: -5 | BN150: R | BO150: 12 | BP150: rasmudr01 | BQ150: 656876 | BR150: Young Power RP | BS150: Lucas Sims | BT150: Jorge Alcala | BU150: Codi Heuer | BV150: Priced in-line with expectations.
A151: Wright | B151: Kyle | C151: R | D151: 2021 | E151: 25 | F151: ATL | G151: NL | H151: LP | I151: 0.51 | J151: Y | K151: 67.5 | L151: 4 | M151: 30 | N151: 11 | O151: 0 | P151: 0 | Q151: 0 | R151: 5 | S151: 334 | T151: 14 | U151: 39 | V151: 2 | W151: 71 | X151: 227 | Y151: 106 | Z151: 50 | AA151: 5 | AB151: 4 | AC151: 0 | AD151: 67 | AE151: 5.61 | AF151: 99 | AG151: 11.9 | AH151: 1.8 | AI151: 8.7 | AJ151: 4.7 | AK151: 1.64 | AL151: 0.292 | AM151: 1.6 | AN151: 2.35 | AO151: 0.1 | AP151: 22 | AQ151: 114 | AR151: 15 | AS151: -3 | AT151: 7.97 | AU151: 197 | AV151: 131 | AW151: -0.7 | AX151: LP | AY151: 69.7 | AZ151: 4.98 | BA151: 81 | BB151: 16 | BC151: LP | BD151: 67.5 | BE151: 4.91 | BF151: 89 | BG151: 17 | BH151: 89.8 | BI151: 5.29 | BJ151: 5.47 | BK151: 15 | BL151: 0.31 | BM151: 0 | BN151: R | BO151: -22 | BP151: wrighky01 | BQ151: 657140 | BR151: Young Power Swing Starter | BS151: Antonio Santos | BT151: Justin Dunn | BU151: Pedro Payano | BV151: Priced in-line with expectations.
A152: Altavilla | B152: Dan | C152: R | D152: 2021 | E152: 28 | F152: SDN | G152: NL | H152: LP | I152: 0.41 | J152: Y | K152: 49.5 | L152: 2 | M152: 40 | N152: 3 | O152: 0 | P152: 0 | Q152: 1 | R152: 9 | S152: 233 | T152: 8 | U152: 27 | V152: 1 | W152: 56 | X152: 160 | Y152: 44 | Z152: 43 | AA152: 3 | AB152: 2 | AC152: 0 | AD152: 29 | AE152: 4.81 | AF152: 38 | AG152: 6.4 | AH152: 2.1 | AI152: 9.5 | AJ152: 4.5 | AK152: 1.36 | AL152: 0.289 | AM152: 1.42 | AN152: 2.02 | AO152: 0.08 | AP152: 57 | AQ152: 98 | AR152: 15 | AS152: 1 | AT152: 2.7 | AU152: 198 | AV152: 132 | AW152: -0.27 | AX152: LP | AY152: 55.3 | AZ152: 4.49 | BA152: 73 | BB152: 20 | BC152: LP | BD152: 57.1 | BE152: 4.54 | BF152: 82 | BG152: 20 | BH152: 54.1 | BI152: 6.45 | BJ152: 4.44 | BK152: 21 | BL152: -1.65 | BM152: -6 | BN152: R | BO152: 3 | BP152: altavda01 | BQ152: 656186 | BR152: Righty Power RP | BS152: Evan Phillips | BT152: Josh Staumont | BU152: Josh James | BV152: Priced in-line with expectations.
A153: Howard | B153: Spencer | C153: R | D153: 2021 | E153: 24 | F153: PHI | G153: NL | H153: LP | I153: 0.56 | J153: Y | K153: 43.4 | L153: 4 | M153: 23 | N153: 10 | O153: 0 | P153: 0 | Q153: 0 | R153: 3 | S153: 268 | T153: 12 | U153: 25 | V153: 0 | W153: 61 | X153: 181 | Y153: 104 | Z153: 49 | AA153: 3 | AB153: 5 | AC153: 0 | AD153: 60 | AE153: 5.4 | AF153: 91 | AG153: 13.6 | AH153: 2.5 | AI153: 9.2 | AJ153: 3.7 | AK153: 1.8 | AL153: 0.325 | AM153: 1.65 | AN153: 2.42 | AO153: 0.11 | AP153: 43 | AQ153: 110 | AR153: 14 | AS153: 0 | AT153: 5.07 | AU153: 200 | AV153: 133 | AW153: -0.62 | AX153: LP | AY153: 59.4 | AZ153: 4.81 | BA153: 78 | BB153: 16 | BC153: LP | BD153: 62.7 | BE153: 4.78 | BF153: 87 | BG153: 17 | BH153: 63.2 | BI153: 6.23 | BJ153: 5.2 | BK153: 13 | BL153: -0.83 | BM153: 1 | BN153: R | BO153: -1 | BP153: howarsp01 | BQ153: 675921 | BR153: Young Power Swing Starter | BS153: Jordan Yamamoto | BT153: Carlos Hernandez | BU153: Humberto Mejia | BV153: Priced in-line with expectations.
A154: Yardley | B154: Eric | C154: R | D154: 2021 | E154: 30 | F154: MIL | G154: NL | H154: LP | I154: 0.44 | J154: Y | K154: 48.3 | L154: 3 | M154: 38 | N154: 4 | O154: 0 | P154: 0 | Q154: 0 | R154: 7 | S154: 233 | T154: 7 | U154: 22 | V154: 0 | W154: 49 | X154: 162 | Y154: 46 | Z154: 43 | AA154: 2 | AB154: 3 | AC154: 0 | AD154: 24 | AE154: 4.83 | AF154: 39 | AG154: 6.4 | AH154: 2.2 | AI154: 8.2 | AJ154: 3.7 | AK154: 1.24 | AL154: 0.28 | AM154: 1.34 | AN154: 1.79 | AO154: 0.07 | AP154: 36 | AQ154: 98 | AR154: 14 | AS154: 1 | AT154: 3.11 | AU154: 201 | AV154: 134 | AW154: -0.33 | AX154: LP | AY154: 55 | AZ154: 4.44 | BA154: 72 | BB154: 21 | BC154: LP | BD154: 56.6 | BE154: 4.5 | BF154: 82 | BG154: 20 | BH154: 58.8 | BI154: 4.56 | BJ154: 4.26 | BK154: 25 | BL154: 0.27 | BM154: -10 | BN154: R | BO154: -2 | BP154: yardler01 | BQ154: 642233 | BR154: Righty Control RP | BS154: Buck Farmer | BT154: Pedro Baez | BU154: Andrew Kittredge | BV154: In prime. Priced in-line with expectations. Trade bait?
A155: Santana | B155: Dennis | C155: R | D155: 2021 | E155: 25 | F155: LAN | G155: NL | H155: LP | I155: 0.35 | J155: Y | K155: 54.1 | L155: 2 | M155: 29 | N155: 4 | O155: 0 | P155: 0 | Q155: 0 | R155: 8 | S155: 229 | T155: 9 | U155: 23 | V155: 1 | W155: 54 | X155: 157 | Y155: 47 | Z155: 43 | AA155: 3 | AB155: 4 | AC155: 0 | AD155: 29 | AE155: 4.82 | AF155: 36 | AG155: 6.3 | AH155: 2.4 | AI155: 9.4 | AJ155: 4 | AK155: 1.6 | AL155: 0.295 | AM155: 1.42 | AN155: 2.22 | AO155: 0.1 | AP155: 56 | AQ155: 98 | AR155: 14 | AS155: 2 | AT155: 2.4 | AU155: 203 | AV155: 135 | AW155: -0.15 | AX155: LP | AY155: 56.3 | AZ155: 4.68 | BA155: 76 | BB155: 17 | BC155: LP | BD155: 57.9 | BE155: 4.68 | BF155: 85 | BG155: 18 | BH155: 48.9 | BI155: 6.59 | BJ155: 5 | BK155: 13 | BL155: -1.77 | BM155: 2 | BN155: R | BO155: 9 | BP155: santade01 | BQ155: 642701 | BR155: Young Power Long Relief | BS155: Jake Newberry | BT155: Taylor Widener | BU155: Michel Baez | BV155: Priced in-line with expectations.
A156: Kelly | B156: Joe | C156: R | D156: 2021 | E156: 33 | F156: LAN | G156: NL | H156: LP | I156: 0.51 | J156: Y | K156: 44.1 | L156: 3 | M156: 40 | N156: 4 | O156: 0 | P156: 0 | Q156: 1 | R156: 7 | S156: 224 | T156: 6 | U156: 23 | V156: 1 | W156: 50 | X156: 154 | Y156: 42 | Z156: 43 | AA156: 4 | AB156: 2 | AC156: 0 | AD156: 24 | AE156: 4.82 | AF156: 37 | AG156: 6.3 | AH156: 2.2 | AI156: 8.7 | AJ156: 4 | AK156: 1.12 | AL156: 0.279 | AM156: 1.33 | AN156: 1.69 | AO156: 0.07 | AP156: 48 | AQ156: 98 | AR156: 14 | AS156: 1 | AT156: 3.06 | AU156: 204 | AV156: 136 | AW156: -0.38 | AX156: LP | AY156: 52.3 | AZ156: 4.3 | BA156: 70 | BB156: 23 | BC156: LP | BD156: 55 | BE156: 4.43 | BF156: 80 | BG156: 21 | BH156: 48.2 | BI156: 5.55 | BJ156: 4.27 | BK156: 22 | BL156: -0.73 | BM156: -8 | BN156: R | BO156: 7 | BP156: kellyjo05 | BQ156: 523260 | BR156: Righty Power RP | BS156: Chaz Roe | BT156: Darren O'Day | BU156: James Hoyt | BV156: Role player, not a keeper. Trade bait?
A157: Castano | B157: Daniel | C157: L | D157: 2021 | E157: 26 | F157: MIA | G157: NL | H157: LP | I157: 0.59 | J157: Y | K157: 69.6 | L157: 4 | M157: 24 | N157: 10 | O157: 0 | P157: 0 | Q157: 0 | R157: 3 | S157: 270 | T157: 8 | U157: 25 | V157: 0 | W157: 47 | X157: 189 | Y157: 96 | Z157: 49 | AA157: 4 | AB157: 3 | AC157: 0 | AD157: 47 | AE157: 5.44 | AF157: 86 | AG157: 12.6 | AH157: 1.9 | AI157: 6.8 | AJ157: 3.6 | AK157: 1.22 | AL157: 0.297 | AM157: 1.54 | AN157: 1.75 | AO157: 0.06 | AP157: 9 | AQ157: 111 | AR157: 14 | AS157: 0 | AT157: 6.03 | AU157: 205 | AV157: 137 | AW157: -0.76 | AX157: LP | AY157: 63.4 | AZ157: 4.67 | BA157: 76 | BB157: 19 | BC157: LP | BD157: 61.2 | BE157: 4.68 | BF157: 85 | BG157: 18 | BH157: 72.1 | BI157: 4.87 | BJ157: 4.83 | BK157: 18 | BL157: 0.58 | BM157: -4 | BN157: R | BO157: -11 | BP157: castada01 | BQ157: 641447 | BR157: Lefty Hittable Control Swing Starter | BS157: Andrew Suarez | BT157: Eric Skoglund | BU157: Ty Blach | BV157: Priced in-line with expectations.
A158: Rondon | B158: Hector | C158: R | D158: 2021 | E158: 33 | F158: ARI | G158: NL | H158: LP | I158: 0.53 | J158: Y | K158: 47.6 | L158: 3 | M158: 47 | N158: 3 | O158: 0 | P158: 0 | Q158: 3 | R158: 10 | S158: 241 | T158: 9 | U158: 22 | V158: 2 | W158: 53 | X158: 167 | Y158: 49 | Z158: 44 | AA158: 2 | AB158: 2 | AC158: 0 | AD158: 27 | AE158: 4.88 | AF158: 40 | AG158: 6.4 | AH158: 2.4 | AI158: 8.4 | AJ158: 3.5 | AK158: 1.46 | AL158: 0.286 | AM158: 1.36 | AN158: 2.02 | AO158: 0.09 | AP158: 39 | AQ158: 99 | AR158: 14 | AS158: 1 | AT158: 4.2 | AU158: 206 | AV158: 138 | AW158: -0.25 | AX158: LP | AY158: 55 | AZ158: 4.62 | BA158: 75 | BB158: 18 | BC158: LP | BD158: 57 | BE158: 4.63 | BF158: 84 | BG158: 18 | BH158: 54.8 | BI158: 7.34 | BJ158: 5.04 | BK158: 13 | BL158: -2.45 | BM158: 1 | BN158: R | BO158: 2 | BP158: rondohe01 | BQ158: 444468 | BR158: Righty Control RP | BS158: Jesse Chavez | BT158: Oliver Drake | BU158: Javy Guerra | BV158: Role player, not a keeper. Trade bait?
A159: Hoffman | B159: Jeff | C159: R | D159: 2021 | E159: 28 | F159: CIN | G159: NL | H159: LP | I159: 0.52 | J159: Y | K159: 67.5 | L159: 3 | M159: 29 | N159: 8 | O159: 0 | P159: 0 | Q159: 1 | R159: 5 | S159: 276 | T159: 12 | U159: 27 | V159: 2 | W159: 60 | X159: 185 | Y159: 72 | Z159: 46 | AA159: 4 | AB159: 4 | AC159: 0 | AD159: 45 | AE159: 5.14 | AF159: 56 | AG159: 8.1 | AH159: 2.3 | AI159: 8.7 | AJ159: 3.8 | AK159: 1.71 | AL159: 0.305 | AM159: 1.52 | AN159: 2.33 | AO159: 0.1 | AP159: 34 | AQ159: 104 | AR159: 14 | AS159: 1 | AT159: 3.96 | AU159: 208 | AV159: 139 | AW159: -0.43 | AX159: LP | AY159: 63.3 | AZ159: 4.8 | BA159: 78 | BB159: 17 | BC159: LP | BD159: 61.8 | BE159: 4.71 | BF159: 85 | BG159: 18 | BH159: 59.5 | BI159: 7.7 | BJ159: 4.59 | BK159: 19 | BL159: -2.56 | BM159: -5 | BN159: R | BO159: 2 | BP159: hoffmje02 | BQ159: 656546 | BR159: Righty Power Swing Starter | BS159: Corey Oswalt | BT159: Walker Lockett | BU159: Taylor Clarke | BV159: Priced in-line with expectations.
A160: Guerra | B160: Javy | C160: R | D160: 2021 | E160: 35 | F160: WAS | G160: NL | H160: LP | I160: 0.51 | J160: Y | K160: 42.9 | L160: 3 | M160: 36 | N160: 3 | O160: 0 | P160: 0 | Q160: 1 | R160: 9 | S160: 223 | T160: 8 | U160: 19 | V160: 1 | W160: 44 | X160: 154 | Y160: 47 | Z160: 44 | AA160: 2 | AB160: 2 | AC160: 0 | AD160: 26 | AE160: 4.85 | AF160: 36 | AG160: 6.2 | AH160: 2.3 | AI160: 7.7 | AJ160: 3.3 | AK160: 1.31 | AL160: 0.288 | AM160: 1.36 | AN160: 1.83 | AO160: 0.07 | AP160: 28 | AQ160: 99 | AR160: 14 | AS160: 1 | AT160: 2.36 | AU160: 210 | AV160: 141 | AW160: -0.35 | AX160: LP | AY160: 51.7 | AZ160: 4.39 | BA160: 72 | BB160: 21 | BC160: LP | BD160: 54.6 | BE160: 4.5 | BF160: 82 | BG160: 20 | BH160: 46.7 | BI160: 6.44 | BJ160: 4.39 | BK160: 20 | BL160: -1.59 | BM160: -6 | BN160: R | BO160: 8 | BP160: guerrja01 | BQ160: 457915 | BR160: Aging Super Control RP | BS160: Jesse Chavez | BT160: David Hale | BU160: Hector Rondon | BV160: Role player, not a keeper. Trade bait?
A161: Holder | B161: Jonathan | C161: R | D161: 2021 | E161: 28 | F161: CHN | G161: NL | H161: LP | I161: 0.52 | J161: Y | K161: 56.1 | L161: 3 | M161: 40 | N161: 4 | O161: 0 | P161: 0 | Q161: 0 | R161: 8 | S161: 265 | T161: 9 | U161: 23 | V161: 2 | W161: 57 | X161: 183 | Y161: 53 | Z161: 45 | AA161: 2 | AB161: 2 | AC161: 0 | AD161: 31 | AE161: 4.99 | AF161: 40 | AG161: 5.9 | AH161: 2.5 | AI161: 8.4 | AJ161: 3.4 | AK161: 1.31 | AL161: 0.291 | AM161: 1.34 | AN161: 1.84 | AO161: 0.08 | AP161: 42 | AQ161: 101 | AR161: 14 | AS161: 1 | AT161: 3.92 | AU161: 207 | AV161: 132 | AW161: -0.51 | AX161: LP | AY161: 62.4 | AZ161: 4.42 | BA161: 72 | BB161: 23 | BC161: LP | BD161: 64 | BE161: 4.48 | BF161: 81 | BG161: 22 | BH161: 59.7 | BI161: 6.09 | BJ161: 4.6 | BK161: 19 | BL161: -1.09 | BM161: -6 | BN161: R | BO161: 4 | BP161: holdejo02 | BQ161: 656547 | BR161: Righty Control Long Relief | BS161: Luis Perdomo | BT161: Ryan Thompson | BU161: Yoan Lopez | BV161: Priced in-line with expectations.
A162: Lopez | B162: Yoan | C162: R | D162: 2021 | E162: 28 | F162: ARI | G162: NL | H162: LP | I162: 0.5 | J162: Y | K162: 54.6 | L162: 3 | M162: 45 | N162: 4 | O162: 0 | P162: 0 | Q162: 0 | R162: 10 | S162: 252 | T162: 10 | U162: 22 | V162: 2 | W162: 53 | X162: 177 | Y162: 51 | Z162: 45 | AA162: 2 | AB162: 2 | AC162: 1 | AD162: 30 | AE162: 4.99 | AF162: 39 | AG162: 6 | AH162: 2.4 | AI162: 8.1 | AJ162: 3.4 | AK162: 1.57 | AL162: 0.275 | AM162: 1.33 | AN162: 2.12 | AO162: 0.09 | AP162: 30 | AQ162: 101 | AR162: 13 | AS162: 1 | AT162: 3.62 | AU162: 212 | AV162: 142 | AW162: -0.37 | AX162: LP | AY162: 57.8 | AZ162: 4.6 | BA162: 75 | BB162: 19 | BC162: LP | BD162: 59 | BE162: 4.62 | BF162: 84 | BG162: 19 | BH162: 56 | BI162: 6.54 | BJ162: 4.78 | BK162: 16 | BL162: -1.55 | BM162: -3 | BN162: R | BO162: 3 | BP162: lopezyo01 | BQ162: 661255 | BR162: Righty Control Long Relief | BS162: Ryan Thompson | BT162: Jonathan Holder | BU162: Colin Rea | BV162: Priced in-line with expectations.
A163: Yamamoto | B163: Jordan | C163: R | D163: 2021 | E163: 25 | F163: MIA | G163: NL | H163: LP | I163: 0.57 | J163: Y | K163: 50.3 | L163: 4 | M163: 24 | N163: 10 | O163: 0 | P163: 0 | Q163: 0 | R163: 3 | S163: 285 | T163: 14 | U163: 29 | V163: 1 | W163: 67 | X163: 192 | Y163: 94 | Z163: 50 | AA163: 4 | AB163: 5 | AC163: 0 | AD163: 66 | AE163: 5.61 | AF163: 80 | AG163: 11.3 | AH163: 2.3 | AI163: 9.5 | AJ163: 4.1 | AK163: 1.98 | AL163: 0.29 | AM163: 1.52 | AN163: 2.66 | AO163: 0.13 | AP163: 40 | AQ163: 114 | AR163: 13 | AS163: -2 | AT163: 7.26 | AU163: 216 | AV163: 143 | AW163: -0.58 | AX163: LP | AY163: 60 | AZ163: 5.06 | BA163: 82 | BB163: 14 | BC163: LP | BD163: 62.8 | BE163: 5.03 | BF163: 91 | BG163: 15 | BH163: 56.5 | BI163: 8.89 | BJ163: 6.66 | BK163: 5 | BL163: -3.28 | BM163: 8 | BN163: R | BO163: 6 | BP163: yamamjo01 | BQ163: 657141 | BR163: Young Power Swing Starter | BS163: Spencer Howard | BT163: Carlos Hernandez | BU163: Humberto Mejia | BV163: Priced in-line with expectations.
A164: Winkler | B164: Daniel | C164: R | D164: 2021 | E164: 31 | F164: CHN | G164: NL | H164: LP | I164: 0.46 | J164: Y | K164: 43.4 | L164: 3 | M164: 40 | N164: 3 | O164: 0 | P164: 0 | Q164: 0 | R164: 8 | S164: 216 | T164: 8 | U164: 22 | V164: 1 | W164: 49 | X164: 151 | Y164: 40 | Z164: 44 | AA164: 2 | AB164: 3 | AC164: 0 | AD164: 24 | AE164: 4.89 | AF164: 33 | AG164: 6 | AH164: 2.2 | AI164: 8.9 | AJ164: 4 | AK164: 1.37 | AL164: 0.275 | AM164: 1.33 | AN164: 1.97 | AO164: 0.08 | AP164: 45 | AQ164: 99 | AR164: 13 | AS164: 1 | AT164: 2.34 | AU164: 218 | AV164: 144 | AW164: -0.26 | AX164: LP | AY164: 51.5 | AZ164: 4.65 | BA164: 76 | BB164: 17 | BC164: LP | BD164: 54.3 | BE164: 4.63 | BF164: 84 | BG164: 18 | BH164: 49.8 | BI164: 5.98 | BJ164: 4.92 | BK164: 14 | BL164: -1.09 | BM164: -1 | BN164: R | BO164: 5 | BP164: winklda01 | BQ164: 595465 | BR164: Righty Power RP | BS164: Matt Magill | BT164: Chaz Roe | BU164: Oliver Drake | BV164: In prime. Role player, not a keeper. Trade bait?
A165: Hughes | B165: Jared | C165: R | D165: 2021 | E165: 35 | F165: NYN | G165: NL | H165: LP | I165: 0.57 | J165: Y | K165: 47.1 | L165: 3 | M165: 51 | N165: 2 | O165: 0 | P165: 0 | Q165: 5 | R165: 15 | S165: 243 | T165: 8 | U165: 24 | V165: 2 | W165: 51 | X165: 173 | Y165: 44 | Z165: 45 | AA165: 2 | AB165: 3 | AC165: 0 | AD165: 25 | AE165: 5.01 | AF165: 40 | AG165: 6.3 | AH165: 2.1 | AI165: 7.9 | AJ165: 3.8 | AK165: 1.23 | AL165: 0.26 | AM165: 1.27 | AN165: 1.78 | AO165: 0.07 | AP165: 27 | AQ165: 102 | AR165: 13 | AS165: 0 | AT165: 5.29 | AU165: 219 | AV165: 145 | AW165: -0.44 | AX165: LP | AY165: 54.2 | AZ165: 4.51 | BA165: 74 | BB165: 19 | BC165: LP | BD165: 56.1 | BE165: 4.57 | BF165: 83 | BG165: 19 | BH165: 59.1 | BI165: 6.24 | BJ165: 4.81 | BK165: 16 | BL165: -1.23 | BM165: -3 | BN165: R | BO165: -3 | BP165: hugheja02 | BQ165: 453172 | BR165: Aging RP | BS165: Yoshihisa Hirano | BT165: Junior Guerra | BU165: Brandon Kintzler | BV165: Role player, not a keeper. Trade bait?
A166: Selman | B166: Sam | C166: L | D166: 2021 | E166: 30 | F166: SFN | G166: NL | H166: LP | I166: 0.41 | J166: Y | K166: 44.5 | L166: 3 | M166: 38 | N166: 4 | O166: 0 | P166: 0 | Q166: 1 | R166: 10 | S166: 218 | T166: 8 | U166: 23 | V166: 1 | W166: 51 | X166: 151 | Y166: 40 | Z166: 44 | AA166: 3 | AB166: 3 | AC166: 0 | AD166: 24 | AE166: 4.9 | AF166: 31 | AG166: 5.6 | AH166: 2.2 | AI166: 9.2 | AJ166: 4.1 | AK166: 1.36 | AL166: 0.275 | AM166: 1.33 | AN166: 1.97 | AO166: 0.08 | AP166: 53 | AQ166: 100 | AR166: 13 | AS166: 1 | AT166: 2.64 | AU166: 220 | AV166: 146 | AW166: -0.32 | AX166: LP | AY166: 52.2 | AZ166: 4.55 | BA166: 74 | BB166: 18 | BC166: LP | BD166: 54.9 | BE166: 4.57 | BF166: 83 | BG166: 19 | BH166: 51.2 | BI166: 6.05 | BJ166: 4.21 | BK166: 24 | BL166: -1.15 | BM166: -11 | BN166: R | BO166: 4 | BP166: selmasa01 | BQ166: 572125 | BR166: Lefty Power RP | BS166: Tim Mayza | BT166: Andrew Chafin | BU166: Adam Morgan | BV166: In prime. Priced in-line with expectations. Trade bait?
A167: Erlin | B167: Robbie | C167: L | D167: 2021 | E167: 30 | F167: ATL | G167: NL | H167: LP | I167: 0.58 | J167: Y | K167: 63.3 | L167: 3 | M167: 31 | N167: 7 | O167: 0 | P167: 0 | Q167: 0 | R167: 6 | S167: 273 | T167: 10 | U167: 19 | V167: 1 | W167: 58 | X167: 188 | Y167: 73 | Z167: 47 | AA167: 3 | AB167: 3 | AC167: 0 | AD167: 42 | AE167: 5.24 | AF167: 54 | AG167: 7.6 | AH167: 3.1 | AI167: 8.2 | AJ167: 2.7 | AK167: 1.43 | AL167: 0.317 | AM167: 1.43 | AN167: 1.88 | AO167: 0.08 | AP167: 40 | AQ167: 106 | AR167: 13 | AS167: 0 | AT167: 4.28 | AU167: 221 | AV167: 147 | AW167: -0.67 | AX167: LP | AY167: 63.2 | AZ167: 4.48 | BA167: 73 | BB167: 22 | BC167: LP | BD167: 61.8 | BE167: 4.57 | BF167: 83 | BG167: 20 | BH167: 67.6 | BI167: 6.97 | BJ167: 5.01 | BK167: 16 | BL167: -1.73 | BM167: -3 | BN167: R | BO167: -6 | BP167: erlinro01 | BQ167: 572362 | BR167: Lefty Commanding Swing Starter | BS167: Alex Wood | BT167: Tom Milone | BU167: Matt Strahm | BV167: In prime. Risky pick. Avoid. Trade bait?
A168: Neverauskas | B168: Dovydas | C168: R | D168: 2021 | E168: 28 | F168: PIT | G168: NL | H168: LP | I168: 0.4 | J168: Y | K168: 48.7 | L168: 2 | M168: 36 | N168: 3 | O168: 0 | P168: 0 | Q168: 0 | R168: 10 | S168: 231 | T168: 10 | U168: 23 | V168: 1 | W168: 53 | X168: 154 | Y168: 49 | Z168: 45 | AA168: 3 | AB168: 2 | AC168: 0 | AD168: 32 | AE168: 4.95 | AF168: 37 | AG168: 6.4 | AH168: 2.2 | AI168: 9.2 | AJ168: 4 | AK168: 1.7 | AL168: 0.308 | AM168: 1.5 | AN168: 2.33 | AO168: 0.1 | AP168: 45 | AQ168: 101 | AR168: 13 | AS168: 1 | AT168: 1.24 | AU168: 222 | AV168: 148 | AW168: -0.24 | AX168: LP | AY168: 55.4 | AZ168: 4.73 | BA168: 77 | BB168: 17 | BC168: LP | BD168: 57.4 | BE168: 4.71 | BF168: 85 | BG168: 17 | BH168: 51.3 | BI168: 7.49 | BJ168: 5 | BK168: 13 | BL168: -2.54 | BM168: 0 | BN168: R | BO168: 6 | BP168: neverdo01 | BQ168: 596720 | BR168: Righty Power RP | BS168: Robert Stephenson | BT168: Dominic Leone | BU168: Taylor Widener | BV168: Priced in-line with expectations.
A169: Ryan | B169: Kyle | C169: L | D169: 2021 | E169: 29 | F169: CHN | G169: NL | H169: LP | I169: 0.52 | J169: Y | K169: 48.1 | L169: 3 | M169: 43 | N169: 4 | O169: 0 | P169: 0 | Q169: 1 | R169: 7 | S169: 232 | T169: 9 | U169: 22 | V169: 1 | W169: 50 | X169: 162 | Y169: 46 | Z169: 45 | AA169: 1 | AB169: 2 | AC169: 0 | AD169: 25 | AE169: 4.97 | AF169: 37 | AG169: 6.1 | AH169: 2.2 | AI169: 8.4 | AJ169: 3.7 | AK169: 1.44 | AL169: 0.282 | AM169: 1.36 | AN169: 2.01 | AO169: 0.08 | AP169: 36 | AQ169: 101 | AR169: 13 | AS169: 1 | AT169: 2.67 | AU169: 223 | AV169: 149 | AW169: -0.27 | AX169: LP | AY169: 53.7 | AZ169: 4.62 | BA169: 75 | BB169: 18 | BC169: LP | BD169: 56.1 | BE169: 4.69 | BF169: 85 | BG169: 17 | BH169: 48 | BI169: 7 | BJ169: 5.49 | BK169: 9 | BL169: -2.03 | BM169: 4 | BN169: R | BO169: 8 | BP169: ryanky01 | BQ169: 594986 | BR169: Lefty RP | BS169: Wandy Peralta | BT169: Tyler Webb | BU169: Cole Irvin | BV169: Approaching his prime years. Priced in-line with expectations. Trade bait?
A170: Oswalt | B170: Corey | C170: R | D170: 2021 | E170: 27 | F170: NYN | G170: NL | H170: LP | I170: 0.44 | J170: Y | K170: 61.4 | L170: 3 | M170: 24 | N170: 6 | O170: 0 | P170: 0 | Q170: 0 | R170: 5 | S170: 234 | T170: 10 | U170: 21 | V170: 1 | W170: 48 | X170: 159 | Y170: 58 | Z170: 46 | AA170: 2 | AB170: 3 | AC170: 0 | AD170: 35 | AE170: 5.16 | AF170: 46 | AG170: 7.8 | AH170: 2.3 | AI170: 8.2 | AJ170: 3.6 | AK170: 1.64 | AL170: 0.278 | AM170: 1.4 | AN170: 2.22 | AO170: 0.1 | AP170: 28 | AQ170: 105 | AR170: 13 | AS170: 1 | AT170: 3.62 | AU170: 224 | AV170: 150 | AW170: -0.41 | AX170: LP | AY170: 58.4 | AZ170: 4.77 | BA170: 78 | BB170: 17 | BC170: LP | BD170: 58 | BE170: 4.74 | BF170: 86 | BG170: 17 | BH170: 53.5 | BI170: 5.94 | BJ170: 5.23 | BK170: 12 | BL170: -0.79 | BM170: 1 | BN170: R | BO170: 4 | BP170: oswalco01 | BQ170: 621261 | BR170: Righty Control Swing Starter | BS170: Walker Lockett | BT170: Cody Ponce | BU170: David Hess | BV170: Priced in-line with expectations.
A171: Turley | B171: Nik | C171: L | D171: 2021 | E171: 31 | F171: PIT | G171: NL | H171: LP | I171: 0.52 | J171: Y | K171: 43.5 | L171: 2 | M171: 39 | N171: 4 | O171: 0 | P171: 0 | Q171: 1 | R171: 5 | S171: 217 | T171: 6 | U171: 23 | V171: 1 | W171: 47 | X171: 151 | Y171: 36 | Z171: 44 | AA171: 2 | AB171: 4 | AC171: 1 | AD171: 25 | AE171: 4.94 | AF171: 27 | AG171: 4.8 | AH171: 2.1 | AI171: 8.5 | AJ171: 4 | AK171: 1.04 | AL171: 0.26 | AM171: 1.26 | AN171: 1.6 | AO171: 0.06 | AP171: 43 | AQ171: 100 | AR171: 13 | AS171: 1 | AT171: 2.85 | AU171: 226 | AV171: 152 | AW171: -0.48 | AX171: LP | AY171: 52.3 | AZ171: 4.35 | BA171: 71 | BB171: 22 | BC171: LP | BD171: 54.8 | BE171: 4.46 | BF171: 81 | BG171: 20 | BH171: 54.6 | BI171: 6.23 | BJ171: 4.02 | BK171: 29 | BL171: -1.3 | BM171: -16 | BN171: R | BO171: 0 | BP171: turleni01 | BQ171: 543867 | BR171: Lefty RP | BS171: Justin Wilson | BT171: Luis Avilan | BU171: Xavier Cedeno | BV171: In prime. Role player, not a keeper. Trade bait?
A172: Widener | B172: Taylor | C172: R | D172: 2021 | E172: 26 | F172: ARI | G172: NL | H172: LP | I172: 0.52 | J172: Y | K172: 52.6 | L172: 3 | M172: 28 | N172: 4 | O172: 0 | P172: 0 | Q172: 0 | R172: 7 | S172: 232 | T172: 10 | U172: 26 | V172: 2 | W172: 56 | X172: 160 | Y172: 42 | Z172: 45 | AA172: 1 | AB172: 4 | AC172: 0 | AD172: 26 | AE172: 5 | AF172: 34 | AG172: 5.8 | AH172: 2.2 | AI172: 9.7 | AJ172: 4.4 | AK172: 1.77 | AL172: 0.262 | AM172: 1.35 | AN172: 2.46 | AO172: 0.11 | AP172: 51 | AQ172: 102 | AR172: 13 | AS172: 1 | AT172: 2.89 | AU172: 227 | AV172: 153 | AW172: -0.18 | AX172: LP | AY172: 55.9 | AZ172: 4.87 | BA172: 79 | BB172: 15 | BC172: LP | BD172: 57.4 | BE172: 4.82 | BF172: 87 | BG172: 16 | BH172: 53.8 | BI172: 6.1 | BJ172: 5.57 | BK172: 9 | BL172: -1.09 | BM172: 3 | BN172: R | BO172: 4 | BP172: widenta01 | BQ172: 642203 | BR172: Righty Power Long Relief | BS172: Jake Newberry | BT172: Dovydas Neverauskas | BU172: Luis Patino | BV172: Priced in-line with expectations.
A173: Woodford | B173: Jake | C173: R | D173: 2021 | E173: 24 | F173: SLN | G173: NL | H173: LP | I173: 0.53 | J173: Y | K173: 60 | L173: 3 | M173: 29 | N173: 5 | O173: 0 | P173: 0 | Q173: 0 | R173: 7 | S173: 239 | T173: 13 | U173: 20 | V173: 0 | W173: 54 | X173: 170 | Y173: 51 | Z173: 46 | AA173: 2 | AB173: 2 | AC173: 0 | AD173: 31 | AE173: 5.09 | AF173: 34 | AG173: 5.5 | AH173: 2.7 | AI173: 8.8 | AJ173: 3.2 | AK173: 2.16 | AL173: 0.268 | AM173: 1.33 | AN173: 2.76 | AO173: 0.13 | AP173: 35 | AQ173: 103 | AR173: 12 | AS173: 0 | AT173: 3.32 | AU173: 228 | AV173: 154 | AW173: -0.15 | AX173: LP | AY173: 58.8 | AZ173: 5.03 | BA173: 82 | BB173: 14 | BC173: LP | BD173: 59.3 | BE173: 4.94 | BF173: 90 | BG173: 15 | BH173: 56.7 | BI173: 6.36 | BJ173: 5.93 | BK173: 8 | BL173: -1.28 | BM173: 5 | BN173: R | BO173: 3 | BP173: woodfja01 | BQ173: 663765 | BR173: Young Super Control Long Relief | BS173: Brady Lail | BT173: Rony Garcia | BU173: Cody Ponce | BV173: Priced in-line with expectations.
A174: Oviedo | B174: Johan | C174: R | D174: 2021 | E174: 23 | F174: SLN | G174: NL | H174: LP | I174: 0.56 | J174: Y | K174: 46.9 | L174: 3 | M174: 22 | N174: 9 | O174: 0 | P174: 0 | Q174: 0 | R174: 3 | S174: 273 | T174: 9 | U174: 26 | V174: 0 | W174: 55 | X174: 186 | Y174: 96 | Z174: 51 | AA174: 10 | AB174: 12 | AC174: 0 | AD174: 63 | AE174: 5.67 | AF174: 82 | AG174: 12.2 | AH174: 2.1 | AI174: 8.2 | AJ174: 3.8 | AK174: 1.37 | AL174: 0.303 | AM174: 1.55 | AN174: 1.95 | AO174: 0.08 | AP174: 26 | AQ174: 115 | AR174: 12 | AS174: -3 | AT174: 5.47 | AU174: 229 | AV174: 155 | AW174: -0.89 | AX174: LP | AY174: 59.7 | AZ174: 4.81 | BA174: 78 | BB174: 17 | BC174: LP | BD174: 62.4 | BE174: 4.78 | BF174: 87 | BG174: 17 | BH174: 64.3 | BI174: 6.24 | BJ174: 5.14 | BK174: 14 | BL174: -0.56 | BM174: -1 | BN174: R | BO174: -2 | BP174: oviedjo01 | BQ174: 670912 | BR174: Young Swing Starter | BS174: Casey Mize | BT174: Wil Crowe | BU174: Kyle Hart | BV174: Priced in-line with expectations.
A175: Smith | B175: Josh | C175: R | D175: 2021 | E175: 33 | F175: MIA | G175: NL | H175: LP | I175: 0.51 | J175: Y | K175: 52 | L175: 3 | M175: 32 | N175: 6 | O175: 0 | P175: 0 | Q175: 1 | R175: 8 | S175: 255 | T175: 10 | U175: 23 | V175: 2 | W175: 49 | X175: 172 | Y175: 59 | Z175: 46 | AA175: 2 | AB175: 3 | AC175: 0 | AD175: 36 | AE175: 5.16 | AF175: 44 | AG175: 6.8 | AH175: 2.1 | AI175: 7.6 | AJ175: 3.6 | AK175: 1.57 | AL175: 0.294 | AM175: 1.46 | AN175: 2.14 | AO175: 0.09 | AP175: 18 | AQ175: 105 | AR175: 12 | AS175: 0 | AT175: 2.43 | AU175: 232 | AV175: 157 | AW175: -0.49 | AX175: LP | AY175: 58 | AZ175: 4.72 | BA175: 77 | BB175: 17 | BC175: LP | BD175: 58.5 | BE175: 4.68 | BF175: 85 | BG175: 18 | BH175: 64.5 | BI175: 6.74 | BJ175: 4.59 | BK175: 20 | BL175: -1.58 | BM175: -8 | BN175: R | BO175: -6 | BP175: smithjo07 | BQ175: 595001 | BR175: Righty Control RP | BS175: Javy Guerra | BT175: Jesse Chavez | BU175: Chad Bettis | BV175: Role player, not a keeper. Trade bait?
A176: Braymer | B176: Ben | C176: L | D176: 2021 | E176: 27 | F176: WAS | G176: NL | H176: LP | I176: 0.46 | J176: Y | K176: 57.5 | L176: 3 | M176: 22 | N176: 7 | O176: 0 | P176: 0 | Q176: 0 | R176: 3 | S176: 212 | T176: 7 | U176: 23 | V176: 0 | W176: 47 | X176: 140 | Y176: 51 | Z176: 46 | AA176: 2 | AB176: 2 | AC176: 0 | AD176: 28 | AE176: 5.14 | AF176: 46 | AG176: 8.8 | AH176: 2 | AI176: 9 | AJ176: 4.5 | AK176: 1.38 | AL176: 0.275 | AM176: 1.44 | AN176: 2.03 | AO176: 0.08 | AP176: 40 | AQ176: 105 | AR176: 12 | AS176: 1 | AT176: 3.16 | AU176: 233 | AV176: 158 | AW176: -0.48 | AX176: LP | AY176: 54.7 | AZ176: 4.64 | BA176: 76 | BB176: 18 | BC176: LP | BD176: 55.6 | BE176: 4.67 | BF176: 85 | BG176: 18 | BH176: 42.4 | BI176: 5.96 | BJ176: 4.84 | BK176: 13 | BL176: -0.82 | BM176: -1 | BN176: R | BO176: 13 | BP176: braymbe01 | BQ176: 664069 | BR176: Lefty Power Swing Starter | BS176: Ryan Borucki | BT176: Anthony Kay | BU176: Lewis Thorpe | BV176: Priced in-line with expectations.
A177: Hembree | B177: Heath | C177: R | D177: 2021 | E177: 32 | F177: PHI | G177: NL | H177: LP | I177: 0.5 | J177: Y | K177: 45.2 | L177: 2 | M177: 45 | N177: 3 | O177: 0 | P177: 0 | Q177: 1 | R177: 9 | S177: 232 | T177: 11 | U177: 23 | V177: 1 | W177: 54 | X177: 158 | Y177: 46 | Z177: 46 | AA177: 2 | AB177: 3 | AC177: 0 | AD177: 28 | AE177: 5.09 | AF177: 36 | AG177: 6.2 | AH177: 2.3 | AI177: 9.1 | AJ177: 3.9 | AK177: 1.83 | AL177: 0.286 | AM177: 1.41 | AN177: 2.47 | AO177: 0.11 | AP177: 41 | AQ177: 103 | AR177: 12 | AS177: 0 | AT177: 2.13 | AU177: 241 | AV177: 160 | AW177: -0.17 | AX177: LP | AY177: 53.4 | AZ177: 4.97 | BA177: 81 | BB177: 14 | BC177: LP | BD177: 55.9 | BE177: 4.92 | BF177: 89 | BG177: 15 | BH177: 52 | BI177: 8.42 | BJ177: 6.41 | BK177: 6 | BL177: -3.33 | BM177: 6 | BN177: R | BO177: 4 | BP177: hembrhe01 | BQ177: 592390 | BR177: Righty Power RP | BS177: Matt Magill | BT177: David Phelps | BU177: Daniel Winkler | BV177: Risky pick. Avoid. Trade bait?
A178: Toussaint | B178: Touki | C178: R | D178: 2021 | E178: 25 | F178: ATL | G178: NL | H178: LP | I178: 0.51 | J178: Y | K178: 75.7 | L178: 3 | M178: 29 | N178: 7 | O178: 0 | P178: 0 | Q178: 0 | R178: 4 | S178: 293 | T178: 11 | U178: 33 | V178: 1 | W178: 70 | X178: 195 | Y178: 73 | Z178: 49 | AA178: 5 | AB178: 8 | AC178: 0 | AD178: 51 | AE178: 5.48 | AF178: 64 | AG178: 8.9 | AH178: 2.1 | AI178: 9.8 | AJ178: 4.6 | AK178: 1.58 | AL178: 0.319 | AM178: 1.6 | AN178: 2.28 | AO178: 0.1 | AP178: 50 | AQ178: 111 | AR178: 12 | AS178: -2 | AT178: 3.15 | AU178: 243 | AV178: 161 | AW178: -0.62 | AX178: LP | AY178: 67.1 | AZ178: 4.89 | BA178: 80 | BB178: 17 | BC178: LP | BD178: 64.2 | BE178: 4.86 | BF178: 88 | BG178: 17 | BH178: 65.3 | BI178: 7.48 | BJ178: 5.81 | BK178: 9 | BL178: -2 | BM178: 2 | BN178: R | BO178: -1 | BP178: toussto01 | BQ178: 657053 | BR178: Young Power Swing Starter | BS178: Mitch Keller | BT178: Ramon Rosso | BU178: Clarke Schmidt | BV178: Priced in-line with expectations.
A179: Ynoa | B179: Huascar | C179: R | D179: 2021 | E179: 23 | F179: ATL | G179: NL | H179: LP | I179: 0.42 | J179: Y | K179: 75.9 | L179: 3 | M179: 28 | N179: 8 | O179: 0 | P179: 0 | Q179: 0 | R179: 5 | S179: 261 | T179: 9 | U179: 28 | V179: 1 | W179: 58 | X179: 177 | Y179: 73 | Z179: 49 | AA179: 4 | AB179: 5 | AC179: 1 | AD179: 44 | AE179: 5.43 | AF179: 62 | AG179: 9.6 | AH179: 2.1 | AI179: 9 | AJ179: 4.3 | AK179: 1.36 | AL179: 0.325 | AM179: 1.62 | AN179: 1.99 | AO179: 0.08 | AP179: 40 | AQ179: 110 | AR179: 12 | AS179: -1 | AT179: 2.26 | AU179: 246 | AV179: 163 | AW179: -0.84 | AX179: LP | AY179: 64.8 | AZ179: 4.58 | BA179: 75 | BB179: 21 | BC179: LP | BD179: 62.5 | BE179: 4.6 | BF179: 83 | BG179: 20 | BH179: 58.8 | BI179: 6.48 | BJ179: 4.66 | BK179: 18 | BL179: -1.05 | BM179: -7 | BN179: R | BO179: 4 | BP179: ynoahu01 | BQ179: 660623 | BR179: Young Power Swing Starter | BS179: Clarke Schmidt | BT179: Touki Toussaint | BU179: Mitch Keller | BV179: Priced in-line with expectations.
A180: Castellani | B180: Ryan | C180: R | D180: 2021 | E180: 25 | F180: COL | G180: NL | H180: LP | I180: 0.66 | J180: Y | K180: 57.1 | L180: 4 | M180: 27 | N180: 12 | O180: 0 | P180: 0 | Q180: 0 | R180: 3 | S180: 340 | T180: 18 | U180: 41 | V180: 0 | W180: 62 | X180: 235 | Y180: 102 | Z180: 55 | AA180: 4 | AB180: 10 | AC180: 0 | AD180: 72 | AE180: 6.09 | AF180: 96 | AG180: 11.6 | AH180: 1.5 | AI180: 7.5 | AJ180: 4.9 | AK180: 2.18 | AL180: 0.267 | AM180: 1.59 | AN180: 2.97 | AO180: 0.13 | AP180: 1 | AQ180: 124 | AR180: 11 | AS180: -7 | AT180: 6.51 | AU180: 249 | AV180: 164 | AW180: -0.4 | AX180: LP | AY180: 66 | AZ180: 5.98 | BA180: 98 | BB180: 9 | BC180: LP | BD180: 65.2 | BE180: 5.69 | BF180: 103 | BG180: 10 | BH180: 98.7 | BI180: 5.48 | BJ180: 7.45 | BK180: 6 | BL180: 0.61 | BM180: 5 | BN180: R | BO180: -34 | BP180: castery01 | BQ180: 624418 | BR180: Young Soft Tosser Swing Starter | BS180: Jonathan Stiever | BT180: Daulton Jefferies | BU180: Ronald Bolanos | BV180: Avoid drafting.
A181: Ponce | B181: Cody | C181: R | D181: 2021 | E181: 27 | F181: PIT | G181: NL | H181: LP | I181: 0.49 | J181: Y | K181: 58.1 | L181: 3 | M181: 21 | N181: 7 | O181: 0 | P181: 0 | Q181: 0 | R181: 4 | S181: 206 | T181: 10 | U181: 19 | V181: 0 | W181: 45 | X181: 148 | Y181: 57 | Z181: 48 | AA181: 2 | AB181: 2 | AC181: 0 | AD181: 33 | AE181: 5.28 | AF181: 44 | AG181: 8.3 | AH181: 2.4 | AI181: 8.5 | AJ181: 3.6 | AK181: 1.9 | AL181: 0.282 | AM181: 1.44 | AN181: 2.51 | AO181: 0.11 | AP181: 27 | AQ181: 107 | AR181: 11 | AS181: 0 | AT181: 2.54 | AU181: 251 | AV181: 165 | AW181: -0.4 | AX181: LP | AY181: 53.4 | AZ181: 4.96 | BA181: 81 | BB181: 14 | BC181: LP | BD181: 54.1 | BE181: 4.89 | BF181: 89 | BG181: 15 | BH181: 47.6 | BI181: 6.49 | BJ181: 5.95 | BK181: 7 | BL181: -1.2 | BM181: 5 | BN181: R | BO181: 6 | BP181: ponceco01 | BQ181: 664074 | BR181: Righty Control Swing Starter | BS181: Corey Oswalt | BT181: David Hess | BU181: Walker Lockett | BV181: Priced in-line with expectations.
A182: Gsellman | B182: Robert | C182: R | D182: 2021 | E182: 27 | F182: NYN | G182: NL | H182: LP | I182: 0.56 | J182: Y | K182: 61.7 | L182: 3 | M182: 41 | N182: 5 | O182: 0 | P182: 0 | Q182: 4 | R182: 10 | S182: 272 | T182: 9 | U182: 25 | V182: 2 | W182: 59 | X182: 186 | Y182: 61 | Z182: 48 | AA182: 3 | AB182: 4 | AC182: 0 | AD182: 36 | AE182: 5.37 | AF182: 49 | AG182: 7.1 | AH182: 2.4 | AI182: 8.5 | AJ182: 3.6 | AK182: 1.36 | AL182: 0.308 | AM182: 1.44 | AN182: 1.91 | AO182: 0.08 | AP182: 36 | AQ182: 109 | AR182: 11 | AS182: -2 | AT182: 4.09 | AU182: 254 | AV182: 166 | AW182: -0.73 | AX182: LP | AY182: 62.1 | AZ182: 4.58 | BA182: 75 | BB182: 20 | BC182: LP | BD182: 61.7 | BE182: 4.63 | BF182: 84 | BG182: 19 | BH182: 59.1 | BI182: 7.36 | BJ182: 5.41 | BK182: 11 | BL182: -2 | BM182: 0 | BN182: R | BO182: 3 | BP182: gsellro01 | BQ182: 607229 | BR182: Righty Hittable Control Long Relief | BS182: Joey Gerber | BT182: Sal Romano | BU182: Luis Perdomo | BV182: Priced in-line with expectations.
A183: Martinez | B183: Carlos | C183: R | D183: 2021 | E183: 29 | F183: SLN | G183: NL | H183: LP | I183: 0.56 | J183: Y | K183: 58.2 | L183: 3 | M183: 32 | N183: 6 | O183: 0 | P183: 0 | Q183: 7 | R183: 13 | S183: 248 | T183: 7 | U183: 24 | V183: 2 | W183: 56 | X183: 169 | Y183: 60 | Z183: 49 | AA183: 2 | AB183: 3 | AC183: 0 | AD183: 35 | AE183: 5.43 | AF183: 51 | AG183: 8.1 | AH183: 2.4 | AI183: 8.8 | AJ183: 3.7 | AK183: 1.1 | AL183: 0.31 | AM183: 1.45 | AN183: 1.64 | AO183: 0.06 | AP183: 47 | AQ183: 110 | AR183: 11 | AS183: -2 | AT183: 5.26 | AU183: 261 | AV183: 167 | AW183: -1.39 | AX183: EP | AY183: 61.5 | AZ183: 4.06 | BA183: 66 | BB183: 30 | BC183: LP | BD183: 61.4 | BE183: 4.04 | BF183: 73 | BG183: 30 | BH183: 55.3 | BI183: 9.02 | BJ183: 4.91 | BK183: 15 | BL183: -3.59 | BM183: -4 | BN183: R | BO183: 6 | BP183: martica04 | BQ183: 593372 | BR183: Righty Power Long Relief | BS183: Jairo Diaz | BT183: Bryan Garcia | BU183: Arodys Vizcaino | BV183: Approaching his prime years. Risky pick. Avoid. Trade bait?
A184: Mejia | B184: Humberto | C184: R | D184: 2021 | E184: 24 | F184: ARI | G184: NL | H184: LP | I184: 0.5 | J184: Y | K184: 40.3 | L184: 3 | M184: 23 | N184: 9 | O184: 0 | P184: 0 | Q184: 0 | R184: 3 | S184: 243 | T184: 12 | U184: 27 | V184: 0 | W184: 55 | X184: 158 | Y184: 92 | Z184: 52 | AA184: 3 | AB184: 6 | AC184: 0 | AD184: 58 | AE184: 5.8 | AF184: 85 | AG184: 14.4 | AH184: 2.1 | AI184: 9.4 | AJ184: 4.6 | AK184: 2 | AL184: 0.313 | AM184: 1.7 | AN184: 2.73 | AO184: 0.13 | AP184: 30 | AQ184: 118 | AR184: 11 | AS184: -3 | AT184: 2.99 | AU184: 262 | AV184: 168 | AW184: -0.75 | AX184: LP | AY184: 55.2 | AZ184: 5.18 | BA184: 84 | BB184: 12 | BC184: LP | BD184: 59.5 | BE184: 5.05 | BF184: 92 | BG184: 14 | BH184: 49.2 | BI184: 6.62 | BJ184: 6.28 | BK184: 6 | BL184: -0.82 | BM184: 5 | BN184: R | BO184: 10 | BP184: mejiahu01 | BQ184: 650668 | BR184: Young Power Long Relief | BS184: Nate Pearson | BT184: Jordan Yamamoto | BU184: Carlos Hernandez | BV184: Priced in-line with expectations.
A185: Hartlieb | B185: Geoff | C185: R | D185: 2021 | E185: 28 | F185: PIT | G185: NL | H185: LP | I185: 0.5 | J185: Y | K185: 54.2 | L185: 3 | M185: 42 | N185: 3 | O185: 0 | P185: 0 | Q185: 0 | R185: 8 | S185: 260 | T185: 9 | U185: 31 | V185: 1 | W185: 57 | X185: 174 | Y185: 52 | Z185: 48 | AA185: 4 | AB185: 3 | AC185: 0 | AD185: 32 | AE185: 5.32 | AF185: 45 | AG185: 7 | AH185: 1.8 | AI185: 8.8 | AJ185: 4.8 | AK185: 1.35 | AL185: 0.3 | AM185: 1.52 | AN185: 2.04 | AO185: 0.08 | AP185: 31 | AQ185: 108 | AR185: 11 | AS185: -1 | AT185: 1.33 | AU185: 263 | AV185: 169 | AW185: -0.62 | AX185: LP | AY185: 58.3 | AZ185: 4.72 | BA185: 77 | BB185: 17 | BC185: LP | BD185: 59 | BE185: 4.7 | BF185: 85 | BG185: 18 | BH185: 59.3 | BI185: 5.76 | BJ185: 5 | BK185: 14 | BL185: -0.44 | BM185: -4 | BN185: R | BO185: 0 | BP185: hartlge01 | BQ185: 664129 | BR185: Righty Power Long Relief | BS185: Clay Holmes | BT185: Shohei Ohtani | BU185: Carson Fulmer | BV185: Priced in-line with expectations.
A186: Rosso | B186: Ramon | C186: R | D186: 2021 | E186: 25 | F186: PHI | G186: NL | H186: LP | I186: 0.49 | J186: Y | K186: 60.6 | L186: 3 | M186: 27 | N186: 7 | O186: 0 | P186: 0 | Q186: 0 | R186: 7 | S186: 234 | T186: 9 | U186: 28 | V186: 0 | W186: 53 | X186: 154 | Y186: 49 | Z186: 48 | AA186: 5 | AB186: 3 | AC186: 1 | AD186: 32 | AE186: 5.35 | AF186: 43 | AG186: 7.6 | AH186: 1.9 | AI186: 9.4 | AJ186: 5 | AK186: 1.54 | AL186: 0.271 | AM186: 1.46 | AN186: 2.26 | AO186: 0.1 | AP186: 38 | AQ186: 109 | AR186: 11 | AS186: -1 | AT186: 2.57 | AU186: 264 | AV186: 170 | AW186: -0.56 | AX186: LP | AY186: 57.8 | AZ186: 4.83 | BA186: 79 | BB186: 16 | BC186: LP | BD186: 58.4 | BE186: 4.79 | BF186: 87 | BG186: 17 | BH186: 48.1 | BI186: 6.85 | BJ186: 5.42 | BK186: 9 | BL186: -1.5 | BM186: 1 | BN186: R | BO186: 10 | BP186: rossora01 | BQ186: 665759 | BR186: Young Power Swing Starter | BS186: Clarke Schmidt | BT186: Sean Reid-Foley | BU186: Shohei Ohtani | BV186: Priced in-line with expectations.
A187: Garrett | B187: Braxton | C187: L | D187: 2021 | E187: 23 | F187: MIA | G187: NL | H187: LP | I187: 0.48 | J187: Y | K187: 34.5 | L187: 3 | M187: 22 | N187: 8 | O187: 0 | P187: 0 | Q187: 0 | R187: 3 | S187: 232 | T187: 12 | U187: 26 | V187: 0 | W187: 53 | X187: 154 | Y187: 87 | Z187: 53 | AA187: 5 | AB187: 4 | AC187: 1 | AD187: 57 | AE187: 5.86 | AF187: 78 | AG187: 13.9 | AH187: 2 | AI187: 9.5 | AJ187: 4.7 | AK187: 2.19 | AL187: 0.302 | AM187: 1.68 | AN187: 2.96 | AO187: 0.14 | AP187: 26 | AQ187: 119 | AR187: 10 | AS187: -4 | AT187: 2.86 | AU187: 275 | AV187: 172 | AW187: -0.62 | AX187: JP | AY187: 83.3 | AZ187: 5.38 | BA187: 88 | BB187: 14 | BC187: LP | BD187: 76.7 | BE187: 5.24 | BF187: 95 | BG187: 15 | BH187: 45.4 | BI187: 7.1 | BJ187: 6.89 | BK187: 4 | BL187: -1.24 | BM187: 6 | BN187: R | BO187: 31 | BP187: garrebr01 | BQ187: 666129 | BR187: Young Lefty Power Long Relief | BS187: Tucker Davidson | BT187: Jonathan Stiever | BU187: Bruce Zimmermann | BV187: Priced in-line with expectations.
A188: Santos | B188: Antonio | C188: R | D188: 2021 | E188: 24 | F188: COL | G188: NL | H188: LP | I188: 0.45 | J188: Y | K188: 64.8 | L188: 2 | M188: 23 | N188: 7 | O188: 0 | P188: 0 | Q188: 0 | R188: 3 | S188: 230 | T188: 9 | U188: 25 | V188: 0 | W188: 46 | X188: 145 | Y188: 63 | Z188: 52 | AA188: 2 | AB188: 5 | AC188: 0 | AD188: 42 | AE188: 5.82 | AF188: 50 | AG188: 9.1 | AH188: 1.9 | AI188: 8.5 | AJ188: 4.5 | AK188: 1.7 | AL188: 0.305 | AM188: 1.62 | AN188: 2.39 | AO188: 0.1 | AP188: 19 | AQ188: 118 | AR188: 8 | AS188: -3 | AT188: 0.08 | AU188: 313 | AV188: 173 | AW188: -0.89 | AX188: LP | AY188: 58.3 | AZ188: 5.02 | BA188: 82 | BB188: 14 | BC188: LP | BD188: 58.6 | BE188: 4.94 | BF188: 90 | BG188: 15 | BH188: 41.5 | BI188: 9.36 | BJ188: 6.02 | BK188: 6 | BL188: -3.53 | BM188: 2 | BN188: R | BO188: 17 | BP188: santoan02 | BQ188: 665733 | BR188: Young Swing Starter | BS188: Kyle Wright | BT188: Chase De Jong | BU188: Luis Ortiz | BV188: Priced in-line with expectations.
A189: Crowe | B189: Wil | C189: R | D189: 2021 | E189: 26 | F189: PIT | G189: NL | H189: LP | I189: 0.47 | J189: Y | K189: 11.2 | L189: 2 | M189: 22 | N189: 9 | O189: 0 | P189: 0 | Q189: 0 | R189: 3 | S189: 230 | T189: 14 | U189: 28 | V189: 0 | W189: 48 | X189: 146 | Y189: 92 | Z189: 59 | AA189: 3 | AB189: 6 | AC189: 0 | AD189: 67 | AE189: 6.51 | AF189: 82 | AG189: 15.1 | AH189: 1.7 | AI189: 8.9 | AJ189: 5.1 | AK189: 2.5 | AL189: 0.317 | AM189: 1.84 | AN189: 3.35 | AO189: 0.16 | AP189: 7 | AQ189: 132 | AR189: 7 | AS189: -9 | AT189: 0 | AU189: 339 | AV189: 174 | AW189: -0.96 | AX189: JP | AY189: 76.2 | AZ189: 5.78 | BA189: 94 | BB189: 11 | BC189: LP | BD189: 73 | BE189: 5.55 | BF189: 101 | BG189: 12 | BH189: 44.9 | BI189: 9.03 | BJ189: 8.25 | BK189: 2 | BL189: -2.51 | BM189: 5 | BN189: R | BO189: 28 | BP189: crowewi01 | BQ189: 640444 | BR189: Righty Power Wild Long Relief | BS189: Kyle Hart | BT189: Johan Oviedo | BU189: Casey Mize | BV189: Avoid drafting.
A190: Chafin | B190: Andrew | C190: L | D190: 2021 | E190: 31 | F190: CHN | G190: NL | H190: JP | I190: 0.46 | J190: Y | K190: 42.5 | L190: 3 | M190: 64 | N190: 4 | O190: 0 | P190: 0 | Q190: 1 | R190: 11 | S190: 287 | T190: 9 | U190: 28 | V190: 1 | W190: 68 | X190: 196 | Y190: 42 | Z190: 42 | AA190: 2 | AB190: 2 | AC190: 0 | AD190: 23 | AE190: 4.7 | AF190: 25 | AG190: 3.4 | AH190: 2.4 | AI190: 9.3 | AJ190: 3.8 | AK190: 1.26 | AL190: 0.343 | AM190: 1.39 | AN190: 1.82 | AO190: 0.08 | AP190: 66 | AQ190: 96 | AR190: 15 | AS190: 2 | AT190: 2.59 | AU190: 191 | AV190: 1 | AW190: -0.22 | AX190: LP | AY190: 55.4 | AZ190: 4.35 | BA190: 71 | BB190: 22 | BC190: JP | BD190: 81.6 | BE190: 4.48 | BF190: 81 | BG190: 25 | BH190: 34.6 | BI190: 8.03 | BJ190: 4.17 | BK190: 21 | BL190: -3.33 | BM190: -6 | BN190: R | BO190: 47 | BP190: chafian01 | BQ190: 605177 | BR190: Lefty Power RP | BS190: Chasen Shreve | BT190: Tim Hill | BU190: Tim Mayza | BV190: In prime. Priced in-line with expectations. Trade bait?
A191: Morgan | B191: Adam | C191: L | D191: 2021 | E191: 31 | F191: PHI | G191: NL | H191: JP | I191: 0.43 | J191: Y | K191: 42.3 | L191: 3 | M191: 64 | N191: 3 | O191: 0 | P191: 0 | Q191: 1 | R191: 11 | S191: 289 | T191: 11 | U191: 30 | V191: 2 | W191: 64 | X191: 196 | Y191: 41 | Z191: 45 | AA191: 2 | AB191: 2 | AC191: 0 | AD191: 25 | AE191: 4.97 | AF191: 22 | AG191: 2.9 | AH191: 2.1 | AI191: 8.8 | AJ191: 4.1 | AK191: 1.46 | AL191: 0.314 | AM191: 1.41 | AN191: 2.08 | AO191: 0.09 | AP191: 39 | AQ191: 101 | AR191: 12 | AS191: 0 | AT191: 1.35 | AU191: 236 | AV191: 4 | AW191: -0.25 | AX191: LP | AY191: 55.3 | AZ191: 4.71 | BA191: 77 | BB191: 17 | BC191: JP | BD191: 81.2 | BE191: 4.72 | BF191: 86 | BG191: 21 | BH191: 39.2 | BI191: 7.76 | BJ191: 4.72 | BK191: 14 | BL191: -2.79 | BM191: -2 | BN191: R | BO191: 42 | BP191: morgaad01 | BQ191: 605388 | BR191: Lefty Power RP | BS191: Luis Avilan | BT191: Daniel Stumpf | BU191: Sam Selman | BV191: In prime. Priced in-line with expectations. Trade bait?
A192: Cimber | B192: Adam | C192: R | D192: 2021 | E192: 30 | F192: MIA | G192: NL | H192: JP | I192: 0.5 | J192: Y | K192: 45.5 | L192: 3 | M192: 58 | N192: 4 | O192: 0 | P192: 0 | Q192: 1 | R192: 13 | S192: 296 | T192: 9 | U192: 25 | V192: 2 | W192: 57 | X192: 205 | Y192: 46 | Z192: 45 | AA192: 1 | AB192: 2 | AC192: 0 | AD192: 25 | AE192: 5.04 | AF192: 24 | AG192: 3.2 | AH192: 2.3 | AI192: 7.5 | AJ192: 3.3 | AK192: 1.18 | AL192: 0.31 | AM192: 1.35 | AN192: 1.67 | AO192: 0.06 | AP192: 26 | AQ192: 103 | AR192: 12 | AS192: 0 | AT192: 1.89 | AU192: 238 | AV192: 7 | AW192: -0.54 | AX192: LP | AY192: 59.1 | AZ192: 4.43 | BA192: 72 | BB192: 22 | BC192: JP | BD192: 83.7 | BE192: 4.5 | BF192: 82 | BG192: 25 | BH192: 38.2 | BI192: 7.56 | BJ192: 4.13 | BK192: 22 | BL192: -2.51 | BM192: -10 | BN192: R | BO192: 45 | BP192: cimbead01 | BQ192: 643256 | BR192: Righty Super Control RP | BS192: Kevin McCarthy | BT192: Casey Sadler | BU192: David Hale | BV192: In prime. Priced in-line with expectations. Trade bait?
A193: Stephenson | B193: Robert | C193: R | D193: 2021 | E193: 28 | F193: COL | G193: NL | H193: JP | I193: 0.46 | J193: Y | K193: 49.4 | L193: 3 | M193: 50 | N193: 4 | O193: 0 | P193: 0 | Q193: 0 | R193: 12 | S193: 305 | T193: 15 | U193: 30 | V193: 2 | W193: 75 | X193: 210 | Y193: 45 | Z193: 46 | AA193: 2 | AB193: 2 | AC193: 0 | AD193: 30 | AE193: 5.08 | AF193: 21 | AG193: 2.8 | AH193: 2.5 | AI193: 9.7 | AJ193: 3.9 | AK193: 1.92 | AL193: 0.3 | AM193: 1.36 | AN193: 2.56 | AO193: 0.12 | AP193: 56 | AQ193: 103 | AR193: 12 | AS193: 0 | AT193: 2.87 | AU193: 238 | AV193: 5 | AW193: -0.19 | AX193: LP | AY193: 58 | AZ193: 4.85 | BA193: 79 | BB193: 16 | BC193: JP | BD193: 83.1 | BE193: 4.89 | BF193: 89 | BG193: 19 | BH193: 36.9 | BI193: 8.99 | BJ193: 7.01 | BK193: 3 | BL193: -3.91 | BM193: 9 | BN193: R | BO193: 46 | BP193: stephro01 | BQ193: 596112 | BR193: Righty Power RP | BS193: Dovydas Neverauskas | BT193: Dominic Leone | BU193: Taylor Widener | BV193: Priced in-line with expectations.
A194: McGowin | B194: Kyle | C194: R | D194: 2021 | E194: 29 | F194: WAS | G194: NL | H194: JP | I194: 0.33 | J194: Y | K194: 43.5 | L194: 2 | M194: 43 | N194: 5 | O194: 0 | P194: 0 | Q194: 1 | R194: 12 | S194: 287 | T194: 13 | U194: 31 | V194: 2 | W194: 64 | X194: 190 | Y194: 45 | Z194: 45 | AA194: 3 | AB194: 2 | AC194: 0 | AD194: 30 | AE194: 5 | AF194: 14 | AG194: 2 | AH194: 2.1 | AI194: 9.1 | AJ194: 4.3 | AK194: 1.81 | AL194: 0.323 | AM194: 1.51 | AN194: 2.5 | AO194: 0.11 | AP194: 37 | AQ194: 102 | AR194: 12 | AS194: 1 | AT194: 0.6 | AU194: 239 | AV194: 6 | AW194: -0.2 | AX194: LP | AY194: 55.9 | AZ194: 4.88 | BA194: 79 | BB194: 15 | BC194: JP | BD194: 81.7 | BE194: 4.8 | BF194: 87 | BG194: 20 | BH194: 35.1 | BI194: 7.5 | BJ194: 4.39 | BK194: 17 | BL194: -2.51 | BM194: -5 | BN194: R | BO194: 47 | BP194: mcgowky01 | BQ194: 641851 | BR194: Righty Power RP | BS194: Mike Shawaryn | BT194: Zack Burdi | BU194: Jake Jewell | BV194: Approaching his prime years. Priced in-line with expectations. Trade bait?
A195: Crick | B195: Kyle | C195: R | D195: 2021 | E195: 28 | F195: PIT | G195: NL | H195: JP | I195: 0.45 | J195: Y | K195: 42.7 | L195: 2 | M195: 49 | N195: 4 | O195: 0 | P195: 0 | Q195: 1 | R195: 10 | S195: 284 | T195: 10 | U195: 31 | V195: 2 | W195: 67 | X195: 191 | Y195: 39 | Z195: 45 | AA195: 2 | AB195: 3 | AC195: 0 | AD195: 24 | AE195: 5.02 | AF195: 25 | AG195: 3.5 | AH195: 2.1 | AI195: 9.4 | AJ195: 4.4 | AK195: 1.35 | AL195: 0.333 | AM195: 1.42 | AN195: 1.99 | AO195: 0.08 | AP195: 53 | AQ195: 102 | AR195: 11 | AS195: 0 | AT195: 0.92 | AU195: 250 | AV195: 9 | AW195: -0.43 | AX195: LP | AY195: 54.7 | AZ195: 4.61 | BA195: 75 | BB195: 18 | BC195: JP | BD195: 81.6 | BE195: 4.59 | BF195: 83 | BG195: 23 | BH195: 27.7 | BI195: 10.14 | BJ195: 4.1 | BK195: 20 | BL195: -5.12 | BM195: -9 | BN195: R | BO195: 54 | BP195: crickky01 | BQ195: 605195 | BR195: Righty Power RP | BS195: Carl Edwards | BT195: Dan Altavilla | BU195: Evan Phillips | BV195: Priced in-line with expectations.
A196: Alvarez | B196: Jose | C196: L | D196: 2021 | E196: 32 | F196: PHI | G196: NL | H196: JP | I196: 0.47 | J196: Y | K196: 39.5 | L196: 3 | M196: 53 | N196: 4 | O196: 0 | P196: 0 | Q196: 1 | R196: 8 | S196: 272 | T196: 9 | U196: 25 | V196: 2 | W196: 56 | X196: 188 | Y196: 41 | Z196: 46 | AA196: 2 | AB196: 1 | AC196: 0 | AD196: 20 | AE196: 5.08 | AF196: 26 | AG196: 3.7 | AH196: 2.3 | AI196: 8.1 | AJ196: 3.5 | AK196: 1.21 | AL196: 0.323 | AM196: 1.38 | AN196: 1.73 | AO196: 0.07 | AP196: 34 | AQ196: 103 | AR196: 11 | AS196: 0 | AT196: 1.04 | AU196: 258 | AV196: 10 | AW196: -0.49 | AX196: JP | AY196: 82.6 | AZ196: 4.53 | BA196: 74 | BB196: 25 | BC196: JP | BD196: 98 | BE196: 4.59 | BF196: 83 | BG196: 27 | BH196: 28.8 | BI196: 8.19 | BJ196: 4.02 | BK196: 22 | BL196: -3.11 | BM196: -11 | BN196: R | BO196: 69 | BP196: alvarjo02 | BQ196: 501625 | BR196: Lefty Control RP | BS196: Adam Kolarek | BT196: Adam Conley | BU196: Tyler Webb | BV196: Risky pick. Avoid. Trade bait?
A197: Irvin | B197: Cole | C197: L | D197: 2021 | E197: 27 | F197: PHI | G197: NL | H197: JP | I197: 0.39 | J197: Y | K197: 47.8 | L197: 2 | M197: 37 | N197: 5 | O197: 0 | P197: 0 | Q197: 1 | R197: 7 | S197: 286 | T197: 11 | U197: 26 | V197: 1 | W197: 59 | X197: 190 | Y197: 49 | Z197: 47 | AA197: 2 | AB197: 2 | AC197: 0 | AD197: 31 | AE197: 5.18 | AF197: 18 | AG197: 2.5 | AH197: 2.2 | AI197: 8.3 | AJ197: 3.7 | AK197: 1.61 | AL197: 0.33 | AM197: 1.5 | AN197: 2.2 | AO197: 0.09 | AP197: 29 | AQ197: 105 | AR197: 11 | AS197: 0 | AT197: 0.29 | AU197: 266 | AV197: 11 | AW197: -0.42 | AX197: LP | AY197: 56.6 | AZ197: 4.76 | BA197: 78 | BB197: 17 | BC197: JP | BD197: 82.1 | BE197: 4.76 | BF197: 86 | BG197: 21 | BH197: 26.5 | BI197: 12.62 | BJ197: 4.91 | BK197: 10 | BL197: -7.44 | BM197: 1 | BN197: R | BO197: 56 | BP197: irvinco01 | BQ197: 608344 | BR197: Lefty Control RP | BS197: Ranger Suarez | BT197: Lewis Thorpe | BU197: Thomas Pannone | BV197: Priced in-line with expectations.
A198: Romano | B198: Sal | C198: R | D198: 2021 | E198: 27 | F198: CIN | G198: NL | H198: JP | I198: 0.44 | J198: Y | K198: 46.7 | L198: 2 | M198: 31 | N198: 6 | O198: 0 | P198: 0 | Q198: 1 | R198: 6 | S198: 255 | T198: 9 | U198: 24 | V198: 2 | W198: 51 | X198: 173 | Y198: 46 | Z198: 47 | AA198: 2 | AB198: 2 | AC198: 0 | AD198: 27 | AE198: 5.17 | AF198: 24 | AG198: 3.7 | AH198: 2.1 | AI198: 7.9 | AJ198: 3.7 | AK198: 1.44 | AL198: 0.309 | AM198: 1.45 | AN198: 2.01 | AO198: 0.08 | AP198: 24 | AQ198: 105 | AR198: 11 | AS198: 0 | AT198: 0.54 | AU198: 267 | AV198: 12 | AW198: -0.5 | AX198: LP | AY198: 53.7 | AZ198: 4.69 | BA198: 76 | BB198: 17 | BC198: JP | BD198: 78.8 | BE198: 4.66 | BF198: 85 | BG198: 22 | BH198: 20.4 | BI198: 16.36 | BJ198: 4.58 | BK198: 11 | BL198: -11.2 | BM198: -1 | BN198: R | BO198: 58 | BP198: romansa01 | BQ198: 607219 | BR198: Righty Control RP | BS198: Heath Fillmyer | BT198: Walker Lockett | BU198: Joey Gerber | BV198: Priced in-line with expectations.
A199: Adams | B199: Austin | C199: R | D199: 2021 | E199: 30 | F199: SDN | G199: NL | H199: JP | I199: 0.32 | J199: Y | K199: 39.6 | L199: 2 | M199: 41 | N199: 5 | O199: 0 | P199: 0 | Q199: 0 | R199: 9 | S199: 268 | T199: 11 | U199: 31 | V199: 1 | W199: 64 | X199: 179 | Y199: 39 | Z199: 46 | AA199: 3 | AB199: 2 | AC199: 0 | AD199: 26 | AE199: 5.1 | AF199: 17 | AG199: 2.5 | AH199: 2 | AI199: 9.7 | AJ199: 4.7 | AK199: 1.63 | AL199: 0.33 | AM199: 1.49 | AN199: 2.33 | AO199: 0.1 | AP199: 50 | AQ199: 104 | AR199: 11 | AS199: 0 | AT199: 0 | AU199: 269 | AV199: 13 | AW199: -0.28 | AX199: JP | AY199: 84.1 | AZ199: 4.83 | BA199: 79 | BB199: 20 | BC199: JP | BD199: 98.7 | BE199: 4.81 | BF199: 87 | BG199: 23 | BH199: 25.6 | BI199: 10.66 | BJ199: 5.12 | BK199: 8 | BL199: -5.56 | BM199: 2 | BN199: R | BO199: 73 | BP199: adamsau02 | BQ199: 613534 | BR199: Righty Power RP | BS199: Carl Edwards | BT199: Kyle Crick | BU199: Josh James | BV199: In prime. Priced in-line with expectations. Trade bait?
A200: Kahnle | B200: Thomas | C200: R | D200: 2021 | E200: 31 | F200: LAN | G200: NL | H200: JP | I200: 0.41 | J200: Y | K200: 37.6 | L200: 2 | M200: 50 | N200: 3 | O200: 0 | P200: 0 | Q200: 0 | R200: 8 | S200: 260 | T200: 9 | U200: 25 | V200: 1 | W200: 66 | X200: 180 | Y200: 35 | Z200: 46 | AA200: 3 | AB200: 2 | AC200: 0 | AD200: 21 | AE200: 5.07 | AF200: 18 | AG200: 2.7 | AH200: 2.7 | AI200: 9.8 | AJ200: 3.7 | AK200: 1.4 | AL200: 0.335 | AM200: 1.31 | AN200: 1.97 | AO200: 0.09 | AP200: 75 | AQ200: 103 | AR200: 11 | AS200: 0 | AT200: 1.56 | AU200: 266 | AV200: 18 | AW200: -0.58 | AX200: JP | AY200: 81.5 | AZ200: 4.38 | BA200: 71 | BB200: 27 | BC200: JP | BD200: 97.7 | BE200: 4.49 | BF200: 81 | BG200: 28 | BH200: 21.8 | BI200: 9.89 | BJ200: 3.65 | BK200: 29 | BL200: -4.82 | BM200: -18 | BN200: R | BO200: 76 | BP200: kahnlto01 | BQ200: 592454 | BR200: Righty Power RP | BS200: Austin Brice | BT200: Daniel Winkler | BU200: Matt Magill | BV200: In prime. Priced in-line with expectations. Trade bait?
... 761 more rows

Sheet BAT2021forecast
A1: http://baseballguru.com | C1: FORECAST AS OF 1/29/2021 | H1: Make Selections by Clicking on Header ARROWS (like pos or league) | K1: Percentage of forecast based on players own stats | L1: eXpected wOBA for someone at his position and playing time | M1: eXpected mGURU for someone at his position and playing time | N1: Played last year | O1: Games | P1: Times at Plate | Q1: At Bats | R1: Runs | S1: Hits | T1: Doubles | U1: Triples | V1: Home runs | W1: Runs batted in | X1: Stolen bases | Y1: Times caught stealing | Z1: Walks | AA1: Strike outs | AB1: Intentional walks | AC1: Hit by pitch | AD1: Sacrifice hits | AE1: Sacrifice flies | AF1: Ground into double play | AG1: Batting average | AH1: On base percentage | AI1: Slugging percentage | AJ1: Rate of performace, like OPS but more accurate. Based on Tom Tango's "The Book" | AK1: Production, like linear weights. It is mWOBA * mTAP | AL1: Batting value, based on weighting between m WOBA and mPRO | AM1: Batting value where mGURU is weighted by positional scarcity | AN1: Dollar value, based on 5x5 Rotisserie: Avg, HR, SB, RBI, R | AO1: Dollar value, based on 5x5: Avg, HR, SB, RBI, R. Weighted by positional scarcity | AP1: Value (runs contributed) Over Replacement Player at same position | AQ1: Position rank | AR1: Rank overall among batters | AS1: Position league rank | AT1: Playing time: Y=Starter, N=Not starter or Inj risk or performance risk, B=Bench | AU1: Difference between forecasted performace rate and last years. Positive numbers are sleepers, mwOBA-wOBA | AV1: Difference between forecast and last years value. Sleepers have high values. | AW1: Draft Value: S=Sleeper, R=Regular, O=Overpriced | AX1: Times at plate last year -- PROJECTED | AY1: Batting average last year -- PROJECTED | AZ1: On base percentage last year -- PROJECTED | BA1: Slugging percentage last year -- PROJECTED | BB1: Rate of performace, like OPS but more accurate. Based on Tom Tango's "The Book" -- PROJECTED | BC1: Last years Production, like linear weights. It is wOBA * mTAP -- PROJECTED | BD1: Batting value last year -- PROJECTED | BE1: Lahman PlayerID | BF1: MLB ID | BG1: Description of player for predicted season | BH1: Most Similar Player | BI1: Second Most Similar Player | BJ1: Third Most Similar Player | BK1: Words to the wise
A2: nameLast | B2: nameFirst | C2: bats | D2: yearp | E2: age | F2: teamID | G2: lg | H2: pos | I2: pos2 | J2: pos3 | K2: reliability | L2: xWOBA | M2: xGURU | N2: play | O2: mG | P2: mTAP | Q2: mAB | R2: mR | S2: mH | T2: mDB | U2: mTR | V2: mHR | W2: mRBI | X2: mSB | Y2: mCS | Z2: mBB | AA2: mSO | AB2: mIBB | AC2: mHPB | AD2: mSH | AE2: mSF | AF2: mGIDP | AG2: mAVG | AH2: mOBP | AI2: mSLG | AJ2: mWOBA | AK2: mPRO | AL2: mGURU | AM2: mGURUwt | AN2: mROTO | AO2: mROTOwt | AP2: mVORP | AQ2: prank | AR2: rank | AS2: plrank | AT2: mstarter | AU2: wobad | AV2: gurud | AW2: value | AX2: tap_2020 | AY2: avg_2020 | AZ2: obp_2020 | BA2: slg_2020 | BB2: wOBA_2020 | BC2: PRO_2020 | BD2: GURU_2020 | BE2: PlayerID | BF2: MLBAM_ID | BG2: Description | BH2: Match1 | BI2: Match2 | BJ2: Match3 | BK2: Advice
A3: Tatis Jr. | B3: Fernando | C3: R | D3: 2021 | E3: 22 | F3: SDN | G3: NL | H3: SS | K3: 0.84 | L3: 0.329 | M3: 51 | N3: Y | O3: 146 | P3: 601 | Q3: 523 | R3: 91 | S3: 136 | T3: 30 | U3: 8 | V3: 27 | W3: 81 | X3: 30 | Y3: 6 | Z3: 67 | AA3: 136 | AB3: 2 | AC3: 8 | AD3: 0 | AE3: 3 | AF3: 11 | AG3: 0.26 | AH3: 0.35 | AI3: 0.498 | AJ3: 0.365 | AK3: 219 | AL3: 80 | AM3: 94 | AN3: 33 | AO3: 39 | AP3: 40 | AQ3: 1 | AR3: 4 | AS3: 1 | AT3: Y | AU3: -0.02 | AV3: -19 | AW3: O | AX3: 653 | AY3: 0.268 | AZ3: 0.358 | BA3: 0.536 | BB3: 0.381 | BC3: 249 | BD3: 99 | BE3: tatisfe02 | BF3: 665487 | BG3: Young Fantasy Star | BH3: Trent Grisham | BI3: Trevor Story | BJ3: Ozzie Albies | BK3: Career on the rise. Track his progress to determine upside. Will have to pay premium to get him. MVP candidate.
A4: Story | B4: Trevor | C4: R | D4: 2021 | E4: 28 | F4: COL | G4: NL | H4: SS | K4: 0.87 | L4: 0.329 | M4: 51 | N4: Y | O4: 140 | P4: 581 | Q4: 540 | R4: 84 | S4: 144 | T4: 34 | U4: 6 | V4: 29 | W4: 73 | X4: 22 | Y4: 6 | Z4: 34 | AA4: 136 | AB4: 2 | AC4: 4 | AD4: 0 | AE4: 2 | AF4: 8 | AG4: 0.266 | AH4: 0.314 | AI4: 0.514 | AJ4: 0.351 | AK4: 204 | AL4: 68 | AM4: 79 | AN4: 31 | AO4: 36 | AP4: 30 | AQ4: 3 | AR4: 8 | AS4: 2 | AT4: Y | AU4: -0.01 | AV4: -14 | AW4: R | AX4: 644 | AY4: 0.278 | AZ4: 0.334 | BA4: 0.517 | BB4: 0.363 | BC4: 234 | BD4: 82 | BE4: storytr01 | BF4: 596115 | BG4: SB Dominant Hitter | BH4: Javier Baez | BI4: Trea Turner | BJ4: Ozzie Albies | BK4: Poised for modest break out above last year. Expected to play regularly. Major star, must have.
A5: Seager | B5: Corey | C5: L | D5: 2021 | E5: 27 | F5: LAN | G5: NL | H5: SS | K5: 0.82 | L5: 0.329 | M5: 51 | N5: Y | O5: 138 | P5: 554 | Q5: 504 | R5: 79 | S5: 135 | T5: 37 | U5: 2 | V5: 23 | W5: 81 | X5: 3 | Y5: 1 | Z5: 42 | AA5: 94 | AB5: 2 | AC5: 4 | AD5: 0 | AE5: 4 | AF5: 12 | AG5: 0.268 | AH5: 0.327 | AI5: 0.488 | AJ5: 0.349 | AK5: 193 | AL5: 65 | AM5: 74 | AN5: 24 | AO5: 28 | AP5: 28 | AQ5: 5 | AR5: 15 | AS5: 3 | AT5: Y | AU5: -0.02 | AV5: -21 | AW5: O | AX5: 598 | AY5: 0.288 | AZ5: 0.342 | BA5: 0.535 | BB5: 0.372 | BC5: 222 | BD5: 86 | BE5: seageco01 | BF5: 608369 | BG5: Dominant Hitter | BH5: Xander Bogaerts | BI5: Francisco Lindor | BJ5: Marcus Semien | BK5: Should perform close to forecast. Will have to pay premium to get him. Possible All-star.
A6: Turner | B6: Trea | C6: R | D6: 2021 | E6: 27 | F6: WAS | G6: NL | H6: SS | K6: 0.87 | L6: 0.329 | M6: 51 | N6: Y | O6: 134 | P6: 590 | Q6: 548 | R6: 90 | S6: 153 | T6: 31 | U6: 6 | V6: 20 | W6: 66 | X6: 29 | Y6: 6 | Z6: 35 | AA6: 103 | AB6: 2 | AC6: 4 | AD6: 1 | AE6: 2 | AF6: 9 | AG6: 0.279 | AH6: 0.324 | AI6: 0.466 | AJ6: 0.34 | AK6: 201 | AL6: 62 | AM6: 72 | AN6: 32 | AO6: 38 | AP6: 24 | AQ6: 6 | AR6: 18 | AS6: 4 | AT6: Y | AU6: -0.04 | AV6: -34 | AW6: O | AX6: 655 | AY6: 0.307 | AZ6: 0.359 | BA6: 0.524 | BB6: 0.377 | BC6: 247 | BD6: 96 | BE6: turnetr01 | BF6: 607208 | BG6: SB Dominant Hitter | BH6: Amed Rosario | BI6: Ozzie Albies | BJ6: Whit Merrifield | BK6: Should perform close to forecast. Will have to pay premium to get him. Possible All-star.
A7: Swanson | B7: Dansby | C7: R | D7: 2021 | E7: 27 | F7: ATL | G7: NL | H7: SS | K7: 0.85 | L7: 0.329 | M7: 51 | N7: Y | O7: 144 | P7: 526 | Q7: 470 | R7: 70 | S7: 114 | T7: 31 | U7: 3 | V7: 18 | W7: 60 | X7: 9 | Y7: 3 | Z7: 46 | AA7: 116 | AB7: 5 | AC7: 5 | AD7: 2 | AE7: 3 | AF7: 6 | AG7: 0.243 | AH7: 0.314 | AI7: 0.437 | AJ7: 0.326 | AK7: 171 | AL7: 49 | AM7: 55 | AN7: 18 | AO7: 20 | AP7: 14 | AQ7: 11 | AR7: 48 | AS7: 5 | AT7: Y | AU7: -0.01 | AV7: -14 | AW7: R | AX7: 625 | AY7: 0.259 | AZ7: 0.33 | BA7: 0.448 | BB7: 0.338 | BC7: 212 | BD7: 63 | BE7: swansda01 | BF7: 621020 | BG7: Agile Slugger | BH7: Willy Adames | BI7: Paul DeJong | BJ7: Orlando Arcia | BK7: Should perform close to forecast. Expected to play regularly. Solid keeper.
A8: Baez | B8: Javier | C8: R | D8: 2021 | E8: 28 | F8: CHN | G8: NL | H8: SS | K8: 0.85 | L8: 0.329 | M8: 51 | N8: Y | O8: 140 | P8: 502 | Q8: 476 | R8: 68 | S8: 117 | T8: 32 | U8: 5 | V8: 25 | W8: 66 | X8: 10 | Y8: 4 | Z8: 19 | AA8: 126 | AB8: 3 | AC8: 4 | AD8: 0 | AE8: 3 | AF8: 14 | AG8: 0.244 | AH8: 0.278 | AI8: 0.49 | AJ8: 0.323 | AK8: 162 | AL8: 46 | AM8: 52 | AN8: 21 | AO8: 24 | AP8: 12 | AQ8: 14 | AR8: 64 | AS8: 6 | AT8: Y | AU8: 0.03 | AV8: 13 | AW8: S | AX8: 560 | AY8: 0.223 | AZ8: 0.257 | BA8: 0.424 | BB8: 0.29 | BC8: 162 | BD8: 33 | BE8: baezja01 | BF8: 595879 | BG8: SB Slugger | BH8: Trevor Story | BI8: Jonathan Schoop | BJ8: Niko Goodrum | BK8: Poised for modest break out above last year. Won't fetch fair value in trade. Solid keeper.
A9: DeJong | B9: Paul | C9: R | D9: 2021 | E9: 27 | F9: SLN | G9: NL | H9: SS | K9: 0.84 | L9: 0.329 | M9: 51 | N9: Y | O9: 129 | P9: 456 | Q9: 402 | R9: 58 | S9: 94 | T9: 25 | U9: 1 | V9: 19 | W9: 55 | X9: 5 | Y9: 2 | Z9: 41 | AA9: 103 | AB9: 1 | AC9: 7 | AD9: 0 | AE9: 5 | AF9: 10 | AG9: 0.233 | AH9: 0.313 | AI9: 0.44 | AJ9: 0.326 | AK9: 149 | AL9: 45 | AM9: 50 | AN9: 14 | AO9: 16 | AP9: 12 | AQ9: 16 | AR9: 79 | AS9: 7 | AT9: Y | AU9: 0.01 | AV9: 6 | AW9: S | AX9: 465 | AY9: 0.241 | AZ9: 0.315 | BA9: 0.394 | BB9: 0.312 | BC9: 145 | BD9: 39 | BE9: dejonpa01 | BF9: 657557 | BG9: Slugger | BH9: Carlos Correa | BI9: Dansby Swanson | BJ9: Willy Adames | BK9: Best years may still be ahead, even if last year was a little disappointing. Will outperform last year, assuming regular playing time.
A10: Newman | B10: Kevin | C10: R | D10: 2021 | E10: 27 | F10: PIT | G10: NL | H10: SS | I10: 2B | K10: 0.8 | L10: 0.329 | M10: 51 | N10: Y | O10: 131 | P10: 488 | Q10: 449 | R10: 51 | S10: 119 | T10: 20 | U10: 3 | V10: 10 | W10: 48 | X10: 9 | Y10: 5 | Z10: 30 | AA10: 70 | AB10: 2 | AC10: 5 | AD10: 2 | AE10: 3 | AF10: 6 | AG10: 0.266 | AH10: 0.316 | AI10: 0.389 | AJ10: 0.311 | AK10: 152 | AL10: 39 | AM10: 44 | AN10: 15 | AO10: 17 | AP10: 6 | AQ10: 19 | AR10: 112 | AS10: 8 | AT10: Y | AU10: 0.03 | AV10: 11 | AW10: S | AX10: 470 | AY10: 0.247 | AZ10: 0.302 | BA10: 0.336 | BB10: 0.285 | BC10: 134 | BD10: 28 | BE10: newmake01 | BF10: 621028 | BG10: Agile Capable Hitter | BH10: Isiah Kiner-Falefa | BI10: Kolten Wong | BJ10: Jean Segura | BK10: Best years may still be ahead, even if last year was a little disappointing. Will outperform last year, assuming regular playing time. Keeper.
A11: Ahmed | B11: Nick | C11: R | D11: 2021 | E11: 31 | F11: ARI | G11: NL | H11: SS | K11: 0.85 | L11: 0.329 | M11: 51 | N11: Y | O11: 136 | P11: 450 | Q11: 409 | R11: 55 | S11: 99 | T11: 24 | U11: 3 | V11: 15 | W11: 56 | X11: 6 | Y11: 2 | Z11: 34 | AA11: 86 | AB11: 1 | AC11: 2 | AD11: 1 | AE11: 5 | AF11: 11 | AG11: 0.242 | AH11: 0.298 | AI11: 0.424 | AJ11: 0.312 | AK11: 140 | AL11: 38 | AM11: 42 | AN11: 14 | AO11: 16 | AP11: 6 | AQ11: 22 | AR11: 133 | AS11: 9 | AT11: Y | AU11: 0 | AV11: -6 | AW11: R | AX11: 520 | AY11: 0.253 | AZ11: 0.312 | BA11: 0.411 | BB11: 0.316 | BC11: 164 | BD11: 43 | BE11: ahmedni01 | BF11: 605113 | BG11: Agile Capable Hitter | BH11: Marcus Semien | BI11: Adam Frazier | BJ11: Jorge Polanco | BK11: In prime. Starter, but may sit occassionally.
A12: Taylor | B12: Chris | C12: R | D12: 2021 | E12: 30 | F12: LAN | G12: NL | H12: SS | I12: 2B | J12: OF | K12: 0.83 | L12: 0.349 | M12: 63 | N12: Y | O12: 104 | P12: 383 | Q12: 346 | R12: 49 | S12: 83 | T12: 20 | U12: 3 | V12: 12 | W12: 46 | X12: 6 | Y12: 2 | Z12: 29 | AA12: 98 | AB12: 1 | AC12: 4 | AD12: 1 | AE12: 2 | AF12: 5 | AG12: 0.239 | AH12: 0.303 | AI12: 0.418 | AJ12: 0.313 | AK12: 120 | AL12: 35 | AM12: 32 | AN12: 12 | AO12: 12 | AP12: 2 | AQ12: 26 | AR12: 193 | AS12: 10 | AT12: N | AU12: -0.03 | AV12: -24 | AW12: O | AX12: 498 | AY12: 0.255 | AZ12: 0.339 | BA12: 0.457 | BB12: 0.345 | BC12: 172 | BD12: 58 | BE12: tayloch03 | BF12: 621035 | BG12: Agile Capable Hitter | BH12: Scott Kingery | BI12: Niko Goodrum | BJ12: Nick Ahmed | BK12: Limited improvement expected from here. Risk of injury or playing time.
A13: Rojas | B13: Miguel | C13: R | D13: 2021 | E13: 32 | F13: MIA | G13: NL | H13: SS | K13: 0.83 | L13: 0.299 | M13: 23 | N13: Y | O13: 116 | P13: 469 | Q13: 431 | R13: 50 | S13: 112 | T13: 17 | U13: 1 | V13: 8 | W13: 49 | X13: 9 | Y13: 4 | Z13: 27 | AA13: 66 | AB13: 2 | AC13: 6 | AD13: 1 | AE13: 3 | AF13: 12 | AG13: 0.261 | AH13: 0.309 | AI13: 0.36 | AJ13: 0.298 | AK13: 140 | AL13: 33 | AM13: 33 | AN13: 14 | AO13: 15 | AP13: 0 | AQ13: 27 | AR13: 183 | AS13: 11 | AT13: Y | AU13: -0.04 | AV13: -14 | AW13: R | AX13: 418 | AY13: 0.278 | AZ13: 0.345 | BA13: 0.414 | BB13: 0.336 | BC13: 140 | BD13: 47 | BE13: rojasmi02 | BF13: 500743 | BG13: Agile Slap Hitter | BH13: Andrelton Simmons | BI13: Joe Panik | BJ13: Elvis Andrus | BK13: Still In prime. Starter, but may sit occassionally. Trade him for two part timers who can platoon.
A14: Arcia | B14: Orlando | C14: R | D14: 2021 | E14: 26 | F14: MIL | G14: NL | H14: SS | K14: 0.83 | L14: 0.329 | M14: 51 | N14: Y | O14: 155 | P14: 451 | Q14: 410 | R14: 46 | S14: 96 | T14: 23 | U14: 2 | V14: 12 | W14: 45 | X14: 6 | Y14: 3 | Z14: 35 | AA14: 88 | AB14: 2 | AC14: 2 | AD14: 1 | AE14: 3 | AF14: 16 | AG14: 0.237 | AH14: 0.296 | AI14: 0.387 | AJ14: 0.299 | AK14: 135 | AL14: 33 | AM14: 36 | AN14: 11 | AO14: 12 | AP14: 0 | AQ14: 28 | AR14: 157 | AS14: 12 | AT14: Y | AU14: -0.01 | AV14: -6 | AW14: R | AX14: 484 | AY14: 0.247 | AZ14: 0.306 | BA14: 0.399 | BB14: 0.309 | BC14: 150 | BD14: 38 | BE14: arciaor01 | BF14: 606115 | BG14: Capable Hitter | BH14: Dansby Swanson | BI14: Jorge Polanco | BJ14: Nicky Lopez | BK14: Some upside still, but needs to start proving it. Starter, but may sit occassionally.
A15: Crawford | B15: Brandon | C15: L | D15: 2021 | E15: 34 | F15: SFN | G15: NL | H15: SS | K15: 0.84 | L15: 0.329 | M15: 51 | N15: Y | O15: 109 | P15: 395 | Q15: 351 | R15: 44 | S15: 80 | T15: 15 | U15: 1 | V15: 11 | W15: 43 | X15: 3 | Y15: 3 | Z15: 37 | AA15: 82 | AB15: 5 | AC15: 4 | AD15: 0 | AE15: 3 | AF15: 8 | AG15: 0.229 | AH15: 0.307 | AI15: 0.371 | AJ15: 0.302 | AK15: 119 | AL15: 31 | AM15: 33 | AN15: 9 | AO15: 10 | AP15: 1 | AQ15: 32 | AR15: 179 | AS15: 13 | AT15: N | AU15: -0.02 | AV15: -13 | AW15: R | AX15: 447 | AY15: 0.241 | AZ15: 0.319 | BA15: 0.426 | BB15: 0.325 | BC15: 145 | BD15: 44 | BE15: crawfbr01 | BF15: 543063 | BG15: Aging Capable Hitter | BH15: Jason Kipnis | BI15: Robinson Cano | BJ15: Jordy Mercer | BK15: His best days are past him, but he should perform near projected levels. Risk of injury or playing time.
A16: Hoerner | B16: Nico | C16: R | D16: 2021 | E16: 23 | F16: CHN | G16: NL | H16: SS | I16: 2B | K16: 0.69 | L16: 0.299 | M16: 23 | N16: Y | O16: 107 | P16: 326 | Q16: 289 | R16: 44 | S16: 68 | T16: 13 | U16: 1 | V16: 4 | W16: 38 | X16: 7 | Y16: 3 | Z16: 29 | AA16: 61 | AB16: 1 | AC16: 4 | AD16: 0 | AE16: 3 | AF16: 7 | AG16: 0.234 | AH16: 0.311 | AI16: 0.33 | AJ16: 0.29 | AK16: 95 | AL16: 24 | AM16: 24 | AN16: 9 | AO16: 9 | AP16: -3 | AQ16: 37 | AR16: 278 | AS16: 14 | AT16: N | AU16: 0.01 | AV16: 3 | AW16: R | AX16: 330 | AY16: 0.229 | AZ16: 0.313 | BA16: 0.293 | BB16: 0.281 | BC16: 93 | BD16: 21 | BE16: hoernni01 | BF16: 663538 | BG16: Young Slap Hitter | BH16: Jahmai Jones | BI16: Jonathan Arauz | BJ16: Luis Urias | BK16: Needs to establish himself at MLB level. Risk of injury or playing time.
A17: Guillorme | B17: Luis | C17: L | D17: 2021 | E17: 26 | F17: NYN | G17: NL | H17: SS | I17: 2B | K17: 0.57 | L17: 0.299 | M17: 23 | N17: Y | O17: 92 | P17: 256 | Q17: 229 | R17: 26 | S17: 56 | T17: 13 | U17: 0 | V17: 3 | W17: 24 | X17: 4 | Y17: 1 | Z17: 23 | AA17: 50 | AB17: 0 | AC17: 1 | AD17: 1 | AE17: 2 | AF17: 6 | AG17: 0.244 | AH17: 0.315 | AI17: 0.351 | AJ17: 0.299 | AK17: 76 | AL17: 22 | AM17: 22 | AN17: 6 | AO17: 6 | AP17: 0 | AQ17: 38 | AR17: 294 | AS17: 15 | AT17: N | AU17: -0.04 | AV17: -9 | AW17: R | AX17: 224 | AY17: 0.281 | AZ17: 0.361 | BA17: 0.385 | BB17: 0.334 | BC17: 75 | BD17: 31 | BE17: guilllu01 | BF17: 641645 | BG17: Gap Power | BH17: Santiago Espinal | BI17: Donnie Walton | BJ17: Daniel Robertson | BK17: Some upside still, but needs to start proving it. Risk of injury or playing time.
A18: Robertson | B18: Daniel | C18: R | D18: 2021 | E18: 27 | F18: SFN | G18: NL | H18: SS | I18: 2B | K18: 0.69 | L18: 0.299 | M18: 23 | N18: Y | O18: 62 | P18: 208 | Q18: 182 | R18: 24 | S18: 43 | T18: 8 | U18: 1 | V18: 4 | W18: 19 | X18: 2 | Y18: 1 | Z18: 20 | AA18: 47 | AB18: 0 | AC18: 5 | AD18: 0 | AE18: 1 | AF18: 5 | AG18: 0.23 | AH18: 0.323 | AI18: 0.347 | AJ18: 0.304 | AK18: 63 | AL18: 21 | AM18: 21 | AN18: 4 | AO18: 4 | AP18: 1 | AQ18: 40 | AR18: 320 | AS18: 16 | AT18: N | AU18: -0.01 | AV18: 3 | AW18: R | AX18: 135 | AY18: 0.255 | AZ18: 0.343 | BA18: 0.34 | BB18: 0.314 | BC18: 43 | BD18: 18 | BE18: roberda10 | BF18: 621002 | BG18: Slap Hitter | BH18: Vimael Machin | BI18: Donnie Walton | BJ18: Jonathan Arauz | BK18: Make or break year for him. Fringe MLB caliber. Risk of injury or playing time.
A19: Gonzalez | B19: Erik | C19: R | D19: 2021 | E19: 29 | F19: PIT | G19: NL | H19: SS | I19: 3B | K19: 0.73 | L19: 0.299 | M19: 23 | N19: Y | O19: 104 | P19: 315 | Q19: 295 | R19: 30 | S19: 68 | T19: 16 | U19: 2 | V19: 5 | W19: 29 | X19: 5 | Y19: 3 | Z19: 13 | AA19: 73 | AB19: 1 | AC19: 2 | AD19: 2 | AE19: 3 | AF19: 7 | AG19: 0.23 | AH19: 0.264 | AI19: 0.346 | AJ19: 0.267 | AK19: 84 | AL19: 17 | AM19: 17 | AN19: 5 | AO19: 6 | AP19: -10 | AQ19: 44 | AR19: 397 | AS19: 17 | AT19: N | AU19: 0 | AV19: -3 | AW19: R | AX19: 422 | AY19: 0.229 | AZ19: 0.261 | BA19: 0.357 | BB19: 0.266 | BC19: 112 | BD19: 20 | BE19: gonzaer01 | BF19: 570481 | BG19: Agile Gap Power | BH19: Ronald Torreyes | BI19: Wilfredo Tovar | BJ19: Tzu-Wei Lin | BK19: Poised for modest break out above last year. Risk of injury or playing time.
A20: Farmer | B20: Kyle | C20: R | D20: 2021 | E20: 30 | F20: CIN | G20: NL | H20: SS | I20: 2B | K20: 0.63 | L20: 0.299 | M20: 23 | N20: Y | O20: 82 | P20: 202 | Q20: 187 | R20: 19 | S20: 43 | T20: 7 | U20: 0 | V20: 5 | W20: 21 | X20: 3 | Y20: 1 | Z20: 11 | AA20: 47 | AB20: 1 | AC20: 3 | AD20: 0 | AE20: 1 | AF20: 2 | AG20: 0.228 | AH20: 0.28 | AI20: 0.351 | AJ20: 0.28 | AK20: 57 | AL20: 15 | AM20: 15 | AN20: 4 | AO20: 4 | AP20: -4 | AQ20: 48 | AR20: 420 | AS20: 18 | AT20: N | AU20: -0.01 | AV20: -1 | AW20: R | AX20: 197 | AY20: 0.246 | AZ20: 0.302 | BA20: 0.328 | BB20: 0.285 | BC20: 56 | BD20: 16 | BE20: farmeky01 | BF20: 571657 | BG20: Agile Slap Hitter | BH20: Adeiny Hechavarria | BI20: Nate Orf | BJ20: Elliot Soto | BK20: In prime. Risk of injury or playing time.
A21: Chisholm | B21: Jazz | C21: L | D21: 2021 | E21: 23 | F21: MIA | G21: NL | H21: SS | I21: 2B | K21: 0.63 | L21: 0.249 | M21: 7 | N21: Y | O21: 100 | P21: 180 | Q21: 156 | R21: 21 | S21: 27 | T21: 6 | U21: 3 | V21: 5 | W21: 15 | X21: 6 | Y21: 3 | Z21: 22 | AA21: 49 | AB21: 0 | AC21: 2 | AD21: 0 | AE21: 0 | AF21: 2 | AG21: 0.173 | AH21: 0.281 | AI21: 0.354 | AJ21: 0.283 | AK21: 51 | AL21: 15 | AM21: 22 | AN21: 3 | AO21: 4 | AP21: -3 | AQ21: 49 | AR21: 307 | AS21: 19 | AT21: N | AU21: 0.02 | AV21: 4 | AW21: R | AX21: 169 | AY21: 0.164 | AZ21: 0.256 | BA21: 0.329 | BB21: 0.262 | BC21: 44 | BD21: 11 | BE21: chishja01 | BF21: 665862 | BG21: Young SB Wiff King | BH21: Sergio Alcantara | BI21: Brett Phillips | BJ21: Isan Diaz | BK21: Young enough to develop a lot from here. Risk of injury or playing time. Consider platooning.
A22: Difo | B22: Wilmer | C22: B | D22: 2021 | E22: 29 | F22: WAS | G22: NL | H22: SS | K22: 0.67 | L22: 0.249 | M22: 7 | N22: Y | O22: 50 | P22: 157 | Q22: 144 | R22: 18 | S22: 33 | T22: 5 | U22: 1 | V22: 3 | W22: 14 | X22: 3 | Y22: 1 | Z22: 10 | AA22: 31 | AB22: 1 | AC22: 1 | AD22: 1 | AE22: 1 | AF22: 3 | AG22: 0.228 | AH22: 0.283 | AI22: 0.341 | AJ22: 0.276 | AK22: 43 | AL22: 12 | AM22: 17 | AN22: 3 | AO22: 5 | AP22: -4 | AQ22: 55 | AR22: 388 | AS22: 20 | AT22: N | AU22: 0.02 | AV22: 6 | AW22: R | AX22: 100 | AY22: 0.202 | AZ22: 0.273 | BA22: 0.287 | BB22: 0.254 | BC22: 26 | BD22: 7 | BE22: difowi01 | BF22: 594694 | BG22: Agile Bench Warmer | BH22: Breyvic Valera | BI22: Ildemaro Vargas | BJ22: Abiatal Avelino | BK22: Chance for rebound. Risk of injury or playing time.
A23: Garc?a | B23: Jos? | C23: R | D23: 2021 | E23: 22 | F23: CIN | G23: NL | H23: SS | K23: 0.67 | L23: 0.299 | M23: 23 | N23: Y | O23: 87 | P23: 227 | Q23: 212 | R23: 18 | S23: 43 | T23: 6 | U23: 0 | V23: 3 | W23: 14 | X23: 5 | Y23: 2 | Z23: 13 | AA23: 63 | AB23: 0 | AC23: 1 | AD23: 0 | AE23: 0 | AF23: 4 | AG23: 0.2 | AH23: 0.252 | AI23: 0.269 | AJ23: 0.237 | AK23: 54 | AL23: 9 | AM23: 9 | AN23: 1 | AO23: 1 | AP23: -14 | AQ23: 59 | AR23: 524 | AS23: 21 | AT23: N | AU23: 0.03 | AV23: 4 | AW23: R | AX23: 205 | AY23: 0.197 | AZ23: 0.228 | BA23: 0.229 | BB23: 0.209 | BC23: 43 | BD23: 5 | BE23: garcijo02 | BF23: 676480 | BG23: Young Bad Ball Hitter | BH23: Yadiel Rivera | BI23: Brendan Rodgers | BJ23: Josh Rojas | BK23: Young enough to develop a lot from here. Risk of injury or playing time.
A24: McKinstry | B24: Zach | C24: L | D24: 2021 | E24: 26 | F24: LAN | G24: NL | H24: SS | K24: 0.43 | L24: 0.249 | M24: 7 | N24: Y | O24: 72 | P24: 135 | Q24: 123 | R24: 16 | S24: 23 | T24: 6 | U24: 1 | V24: 2 | W24: 8 | X24: 2 | Y24: 1 | Z24: 10 | AA24: 37 | AB24: 0 | AC24: 1 | AD24: 0 | AE24: 1 | AF24: 4 | AG24: 0.187 | AH24: 0.253 | AI24: 0.311 | AJ24: 0.252 | AK24: 34 | AL24: 8 | AM24: 11 | AN24: 1 | AO24: 1 | AP24: -6 | AQ24: 62 | AR24: 483 | AS24: 22 | AT24: B | AU24: 0.01 | AV24: 3 | AW24: R | AX24: 77 | AY24: 0.194 | AZ24: 0.239 | BA24: 0.296 | BB24: 0.237 | BC24: 18 | BD24: 5 | BE24: mckinza01 | BF24: 656716 | BG24: Wiff King | BH24: Brendan Rodgers | BI24: Andrew Velazquez | BJ24: Franklin Barreto | BK24: Some upside still, but needs to start proving it. Expect limited opportunities.
A25: Mateo | B25: Jorge | C25: R | D25: 2021 | E25: 25 | F25: SDN | G25: NL | H25: SS | K25: 0.5 | L25: 0.251 | M25: 7 | N25: Y | O25: 107 | P25: 130 | Q25: 116 | R25: 14 | S25: 19 | T25: 12 | U25: 0 | V25: 2 | W25: 10 | X25: 4 | Y25: 0 | Z25: 11 | AA25: 41 | AB25: 0 | AC25: 1 | AD25: 2 | AE25: 0 | AF25: 4 | AG25: 0.164 | AH25: 0.241 | AI25: 0.332 | AJ25: 0.251 | AK25: 33 | AL25: 8 | AM25: 7 | AN25: 1 | AO25: 1 | AP25: -7 | AQ25: 63 | AR25: 557 | AS25: 23 | AT25: B | AU25: 0.04 | AV25: 4 | AW25: R | AX25: 100 | AY25: 0.154 | AZ25: 0.211 | BA25: 0.283 | BB25: 0.214 | BC25: 22 | BD25: 4 | BE25: mateojo01 | BF25: 622761 | BG25: Young SB Wiff King | BH25: Sherten Apostel | BI25: Lewin Diaz | BJ25: Scott Heineman | BK25: Upside remains, but only cautiously optimisitc. Needs to find his groove. Expect limited opportunities.
A26: Soto | B26: Juan | C26: L | D26: 2021 | E26: 22 | F26: WAS | G26: NL | H26: OF | K26: 0.85 | L26: 0.349 | M26: 63 | N26: Y | O26: 126 | P26: 564 | Q26: 456 | R26: 86 | S26: 124 | T26: 33 | U26: 3 | V26: 22 | W26: 82 | X26: 13 | Y26: 2 | Z26: 102 | AA26: 100 | AB26: 10 | AC26: 3 | AD26: 0 | AE26: 2 | AF26: 8 | AG26: 0.275 | AH26: 0.407 | AI26: 0.501 | AJ26: 0.396 | AK26: 224 | AL26: 105 | AM26: 96 | AN26: 28 | AO26: 26 | AP26: 50 | AQ26: 2 | AR26: 2 | AS26: 1 | AT26: Y | AU26: -0.04 | AV26: -46 | AW26: O | AX26: 556 | AY26: 0.307 | AZ26: 0.443 | BA26: 0.582 | BB26: 0.439 | BC26: 244 | BD26: 150 | BE26: sotoju01 | BF26: 665742 | BG26: Young Fantasy Star | BH26: Cody Bellinger | BI26: Alex Bregman | BJ26: Vladimir Guerrero Jr. | BK26: Developing well. Will have to pay premium to get him. MVP candidate.
A27: Betts | B27: Mookie | C27: R | D27: 2021 | E27: 28 | F27: LAN | G27: NL | H27: OF | K27: 0.87 | L27: 0.349 | M27: 63 | N27: Y | O27: 135 | P27: 604 | Q27: 543 | R27: 113 | S27: 156 | T27: 34 | U27: 4 | V27: 30 | W27: 78 | X27: 19 | Y27: 4 | Z27: 51 | AA27: 95 | AB27: 5 | AC27: 5 | AD27: 0 | AE27: 5 | AF27: 8 | AG27: 0.286 | AH27: 0.351 | AI27: 0.527 | AJ27: 0.374 | AK27: 226 | AL27: 89 | AM27: 81 | AN27: 37 | AO27: 34 | AP27: 40 | AQ27: 3 | AR27: 6 | AS27: 2 | AT27: Y | AU27: -0.01 | AV27: -11 | AW27: R | AX27: 635 | AY27: 0.29 | AZ27: 0.358 | BA27: 0.544 | BB27: 0.384 | BC27: 244 | BD27: 100 | BE27: bettsmo01 | BF27: 605141 | BG27: Fantasy Star | BH27: Jurickson Profar | BI27: Manny Machado | BJ27: Jose Ramirez | BK27: Poised for modest break out above last year. Expect to see at top of the order all season. MVP candidate.
A28: Yelich | B28: Christian | C28: L | D28: 2021 | E28: 29 | F28: MIL | G28: NL | H28: OF | K28: 0.86 | L28: 0.349 | M28: 63 | N28: Y | O28: 133 | P28: 547 | Q28: 485 | R28: 88 | S28: 130 | T28: 25 | U28: 3 | V28: 33 | W28: 76 | X28: 17 | Y28: 3 | Z28: 55 | AA28: 122 | AB28: 7 | AC28: 6 | AD28: 0 | AE28: 2 | AF28: 10 | AG28: 0.267 | AH28: 0.348 | AI28: 0.54 | AJ28: 0.377 | AK28: 206 | AL28: 86 | AM28: 79 | AN28: 32 | AO28: 30 | AP28: 38 | AQ28: 4 | AR28: 9 | AS28: 3 | AT28: Y | AU28: 0.01 | AV28: 6 | AW28: S | AX28: 597 | AY28: 0.236 | AZ28: 0.352 | BA28: 0.49 | BB28: 0.364 | BC28: 217 | BD28: 79 | BE28: yelicch01 | BF28: 592885 | BG28: Fantasy Star | BH28: Mike Trout | BI28: Bryce Harper | BJ28: George Springer | BK28: Poised for modest break out above last year. May slip a few picks during draft. Pounce. Star player.
A29: Bellinger | B29: Cody | C29: L | D29: 2021 | E29: 25 | F29: LAN | G29: NL | H29: OF | I29: 1B | K29: 0.86 | L29: 0.349 | M29: 63 | N29: Y | O29: 145 | P29: 562 | Q29: 483 | R29: 81 | S29: 125 | T29: 30 | U29: 3 | V29: 29 | W29: 76 | X29: 14 | Y29: 2 | Z29: 74 | AA29: 103 | AB29: 11 | AC29: 2 | AD29: 0 | AE29: 2 | AF29: 9 | AG29: 0.261 | AH29: 0.359 | AI29: 0.514 | AJ29: 0.375 | AK29: 210 | AL29: 85 | AM29: 78 | AN29: 28 | AO29: 25 | AP29: 37 | AQ29: 5 | AR29: 11 | AS29: 4 | AT29: Y | AU29: 0.01 | AV29: 7 | AW29: S | AX29: 606 | AY29: 0.249 | AZ29: 0.347 | BA29: 0.488 | BB29: 0.361 | BC29: 218 | BD29: 77 | BE29: bellico01 | BF29: 641355 | BG29: Young Fantasy Star | BH29: Bryce Harper | BI29: Alex Bregman | BJ29: Juan Soto | BK29: Best still to come, even if last year was a set back. Will outperform last year, assuming regular playing time. Sky's the limit, must have.
A30: Acuna | B30: Ronald | C30: R | D30: 2021 | E30: 23 | F30: ATL | G30: NL | H30: OF | K30: 0.85 | L30: 0.349 | M30: 63 | N30: Y | O30: 126 | P30: 533 | Q30: 453 | R30: 85 | S30: 114 | T30: 27 | U30: 2 | V30: 26 | W30: 67 | X30: 25 | Y30: 4 | Z30: 72 | AA30: 125 | AB30: 3 | AC30: 6 | AD30: 0 | AE30: 1 | AF30: 7 | AG30: 0.252 | AH30: 0.362 | AI30: 0.494 | AJ30: 0.37 | AK30: 197 | AL30: 79 | AM30: 72 | AN30: 29 | AO30: 26 | AP30: 33 | AQ30: 6 | AR30: 17 | AS30: 5 | AT30: Y | AU30: -0.02 | AV30: -21 | AW30: O | AX30: 539 | AY30: 0.251 | AZ30: 0.383 | BA30: 0.535 | BB30: 0.395 | BC30: 213 | BD30: 100 | BE30: acunaro01 | BF30: 660670 | BG30: Young Fantasy Star | BH30: Cody Bellinger | BI30: Luis Robert | BJ30: Bryce Harper | BK30: Developing well. Will have to pay premium to get him. Sky's the limit, must have.
A31: Harper | B31: Bryce | C31: L | D31: 2021 | E31: 28 | F31: PHI | G31: NL | H31: OF | K31: 0.87 | L31: 0.349 | M31: 63 | N31: Y | O31: 138 | P31: 511 | Q31: 438 | R31: 76 | S31: 108 | T31: 28 | U31: 2 | V31: 29 | W31: 75 | X31: 11 | Y31: 3 | Z31: 64 | AA31: 118 | AB31: 12 | AC31: 5 | AD31: 1 | AE31: 4 | AF31: 9 | AG31: 0.248 | AH31: 0.345 | AI31: 0.519 | AJ31: 0.367 | AK31: 188 | AL31: 74 | AM31: 69 | AN31: 25 | AO31: 23 | AP31: 30 | AQ31: 7 | AR31: 22 | AS31: 6 | AT31: Y | AU31: -0.02 | AV31: -26 | AW31: O | AX31: 588 | AY31: 0.257 | AZ31: 0.382 | BA31: 0.529 | BB31: 0.39 | BC31: 229 | BD31: 101 | BE31: harpebr03 | BF31: 547180 | BG31: Fantasy Star | BH31: Matt Olson | BI31: Rhys Hoskins | BJ31: Pete Alonso | BK31: Career still on the rise, but nearing peak. Will have to pay premium to get him. Star player.
A32: Conforto | B32: Michael | C32: L | D32: 2021 | E32: 28 | F32: NYN | G32: NL | H32: OF | K32: 0.86 | L32: 0.349 | M32: 63 | N32: Y | O32: 137 | P32: 522 | Q32: 464 | R32: 72 | S32: 117 | T32: 26 | U32: 1 | V32: 26 | W32: 69 | X32: 5 | Y32: 3 | Z32: 47 | AA32: 120 | AB32: 4 | AC32: 8 | AD32: 0 | AE32: 3 | AF32: 11 | AG32: 0.251 | AH32: 0.33 | AI32: 0.481 | AJ32: 0.349 | AK32: 182 | AL32: 63 | AM32: 58 | AN32: 21 | AO32: 20 | AP32: 21 | AQ32: 11 | AR32: 41 | AS32: 7 | AT32: Y | AU32: -0.03 | AV32: -25 | AW32: O | AX32: 586 | AY32: 0.286 | AZ32: 0.369 | BA32: 0.492 | BB32: 0.375 | BC32: 220 | BD32: 87 | BE32: confomi01 | BF32: 624424 | BG32: Dominant Hitter | BH32: Renato Nunez | BI32: Franmil Reyes | BJ32: Eloy Jimenez | BK32: Career still on the rise, but nearing peak. Will have to pay premium to get him. All-star level.
A33: Grisham | B33: Trent | C33: L | D33: 2021 | E33: 24 | F33: SDN | G33: NL | H33: OF | K33: 0.8 | L33: 0.349 | M33: 63 | N33: Y | O33: 141 | P33: 476 | Q33: 400 | R33: 66 | S33: 92 | T33: 23 | U33: 6 | V33: 18 | W33: 51 | X33: 15 | Y33: 1 | Z33: 66 | AA33: 109 | AB33: 1 | AC33: 6 | AD33: 1 | AE33: 3 | AF33: 6 | AG33: 0.233 | AH33: 0.345 | AI33: 0.455 | AJ33: 0.349 | AK33: 166 | AL33: 59 | AM33: 54 | AN33: 17 | AO33: 16 | AP33: 19 | AQ33: 14 | AR33: 54 | AS33: 8 | AT33: Y | AU33: 0 | AV33: -8 | AW33: R | AX33: 580 | AY33: 0.242 | AZ33: 0.348 | BA33: 0.453 | BB33: 0.349 | BC33: 203 | BD33: 67 | BE33: grishtr01 | BF33: 663757 | BG33: Young Fantasy Star | BH33: Kyle Tucker | BI33: Abraham Toro | BJ33: Austin Meadows | BK33: Career on the rise. Track his progress to determine upside. Expected to play regularly. Has all-star level talent.
A34: Castellanos | B34: Nick | C34: R | D34: 2021 | E34: 29 | F34: CIN | G34: NL | H34: OF | K34: 0.86 | L34: 0.349 | M34: 63 | N34: Y | O34: 137 | P34: 529 | Q34: 491 | R34: 73 | S34: 126 | T34: 37 | U34: 3 | V34: 25 | W34: 64 | X34: 2 | Y34: 2 | Z34: 31 | AA34: 118 | AB34: 3 | AC34: 5 | AD34: 0 | AE34: 2 | AF34: 10 | AG34: 0.255 | AH34: 0.306 | AI34: 0.496 | AJ34: 0.34 | AK34: 180 | AL34: 57 | AM34: 53 | AN34: 20 | AO34: 19 | AP34: 17 | AQ34: 16 | AR34: 59 | AS34: 9 | AT34: Y | AU34: 0 | AV34: -2 | AW34: R | AX34: 585 | AY34: 0.24 | AZ34: 0.302 | BA34: 0.494 | BB34: 0.337 | BC34: 197 | BD34: 59 | BE34: casteni01 | BF34: 592206 | BG34: Slugger | BH34: Anthony Santander | BI34: Matt Chapman | BJ34: Brian Anderson | BK34: Poised for modest break out above last year. Expected to play regularly. Has all-star level talent.
A35: Blackmon | B35: Charlie | C35: L | D35: 2021 | E35: 34 | F35: COL | G35: NL | H35: OF | K35: 0.86 | L35: 0.349 | M35: 63 | N35: Y | O35: 114 | P35: 488 | Q35: 438 | R35: 74 | S35: 117 | T35: 20 | U35: 3 | V35: 20 | W35: 62 | X35: 5 | Y35: 3 | Z35: 40 | AA35: 86 | AB35: 3 | AC35: 6 | AD35: 0 | AE35: 4 | AF35: 8 | AG35: 0.268 | AH35: 0.333 | AI35: 0.461 | AJ35: 0.344 | AK35: 168 | AL35: 57 | AM35: 52 | AN35: 21 | AO35: 19 | AP35: 17 | AQ35: 17 | AR35: 62 | AS35: 10 | AT35: Y | AU35: 0 | AV35: -9 | AW35: R | AX35: 583 | AY35: 0.285 | AZ35: 0.345 | BA35: 0.453 | BB35: 0.346 | BC35: 202 | BD35: 65 | BE35: blackch02 | BF35: 453568 | BG35: Aging Dominant Hitter | BH35: Yulieski Gurriel | BI35: Anthony Rizzo | BJ35: Jason Heyward | BK35: His best days are past him, but he should perform near projected levels. Expected to play regularly. Has all-star level talent.
A36: Schwarber | B36: Kyle | C36: L | D36: 2021 | E36: 28 | F36: CHN | G36: NL | H36: OF | K36: 0.85 | L36: 0.349 | M36: 63 | N36: Y | O36: 145 | P36: 446 | Q36: 394 | R36: 58 | S36: 89 | T36: 21 | U36: 2 | V36: 30 | W36: 57 | X36: 3 | Y36: 2 | Z36: 46 | AA36: 114 | AB36: 8 | AC36: 4 | AD36: 0 | AE36: 2 | AF36: 7 | AG36: 0.225 | AH36: 0.31 | AI36: 0.517 | AJ36: 0.349 | AK36: 156 | AL36: 56 | AM36: 52 | AN36: 16 | AO36: 15 | AP36: 18 | AQ36: 18 | AR36: 63 | AS36: 11 | AT36: Y | AU36: 0.02 | AV36: 6 | AW36: S | AX36: 517 | AY36: 0.205 | AZ36: 0.309 | BA36: 0.454 | BB36: 0.33 | BC36: 170 | BD36: 51 | BE36: schwaky01 | BF36: 656941 | BG36: Slugger | BH36: Pete Alonso | BI36: Matt Olson | BJ36: Gary Sanchez | BK36: Poised for modest break out above last year. Expect rebound. All-star hopeful.
A37: Reynolds | B37: Bryan | C37: B | D37: 2021 | E37: 26 | F37: PIT | G37: NL | H37: OF | K37: 0.84 | L37: 0.349 | M37: 63 | N37: Y | O37: 140 | P37: 498 | Q37: 443 | R37: 64 | S37: 110 | T37: 30 | U37: 4 | V37: 17 | W37: 54 | X37: 3 | Y37: 2 | Z37: 49 | AA37: 111 | AB37: 0 | AC37: 4 | AD37: 0 | AE37: 2 | AF37: 8 | AG37: 0.248 | AH37: 0.328 | AI37: 0.454 | AJ37: 0.339 | AK37: 169 | AL37: 55 | AM37: 50 | AN37: 16 | AO37: 14 | AP37: 15 | AQ37: 24 | AR37: 74 | AS37: 12 | AT37: Y | AU37: 0.03 | AV37: 14 | AW37: S | AX37: 516 | AY37: 0.217 | AZ37: 0.302 | BA37: 0.409 | BB37: 0.311 | BC37: 161 | BD37: 41 | BE37: reynobr01 | BF37: 668804 | BG37: Slugger | BH37: Jeimer Candelario | BI37: Yoan Moncada | BJ37: Austin Meadows | BK37: Should perform close to forecast. Will outperform last year, assuming regular playing time. All-star quality bat with very bright future.
A38: Winker | B38: Jesse | C38: L | D38: 2021 | E38: 27 | F38: CIN | G38: NL | H38: OF | K38: 0.8 | L38: 0.349 | M38: 63 | N38: Y | O38: 107 | P38: 407 | Q38: 356 | R38: 52 | S38: 91 | T38: 17 | U38: 1 | V38: 15 | W38: 47 | X38: 2 | Y38: 1 | Z38: 43 | AA38: 78 | AB38: 2 | AC38: 7 | AD38: 0 | AE38: 1 | AF38: 7 | AG38: 0.254 | AH38: 0.345 | AI38: 0.434 | AJ38: 0.343 | AK38: 140 | AL38: 50 | AM38: 46 | AN38: 14 | AO38: 13 | AP38: 14 | AQ38: 30 | AR38: 101 | AS38: 13 | AT38: N | AU38: -0.03 | AV38: -21 | AW38: O | AX38: 453 | AY38: 0.254 | AZ38: 0.367 | BA38: 0.487 | BB38: 0.371 | BC38: 168 | BD38: 72 | BE38: winkeje01 | BF38: 608385 | BG38: Lead Footed Dominant Hitter | BH38: Freddie Freeman | BI38: Anthony Rizzo | BJ38: Anthony Rendon | BK38: Should perform close to forecast. Risk of injury or playing time. Hits, but not a likey all-star this year.
A39: Marte | B39: Starling | C39: R | D39: 2021 | E39: 32 | F39: MIA | G39: NL | H39: OF | K39: 0.86 | L39: 0.349 | M39: 63 | N39: Y | O39: 127 | P39: 501 | Q39: 459 | R39: 72 | S39: 120 | T39: 23 | U39: 3 | V39: 18 | W39: 61 | X39: 20 | Y39: 6 | Z39: 27 | AA39: 86 | AB39: 2 | AC39: 11 | AD39: 1 | AE39: 3 | AF39: 11 | AG39: 0.262 | AH39: 0.317 | AI39: 0.444 | AJ39: 0.33 | AK39: 165 | AL39: 50 | AM39: 46 | AN39: 24 | AO39: 22 | AP39: 11 | AQ39: 31 | AR39: 102 | AS39: 14 | AT39: Y | AU39: 0 | AV39: -8 | AW39: R | AX39: 591 | AY39: 0.271 | AZ39: 0.329 | BA39: 0.435 | BB39: 0.334 | BC39: 197 | BD39: 58 | BE39: martest01 | BF39: 516782 | BG39: SB Slugger | BH39: Kevin Pillar | BI39: Oscar Mercado | BJ39: Jurickson Profar | BK39: Still In prime. Expected to play regularly. Hits, but not a likey all-star this year.
A40: Calhoun | B40: Kole | C40: L | D40: 2021 | E40: 33 | F40: ARI | G40: NL | H40: OF | K40: 0.85 | L40: 0.349 | M40: 63 | N40: Y | O40: 119 | P40: 391 | Q40: 335 | R40: 54 | S40: 72 | T40: 16 | U40: 1 | V40: 24 | W40: 49 | X40: 3 | Y40: 1 | Z40: 48 | AA40: 90 | AB40: 3 | AC40: 5 | AD40: 0 | AE40: 3 | AF40: 10 | AG40: 0.218 | AH40: 0.319 | AI40: 0.484 | AJ40: 0.343 | AK40: 134 | AL40: 49 | AM40: 45 | AN40: 13 | AO40: 12 | AP40: 14 | AQ40: 32 | AR40: 107 | AS40: 15 | AT40: N | AU40: -0.01 | AV40: -17 | AW40: R | AX40: 500 | AY40: 0.221 | AZ40: 0.33 | BA40: 0.512 | BB40: 0.357 | BC40: 179 | BD40: 66 | BE40: calhoko01 | BF40: 594777 | BG40: Slugger | BH40: Dan Vogelbach | BI40: Yasmani Grandal | BJ40: Matt Olson | BK40: His best days are past him, but he should perform near projected levels. If only he were on the field more.
A41: Nimmo | B41: Brandon | C41: L | D41: 2021 | E41: 28 | F41: NYN | G41: NL | H41: OF | K41: 0.81 | L41: 0.349 | M41: 63 | N41: Y | O41: 102 | P41: 394 | Q41: 343 | R41: 55 | S41: 84 | T41: 18 | U41: 4 | V41: 14 | W41: 39 | X41: 5 | Y41: 3 | Z41: 39 | AA41: 93 | AB41: 2 | AC41: 10 | AD41: 0 | AE41: 1 | AF41: 4 | AG41: 0.244 | AH41: 0.338 | AI41: 0.438 | AJ41: 0.341 | AK41: 134 | AL41: 48 | AM41: 44 | AN41: 13 | AO41: 12 | AP41: 13 | AQ41: 34 | AR41: 114 | AS41: 16 | AT41: N | AU41: -0.03 | AV41: -31 | AW41: O | AX41: 520 | AY41: 0.263 | AZ41: 0.376 | BA41: 0.473 | BB41: 0.373 | BC41: 194 | BD41: 79 | BE41: nimmobr01 | BF41: 607043 | BG41: Dominant Hitter | BH41: Jeimer Candelario | BI41: Hunter Dozier | BJ41: Austin Meadows | BK41: Career still on the rise, but nearing peak. Risk of injury or playing time.
A42: Happ | B42: Ian | C42: B | D42: 2021 | E42: 26 | F42: CHN | G42: NL | H42: OF | K42: 0.8 | L42: 0.349 | M42: 63 | N42: Y | O42: 118 | P42: 413 | Q42: 358 | R42: 49 | S42: 83 | T42: 20 | U42: 2 | V42: 18 | W42: 48 | X42: 4 | Y42: 3 | Z42: 50 | AA42: 109 | AB42: 4 | AC42: 3 | AD42: 1 | AE42: 1 | AF42: 4 | AG42: 0.233 | AH42: 0.329 | AI42: 0.446 | AJ42: 0.338 | AK42: 140 | AL42: 48 | AM42: 44 | AN42: 13 | AO42: 12 | AP42: 12 | AQ42: 35 | AR42: 115 | AS42: 17 | AT42: N | AU42: -0.02 | AV42: -25 | AW42: O | AX42: 536 | AY42: 0.245 | AZ42: 0.349 | BA42: 0.49 | BB42: 0.362 | BC42: 194 | BD42: 72 | BE42: happia01 | BF42: 664023 | BG42: Slugger | BH42: Clint Frazier | BI42: Ryan O'Hearn | BJ42: Matt Olson | BK42: Career taking off. Could continue to exceed forecasts. Truth coming. Breaking out or false hopes?
A43: Myers | B43: Wil | C43: R | D43: 2021 | E43: 30 | F43: SDN | G43: NL | H43: OF | K43: 0.82 | L43: 0.349 | M43: 63 | N43: Y | O43: 145 | P43: 455 | Q43: 414 | R43: 56 | S43: 97 | T43: 26 | U43: 2 | V43: 24 | W43: 57 | X43: 10 | Y43: 3 | Z43: 37 | AA43: 122 | AB43: 1 | AC43: 3 | AD43: 0 | AE43: 1 | AF43: 9 | AG43: 0.235 | AH43: 0.3 | AI43: 0.479 | AJ43: 0.332 | AK43: 151 | AL43: 48 | AM43: 44 | AN43: 18 | AO43: 16 | AP43: 11 | AQ43: 36 | AR43: 117 | AS43: 18 | AT43: Y | AU43: -0.04 | AV43: -28 | AW43: O | AX43: 529 | AY43: 0.262 | AZ43: 0.326 | BA43: 0.544 | BB43: 0.367 | BC43: 194 | BD43: 76 | BE43: myerswi01 | BF43: 571976 | BG43: Agile Slugger | BH43: Brian Goodwin | BI43: Teoscar Hernandez | BJ43: Jackie Bradley | BK43: Limited improvement expected from here. Starter, but may sit occassionally.
A44: Profar | B44: Jurickson | C44: B | D44: 2021 | E44: 28 | F44: SDN | G44: NL | H44: OF | I44: 2B | K44: 0.84 | L44: 0.349 | M44: 63 | N44: Y | O44: 138 | P44: 458 | Q44: 415 | R44: 62 | S44: 103 | T44: 25 | U44: 3 | V44: 19 | W44: 59 | X44: 10 | Y44: 1 | Z44: 32 | AA44: 72 | AB44: 1 | AC44: 8 | AD44: 1 | AE44: 3 | AF44: 9 | AG44: 0.248 | AH44: 0.31 | AI44: 0.458 | AJ44: 0.33 | AK44: 151 | AL44: 47 | AM44: 43 | AN44: 18 | AO44: 17 | AP44: 10 | AQ44: 39 | AR44: 122 | AS44: 19 | AT44: Y | AU44: 0 | AV44: -4 | AW44: R | AX44: 505 | AY44: 0.262 | AZ44: 0.326 | BA44: 0.438 | BB44: 0.332 | BC44: 168 | BD44: 51 | BE44: profaju01 | BF44: 595777 | BG44: Agile Slugger | BH44: Mookie Betts | BI44: Jose Ramirez | BJ44: Kevin Pillar | BK44: Poised for modest break out above last year. Starter, but may sit occassionally.
A45: Heyward | B45: Jason | C45: L | D45: 2021 | E45: 31 | F45: CHN | G45: NL | H45: OF | K45: 0.84 | L45: 0.349 | M45: 63 | N45: Y | O45: 126 | P45: 437 | Q45: 385 | R45: 57 | S45: 95 | T45: 17 | U45: 3 | V45: 16 | W45: 50 | X45: 5 | Y45: 1 | Z45: 46 | AA45: 78 | AB45: 3 | AC45: 4 | AD45: 0 | AE45: 3 | AF45: 8 | AG45: 0.249 | AH45: 0.331 | AI45: 0.428 | AJ45: 0.333 | AK45: 145 | AL45: 47 | AM45: 43 | AN45: 15 | AO45: 13 | AP45: 10 | AQ45: 40 | AR45: 123 | AS45: 20 | AT45: Y | AU45: -0.02 | AV45: -14 | AW45: R | AX45: 464 | AY45: 0.256 | AZ45: 0.36 | BA45: 0.44 | BB45: 0.353 | BC45: 164 | BD45: 60 | BE45: heywaja01 | BF45: 518792 | BG45: Dominant Hitter | BH45: Charlie Blackmon | BI45: Anthony Rizzo | BJ45: Adam Eaton | BK45: Limited improvement expected from here. Starter, but may sit occassionally.
A46: Yastrzemski | B46: Mike | C46: L | D46: 2021 | E46: 30 | F46: SFN | G46: NL | H46: OF | K46: 0.83 | L46: 0.349 | M46: 63 | N46: Y | O46: 98 | P46: 404 | Q46: 365 | R46: 61 | S46: 91 | T46: 18 | U46: 3 | V46: 18 | W46: 54 | X46: 3 | Y46: 3 | Z46: 33 | AA46: 96 | AB46: 2 | AC46: 5 | AD46: 0 | AE46: 2 | AF46: 4 | AG46: 0.25 | AH46: 0.317 | AI46: 0.46 | AJ46: 0.335 | AK46: 136 | AL46: 46 | AM46: 42 | AN46: 16 | AO46: 15 | AP46: 11 | AQ46: 42 | AR46: 129 | AS46: 21 | AT46: N | AU46: -0.05 | AV46: -42 | AW46: O | AX46: 528 | AY46: 0.274 | AZ46: 0.365 | BA46: 0.529 | BB46: 0.383 | BC46: 202 | BD46: 88 | BE46: yastrmi01 | BF46: 573262 | BG46: Dominant Hitter | BH46: Hunter Dozier | BI46: Alex Dickerson | BJ46: Willson Contreras | BK46: Limited improvement expected from here. Risk of injury or playing time.
A47: Tapia | B47: Raimel | C47: L | D47: 2021 | E47: 27 | F47: COL | G47: NL | H47: OF | K47: 0.79 | L47: 0.349 | M47: 63 | N47: Y | O47: 153 | P47: 526 | Q47: 485 | R47: 64 | S47: 129 | T47: 26 | U47: 5 | V47: 11 | W47: 52 | X47: 12 | Y47: 3 | Z47: 34 | AA47: 105 | AB47: 1 | AC47: 3 | AD47: 1 | AE47: 3 | AF47: 6 | AG47: 0.265 | AH47: 0.316 | AI47: 0.41 | AJ47: 0.317 | AK47: 167 | AL47: 44 | AM47: 41 | AN47: 18 | AO47: 17 | AP47: 5 | AQ47: 44 | AR47: 136 | AS47: 22 | AT47: Y | AU47: -0.01 | AV47: -7 | AW47: R | AX47: 549 | AY47: 0.292 | AZ47: 0.342 | BA47: 0.4 | BB47: 0.327 | BC47: 180 | BD47: 51 | BE47: tapiara01 | BF47: 606132 | BG47: Agile Capable Hitter | BH47: Victor Reyes | BI47: Ke'Bryan Hayes | BJ47: Harold Ramirez | BK47: Expected to play regularly.
A48: Robles | B48: Victor | C48: R | D48: 2021 | E48: 23 | F48: WAS | G48: NL | H48: OF | K48: 0.81 | L48: 0.349 | M48: 63 | N48: Y | O48: 139 | P48: 463 | Q48: 406 | R48: 57 | S48: 95 | T48: 27 | U48: 3 | V48: 13 | W48: 47 | X48: 18 | Y48: 4 | Z48: 36 | AA48: 103 | AB48: 2 | AC48: 15 | AD48: 3 | AE48: 4 | AF48: 5 | AG48: 0.233 | AH48: 0.316 | AI48: 0.415 | AJ48: 0.32 | AK48: 148 | AL48: 42 | AM48: 39 | AN48: 16 | AO48: 15 | AP48: 5 | AQ48: 48 | AR48: 149 | AS48: 23 | AT48: Y | AU48: 0.02 | AV48: 10 | AW48: S | AX48: 484 | AY48: 0.227 | AZ48: 0.304 | BA48: 0.361 | BB48: 0.296 | BC48: 143 | BD48: 33 | BE48: roblevi01 | BF48: 645302 | BG48: Young SB Capable Hitter | BH48: Nick Senzel | BI48: Manuel Margot | BJ48: Oscar Mercado | BK48: Young enough to develop a lot from here. Will put up better numbers with full season.
A49: Pham | B49: Thomas | C49: R | D49: 2021 | E49: 33 | F49: SDN | G49: NL | H49: OF | K49: 0.84 | L49: 0.309 | M49: 26 | N49: Y | O49: 93 | P49: 400 | Q49: 351 | R49: 53 | S49: 85 | T49: 12 | U49: 1 | V49: 13 | W49: 43 | X49: 13 | Y49: 3 | Z49: 44 | AA49: 84 | AB49: 2 | AC49: 4 | AD49: 0 | AE49: 1 | AF49: 11 | AG49: 0.242 | AH49: 0.331 | AI49: 0.395 | AJ49: 0.323 | AK49: 129 | AL49: 40 | AM49: 37 | AN49: 15 | AO49: 14 | AP49: 6 | AQ49: 50 | AR49: 154 | AS49: 24 | AT49: N | AU49: 0.01 | AV49: 8 | AW49: S | AX49: 366 | AY49: 0.229 | AZ49: 0.324 | BA49: 0.36 | BB49: 0.309 | BC49: 113 | BD49: 32 | BE49: phamth01 | BF49: 502054 | BG49: SB Capable Hitter | BH49: Lorenzo Cain | BI49: Alex Gordon | BJ49: Josh Reddick | BK49: His best days are past him, but he should perform near projected levels. Sleeper pick. Buy at discount.
A50: Garcia | B50: Avisail | C50: R | D50: 2021 | E50: 29 | F50: MIL | G50: NL | H50: OF | K50: 0.83 | L50: 0.349 | M50: 63 | N50: Y | O50: 129 | P50: 451 | Q50: 413 | R50: 50 | S50: 99 | T50: 21 | U50: 1 | V50: 18 | W50: 51 | X50: 6 | Y50: 3 | Z50: 29 | AA50: 104 | AB50: 3 | AC50: 7 | AD50: 0 | AE50: 3 | AF50: 11 | AG50: 0.24 | AH50: 0.299 | AI50: 0.426 | AJ50: 0.314 | AK50: 142 | AL50: 39 | AM50: 36 | AN50: 14 | AO50: 13 | AP50: 3 | AQ50: 53 | AR50: 159 | AS50: 25 | AT50: Y | AU50: 0.01 | AV50: 0 | AW50: R | AX50: 504 | AY50: 0.238 | AZ50: 0.317 | BA50: 0.374 | BB50: 0.309 | BC50: 156 | BD50: 39 | BE50: garciav01 | BF50: 541645 | BG50: Slugger | BH50: Lourdes Gurriel Jr. | BI50: Eric Hosmer | BJ50: J.T. Realmuto | BK50: Poised for modest break out above last year. Starter, but may sit occassionally. Trade him for two part timers who can platoon.
A51: McCutchen | B51: Andrew | C51: R | D51: 2021 | E51: 34 | F51: PHI | G51: NL | H51: OF | K51: 0.82 | L51: 0.349 | M51: 63 | N51: Y | O51: 76 | P51: 321 | Q51: 275 | R51: 42 | S51: 64 | T51: 10 | U51: 1 | V51: 11 | W51: 36 | X51: 5 | Y51: 2 | Z51: 41 | AA51: 66 | AB51: 1 | AC51: 3 | AD51: 0 | AE51: 2 | AF51: 5 | AG51: 0.235 | AH51: 0.337 | AI51: 0.401 | AJ51: 0.329 | AK51: 105 | AL51: 37 | AM51: 34 | AN51: 10 | AO51: 9 | AP51: 6 | AQ51: 59 | AR51: 172 | AS51: 26 | AT51: N | AU51: 0 | AV51: -12 | AW51: R | AX51: 492 | AY51: 0.245 | AZ51: 0.329 | BA51: 0.422 | BB51: 0.33 | BC51: 162 | BD51: 49 | BE51: mccutan01 | BF51: 457705 | BG51: Aging Slugger | BH51: Joey Votto | BI51: Shin-Soo Choo | BJ51: Brett Gardner | BK51: His best days are past him, but he should perform near projected levels. Risk of injury or playing time.
A52: Peralta | B52: David | C52: L | D52: 2021 | E52: 33 | F52: ARI | G52: NL | H52: OF | K52: 0.83 | L52: 0.349 | M52: 63 | N52: Y | O52: 83 | P52: 379 | Q52: 347 | R52: 42 | S52: 89 | T52: 14 | U52: 1 | V52: 12 | W52: 51 | X52: 2 | Y52: 0 | Z52: 27 | AA52: 77 | AB52: 2 | AC52: 3 | AD52: 0 | AE52: 2 | AF52: 7 | AG52: 0.256 | AH52: 0.313 | AI52: 0.406 | AJ52: 0.315 | AK52: 119 | AL52: 35 | AM52: 32 | AN52: 12 | AO52: 11 | AP52: 2 | AQ52: 65 | AR52: 188 | AS52: 27 | AT52: N | AU52: -0.01 | AV52: -12 | AW52: R | AX52: 496 | AY52: 0.279 | AZ52: 0.326 | BA52: 0.419 | BB52: 0.326 | BC52: 162 | BD52: 47 | BE52: peralda01 | BF52: 444482 | BG52: Contact Hitter | BH52: Wilson Ramos | BI52: Daniel Murphy | BJ52: Jose Martinez | BK52: His best days are past him, but he should perform near projected levels. Risk of injury or playing time.
A53: Dickerson | B53: Alex | C53: L | D53: 2021 | E53: 30 | F53: SFN | G53: NL | H53: OF | K53: 0.75 | L53: 0.309 | M53: 26 | N53: Y | O53: 90 | P53: 314 | Q53: 288 | R53: 45 | S53: 72 | T53: 14 | U53: 2 | V53: 12 | W53: 44 | X53: 2 | Y53: 1 | Z53: 21 | AA53: 65 | AB53: 2 | AC53: 3 | AD53: 0 | AE53: 2 | AF53: 7 | AG53: 0.252 | AH53: 0.308 | AI53: 0.44 | AJ53: 0.323 | AK53: 102 | AL53: 34 | AM53: 31 | AN53: 12 | AO53: 11 | AP53: 5 | AQ53: 68 | AR53: 199 | AS53: 28 | AT53: N | AU53: -0.04 | AV53: -29 | AW53: O | AX53: 399 | AY53: 0.279 | AZ53: 0.344 | BA53: 0.515 | BB53: 0.367 | BC53: 146 | BD53: 63 | BE53: dickeal01 | BF53: 543105 | BG53: Slugger | BH53: Trey Mancini | BI53: Mike Yastrzemski | BJ53: Willie Calhoun | BK53: Limited improvement expected from here. Will be overpriced in most drafts, unless truly healthy. Consider platooning.
A54: Pollock | B54: A.J. | C54: R | D54: 2021 | E54: 33 | F54: LAN | G54: NL | H54: OF | K54: 0.81 | L54: 0.349 | M54: 63 | N54: Y | O54: 81 | P54: 329 | Q54: 299 | R54: 44 | S54: 72 | T54: 11 | U54: 1 | V54: 16 | W54: 45 | X54: 6 | Y54: 2 | Z54: 22 | AA54: 70 | AB54: 1 | AC54: 4 | AD54: 0 | AE54: 4 | AF54: 6 | AG54: 0.241 | AH54: 0.299 | AI54: 0.445 | AJ54: 0.319 | AK54: 105 | AL54: 34 | AM54: 31 | AN54: 13 | AO54: 12 | AP54: 3 | AQ54: 69 | AR54: 201 | AS54: 29 | AT54: N | AU54: -0.03 | AV54: -21 | AW54: O | AX54: 457 | AY54: 0.259 | AZ54: 0.306 | BA54: 0.511 | BB54: 0.344 | BC54: 157 | BD54: 55 | BE54: polloaj01 | BF54: 572041 | BG54: Agile Slugger | BH54: Jose Abreu | BI54: Ryan Braun | BJ54: Derek Dietrich | BK54: His best days are past him, but he should perform near projected levels. Risk of injury or playing time.
A55: Dickerson | B55: Corey | C55: L | D55: 2021 | E55: 31 | F55: MIA | G55: NL | H55: OF | K55: 0.81 | L55: 0.349 | M55: 63 | N55: Y | O55: 84 | P55: 360 | Q55: 336 | R55: 43 | S55: 87 | T55: 16 | U55: 2 | V55: 11 | W55: 44 | X55: 4 | Y55: 1 | Z55: 20 | AA55: 64 | AB55: 3 | AC55: 2 | AD55: 0 | AE55: 2 | AF55: 7 | AG55: 0.261 | AH55: 0.302 | AI55: 0.414 | AJ55: 0.311 | AK55: 112 | AL55: 32 | AM55: 30 | AN55: 12 | AO55: 11 | AP55: 1 | AQ55: 73 | AR55: 207 | AS55: 30 | AT55: N | AU55: 0 | AV55: -7 | AW55: R | AX55: 467 | AY55: 0.259 | AZ55: 0.308 | BA55: 0.408 | BB55: 0.313 | BC55: 146 | BD55: 39 | BE55: dickeco01 | BF55: 572816 | BG55: Contact Hitter | BH55: David Peralta | BI55: Willians Astudillo | BJ55: Harold Ramirez | BK55: In prime. Role player, not a keeper.
A56: Fowler | B56: Dexter | C56: B | D56: 2021 | E56: 35 | F56: SLN | G56: NL | H56: OF | K56: 0.8 | L56: 0.309 | M56: 26 | N56: Y | O56: 87 | P56: 287 | Q56: 242 | R56: 34 | S56: 51 | T56: 8 | U56: 0 | V56: 10 | W56: 33 | X56: 4 | Y56: 2 | Z56: 39 | AA56: 67 | AB56: 0 | AC56: 3 | AD56: 0 | AE56: 2 | AF56: 4 | AG56: 0.21 | AH56: 0.325 | AI56: 0.375 | AJ56: 0.315 | AK56: 91 | AL56: 29 | AM56: 27 | AN56: 7 | AO56: 6 | AP56: 2 | AQ56: 78 | AR56: 226 | AS56: 31 | AT56: N | AU56: 0 | AV56: 1 | AW56: R | AX56: 281 | AY56: 0.221 | AZ56: 0.32 | BA56: 0.376 | BB56: 0.312 | BC56: 88 | BD56: 28 | BE56: fowlede01 | BF56: 451594 | BG56: Aging Slugger | BH56: Shin-Soo Choo | BI56: Robinson Chirinos | BJ56: Matt Carpenter | BK56: His best days are past him, but he should perform near projected levels. Role player, not a keeper.
A57: Dubon | B57: Mauricio | C57: R | D57: 2021 | E57: 26 | F57: SFN | G57: NL | H57: OF | I57: 2B | J57: SS | K57: 0.74 | L57: 0.309 | M57: 26 | N57: Y | O57: 100 | P57: 373 | Q57: 339 | R57: 42 | S57: 84 | T57: 12 | U57: 2 | V57: 9 | W57: 38 | X57: 5 | Y57: 4 | Z57: 27 | AA57: 76 | AB57: 0 | AC57: 3 | AD57: 1 | AE57: 3 | AF57: 7 | AG57: 0.248 | AH57: 0.306 | AI57: 0.373 | AJ57: 0.3 | AK57: 112 | AL57: 29 | AM57: 27 | AN57: 10 | AO57: 10 | AP57: -3 | AQ57: 80 | AR57: 229 | AS57: 32 | AT57: N | AU57: -0.01 | AV57: -9 | AW57: R | AX57: 435 | AY57: 0.265 | AZ57: 0.327 | BA57: 0.385 | BB57: 0.315 | BC57: 137 | BD57: 38 | BE57: dubonma01 | BF57: 643289 | BG57: Contact Hitter | BH57: Ryan Mountcastle | BI57: Austin Hays | BJ57: Harold Ramirez | BK57: Some upside still, but needs to start proving it. Risk of injury or playing time.
A58: Cain | B58: Lorenzo | C58: R | D58: 2021 | E58: 35 | F58: MIL | G58: NL | H58: OF | K58: 0.81 | L58: 0.309 | M58: 26 | N58: Y | O58: 62 | P58: 286 | Q58: 252 | R58: 37 | S58: 64 | T58: 8 | U58: 0 | V58: 5 | W58: 23 | X58: 9 | Y58: 3 | Z58: 29 | AA58: 48 | AB58: 1 | AC58: 3 | AD58: 0 | AE58: 1 | AF58: 5 | AG58: 0.253 | AH58: 0.335 | AI58: 0.354 | AJ58: 0.313 | AK58: 89 | AL58: 29 | AM58: 26 | AN58: 9 | AO58: 9 | AP58: 1 | AQ58: 82 | AR58: 240 | AS58: 33 | AT58: N | AU58: -0.01 | AV58: 6 | AW58: S | AX58: 168 | AY58: 0.267 | AZ58: 0.35 | BA58: 0.354 | BB58: 0.321 | BC58: 54 | BD58: 22 | BE58: cainlo01 | BF58: 456715 | BG58: Aging Agile Contact Hitter | BH58: Eric Sogard | BI58: Gerardo Parra | BJ58: Nick Markakis | BK58: His best days are past him, but he should perform near projected levels. Either slipping or nice value. Use judgement.
A59: Bader | B59: Harrison | C59: R | D59: 2021 | E59: 26 | F59: SLN | G59: NL | H59: OF | K59: 0.79 | L59: 0.309 | M59: 26 | N59: Y | O59: 104 | P59: 300 | Q59: 263 | R59: 39 | S59: 57 | T59: 14 | U59: 2 | V59: 9 | W59: 27 | X59: 7 | Y59: 2 | Z59: 28 | AA59: 81 | AB59: 2 | AC59: 7 | AD59: 1 | AE59: 2 | AF59: 3 | AG59: 0.216 | AH59: 0.306 | AI59: 0.393 | AJ59: 0.308 | AK59: 92 | AL59: 28 | AM59: 26 | AN59: 8 | AO59: 7 | AP59: 0 | AQ59: 86 | AR59: 247 | AS59: 34 | AT59: N | AU59: -0.01 | AV59: -7 | AW59: R | AX59: 320 | AY59: 0.222 | AZ59: 0.321 | BA59: 0.414 | BB59: 0.323 | BC59: 103 | BD59: 34 | BE59: baderha01 | BF59: 664056 | BG59: Gap Power | BH59: Estevan Florial | BI59: Taylor Ward | BJ59: Brett Phillips | BK59: Some upside still, but needs to start proving it. Risk of injury or playing time.
A60: Hilliard | B60: Sam | C60: L | D60: 2021 | E60: 27 | F60: COL | G60: NL | H60: OF | K60: 0.66 | L60: 0.309 | M60: 26 | N60: Y | O60: 86 | P60: 258 | Q60: 232 | R60: 29 | S60: 50 | T60: 10 | U60: 4 | V60: 12 | W60: 27 | X60: 5 | Y60: 0 | Z60: 23 | AA60: 71 | AB60: 0 | AC60: 2 | AD60: 0 | AE60: 0 | AF60: 3 | AG60: 0.211 | AH60: 0.288 | AI60: 0.447 | AJ60: 0.315 | AK60: 81 | AL60: 27 | AM60: 25 | AN60: 7 | AO60: 6 | AP60: 2 | AQ60: 88 | AR60: 256 | AS60: 35 | AT60: N | AU60: 0.01 | AV60: 1 | AW60: R | AX60: 282 | AY60: 0.21 | AZ60: 0.277 | BA60: 0.439 | BB60: 0.307 | BC60: 87 | BD60: 26 | BE60: hillisa01 | BF60: 656541 | BG60: Agile Wild Slugger | BH60: Derek Fisher | BI60: Lane Thomas | BJ60: Brett Phillips | BK60: Pivotal year for him. Will either establish himself or start to drop out. Risk of injury or playing time. Consider platooning.
A61: Ramirez | B61: Harold | C61: R | D61: 2021 | E61: 26 | F61: MIA | G61: NL | H61: OF | K61: 0.74 | L61: 0.309 | M61: 26 | N61: Y | O61: 74 | P61: 317 | Q61: 296 | R61: 39 | S61: 75 | T61: 13 | U61: 2 | V61: 8 | W61: 36 | X61: 2 | Y61: 2 | Z61: 16 | AA61: 64 | AB61: 1 | AC61: 3 | AD61: 0 | AE61: 1 | AF61: 5 | AG61: 0.253 | AH61: 0.301 | AI61: 0.389 | AJ61: 0.303 | AK61: 96 | AL61: 27 | AM61: 25 | AN61: 9 | AO61: 9 | AP61: -2 | AQ61: 89 | AR61: 257 | AS61: 36 | AT61: N | AU61: 0 | AV61: 10 | AW61: S | AX61: 166 | AY61: 0.254 | AZ61: 0.303 | BA61: 0.376 | BB61: 0.3 | BC61: 50 | BD61: 17 | BE61: ramirha02 | BF61: 623912 | BG61: Contact Hitter | BH61: Albert Almora | BI61: Mauricio Dubon | BJ61: Raimel Tapia | BK61: Some upside still, but needs to start proving it. Will outperform last year, assuming regular playing time.
A62: Aquino | B62: Aristides | C62: R | D62: 2021 | E62: 27 | F62: CIN | G62: NL | H62: OF | K62: 0.6 | L62: 0.309 | M62: 26 | N62: Y | O62: 69 | P62: 222 | Q62: 199 | R62: 27 | S62: 44 | T62: 8 | U62: 0 | V62: 11 | W62: 33 | X62: 4 | Y62: 0 | Z62: 18 | AA62: 57 | AB62: 1 | AC62: 3 | AD62: 0 | AE62: 1 | AF62: 4 | AG62: 0.219 | AH62: 0.296 | AI62: 0.44 | AJ62: 0.317 | AK62: 70 | AL62: 26 | AM62: 24 | AN62: 8 | AO62: 7 | AP62: 2 | AQ62: 98 | AR62: 282 | AS62: 37 | AT62: N | AU62: 0.01 | AV62: 6 | AW62: S | AX62: 183 | AY62: 0.203 | AZ62: 0.299 | BA62: 0.392 | BB62: 0.306 | BC62: 56 | BD62: 20 | BE62: aquinar01 | BF62: 606157 | BG62: Agile Power off Bench | BH62: Hunter Renfroe | BI62: Bobby Dalbec | BJ62: Randy Arozarena | BK62: Make or break year for him. Fringe MLB caliber. Will outperform last year, assuming regular playing time.
A63: Stevenson | B63: Andrew | C63: L | D63: 2021 | E63: 26 | F63: WAS | G63: NL | H63: OF | K63: 0.52 | L63: 0.309 | M63: 26 | N63: Y | O63: 78 | P63: 225 | Q63: 201 | R63: 29 | S63: 50 | T63: 11 | U63: 2 | V63: 5 | W63: 28 | X63: 4 | Y63: 1 | Z63: 18 | AA63: 54 | AB63: 0 | AC63: 3 | AD63: 1 | AE63: 2 | AF63: 3 | AG63: 0.244 | AH63: 0.315 | AI63: 0.401 | AJ63: 0.315 | AK63: 71 | AL63: 25 | AM63: 23 | AN63: 7 | AO63: 7 | AP63: 1 | AQ63: 99 | AR63: 287 | AS63: 38 | AT63: N | AU63: -0.06 | AV63: -15 | AW63: O | AX63: 179 | AY63: 0.288 | AZ63: 0.361 | BA63: 0.508 | BB63: 0.373 | BC63: 67 | BD63: 40 | BE63: stevean01 | BF63: 664057 | BG63: Gap Power | BH63: Pablo Reyes | BI63: Ke'Bryan Hayes | BJ63: Andrew Benintendi | BK63: Some upside still, but needs to start proving it. Truth coming. Breaking out or false hopes? Consider platooning.
A64: Locastro | B64: Tim | C64: R | D64: 2021 | E64: 28 | F64: ARI | G64: NL | H64: OF | K64: 0.65 | L64: 0.309 | M64: 26 | N64: Y | O64: 88 | P64: 254 | Q64: 226 | R64: 37 | S64: 54 | T64: 11 | U64: 2 | V64: 5 | W64: 23 | X64: 11 | Y64: 0 | Z64: 14 | AA64: 53 | AB64: 0 | AC64: 12 | AD64: 1 | AE64: 1 | AF64: 2 | AG64: 0.239 | AH64: 0.316 | AI64: 0.373 | AJ64: 0.308 | AK64: 78 | AL64: 25 | AM64: 23 | AN64: 9 | AO64: 8 | AP64: 0 | AQ64: 100 | AR64: 288 | AS64: 39 | AT64: N | AU64: -0.03 | AV64: -8 | AW64: R | AX64: 241 | AY64: 0.261 | AZ64: 0.35 | BA64: 0.408 | BB64: 0.336 | BC64: 81 | BD64: 33 | BE64: locasti01 | BF64: 641796 | BG64: SB Slap Hitter | BH64: Greg Allen | BI64: Mallex Smith | BJ64: Raul Mondesi | BK64: Career still on the rise, but nearing peak. Risk of injury or playing time.
A65: Senzel | B65: Nick | C65: R | D65: 2021 | E65: 25 | F65: CIN | G65: NL | H65: OF | K65: 0.76 | L65: 0.309 | M65: 26 | N65: Y | O65: 79 | P65: 281 | Q65: 255 | R65: 34 | S65: 58 | T65: 16 | U65: 2 | V65: 8 | W65: 29 | X65: 7 | Y65: 3 | Z65: 22 | AA65: 65 | AB65: 0 | AC65: 2 | AD65: 0 | AE65: 1 | AF65: 5 | AG65: 0.228 | AH65: 0.294 | AI65: 0.398 | AJ65: 0.302 | AK65: 85 | AL65: 25 | AM65: 23 | AN65: 8 | AO65: 7 | AP65: -2 | AQ65: 101 | AR65: 289 | AS65: 40 | AT65: N | AU65: 0.01 | AV65: 6 | AW65: S | AX65: 241 | AY65: 0.213 | AZ65: 0.278 | BA65: 0.386 | BB65: 0.289 | BC65: 70 | BD65: 19 | BE65: senzeni01 | BF65: 669222 | BG65: Young Gap Power | BH65: Victor Robles | BI65: Kyle Tucker | BJ65: Manuel Margot | BK65: Needs to establish himself at MLB level. Will outperform last year, assuming regular playing time.
A66: Joyce | B66: Matthew | C66: L | D66: 2021 | E66: 36 | F66: MIA | G66: NL | H66: OF | K66: 0.73 | L66: 0.309 | M66: 26 | N66: Y | O66: 79 | P66: 210 | Q66: 175 | R66: 25 | S66: 39 | T66: 5 | U66: 0 | V66: 5 | W66: 19 | X66: 1 | Y66: 1 | Z66: 33 | AA66: 47 | AB66: 0 | AC66: 1 | AD66: 0 | AE66: 1 | AF66: 3 | AG66: 0.222 | AH66: 0.345 | AI66: 0.347 | AJ66: 0.318 | AK66: 67 | AL66: 25 | AM66: 23 | AN66: 4 | AO66: 4 | AP66: 2 | AQ66: 102 | AR66: 290 | AS66: 41 | AT66: N | AU66: 0 | AV66: -6 | AW66: R | AX66: 309 | AY66: 0.237 | AZ66: 0.347 | BA66: 0.333 | BB66: 0.315 | BC66: 97 | BD66: 31 | BE66: joycema01 | BF66: 459964 | BG66: Aging On Base Master | BH66: Russell Martin | BI66: Shin-Soo Choo | BJ66: Kendry Morales | BK66: His best days are past him, but he should perform near projected levels. Role player, not a keeper. Consider platooning.
A67: Haseley | B67: Adam | C67: L | D67: 2021 | E67: 25 | F67: PHI | G67: NL | H67: OF | K67: 0.73 | L67: 0.309 | M67: 26 | N67: Y | O67: 95 | P67: 313 | Q67: 281 | R67: 33 | S67: 68 | T67: 16 | U67: 0 | V67: 5 | W67: 35 | X67: 4 | Y67: 0 | Z67: 23 | AA67: 69 | AB67: 2 | AC67: 5 | AD67: 3 | AE67: 2 | AF67: 7 | AG67: 0.24 | AH67: 0.305 | AI67: 0.358 | AJ67: 0.295 | AK67: 92 | AL67: 25 | AM67: 23 | AN67: 7 | AO67: 7 | AP67: -4 | AQ67: 103 | AR67: 292 | AS67: 42 | AT67: N | AU67: 0 | AV67: 1 | AW67: R | AX67: 283 | AY67: 0.257 | AZ67: 0.325 | BA67: 0.348 | BB67: 0.298 | BC67: 84 | BD67: 24 | BE67: haselad01 | BF67: 656514 | BG67: Young Gap Power | BH67: Yairo Munoz | BI67: Alejandro Kirk | BJ67: William Contreras | BK67: Needs to establish himself at MLB level. Risk of injury or playing time.
A68: O'Neill | B68: Tyler | C68: R | D68: 2021 | E68: 25 | F68: SLN | G68: NL | H68: OF | K68: 0.7 | L68: 0.309 | M68: 26 | N68: Y | O68: 111 | P68: 290 | Q68: 261 | R68: 36 | S68: 55 | T68: 13 | U68: 0 | V68: 12 | W68: 33 | X68: 4 | Y68: 1 | Z68: 25 | AA68: 81 | AB68: 0 | AC68: 3 | AD68: 0 | AE68: 2 | AF68: 5 | AG68: 0.21 | AH68: 0.284 | AI68: 0.402 | AJ68: 0.299 | AK68: 87 | AL68: 24 | AM68: 22 | AN68: 7 | AO68: 7 | AP68: -3 | AQ68: 104 | AR68: 295 | AS68: 43 | AT68: N | AU68: 0.01 | AV68: 1 | AW68: R | AX68: 352 | AY68: 0.189 | AZ68: 0.272 | BA68: 0.383 | BB68: 0.287 | BC68: 101 | BD68: 24 | BE68: oneilty01 | BF68: 641933 | BG68: Young Wild Slugger | BH68: Nate Lowe | BI68: Bobby Dalbec | BJ68: Evan White | BK68: Needs to establish himself at MLB level. Risk of injury or playing time.
A69: Polanco | B69: Gregory | C69: L | D69: 2021 | E69: 29 | F69: PIT | G69: NL | H69: OF | K69: 0.77 | L69: 0.309 | M69: 26 | N69: Y | O69: 79 | P69: 267 | Q69: 243 | R69: 31 | S69: 52 | T69: 14 | U69: 2 | V69: 12 | W69: 34 | X69: 5 | Y69: 1 | Z69: 20 | AA69: 71 | AB69: 2 | AC69: 1 | AD69: 0 | AE69: 3 | AF69: 5 | AG69: 0.212 | AH69: 0.276 | AI69: 0.43 | AJ69: 0.302 | AK69: 81 | AL69: 24 | AM69: 22 | AN69: 8 | AO69: 7 | AP69: -2 | AQ69: 105 | AR69: 300 | AS69: 44 | AT69: N | AU69: 0.04 | AV69: 6 | AW69: S | AX69: 360 | AY69: 0.179 | AZ69: 0.241 | BA69: 0.379 | BB69: 0.266 | BC69: 96 | BD69: 18 | BE69: polangr01 | BF69: 570256 | BG69: Agile Slugger | BH69: Brian Goodwin | BI69: Kevin Cron | BJ69: Byron Buxton | BK69: Chance for rebound. Sleeper pick for a good reason. Use caution.
A70: O±a | B70: Jorge | C70: R | D70: 2021 | E70: 24 | F70: SDN | G70: NL | H70: OF | K70: 0.54 | L70: 0.309 | M70: 26 | N70: Y | O70: 60 | P70: 193 | Q70: 167 | R70: 24 | S70: 36 | T70: 10 | U70: 1 | V70: 7 | W70: 21 | X70: 3 | Y70: 1 | Z70: 21 | AA70: 52 | AB70: 0 | AC70: 4 | AD70: 0 | AE70: 1 | AF70: 3 | AG70: 0.21 | AH70: 0.313 | AI70: 0.405 | AJ70: 0.317 | AK70: 61 | AL70: 23 | AM70: 21 | AN70: 5 | AO70: 4 | AP70: 2 | AQ70: 109 | AR70: 312 | AS70: 45 | AT70: N | AU70: -0.02 | AV70: 2 | AW70: R | AX70: 117 | AY70: 0.225 | AZ70: 0.331 | BA70: 0.441 | BB70: 0.338 | BC70: 40 | BD70: 21 | BE70: onajo01 | BF70: 671250 | BG70: Young Swings for Fences | BH70: Franchy Cordero | BI70: Lane Thomas | BJ70: Jake Bauers | BK70: Needs to establish himself at MLB level. Risk of injury or playing time.
A71: Slater | B71: Austin | C71: R | D71: 2021 | E71: 28 | F71: SFN | G71: NL | H71: OF | K71: 0.7 | L71: 0.309 | M71: 26 | N71: Y | O71: 83 | P71: 260 | Q71: 235 | R71: 31 | S71: 55 | T71: 9 | U71: 2 | V71: 7 | W71: 25 | X71: 7 | Y71: 1 | Z71: 19 | AA71: 68 | AB71: 1 | AC71: 4 | AD71: 1 | AE71: 1 | AF71: 4 | AG71: 0.231 | AH71: 0.3 | AI71: 0.381 | AJ71: 0.301 | AK71: 78 | AL71: 23 | AM71: 21 | AN71: 8 | AO71: 7 | AP71: -2 | AQ71: 110 | AR71: 314 | AS71: 46 | AT71: N | AU71: -0.04 | AV71: -16 | AW71: O | AX71: 275 | AY71: 0.255 | AZ71: 0.35 | BA71: 0.433 | BB71: 0.344 | BC71: 94 | BD71: 39 | BE71: slateau01 | BF71: 596103 | BG71: SB Bad Ball Hitter | BH71: Mallex Smith | BI71: Roman Quinn | BJ71: Greg Allen | BK71: Career still on the rise, but nearing peak. Will be overpriced in most drafts, unless truly healthy.
A72: Carlson | B72: Dylan | C72: B | D72: 2021 | E72: 22 | F72: SLN | G72: NL | H72: OF | K72: 0.75 | L72: 0.309 | M72: 26 | N72: Y | O72: 98 | P72: 273 | Q72: 241 | R72: 26 | S72: 48 | T72: 21 | U72: 3 | V72: 7 | W72: 32 | X72: 4 | Y72: 2 | Z72: 29 | AA72: 70 | AB72: 0 | AC72: 1 | AD72: 0 | AE72: 2 | AF72: 7 | AG72: 0.198 | AH72: 0.285 | AI72: 0.397 | AJ72: 0.297 | AK72: 81 | AL72: 23 | AM72: 21 | AN72: 4 | AO72: 4 | AP72: -3 | AQ72: 112 | AR72: 319 | AS72: 47 | AT72: N | AU72: 0.02 | AV72: 4 | AW72: R | AX72: 298 | AY72: 0.198 | AZ72: 0.264 | BA72: 0.374 | BB72: 0.277 | BC72: 82 | BD72: 19 | BE72: carlsdy01 | BF72: 666185 | BG72: Young Gap Power | BH72: Daulton Varsho | BI72: Abraham Toro | BJ72: Nick Senzel | BK72: Young enough to develop a lot from here. Risk of injury or playing time.
A73: Ruf | B73: Darin | C73: R | D73: 2021 | E73: 34 | F73: SFN | G73: NL | H73: OF | K73: 0.69 | L73: 0.309 | M73: 26 | N73: Y | O73: 57 | P73: 167 | Q73: 146 | R73: 18 | S73: 33 | T73: 6 | U73: 0 | V73: 7 | W73: 25 | X73: 2 | Y73: 0 | Z73: 19 | AA73: 38 | AB73: 0 | AC73: 1 | AD73: 0 | AE73: 0 | AF73: 2 | AG73: 0.228 | AH73: 0.321 | AI73: 0.408 | AJ73: 0.322 | AK73: 54 | AL73: 22 | AM73: 21 | AN73: 5 | AO73: 5 | AP73: 2 | AQ73: 113 | AR73: 325 | AS73: 48 | AT73: N | AU73: -0.03 | AV73: -17 | AW73: R | AX73: 225 | AY73: 0.257 | AZ73: 0.35 | BA73: 0.466 | BB73: 0.356 | BC73: 80 | BD73: 39 | BE73: rufda01 | BF73: 573131 | BG73: Aging Power When Healthy | BH73: Yonder Alonso | BI73: Nelson Cruz | BJ73: Mitch Moreland | BK73: His best days are past him, but he should perform near projected levels. Role player, not a keeper.
A74: Taylor | B74: Tyrone | C74: R | D74: 2021 | E74: 27 | F74: MIL | G74: NL | H74: OF | K74: 0.48 | L74: 0.309 | M74: 26 | N74: Y | O74: 78 | P74: 200 | Q74: 180 | R74: 24 | S74: 41 | T74: 12 | U74: 0 | V74: 6 | W74: 24 | X74: 2 | Y74: 1 | Z74: 15 | AA74: 44 | AB74: 0 | AC74: 3 | AD74: 0 | AE74: 1 | AF74: 3 | AG74: 0.227 | AH74: 0.3 | AI74: 0.411 | AJ74: 0.31 | AK74: 62 | AL74: 22 | AM74: 20 | AN74: 5 | AO74: 5 | AP74: 0 | AQ74: 117 | AR74: 334 | AS74: 49 | AT74: N | AU74: -0.01 | AV74: 2 | AW74: R | AX74: 155 | AY74: 0.233 | AZ74: 0.297 | BA74: 0.438 | BB74: 0.317 | BC74: 49 | BD74: 20 | BE74: tayloty01 | BF74: 621438 | BG74: Playing Time Risk | BH74: Austin Dean | BI74: Brent Rooker | BJ74: Bobby Bradley | BK74: Make or break year for him. Fringe MLB caliber. Risk of injury or playing time.
A75: Moniak | B75: Mickey | C75: L | D75: 2021 | E75: 22 | F75: PHI | G75: NL | H75: OF | K75: 0.56 | L75: 0.309 | M75: 26 | N75: Y | O75: 71 | P75: 204 | Q75: 172 | R75: 24 | S75: 37 | T75: 8 | U75: 1 | V75: 4 | W75: 17 | X75: 3 | Y75: 1 | Z75: 29 | AA75: 51 | AB75: 0 | AC75: 1 | AD75: 0 | AE75: 1 | AF75: 3 | AG75: 0.21 | AH75: 0.331 | AI75: 0.344 | AJ75: 0.309 | AK75: 63 | AL75: 22 | AM75: 20 | AN75: 3 | AO75: 3 | AP75: 0 | AQ75: 118 | AR75: 335 | AS75: 50 | AT75: N | AU75: 0 | AV75: 6 | AW75: S | AX75: 125 | AY75: 0.216 | AZ75: 0.343 | BA75: 0.313 | BB75: 0.307 | BC75: 38 | BD75: 16 | BE75: moniami01 | BF75: 666160 | BG75: Young Slap Hitter | BH75: Carter Kieboom | BI75: Jake Bauers | BJ75: Estevan Florial | BK75: Needs to establish himself at MLB level. Will put up better numbers with full season. Consider platooning.
A76: Inciarte | B76: Ender | C76: L | D76: 2021 | E76: 30 | F76: ATL | G76: NL | H76: OF | K76: 0.79 | L76: 0.309 | M76: 26 | N76: Y | O76: 71 | P76: 258 | Q76: 234 | R76: 33 | S76: 56 | T76: 9 | U76: 2 | V76: 5 | W76: 26 | X76: 8 | Y76: 3 | Z76: 19 | AA76: 46 | AB76: 1 | AC76: 2 | AD76: 1 | AE76: 2 | AF76: 2 | AG76: 0.238 | AH76: 0.299 | AI76: 0.36 | AJ76: 0.292 | AK76: 75 | AL76: 21 | AM76: 19 | AN76: 8 | AO76: 7 | AP76: -4 | AQ76: 123 | AR76: 357 | AS76: 51 | AT76: N | AU76: 0.03 | AV76: 5 | AW76: R | AX76: 302 | AY76: 0.214 | AZ76: 0.281 | BA76: 0.305 | BB76: 0.264 | BC76: 80 | BD76: 16 | BE76: inciaen01 | BF76: 542255 | BG76: SB Contact Hitter | BH76: Dee Gordon | BI76: Delino DeShields | BJ76: Mallex Smith | BK76: Could improve this year. Risk of injury or playing time.
A77: Akiyama | B77: Shogo | C77: L | D77: 2021 | E77: 32 | F77: CIN | G77: NL | H77: OF | K77: 0.79 | L77: 0.309 | M77: 26 | N77: Y | O77: 72 | P77: 234 | Q77: 202 | R77: 23 | S77: 46 | T77: 7 | U77: 1 | V77: 2 | W77: 16 | X77: 8 | Y77: 3 | Z77: 29 | AA77: 47 | AB77: 0 | AC77: 3 | AD77: 0 | AE77: 0 | AF77: 2 | AG77: 0.227 | AH77: 0.33 | AI77: 0.301 | AJ77: 0.296 | AK77: 69 | AL77: 20 | AM77: 19 | AN77: 4 | AO77: 4 | AP77: -3 | AQ77: 127 | AR77: 365 | AS77: 52 | AT77: N | AU77: -0.01 | AV77: -11 | AW77: R | AX77: 370 | AY77: 0.239 | AZ77: 0.349 | BA77: 0.298 | BB77: 0.306 | BC77: 113 | BD77: 31 | BE77: akiyash01 | BF77: 673451 | BG77: Agile Slap Hitter | BH77: Lorenzo Cain | BI77: Jarrod Dyson | BJ77: Cameron Maybin | BK77: Still In prime. Role player, not a keeper.
A78: Thomas | B78: Lane | C78: R | D78: 2021 | E78: 25 | F78: SLN | G78: NL | H78: OF | K78: 0.47 | L78: 0.309 | M78: 26 | N78: Y | O78: 84 | P78: 173 | Q78: 152 | R78: 20 | S78: 31 | T78: 8 | U78: 1 | V78: 7 | W78: 20 | X78: 2 | Y78: 1 | Z78: 17 | AA78: 44 | AB78: 0 | AC78: 2 | AD78: 0 | AE78: 1 | AF78: 4 | AG78: 0.203 | AH78: 0.293 | AI78: 0.411 | AJ78: 0.307 | AK78: 53 | AL78: 19 | AM78: 18 | AN78: 4 | AO78: 4 | AP78: 0 | AQ78: 134 | AR78: 382 | AS78: 53 | AT78: N | AU78: 0.05 | AV78: 11 | AW78: R | AX78: 128 | AY78: 0.153 | AZ78: 0.245 | BA78: 0.331 | BB78: 0.256 | BC78: 33 | BD78: 8 | BE78: thomala02 | BF78: 657041 | BG78: Young Power off Bench | BH78: Derek Fisher | BI78: Jorge O±a | BJ78: Abraham Toro | BK78: Upside remains, but only cautiously optimisitc. Needs to find his groove. Risk of injury or playing time.
A79: Sierra | B79: Magneuris | C79: L | D79: 2021 | E79: 25 | F79: MIA | G79: NL | H79: OF | K79: 0.57 | L79: 0.309 | M79: 26 | N79: Y | O79: 74 | P79: 225 | Q79: 202 | R79: 24 | S79: 46 | T79: 9 | U79: 2 | V79: 4 | W79: 20 | X79: 8 | Y79: 3 | Z79: 18 | AA79: 50 | AB79: 1 | AC79: 2 | AD79: 2 | AE79: 1 | AF79: 2 | AG79: 0.226 | AH79: 0.29 | AI79: 0.345 | AJ79: 0.282 | AK79: 63 | AL79: 17 | AM79: 15 | AN79: 6 | AO79: 5 | AP79: -6 | AQ79: 146 | AR79: 418 | AS79: 54 | AT79: N | AU79: -0.01 | AV79: 0 | AW79: R | AX79: 185 | AY79: 0.237 | AZ79: 0.31 | BA79: 0.355 | BB79: 0.291 | BC79: 54 | BD79: 17 | BE79: sierrma01 | BF79: 642423 | BG79: Young SB Slap Hitter | BH79: Myles Straw | BI79: Mallex Smith | BJ79: Delino DeShields | BK79: Needs to establish himself at MLB level. Risk of injury or playing time.
A80: Dean | B80: Austin | C80: R | D80: 2021 | E80: 27 | F80: SLN | G80: NL | H80: OF | K80: 0.57 | L80: 0.309 | M80: 26 | N80: Y | O80: 57 | P80: 175 | Q80: 159 | R80: 19 | S80: 35 | T80: 10 | U80: 0 | V80: 5 | W80: 19 | X80: 1 | Y80: 1 | Z80: 13 | AA80: 41 | AB80: 0 | AC80: 1 | AD80: 0 | AE80: 1 | AF80: 3 | AG80: 0.22 | AH80: 0.284 | AI80: 0.388 | AJ80: 0.294 | AK80: 51 | AL80: 17 | AM80: 15 | AN80: 4 | AO80: 3 | AP80: -3 | AQ80: 147 | AR80: 421 | AS80: 55 | AT80: N | AU80: -0.01 | AV80: 3 | AW80: R | AX80: 95 | AY80: 0.224 | AZ80: 0.309 | BA80: 0.387 | BB80: 0.308 | BC80: 29 | BD80: 13 | BE80: deanau01 | BF80: 621573 | BG80: Bench Warmer | BH80: Tyrone Taylor | BI80: Bobby Bradley | BJ80: Billy McKinney | BK80: Make or break year for him. Fringe MLB caliber. Risk of injury or playing time.
A81: Quinn | B81: Roman | C81: B | D81: 2021 | E81: 27 | F81: PHI | G81: NL | H81: OF | K81: 0.66 | L81: 0.309 | M81: 26 | N81: Y | O81: 86 | P81: 237 | Q81: 219 | R81: 27 | S81: 47 | T81: 9 | U81: 3 | V81: 6 | W81: 21 | X81: 13 | Y81: 1 | Z81: 13 | AA81: 64 | AB81: 0 | AC81: 3 | AD81: 1 | AE81: 0 | AF81: 3 | AG81: 0.214 | AH81: 0.268 | AI81: 0.37 | AJ81: 0.278 | AK81: 66 | AL81: 16 | AM81: 15 | AN81: 7 | AO81: 7 | AP81: -7 | AQ81: 148 | AR81: 424 | AS81: 56 | AT81: N | AU81: 0.01 | AV81: 1 | AW81: R | AX81: 276 | AY81: 0.213 | AZ81: 0.264 | BA81: 0.337 | BB81: 0.264 | BC81: 73 | BD81: 15 | BE81: quinnro01 | BF81: 596451 | BG81: SB Bad Ball Hitter | BH81: Greg Allen | BI81: Terrance Gore | BJ81: Raul Mondesi | BK81: Make or break year for him. Fringe MLB caliber. Risk of injury or playing time.
A82: Gosselin | B82: Philip | C82: R | D82: 2021 | E82: 32 | F82: PHI | G82: NL | H82: OF | I82: 1B | K82: 0.56 | L82: 0.309 | M82: 26 | N82: Y | O82: 74 | P82: 184 | Q82: 167 | R82: 22 | S82: 36 | T82: 7 | U82: 0 | V82: 5 | W82: 20 | X82: 1 | Y82: 0 | Z82: 15 | AA82: 45 | AB82: 1 | AC82: 1 | AD82: 0 | AE82: 0 | AF82: 4 | AG82: 0.218 | AH82: 0.287 | AI82: 0.359 | AJ82: 0.287 | AK82: 53 | AL82: 16 | AM82: 14 | AN82: 4 | AO82: 3 | AP82: -4 | AQ82: 151 | AR82: 431 | AS82: 57 | AT82: N | AU82: -0.02 | AV82: -7 | AW82: R | AX82: 233 | AY82: 0.234 | AZ82: 0.307 | BA82: 0.378 | BB82: 0.304 | BC82: 71 | BD82: 23 | BE82: gosseph01 | BF82: 594838 | BG82: Bench Warmer | BH82: Lucas Duda | BI82: Juan Graterol | BJ82: Wilkin Castillo | BK82: Still In prime. Role player, not a keeper.
A83: Duggar | B83: Steven | C83: L | D83: 2021 | E83: 27 | F83: SFN | G83: NL | H83: OF | K83: 0.66 | L83: 0.251 | M83: 7 | N83: Y | O83: 70 | P83: 207 | Q83: 190 | R83: 21 | S83: 41 | T83: 11 | U83: 1 | V83: 4 | W83: 20 | X83: 3 | Y83: 2 | Z83: 14 | AA83: 55 | AB83: 0 | AC83: 2 | AD83: 0 | AE83: 1 | AF83: 2 | AG83: 0.215 | AH83: 0.272 | AI83: 0.345 | AJ83: 0.273 | AK83: 56 | AL83: 14 | AM83: 13 | AN83: 3 | AO83: 3 | AP83: -7 | AQ83: 152 | AR83: 451 | AS83: 58 | AT83: N | AU83: 0.02 | AV83: 5 | AW83: S | AX83: 149 | AY83: 0.207 | AZ83: 0.26 | BA83: 0.312 | BB83: 0.256 | BC83: 38 | BD83: 9 | BE83: duggast01 | BF83: 621453 | BG83: Agile Gap Power | BH83: Jorge Bonifacio | BI83: Seth Brown | BJ83: Cole Tucker | BK83: Make or break year for him. Fringe MLB caliber. Will outperform last year, assuming regular playing time. Consider platooning.
A84: Tucker | B84: Cole | C84: B | D84: 2021 | E84: 24 | F84: PIT | G84: NL | H84: OF | K84: 0.7 | L84: 0.251 | M84: 7 | N84: Y | O84: 109 | P84: 256 | Q84: 233 | R84: 29 | S84: 47 | T84: 14 | U84: 2 | V84: 4 | W84: 20 | X84: 4 | Y84: 0 | Z84: 18 | AA84: 65 | AB84: 0 | AC84: 1 | AD84: 1 | AE84: 1 | AF84: 5 | AG84: 0.202 | AH84: 0.262 | AI84: 0.329 | AJ84: 0.261 | AK84: 67 | AL84: 14 | AM84: 13 | AN84: 2 | AO84: 2 | AP84: -12 | AQ84: 156 | AR84: 455 | AS84: 59 | AT84: N | AU84: 0.02 | AV84: 3 | AW84: R | AX84: 285 | AY84: 0.21 | AZ84: 0.254 | BA84: 0.292 | BB84: 0.242 | BC84: 69 | BD84: 11 | BE84: tuckeco01 | BF84: 657061 | BG84: Young Gap Power | BH84: Daz Cameron | BI84: Taylor Ward | BJ84: Lewis Brinson | BK84: Young enough to develop a lot from here. Risk of injury or playing time.
A85: Heredia | B85: Guillermo | C85: R | D85: 2021 | E85: 30 | F85: NYN | G85: NL | H85: OF | K85: 0.68 | L85: 0.251 | M85: 7 | N85: Y | O85: 65 | P85: 165 | Q85: 148 | R85: 19 | S85: 32 | T85: 7 | U85: 0 | V85: 4 | W85: 14 | X85: 2 | Y85: 1 | Z85: 12 | AA85: 38 | AB85: 0 | AC85: 2 | AD85: 2 | AE85: 1 | AF85: 2 | AG85: 0.217 | AH85: 0.284 | AI85: 0.353 | AJ85: 0.282 | AK85: 47 | AL85: 14 | AM85: 13 | AN85: 3 | AO85: 3 | AP85: -4 | AQ85: 157 | AR85: 456 | AS85: 60 | AT85: N | AU85: 0 | AV85: 2 | AW85: R | AX85: 130 | AY85: 0.214 | AZ85: 0.281 | BA85: 0.361 | BB85: 0.283 | BC85: 37 | BD85: 12 | BE85: heredgu01 | BF85: 628338 | BG85: Bench Warmer | BH85: Ryan LaMarre | BI85: Juan Lagares | BJ85: Philip Gosselin | BK85: In prime. Risk of injury or playing time.
A86: Brinson | B86: Lewis | C86: R | D86: 2021 | E86: 26 | F86: MIA | G86: NL | H86: OF | K86: 0.75 | L86: 0.251 | M86: 7 | N86: Y | O86: 93 | P86: 233 | Q86: 213 | R86: 20 | S86: 42 | T86: 11 | U86: 2 | V86: 5 | W86: 21 | X86: 3 | Y86: 1 | Z86: 15 | AA86: 64 | AB86: 1 | AC86: 3 | AD86: 1 | AE86: 1 | AF86: 6 | AG86: 0.196 | AH86: 0.255 | AI86: 0.337 | AJ86: 0.261 | AK86: 61 | AL86: 13 | AM86: 12 | AN86: 2 | AO86: 2 | AP86: -11 | AQ86: 162 | AR86: 465 | AS86: 61 | AT86: N | AU86: -0.01 | AV86: -3 | AW86: R | AX86: 269 | AY86: 0.211 | AZ86: 0.26 | BA86: 0.351 | BB86: 0.267 | BC86: 72 | BD86: 16 | BE86: brinsle01 | BF86: 621446 | BG86: Bad Ball Hitter | BH86: Travis Demeritte | BI86: Cole Tucker | BJ86: Taylor Ward | BK86: Some upside still, but needs to start proving it. Risk of injury or playing time.
A87: Sanchez | B87: Jesus | C87: L | D87: 2021 | E87: 23 | F87: MIA | G87: NL | H87: OF | K87: 0.49 | L87: 0.251 | M87: 7 | N87: Y | O87: 103 | P87: 132 | Q87: 107 | R87: 10 | S87: 15 | T87: 10 | U87: 0 | V87: 2 | W87: 10 | X87: 3 | Y87: 0 | Z87: 23 | AA87: 40 | AB87: 0 | AC87: 1 | AD87: 0 | AE87: 0 | AF87: 5 | AG87: 0.142 | AH87: 0.302 | AI87: 0.312 | AJ87: 0.286 | AK87: 38 | AL87: 13 | AM87: 12 | AN87: 0 | AO87: 0 | AP87: -3 | AQ87: 164 | AR87: 471 | AS87: 62 | AT87: N | AU87: 0.07 | AV87: 9 | AW87: R | AX87: 94 | AY87: 0.093 | AZ87: 0.246 | BA87: 0.186 | BB87: 0.218 | BC87: 21 | BD87: 4 | BE87: sanchje02 | BF87: 660821 | BG87: Young SB Wiff King | BH87: Sherten Apostel | BI87: Erick Mejia | BJ87: Jo Adell | BK87: Young enough to develop a lot from here. Risk of injury or playing time. Consider platooning.
A88: Basabe | B88: Luis Alexander | C88: B | D88: 2021 | E88: 24 | F88: SFN | G88: NL | H88: OF | K88: 0.49 | L88: 0.251 | M88: 7 | N88: Y | O88: 97 | P88: 146 | Q88: 121 | R88: 20 | S88: 21 | T88: 7 | U88: 0 | V88: 2 | W88: 11 | X88: 8 | Y88: 0 | Z88: 23 | AA88: 41 | AB88: 0 | AC88: 1 | AD88: 0 | AE88: 1 | AF88: 2 | AG88: 0.169 | AH88: 0.306 | AI88: 0.288 | AJ88: 0.28 | AK88: 41 | AL88: 12 | AM88: 11 | AN88: 3 | AO88: 2 | AP88: -4 | AQ88: 167 | AR88: 477 | AS88: 63 | AT88: B | AU88: 0.02 | AV88: 5 | AW88: R | AX88: 94 | AY88: 0.157 | AZ88: 0.304 | BA88: 0.214 | BB88: 0.259 | BC88: 24 | BD88: 7 | BE88: basablu01 | BF88: 642772 | BG88: Young SB Wiff King | BH88: Cristian Pache | BI88: Justin Williams | BJ88: Jason Martin | BK88: Young enough to develop a lot from here. Expect limited opportunities.
A89: Alford | B89: Anthony | C89: R | D89: 2021 | E89: 26 | F89: PIT | G89: NL | H89: OF | K89: 0.39 | L89: 0.251 | M89: 7 | N89: Y | O89: 87 | P89: 153 | Q89: 138 | R89: 17 | S89: 26 | T89: 6 | U89: 1 | V89: 5 | W89: 15 | X89: 5 | Y89: 1 | Z89: 12 | AA89: 44 | AB89: 0 | AC89: 2 | AD89: 0 | AE89: 1 | AF89: 2 | AG89: 0.186 | AH89: 0.26 | AI89: 0.36 | AJ89: 0.272 | AK89: 41 | AL89: 11 | AM89: 11 | AN89: 3 | AO89: 3 | AP89: -6 | AQ89: 172 | AR89: 486 | AS89: 64 | AT89: B | AU89: -0.01 | AV89: 1 | AW89: R | AX89: 115 | AY89: 0.192 | AZ89: 0.246 | BA89: 0.403 | BB89: 0.277 | BC89: 32 | BD89: 10 | BE89: alforan01 | BF89: 546990 | BG89: SB Wiff King | BH89: Brett Phillips | BI89: Jake Fraley | BJ89: Brian O'Grady | BK89: Some upside still, but needs to start proving it. Risky pick. Avoid.
A90: Davis | B90: Jaylin | C90: R | D90: 2021 | E90: 26 | F90: SFN | G90: NL | H90: OF | K90: 0.41 | L90: 0.251 | M90: 7 | N90: Y | O90: 69 | P90: 144 | Q90: 129 | R90: 14 | S90: 24 | T90: 6 | U90: 0 | V90: 4 | W90: 12 | X90: 3 | Y90: 1 | Z90: 12 | AA90: 40 | AB90: 0 | AC90: 2 | AD90: 0 | AE90: 1 | AF90: 3 | AG90: 0.186 | AH90: 0.266 | AI90: 0.342 | AJ90: 0.27 | AK90: 39 | AL90: 11 | AM90: 10 | AN90: 2 | AO90: 2 | AP90: -6 | AQ90: 174 | AR90: 498 | AS90: 65 | AT90: B | AU90: 0.01 | AV90: 4 | AW90: R | AX90: 89 | AY90: 0.186 | AZ90: 0.248 | BA90: 0.346 | BB90: 0.26 | BC90: 23 | BD90: 7 | BE90: davisja03 | BF90: 664041 | BG90: Wiff King | BH90: Taylor Jones | BI90: Dilson Herrera | BJ90: Joe McCarthy | BK90: Some upside still, but needs to start proving it. Risky pick. Avoid.
A91: Pache | B91: Cristian | C91: R | D91: 2021 | E91: 22 | F91: ATL | G91: NL | H91: OF | K91: 0.46 | L91: 0.251 | M91: 7 | N91: Y | O91: 101 | P91: 159 | Q91: 139 | R91: 14 | S91: 24 | T91: 9 | U91: 0 | V91: 3 | W91: 12 | X91: 5 | Y91: 1 | Z91: 17 | AA91: 46 | AB91: 0 | AC91: 1 | AD91: 0 | AE91: 1 | AF91: 3 | AG91: 0.172 | AH91: 0.27 | AI91: 0.306 | AJ91: 0.262 | AK91: 42 | AL91: 10 | AM91: 9 | AN91: 1 | AO91: 1 | AP91: -7 | AQ91: 181 | AR91: 514 | AS91: 66 | AT91: B | AU91: 0.03 | AV91: 6 | AW91: R | AX91: 84 | AY91: 0.171 | AZ91: 0.244 | BA91: 0.262 | BB91: 0.232 | BC91: 20 | BD91: 4 | BE91: pachecr01 | BF91: 665506 | BG91: Young SB Wiff King | BH91: Justin Williams | BI91: Aaron Whitefield | BJ91: Jason Martin | BK91: Young enough to develop a lot from here. Expect limited opportunities.
